{"text_format":"1","workbook":"xlsx","n_sheets":19,"sheets":["Start Here","Project Information","Watershed","Geometry","Calculated","Geology","Planform Stability","Bed Stability","Habitat","Infrastructure","Responses","Design","Ranking","Review","Reference A","Reference B","Lookup","Matrix","ESRI_MAPINFO_SHEET"],"not_rendered":{"charts":0,"images":2,"macros":1,"external_links":0,"defined_names":173,"comments":1,"pivot_tables":0},"unopened":[],"bounds":{"document_bytes":16777216,"sheet_cells":100000,"rows_first":2000,"rows_last":500,"rows_between":2000,"halvings":0,"cell_chars":16384,"cell_head_chars":4096},"cells_cut":0,"cells_raw":0,"read":"whole","date_system":"1900"}

{"sheet":"Start Here","index":0,"n_rows":22,"n_cols":9,"rows_kept":22,"cut":false,"hidden":false,"merged":[[18,0,18,7],[5,8,6,10],[13,0,13,7],[14,0,14,7],[15,0,15,7],[16,0,16,7],[17,0,17,7]]}
[]
[]
[]
[]
[]
[null,null,null,null,null,null,null,null,"Quick Link"]
[]
["River Restoration Toolbox"]
[]
["Welcome to the Iowa DNR River Restoration Tool Box Data Collection and Data Analysis Spreadsheet."]
["On each tab you will find a series of questions or calculations.  All fields that are highlighted in light"]
["green on the first 10 tabs should be filled out by the user using the most representative data for the"]
["analyzed reach.   Please fill out one spreadsheet per each reach of stream to be analyzed. To move "]
["between tabs, either click on the links to the right, use arrow keys, or click on the tabs below."]
[]
["The Design Tab, provides a summary of existing conditions and allows the user to imput proposed parameters for the design.  Selected parameters are then rated as funtioning, functioning - at risk"]
["parameters for the design.  Selected parameters are then rated as funtioning, functioning - at risk, "]
["and non-functioning.  The ranking tab is based on design values and ranks techniques based on a "]
["variety of parameters.  Note that often, multiple techniques will be appropriate for a given situation."]
["The analysis provided within this spreadsheet does not replace the need for a detailed design and is "]
["provided for informational purposes.  Stream bank and channel restoration designs should be performed"]
["by an experienced professional."]

{"sheet":"Project Information","index":1,"n_rows":45,"n_cols":2,"rows_kept":45,"cut":false,"hidden":false,"merged":[]}
[]
[null,"Project Information"]
[]
[]
[1,"Designer Name"]
[null,"Enter your full name"]
[]
[null,"Enter your email address"]
[]
[null,"Enter your phone number (123)456-7890"]
[]
[]
[{"$f":"1+MAX($A$5:A12)","v":2},"Stream name"]
[]
[]
[{"$f":"1+MAX($A$5:A15)","v":3},"Project Location"]
[]
[null,"Upstream Project Coordinates (Web Mercator)"]
[null,"X"]
[]
[null,"Y"]
[]
[null,"Downstream Project Coordinates (Web Mercator)"]
[null,"X"]
[]
[null,"Y"]
[]
[]
[{"$f":"1+MAX($A$5:A28)","v":4},"County"]
[]
[]
[]
[{"$f":"1+MAX($A$5:A32)","v":5},"Watersheds"]
[]
[null,"HUC 8 watershed name - select from drop-down list"]
[]
[null,"Select the 8 digit hydrologic unit code surrounding the project area"]
[]
[null,"HUC 12 watershed name - select from drop down list"]
[]
[null,"Select the 12 digit hydrologic unit code surrounding the project area"]
[]
[{"$f":"1+MAX($A$5:A42)","v":6},"Project Goals and Objectives"]
[]
[null,"What are the concerns or problems?"]

{"sheet":"Watershed","index":2,"n_rows":46,"n_cols":3,"rows_kept":46,"cut":false,"hidden":false,"merged":[[0,1,0,2],[1,1,1,2],[18,1,18,2]]}
[]
[null,"Watershed"]
[]
[]
[{"$f":"1+MAX('Project Information'!A5:A45)","v":7},"Drainage Area (DA)"]
[null,null,"square miles"]
[]
[]
[]
[{"$f":"1+MAX($A$5:A9)","v":8},"Enter appropriate regional curve? Select from drop-down list."]
[]
[null,"For User Defined enter the components of the formula y = a x exp below"]
[null,"Bankfull Cross Sectional Area"]
[null,null,"a"]
[null,null,"exp"]
[null,"Bankfull Discharge"]
[null,null,"a"]
[null,null,"exp"]
[null,"1. Provisional Iowa Regional Curves by Iowa State University, Tanner Bonham\n2. Recommend basing % impervious cover on the entire upstream catchment using GIS or StreamStats data."]
[{"$f":"1+MAX($A$5:A19)","v":9},"In what geomorphic region is the project site located? Select from drop-down list."]
[]
[]
[]
[{"$f":"1+MAX($A$5:A22)","v":10},"Flow Regime - Select from drop-down list."]
[]
[null,{"$f":"LineArtText(1)","v":"Click button to See Line Art Drawing 1 (View 1) Flow Regime"}]
[]
[{"$f":"1+MAX($A$5:A26)","v":11},"Valley Type (broad level) - Select from drop-down list."]
[]
[]
[]
[{"$f":"1+MAX($A5:$A31)","v":12},"Landuse - Select from drop-down list."]
[null,"Has landuse in the watershed changed significantly in the last twenty years (i.e. cropland to urban, forest to cropland, etc.)?"]
[]
[null,{"$f":"LineArtText(2)","v":"Click button to See Line Art Drawing 2 (View 2) Riparian Diagram"}]
[]
[{"$f":"1+MAX($A$5:A35)","v":13},"Reference Reach"]
[null,"Is a nearby reference reach of a stream with similar traits (alluvial, step-pool) and valley type available for comparison? Select from drop-down list.  Note: Enter reference reach data in tabs \"Reference A\" & \"Reference B\"."]
[]
[]
[null,"If yes, please describe"]
[]
[null,{"$f":"LineArtText(3)","v":"Click button to See Line Art Drawing 3 (View 3) Survey Figure"}]
[]
[{"$f":"1+MAX($A$5:A43)","v":14},"Floodplain Impacts"]
[null,"Is the project area on a FEMA Flood Map?  Select from drop-down list. For details, please visit the FEMA Map Service Center."]

{"sheet":"Geometry","index":3,"n_rows":90,"n_cols":3,"rows_kept":90,"cut":false,"hidden":false,"merged":[[1,1,1,2],[0,1,0,2]]}
[]
[null,"Site Geometry and Calculations"]
[]
[]
[{"$f":"1+MAX(Watershed!A5:A55)","v":15},"Stream Length (SL)"]
[null,"Distance along the center of the channel (equidistant from each edge of channel) from start to end of project limits"]
[null,null,"feet"]
[null,{"$f":"LineArtText(4)","v":"Click button to See Line Art Drawing 4 (View 4) Sinuosity"}]
[]
[{"$f":"1+MAX($A$5:A9)","v":16},"Valley Length (VL)"]
[null,"Along the “big picture” channel alignment not including meanders. "]
[null,null,"feet"]
[null,{"$f":"LineArtText(4)","v":"Click button to See Line Art Drawing 4 (View 4) Sinuosity"}]
[]
[{"$f":"1+MAX($A$5:A14)","v":17},"Valley Width"]
[null,null,"feet"]
[null,{"$f":"LineArtText(4)","v":"Click button to See Line Art Drawing 4 (View 4) Sinuosity"}]
[]
[{"$f":"1+MAX($A$5:A18)","v":18},"Channel slope"]
[null,"(average bankfull slope)"]
[null,null,"%"]
[null,{"$f":"LineArtText(5)&CHAR(10)&LineArtText(7)","v":"Click button to See Line Art Drawing 5 (View 5) Longitudinal Profile\nClick button to See Line Art Drawing 7 (View 7) Facet Terminology"}]
[]
[{"$f":"1+MAX($A$5:A23)","v":19},"Low Bank Height (LBH) (riffle)"]
[null,null,"feet"]
[null,{"$f":"LineArtText(6)","v":"Click button to See Line Art Drawing 6 (View 6) Incision Ratio"}]
[]
[{"$f":"1+MAX($A$5:A27)","v":20},"Bankfull Width (WBKF) (riffle)"]
[null,"Note: Site may have multiple riffles - choose most representative riffle."]
[null,null,"feet"]
[null,{"$f":"LineArtText(7)","v":"Click button to See Line Art Drawing 7 (View 7) Facet Terminology"}]
[null,{"$f":"LineArtText(8)","v":"Click button to See Line Art Drawing 8 (View 8) Cross Section Geometry"}]
[]
[{"$f":"1+MAX($A$5:A32)","v":21},"Low Flow Depth (riffle)"]
[null,"Depth of low flow condition."]
[null,null,"feet"]
[null,{"$f":"LineArtText(8)","v":"Click button to See Line Art Drawing 8 (View 8) Cross Section Geometry"}]
[]
[{"$f":"1+MAX($A$5:A37)","v":22},"Mean Bankfull Depth (dBKF) (riffle)"]
[null,null,"feet"]
[null,{"$f":"LineArtText(8)","v":"Click button to See Line Art Drawing 8 (View 8) Cross Section Geometry"}]
[]
[{"$f":"1+MAX($A$5:A42)","v":23},"Maximum Bankfull Depth (dMAX) (riffle)"]
[null,null,"feet"]
[null,{"$f":"LineArtText(8)","v":"Click button to See Line Art Drawing 8 (View 8) Cross Section Geometry"}]
[]
[{"$f":"1+MAX($A$5:A46)","v":24},"Maximum Pool Depth (dMAXP)"]
[null,null,"feet"]
[null,{"$f":"LineArtText(5)","v":"Click button to See Line Art Drawing 5 (View 5) Longitudinal Profile"}]
[]
[{"$f":"1+MAX($A$5:A50)","v":25},"Width of Flood-Prone Area (WFPA)"]
[null,null,"feet"]
[null,{"$f":"LineArtText(9)","v":"Click button to See Line Art Drawing 9 (View 9) Entrenchment Ratio"}]
[]
[{"$f":"1+MAX($A$5:A54)","v":26},"Average Pool to Pool Spacing (PS)"]
[null,null,"feet"]
[null,{"$f":"LineArtText(5)","v":"Click button to See Line Art Drawing 5 (View 5) Longitudinal Profile"}]
[]
[{"$f":"1+MAX($A$5:A58)","v":27},"Belt Width (WBLT)"]
[null,null,"feet"]
[null,{"$f":"LineArtText(10)","v":"Click button to See Line Art Drawing 10 (View 10) Meander Terminology"}]
[]
[{"$f":"1+MAX($A$5:A62)","v":28},"What is the dominant BEHI Rating?"]
[]
[null,{"$f":"LineArtText(20)","v":"Click button to See Line Art Drawing 20 (View 20) BEHI Variables"}]
[]
[{"$f":"1+MAX($A$5:A65)","v":29},"What is the D50 of the reach?"]
[null,"For Bedrock enter 2048 mm"]
[null,null,"mm"]
[null,{"$f":"LineArtText(11)","v":"Click button to See Line Art Drawing 11 (View 11) Pebble Counts"}]
[]
[{"$f":"1+MAX($A$5:A71)","v":30},"Bankfull discharge (QBKF)"]
[null,"Validate with combination of field and desktop methods. "]
[null,"Bankfull discharge is less than the 2-year (50 percent) peak flow."]
[null,"Method - select from drop down list","cfs"]
[]
[]
[]
[]
[]
[]
[]
[]
[]
[{"$f":"1+MAX($A$5:A84)","v":31},"Bankfull discharge (QBKF) - Design"]
[null,"Use best judgement based on results listed above."]
[null,null,"cfs"]
[]
[]
[{"$f":"1+MAX($A$5:A89)","v":32},"Is the stream made of a single channel or multiple channels? Select from drop down list."]

{"sheet":"Calculated","index":4,"n_rows":43,"n_cols":7,"rows_kept":43,"cut":false,"hidden":false,"merged":[[1,1,1,2],[0,1,0,2]]}
[]
[null,"Calculated Values"]
[]
[]
[{"$f":"1+MAX(Geometry!A5:A93)","v":33},"Channel sinuosity"]
[null,{"$f":"IFERROR(LengthCenterline/ValleyLength, \"\")","v":""}]
[null,{"$f":"LineArtText(4)","v":"Click button to See Line Art Drawing 4 (View 4) Sinuosity"}]
[]
[{"$f":"1+MAX($A$5:A8)","v":34},"Channel slope (average bankfull slope)"]
[null,{"$f":"IFERROR(SurfaceElevationDrop, \"\")","v":0},"%"]
[null,{"$f":"LineArtText(7)","v":"Click button to See Line Art Drawing 7 (View 7) Facet Terminology"}]
[]
[{"$f":"1+MAX($A$5:A12)","v":35},"Width to depth ratio"]
[null,{"$f":"IFERROR(BankfullWidth/MeanBankfullDepth, \"\")","v":""}]
[null,{"$f":"LineArtText(8)","v":"Click button to See Line Art Drawing 8 (View 8) Cross Section Geometry"}]
[]
[{"$f":"1+MAX($A$5:A16)","v":36},"Entrenchment Ratio (ER)"]
[null,{"$f":"IFERROR(FloodproneWidth/BankfullWidth, \"\")","v":""}]
[null,{"$f":"LineArtText(9)","v":"Click button to See Line Art Drawing 9 (View 9) Entrenchment Ratio"}]
[]
[{"$f":"1+MAX($A$5:A20)","v":37},"Bankfull Cross Sectional Area (ABKF)"]
[null,{"$f":"IF(OR(ISBLANK(BankfullWidth), ISBLANK(MeanBankfullDepth)), \"\", ROUND(BankfullWidth*MeanBankfullDepth,1))","v":""},"sq ft"]
[null,{"$f":"LineArtText(8)","v":"Click button to See Line Art Drawing 8 (View 8) Cross Section Geometry"}]
[]
[{"$f":"1+MAX($A$5:A24)","v":38},"Bank Height ratio (BHR)"]
[null,{"$f":"IFERROR(LowBankHeight/MaxBankfullDepth, \"\")","v":""}]
[null,{"$f":"LineArtText(6)","v":"Click button to See Line Art Drawing 6 (View 6) Incision Ratio"}]
[]
[{"$f":"1+MAX($A$5:A28)","v":39},"Pool Depth Ratio"]
[null,{"$f":"IFERROR(MaxPoolDepth/MeanBankfullDepth, \"\")","v":""}]
[]
[]
[{"$f":"1+MAX($A$5:A32)","v":40},"Pool to Pool Spacing Ratio"]
[null,{"$f":"IF(OR(ISBLANK(AveragePtPSpacing), ISBLANK(BankfullWidth)), \"\", ROUND(IFERROR(AveragePtPSpacing/BankfullWidth, 0),1))","v":""}]
[]
[]
[{"$f":"1+MAX($A$5:A36)","v":41},"Meander Width Ratio"]
[null,{"$f":"IFERROR(BeltWidth/BankfullWidth, \"\")","v":""}]
[]
[]
[{"$f":"1+MAX($A$5:A40)","v":42},"Stream Type",null,"Stream Type Override:","",null,"Type in cell to override calculated stream type.  If left blank, the calculated value will be used."]
[null,{"$f":"IF(E41<>\"\",E41,IFERROR(Classify(ChannelSlope,Reach_D50,FloodproneWidth,WidthDepthRatio,EntrenchmentRatio, ChannelType), \"\"))","v":""}]
[null,{"$f":"LineArtText(12)","v":"Click button to See Line Art Drawing 12 (View 12) Rosgen Stream Types"}]

{"sheet":"Geology","index":5,"n_rows":23,"n_cols":3,"rows_kept":23,"cut":false,"hidden":false,"merged":[[0,1,0,2],[1,1,1,2]]}
[]
[null,"Geology"]
[]
[]
[{"$f":"1+MAX(Calculated!A5:A118)","v":43},"What are the dominant bed materials? Select from drop-down list."]
[]
[null,{"$f":"LineArtText(13)","v":"Click button to See Line Art Drawing 13 (View 13) Bed vs Bank"}]
[]
[{"$f":"1+MAX($A$5:A8)","v":44},"What are the dominant bank materials? Select from drop-down list."]
[]
[null,{"$f":"LineArtText(13)","v":"Click button to See Line Art Drawing 13 (View 13) Bed vs Bank"}]
[]
[{"$f":"1+MAX($A$5:A12)","v":45},"D50 riffle armor"]
[null,null,"mm"]
[null,{"$f":"LineArtText(11)","v":"Click button to See Line Art Drawing 11 (View 11) Pebble Counts"}]
[]
[{"$f":"1+MAX($A$5:A16)","v":46},"D50 bar sample"]
[null,null,"mm"]
[null,{"$f":"LineArtText(11)","v":"Click button to See Line Art Drawing 11 (View 11) Pebble Counts"}]
[]
[{"$f":"1+MAX($A$5:A20)","v":47},"D100 bar sample"]
[null,null,"mm"]
[null,{"$f":"LineArtText(11)","v":"Click button to See Line Art Drawing 11 (View 11) Pebble Counts"}]

{"sheet":"Planform Stability","index":6,"n_rows":40,"n_cols":3,"rows_kept":40,"cut":false,"hidden":false,"merged":[[0,1,0,2]]}
[]
[null,"Planform Stability"]
[]
[]
[{"$f":"1+MAX(Geology!A5:A120)","v":48},"Has the proposed stream segment been mechanically straightened or dredged in the past? Select from drop-down list."]
[]
[]
[]
[{"$f":"1+MAX($A$5:A8)","v":49},"Does the proposed stream segment have man-made levees? Select from drop-down list."]
[]
[]
[]
[{"$f":"1+MAX($A$5:A12)","v":50},"Meander Pattern - Select from drop-down list."]
[]
[null,{"$f":"LineArtText(14)","v":"Click button to See Line Art Drawing 14 (View 14) Meander Patterns"}]
[]
[{"$f":"1+MAX($A$5:A16)","v":51},"Radius of Curvature (Rc)                                                                                                                              Note: Site may have multiple Rc's - choose minimum Rc to be conservative.\n"]
[null,null,"ft"]
[null,{"$f":"LineArtText(10)","v":"Click button to See Line Art Drawing 10 (View 10) Meander Terminology"}]
[]
[{"$f":"1+MAX($A$5:A19)","v":52},"Channel Path Change - Select from drop-down list."]
[null,"Has a significant change occurred in the channel path?\nHistorical aerial photography may be reviewed from online resources such as the IOWA GeoData"]
[]
[]
[]
[null,"Potential Issues (select most applicable from drop-down list)."]
[]
[null,{"$f":"LineArtText(15)","v":"Click button to See Line Art Drawing 15 (View 15) Concerns"}]
[null,{"$f":"LineArtText(21)","v":"Click button to See Line Art Drawing 21 (View 21) Lateral Erosion"}]
[{"$f":"1+MAX($A$5:A29)","v":53}]
[null,"Do any of these conditions exist - streambanks eroding at their base,  bank overhangs, leaning trees, and/or recently exposed tree roots near the proposed site? Select from drop-down list."]
[]
[]
[{"$f":"1+MAX($A$5:A32)","v":54}]
[null,"Does the channel have distinct point bars and cut banks which alternate from side-to-side? Select from drop down list."]
[]
[null,{"$f":"LineArtText(16)","v":"Click button to See Line Art Drawing 16 (View 16) Bar Types"}]
[{"$f":"1+MAX($A$5:A37)","v":55}]
[null,"Channel Constriction/Obstruction"]
[null,"Are there any channel constrictions, obstructions or flow deflectors, either natural or manmade, near the proposed project site that could be causing any observed erosion (i.e. debris jams, bedrock outcrops, beaver dams, culverts, bridges, etc.)? Select from drop-down list.  "]

{"sheet":"Bed Stability","index":7,"n_rows":29,"n_cols":2,"rows_kept":29,"cut":false,"hidden":false,"merged":[[0,1,0,2],[1,1,1,2]]}
[]
[null,"Bed Stability"]
[]
[]
[{"$f":"1+MAX('Planform Stability'!A5:A112)","v":56},"Is there significant lowering of the stream bed - Select from drop-down list."]
[]
[null,{"$f":"LineArtText(17)","v":"Click button to See Line Art Drawing 17 (View 17) Headcut"}]
[]
[null,"If yes, please describe."]
[]
[null,{"$f":"LineArtText(15)","v":"Click button to See Line Art Drawing 15 (View 15) Concerns"}]
[{"$f":"1+MAX($A$5:A11)","v":57}]
[null,"Known Grade Control"]
[]
[null,"Is there any known grade control techniques (known bedrock control, low-head dams, weirs, flumes, culverts, crossings etc.) within 4 miles downstream or 2 miles upstream of the proposed site? Select from drop-down list."]
[]
[]
[null,"If so, are any undercut or have a vertical drop at the outlet? Select from drop-down list."]
[]
[]
[{"$f":"1+MAX($A$5:A20)","v":58}]
[null,"What is the dominant depositional pattern? Select from drop-down list."]
[]
[null,{"$f":"LineArtText(16)","v":"Click button to See Line Art Drawing 16 (View 16) Bar Types"}]
[{"$f":"1+MAX($A$5:A24)","v":59}]
[null,"What is the current channel evolutionary stage? Select from drop-down list."]
[]
[null,"Reference:  Channel Evolution Model (Schumm and Parker 1973) modified (Simon and and Rinaldi 2006)"]
[null,{"$f":"LineArtText(18)","v":"Click button to See Line Art Drawing 18 (View 18) Channel Evolution Model"}]

{"sheet":"Habitat","index":8,"n_rows":66,"n_cols":3,"rows_kept":66,"cut":false,"hidden":false,"merged":[[0,1,0,2],[1,1,1,2]]}
[]
[null,"Habitat"]
[]
[]
[{"$f":"1+MAX('Bed Stability'!A5:A121)","v":60},"What is the dominant type of riparian landuse adjacent to the proposed site? Select from drop-down list."]
[]
[]
[]
[{"$f":"1+MAX($A$5:A8)","v":61},"Minimum Buffer Width measured from outside edge of Belt Width?    Select from drop-down list."]
[]
[null,{"$f":"LineArtText(2)","v":"Click button to See Line Art Drawing 2 (View 2) Riparian Diagram"}]
[]
[{"$f":"1+MAX($A$5:A12)","v":62},"Approximate what percentage of stream banks have native vegetation growing on them? "]
[]
[]
[]
[{"$f":"1+MAX($A$5:A16)","v":63},"List dominant plant species found on stream banks and near floodplain"]
[]
[null,{"$f":"LineArtText(22)","v":"Click button to See Line Art Drawing 22 (View 22) Quantification of Riparian Vegetation"}]
[]
[{"$f":"1+MAX($A$5:A18)","v":64},"How many feet above the low flow water surface does the vegetation appear to be successful?"]
[null,null,"ft"]
[]
[{"$f":"1+MAX($A$5:A23)","v":65},"Wood Debris"]
[]
[null,"Is there large woody debris (greater than 6’ long and 12” diameter) in the channel? Select from drop-down list."]
[]
[]
[null,"Is it in significant enough quantity to cause debris jams? Select from drop-down list."]
[]
[]
[]
[{"$f":"1+MAX($A$5:A32)","v":66},"Does the channel have a mix of substrate and cover (i.e. logs, low flow depths exceeding 4 feet, snags, undercut banks, boulders or cobbles, gravel or sand, submerged vegetation, root mats, etc.)? "]
[]
[null,"If yes, please describe."]
[]
[null,{"$f":"LineArtText(19)","v":"Click button to See Line Art Drawing 19 (View 19) Habitat Features"}]
[]
[{"$f":"1+MAX($A$5:A38)","v":67},"What percentage of the stream is covered by the tree canopy? Select from drop-down list."]
[]
[]
[]
[{"$f":"1+MAX($A$5:A42)","v":68},"Does the channel have a mix of velocity and depth patterns (i.e. slow-deep, slow-shallow, fast-deep and fast-shallow) and pool variability (i.e. large-shallow, large-deep, small-shallow and small-deep)? Select from drop-down list."]
[]
[]
[]
[{"$f":"1+MAX($A$5:A46)","v":69},"Are there known blockages to fish passage? Select from drop-down list."]
[]
[]
[]
[{"$f":"1+MAX($A$5:A50)","v":70},"Score Data"]
[null,"Are there any known fish, habitat, or IBI score data for this stream within the project limits or a mile from the project? Select from drop-down list."]
[]
[]
[]
[null,"If yes, please describe."]
[]
[]
[]
[{"$f":"1+MAX($A$5:A59)","v":71},"Species Concerns"]
[]
[null,"Is this stream known to have, or likely to have, important habitat supporting species of special conservation concern identified in Iowa DNR’s State Wildlife Action Plan? To determine, contact Iowa DNR Environmental Review staff, provide the segment’s UTM coordinates and ask for an environmental review prior to developing the project. "]
[]
[]
[]
[null,"If yes, please describe.  List species and potential project impacts (temporary and long-range)."]

{"sheet":"Infrastructure","index":9,"n_rows":8,"n_cols":6,"rows_kept":8,"cut":false,"hidden":false,"merged":[[6,1,6,5],[5,1,5,5],[3,1,3,5],[4,1,4,5],[0,1,0,5],[1,1,1,5]]}
[]
[null,"Infrastructure"]
[]
[{"$f":"1+MAX(Habitat!A25:A117)","v":72},"Potentially Affected Infrastructure"]
[]
[null,"What infrastructure  (roads, bridges, utility lines, public lands, wellheads, etc.) could potentially be negatively or positively affected by a project? "]
[null,"Please fill out table below."]
[null,"Infrastructure Type","Position (Select from drop-down list)","Feet Away from Stream or Segment","Potential Negative Impacts","Potential Positive Impacts"]

{"sheet":"Responses","index":10,"n_rows":95,"n_cols":11,"rows_kept":95,"cut":false,"hidden":true,"merged":[]}
[]
[]
["Project Information",null,{"$f":"FullName","v":0},null,null,null,"Reference A",null,{"$f":"'Reference A'!C7","v":0}]
[null,null,{"$f":"Email","v":0},null,null,null,null,null,{"$f":"'Reference A'!M7","v":0}]
[null,null,{"$f":"PhoneNumber","v":0},null,null,null,null,null,{"$f":"'Reference A'!C8","v":0}]
[null,null,{"$f":"StreamName","v":0},null,null,null,null,null,{"$f":"'Reference A'!I8","v":"00:00:00"}]
[null,null,{"$f":"UpstreamX","v":0},null,null,null,null,null,{"$f":"'Reference A'!O8","v":0}]
[null,null,{"$f":"UpstreamY","v":0},null,null,null,null,null,{"$f":"'Reference A'!S8","v":0}]
[null,null,{"$f":"DownstreamX","v":0}]
[null,null,{"$f":"DownstreamY","v":0},null,null,null,null,"Value","Mean","Min","Max"]
[null,null,{"$f":"County","v":0},null,null,null,null,{"$f":"'Reference A'!B11","v":"Riffle Width (Wbkf)"},{"$f":"'Reference A'!G11","v":0},{"$f":"'Reference A'!H11","v":0},{"$f":"'Reference A'!I11","v":0}]
[null,null,{"$f":"HUC_8","v":0},null,null,null,null,{"$f":"'Reference A'!B13","v":"Mean Riffle Depth (dbkf)"},{"$f":"'Reference A'!G13","v":0},{"$f":"'Reference A'!H13","v":0},{"$f":"'Reference A'!I13","v":0}]
[null,null,{"$f":"HUC_12","v":0},null,null,null,null,{"$f":"'Reference A'!B15","v":"Maximum Riffle Depth (dmax)"},{"$f":"'Reference A'!G15","v":0},{"$f":"'Reference A'!H15","v":0},{"$f":"'Reference A'!I15","v":0}]
[null,null,{"$f":"ProjectGoals","v":0},null,null,null,null,{"$f":"'Reference A'!B17","v":"Width of Flood-Prone Area (Wfpa)"},{"$f":"'Reference A'!G17","v":0},{"$f":"'Reference A'!H17","v":0},{"$f":"'Reference A'!I17","v":0}]
[null,null,{"$f":"Concern1","v":0},null,null,null,null,{"$f":"'Reference A'!B19","v":"Riffle Inner Berm Width (Wib)"},{"$f":"'Reference A'!G19","v":0},{"$f":"'Reference A'!H19","v":0},{"$f":"'Reference A'!I19","v":0}]
[null,null,{"$f":"Concern2","v":0},null,null,null,null,{"$f":"'Reference A'!B21","v":"Riffle Inner Berm Depth (dib)"},{"$f":"'Reference A'!G21","v":0},{"$f":"'Reference A'!H21","v":0},{"$f":"'Reference A'!I21","v":0}]
[null,null,{"$f":"Concern3","v":0},null,null,null,null,{"$f":"'Reference A'!B23","v":"Riffle Inner Berm Area (Aib)"},{"$f":"'Reference A'!G23","v":0},{"$f":"'Reference A'!H23","v":0},{"$f":"'Reference A'!I23","v":0}]
["Geometry",null,{"$f":"LengthCenterline","v":0},null,null,null,null,{"$f":"'Reference A'!B25","v":"Riffle Inner Berm W/D Ratio (Wib / dib)"},{"$f":"'Reference A'!G25","v":0},{"$f":"'Reference A'!H25","v":0},{"$f":"'Reference A'!I25","v":0}]
[null,null,{"$f":"ValleyLength","v":0},null,null,null,null,{"$f":"'Reference A'!K11","v":"Riffle Cross-Sectional Area (Abkf) (ft2)"},{"$f":"'Reference A'!R11","v":0},{"$f":"'Reference A'!S11","v":0},{"$f":"'Reference A'!T11","v":0}]
[null,null,{"$f":"ValleyWidth","v":0},null,null,null,null,{"$f":"'Reference A'!K13","v":"Riffle Width/Depth Ratio (Wbkf / dbkf)"},{"$f":"'Reference A'!R13","v":0},{"$f":"'Reference A'!S13","v":0},{"$f":"'Reference A'!T13","v":0}]
[null,null,{"$f":"SurfaceElevationDrop","v":0},null,null,null,null,{"$f":"'Reference A'!K15","v":"Max Riffle Depth to Mean Riffle Depth (dmax / dbkf)"},{"$f":"'Reference A'!R15","v":0},{"$f":"'Reference A'!S15","v":0},{"$f":"'Reference A'!T15","v":0}]
[null,null,{"$f":"LowBankHeight","v":0},null,null,null,null,{"$f":"'Reference A'!K17","v":"Entrenchment Ratio (Wfpa / Wbkf)"},{"$f":"'Reference A'!R17","v":0},{"$f":"'Reference A'!S17","v":0},{"$f":"'Reference A'!T17","v":0}]
[null,null,{"$f":"BankfullWidth","v":0},null,null,null,null,{"$f":"'Reference A'!K19","v":"Riffle Inner Berm Width to Riffle Width (Wib / Wbkf)"},{"$f":"'Reference A'!R19","v":0},{"$f":"'Reference A'!S19","v":0},{"$f":"'Reference A'!T19","v":0}]
[null,null,{"$f":"LowFlowDepth","v":0},null,null,null,null,{"$f":"'Reference A'!K21","v":"Riffle Inner Berm Depth to Mean Depth (dib / dbkf)"},{"$f":"'Reference A'!R21","v":0},{"$f":"'Reference A'!S21","v":0},{"$f":"'Reference A'!T21","v":0}]
[null,null,{"$f":"MeanBankfullDepth","v":0},null,null,null,null,{"$f":"'Reference A'!K23","v":"Riffle Inner Berm Area to Riffle Area (Aib / Abkf)"},{"$f":"'Reference A'!R23","v":0},{"$f":"'Reference A'!S23","v":0},{"$f":"'Reference A'!T23","v":0}]
[null,null,{"$f":"MaxBankfullDepth","v":0}]
[null,null,{"$f":"MaxPoolDepth","v":0}]
[null,null,{"$f":"FloodproneWidth","v":0}]
[null,null,{"$f":"AveragePtPSpacing","v":0}]
[null,null,{"$f":"BeltWidth","v":0}]
[null,null,{"$f":"BEHI","v":0}]
[null,null,{"$f":"Reach_D50","v":0}]
[null,null,{"$f":"INDEX(BankfullDischargeTable, 1, 1)","v":0},{"$f":"INDEX(BankfullDischargeTable, 1, 2)","v":0}]
[null,null,{"$f":"INDEX(BankfullDischargeTable, 2, 1)","v":0},{"$f":"INDEX(BankfullDischargeTable, 2, 2)","v":0}]
[null,null,{"$f":"INDEX(BankfullDischargeTable, 3, 1)","v":0},{"$f":"INDEX(BankfullDischargeTable, 3, 2)","v":0}]
[null,null,{"$f":"INDEX(BankfullDischargeTable, 4, 1)","v":0},{"$f":"INDEX(BankfullDischargeTable, 4, 2)","v":0}]
[null,null,{"$f":"INDEX(BankfullDischargeTable, 5, 1)","v":0},{"$f":"INDEX(BankfullDischargeTable, 5, 2)","v":0}]
[null,null,{"$f":"INDEX(BankfullDischargeTable, 6, 1)","v":0},{"$f":"INDEX(BankfullDischargeTable, 6, 1)","v":0}]
[null,null,{"$f":"BankfullDischargeDesign","v":0}]
[null,null,{"$f":"ChannelType","v":0}]
["Calculated",null,{"$f":"ChannelSinuosity","v":""}]
[null,null,{"$f":"ChannelSlope","v":0}]
[null,null,{"$f":"WidthDepthRatio","v":""}]
[null,null,{"$f":"EntrenchmentRatio","v":""}]
[null,null,{"$f":"BankfullCrossSectionalArea","v":""}]
[null,null,{"$f":"BankHeightRatio","v":""}]
[null,null,{"$f":"PoolDepthRatio","v":""}]
[null,null,{"$f":"Pool_PoolSpacingRatio","v":""}]
[null,null,{"$f":"MeanderWidthRatio","v":""}]
[null,null,{"$f":"StreamType","v":""}]
["Watershed",null,{"$f":"DrainageArea","v":0}]
[null,null,{"$f":"GeographicRegion","v":0}]
[null,null,{"$f":"FlowRegime","v":0}]
[null,null,{"$f":"ValleyType","v":0}]
[null,null,{"$f":"LandUse","v":0}]
[null,null,{"$f":"ReferenceReach","v":0}]
[null,null,{"$f":"ReferenceReachDescription","v":0}]
[null,null,{"$f":"FloodplainImpacts","v":0}]
["Geology",null,{"$f":"DominantBedMaterial","v":0}]
[null,null,{"$f":"DominantBankMaterials","v":0}]
[null,null,{"$f":"D50_Riffle","v":0}]
[null,null,{"$f":"D50_BarSample","v":0}]
[null,null,{"$f":"D100_BarSample","v":0}]
["Planform Stability",null,{"$f":"StraightDredge","v":0}]
[null,null,{"$f":"Levees","v":0}]
[null,null,{"$f":"MeanderPattern","v":0}]
[null,null,{"$f":"RadiusOfCurvature","v":0}]
[null,null,{"$f":"ChannelPathChange","v":0}]
[null,null,{"$f":"ChannelPathChange_Issues","v":0}]
[null,null,{"$f":"ConditionsExist","v":0}]
[null,null,{"$f":"DistinctPointBars","v":0}]
[null,null,{"$f":"ChannelConstriction","v":0}]
["Bed Stability",null,{"$f":"SignificantVerticalChange","v":0}]
[null,null,{"$f":"SignificantLoweringDescription","v":0}]
[null,null,{"$f":"KnownGradeControl","v":0}]
[null,null,{"$f":"KnownGradeControlUnderCut","v":0}]
[null,null,{"$f":"DominantDepositionalPattern","v":0}]
[null,null,{"$f":"EvolutionaryStage","v":0}]
["Habitat",null,{"$f":"DominantRiparianLanduse","v":0}]
[null,null,{"$f":"BufferWidthLeft","v":0}]
[null,null,{"$f":"BankVegetationCoverage","v":0}]
[null,null,{"$f":"DominantPlantSpecies","v":0}]
[null,null,{"$f":"VegetationSuccessfulAt","v":0}]
[null,null,{"$f":"WoodyDebris","v":0}]
[null,null,{"$f":"DebrisJams","v":0}]
[null,null,{"$f":"MixSubtrateCover","v":0}]
[null,null,{"$f":"MixSubstrateCoverDescription","v":0}]
[null,null,{"$f":"TreeCanopyPercent","v":0}]
[null,null,{"$f":"VelocityDepthMix","v":0}]
[null,null,{"$f":"FishBlockage","v":0}]
[null,null,{"$f":"ScoreData","v":0}]
[null,null,{"$f":"ScoreDataDescription","v":0}]
[null,null,{"$f":"SpeciesConcern","v":0}]
[null,null,{"$f":"SpeciesConcernDescription","v":0}]
["Infrastructure","Table ","Infrastructure"]

{"sheet":"Design","index":11,"n_rows":30,"n_cols":9,"rows_kept":30,"cut":false,"hidden":false,"merged":[[6,8,7,8],[8,8,9,8],[36,1,38,1],[0,1,0,2],[1,1,1,4],[32,1,33,1],[34,1,35,1],[1,7,4,8],[10,8,12,8]]}
[]
[null,"Review Functional Design",null,null,null,null,null,"The information contain herein is intended to inform practitioners and others, and define approriate technique for restoration. The information is not meant to represent a standard design method for any type of technique and shall not be used as such. This information neither replaces the need for site-specific engineering and/or landscape designs, nor precludes the use of information not included herein."]
[]
[]
[]
[null,"Note:  Enter most representative value for each parameter.","Existing Conditions","A","Design Conditions","B"," "]
[null,"Bank Height Ratio",{"$f":"BankHeightRatio","v":""},{"$f":"FindColorByName(\"FormatRules\", \"Bank Height ratio\", \"\", \"\",\"\", C7)","v":0},null,{"$f":"FindColorByName(\"FormatRules\", \"Bank Height ratio\", \"\", \"\",\"\", E7)","v":0},null,"FUNCTIONAL","This parameter is \"Functional\" (light green); no adjustment is necessary"]
[null,"Entrenchment Ratio",{"$f":"EntrenchmentRatio","v":""},{"$f":"FindColorByName(\"FormatRules\", \"Entrenchment ratio\", RemoveMaterial(StreamType), \"\",\"\", C8)","v":0},null,{"$f":"FindColorByName(\"FormatRules\", \"Entrenchment ratio\", RemoveMaterial(Design_StreamType), \"\",\"\", E8)","v":0}]
[null,"Bankfull Cross Sectional Area",{"$f":"BankfullCrossSectionalArea","v":""},null,null,null,null,"FUNCTIONAL - AT RISK","This parameter is \"Functional - At Risk \" (orange); should change this parameter by design to achieve a \"Functional\" (light green) performanace standard"]
[null,"Bankfull Discharge Design",{"$f":"IF(ISBLANK(BankfullDischargeDesign), \"\", BankfullDischargeDesign)","v":""}]
[null,"Regional Curves - Bankfull Cross Sectional Area",{"$f":"IFERROR(RC_BankfullCrossSection_a*DrainageArea^RC_BankfullCrossSection_exp, \"\")","v":""},{"$f":"FindColorByName(\"FormatRules\",\"Regional Curve % Error\",\"\",\"\",\"\"\"\",(ABS(C11-BankfullCrossSectionalArea)/BankfullCrossSectionalArea)*100)","v":{"$error":"#VALUE!"}},{"$f":"IFERROR(RC_BankfullCrossSection_a*DrainageArea^RC_BankfullCrossSection_exp, \"\")","v":""},{"$f":"FindColorByName(\"FormatRules\", \"Regional Curve % Error\", \"\", \"\",\"\", (ABS(E11-Design_BankfullCrossSectionalArea)/Design_BankfullCrossSectionalArea)*100)","v":{"$error":"#VALUE!"}},null,"NON - FUNCTIONAL","This parameter is \"Non-Functional\" (deep red); should change this parameter by design to achieve a \"Functional\" (light green) or \"Functional At-Risk\" (orange) performanace standard"]
[null,"Regional Curves - Bankful Discharge",{"$f":"IFERROR(RC_BankfullDischarge_a*DrainageArea^RC_BankfullDischarge_exp, \"\")","v":""},{"$f":"FindColorByName(\"FormatRules\", \"Regional Curve % Error\", \"\", \"\",\"\", (ABS(C12-BankfullDischargeDesign)/BankfullDischargeDesign)*100)","v":{"$error":"#VALUE!"}},{"$f":"IFERROR(RC_BankfullDischarge_a*DrainageArea^RC_BankfullDischarge_exp, \"\")","v":""},{"$f":"FindColorByName(\"FormatRules\", \"Regional Curve % Error\", \"\", \"\",\"\", (ABS(E12-Design_BankfullDischarge)/Design_BankfullDischarge)*100)","v":{"$error":"#VALUE!"}}]
[null,"Bankfull Velocity",{"$f":"IFERROR(BankfullDischargeDesign/BankfullCrossSectionalArea, \"\")","v":""},{"$f":"FindColorByName(\"FormatRules\", \"BV\", RemoveMaterial(StreamType), \"\",\"\", FunctionalDesign[[#This Row],[Existing Conditions]])","v":0},{"$f":"IFERROR(Design_BankfullDischarge/Design_BankfullCrossSectionalArea, \"\")","v":""},{"$f":"FindColorByName(\"FormatRules\", \"BV\", RemoveMaterial(Design_StreamType), \"\",\"\", FunctionalDesign[[#This Row],[Design Conditions]])","v":0}]
[null,"Schumm Channel Evolution Stage (Select from drop-down list)",{"$f":"IF(ISBLANK(EvolutionaryStage), \"\", EvolutionaryStage)","v":""},{"$f":"FindColorByName(\"FormatRules\", \"CES\", \"\", \"\",\"\", ConvertStage(C14))","v":0},null,{"$f":"FindColorByName(\"FormatRules\", \"CES\", \"\", \"\",\"\", ConvertStage(E14))","v":0}]
[null,"Dominant Bank Erosion Hazard Index (BEHI) Rating (Select from drop-down list)",{"$f":"IF(ISBLANK(BEHI), \"\", (BEHI))","v":""},{"$f":"FindColorByName(\"FormatRules\", \"RBEHI\", \"\", \"\",\"\", C15)","v":0},null,{"$f":"FindColorByName(\"FormatRules\", \"RBEHI\", \"\", \"\",\"\", E15)","v":0}]
[null,"Minimum Buffer Width (Measured from Outside Edge of Belt Width)",{"$f":"IF(ISBLANK(BufferWidthLeft),\"\",BufferWidthLeft)","v":""},{"$f":"FindColorByName(\"FormatRules\", \"Buffer Width\", \"\",  \"\", \"\",  BufferWidthLeft)","v":0},null,{"$f":"FindColorByName(\"FormatRules\",\"Buffer Width\",\"\",\"\",\"\",E16)","v":0}]
[null,"Bankfull Width",{"$f":"IF(ISBLANK(BankfullWidth), \"\", BankfullWidth)","v":""}]
[null,"Radius of Curvature",{"$f":"IF(ISBLANK(RadiusOfCurvature), \"\", RadiusOfCurvature)","v":""},{"$f":"FindColorByName(\"FormatRules\", \"Ratio of Rc/WBKF\", \"\",  \"\", \"\",  FunctionalDesign[[#This Row],[Existing Conditions]]/BankfullWidth)","v":{"$error":"#VALUE!"}},null,{"$f":"IFERROR(FindColorByName(\"FormatRules\",\"Ratio of Rc/WBKF\", \"\",  \"\", \"\",  FunctionalDesign[[#This Row],[Design Conditions]]/Design_BankfullWidth), 0)","v":0},null,{"$f":"IF(OR(FunctionalDesign[[#This Row],[B]]=-1,FunctionalDesign[[#This Row],[B]]=-2),\"For tighter Radius of Curvature/Bankfull Width Ratios (less than 3.5), consider using structures around bend.\",\"\")","v":""}]
[null,"Meander Width Ratio",{"$f":"MeanderWidthRatio","v":""},null,{"$f":"IFERROR(BeltWidth/Design_BankfullWidth, \"\")","v":""}]
[null,"Pool to Pool Spacing Ratio",{"$f":"Pool_PoolSpacingRatio","v":""},{"$f":"FindColorByName(\"FormatRules\", \"Pool to Pool Spacing Ratio\",RemoveMaterial(StreamType), \"\",\"\", C20)","v":0},null,{"$f":"FindColorByName(\"FormatRules\", \"Pool to Pool Spacing Ratio\",RemoveMaterial(Design_StreamType), \"\",\"\", E20)","v":0}]
[null,"Pool Maximum Depth Ratio",{"$f":"PoolDepthRatio","v":""},{"$f":"FindColorByName(\"FormatRules\", \"PMDR\",RemoveMaterial(StreamType), CleanString(DominantBedMaterial),\"\", C21)","v":0},null,{"$f":"FindColorByName(\"FormatRules\", \"PMDR\",RemoveMaterial(Design_StreamType), CleanString(Design_DominantBedMaterial),\"\", E21)","v":0}]
[null,"Width to Depth Ratio",{"$f":"ROUND(WidthDepthRatio,2)","v":{"$error":"#VALUE!"}},{"$f":"FindColorByName(\"FormatRules\", \"Width to Depth Ratio\",RemoveMaterial(StreamType), \"\",\"\", C22)","v":{"$error":"#VALUE!"}},{"$f":"IFERROR(ROUND(Design_BankfullWidth/(Design_BankfullCrossSectionalArea/Design_BankfullWidth),2), \"\")","v":""},{"$f":"FindColorByName(\"FormatRules\", \"Width to Depth Ratio\",RemoveMaterial(Design_StreamType), \"\",\"\", E22)","v":0},null,{"$f":"getComment(E21)","v":""}]
[null,"Water Surface Slope (%)",{"$f":"ChannelSlope","v":0}]
[null,"Bankfull Max Average Depth",{"$f":"IF(ISBLANK(MaxBankfullDepth), \"\", MaxBankfullDepth)","v":""}]
[null,"Stream Type",{"$f":"StreamType","v":""},{"$f":"FindColorByName(\"FormatRules\", FunctionalDesign[[#This Row],[Note:  Enter most representative value for each parameter.]], \"\", \"\",\"\", RemoveMaterial(FunctionalDesign[[#This Row],[Existing Conditions]]))","v":0},null,{"$f":"MIN(FindColorByName(\"FormatRules\", FunctionalDesign[[#This Row],[Note:  Enter most representative value for each parameter.]], \"\", \"\",\"\", E25), CompareDesign(Design_Slope,Reach_D50,FloodproneWidth,Design_WidthDepthRatio,Design_EntrenchmentRatio, Design_ChannelType, Design_StreamType))","v":{"$error":"#VALUE!"}}]
[null,"Channel Length",{"$f":"IF(ISBLANK(LengthCenterline), \"\", LengthCenterline)","v":""}]
[null,"Channel Bed Material (Select from drop-down list)",{"$f":"IF(ISBLANK(DominantBedMaterial), \"\", DominantBedMaterial)","v":""}]
[null,"Is this stream a single channel or multiple thread channel",{"$f":"IF(ISBLANK(ChannelType), \"\", ChannelType)","v":""}]
[null,"Presence of Levees (Select from drop-down list)",{"$f":"IF(ISBLANK(Levees), \"\", Levees)","v":""}]
[null,"Presence of Nearby Infrastructure",{"$f":"IFERROR(MinDistance(\"Infrastructure\", \"Feet Away from Stream or Segment\") / BankfullWidth, \"\")","v":""},null,{"$f":"IFERROR(ROUND(MinDistance(\"Infrastructure\", \"Feet Away from Stream or Segment\") / Design_BankfullWidth, 3), \"\")","v":""}]

{"sheet":"Ranking","index":12,"n_rows":73,"n_cols":8,"rows_kept":73,"cut":false,"hidden":false,"merged":[[0,1,0,2],[1,1,1,2]]}
["                                                "]
[null,"Stream Restoration Technique Recommendations"]
[]
[null,"Click \"Calculate\" button at right to populate \"Recommendations\" table below"]
[]
[null,"Grade Control",null,null,null,null,null,"https://www.iowadnr.gov/Portals/idnr/uploads/RiverRestoration/toolbox/grade-control/Practice 1_Grade_Control_Full_Chapter.pdf"]
[null,"Rock Arch Rapids",{"$f":"FindPercent(B$6,B7, \"DecisionMatrix\", \"Results\" )","v":0},null,null,null,null,"https://www.iowadnr.gov/Portals/idnr/uploads/RiverRestoration/toolbox/grade-control/1_2_1_Freestanding_Rock_Arch_Rapids.pdf"]
[null,"Cross Vane",0,null,null,null,null,"https://www.iowadnr.gov/Portals/idnr/uploads/RiverRestoration/toolbox/grade-control/1_2_2_Cross_Vane.pdf"]
[null,"W-Weir",0,null,null,null,null,"https://www.iowadnr.gov/Portals/idnr/uploads/RiverRestoration/toolbox/grade-control/1_2_3_W-Weir.pdf"]
[null,"Step-Pool Structure",0,null,null,null,null,"https://www.iowadnr.gov/Portals/idnr/uploads/RiverRestoration/toolbox/grade-control/1_2_4_Step-pool_Structure.pdf"]
[null,"Rock & Log Riffle",0,null,null,null,null,"https://www.iowadnr.gov/Portals/idnr/uploads/RiverRestoration/toolbox/grade-control/1_2_5_Rock_and_Log_Riffle.pdf"]
[null,"Grouted Grade Control",0,null,null,null,null,"https://www.iowadnr.gov/Portals/idnr/uploads/RiverRestoration/toolbox/grade-control/1_2_7_Grouted_Grade_Control_Structure.pdf"]
[null,"Rock Constructed Riffle",0,null,null,null,null,"https://www.iowadnr.gov/Portals/idnr/uploads/RiverRestoration/toolbox/grade-control/1_2_6_Rock_Constructed_Riffle.pdf"]
[]
[null,"Vegetation Restoration",null,null,null,null,null,"https://www.iowadnr.gov/Portals/idnr/uploads/RiverRestoration/toolbox/vegetative-restoration/Practice 2_Vegetative_Restoration_Full_Chapter.pdf"]
[null,"Live Staking / Joint Planting",{"$f":"FindPercent(B$15,B16, \"DecisionMatrix\", \"Results\")","v":0},null,null,null,null,"https://www.iowadnr.gov/Portals/idnr/uploads/RiverRestoration/toolbox/vegetative-restoration/2_2_1_Live_Stability_Band_Joint_Planting.pdf"]
[null,"Live Fascines",{"$f":"FindPercent(B$15,B17, \"DecisionMatrix\", \"Results\")","v":0},null,null,null,null,"https://www.iowadnr.gov/Portals/idnr/uploads/RiverRestoration/toolbox/vegetative-restoration/2_2_2_Live_Fascines.pdf"]
[null,"Brush Layering",{"$f":"FindPercent(B$15,B18, \"DecisionMatrix\", \"Results\")","v":0},null,null,null,null,"https://www.iowadnr.gov/Portals/idnr/uploads/RiverRestoration/toolbox/vegetative-restoration/2_2_3_Brush_Layering.pdf"]
[null,"Erosion Control Matting",{"$f":"FindPercent(B$15,B19, \"DecisionMatrix\", \"Results\")","v":0},null,null,null,null,"https://www.iowadnr.gov/Portals/idnr/uploads/RiverRestoration/toolbox/vegetative-restoration/2_2_4_Erosion_Control_Matting.pdf"]
[null,"Sod Matting",{"$f":"FindPercent(B$15,B20, \"DecisionMatrix\", \"Results\")","v":0},null,null,null,null,"https://www.iowadnr.gov/Portals/idnr/uploads/RiverRestoration/toolbox/vegetative-restoration/2_2_5_Sod_Matting.pdf"]
[]
[null,"Riparian Buffering",null,null,null,null,null,"https://www.iowadnr.gov/Portals/idnr/uploads/RiverRestoration/toolbox/riparian-buffering/Practice 3_Riparian_Buffering_Full_Chapter.pdf"]
[null,"Restoration / Establishment",{"$f":"FindPercent(B$22,B23, \"DecisionMatrix\", \"Results\")","v":0}]
[null,"Enhancement",{"$f":"FindPercent(B$22,B24, \"DecisionMatrix\", \"Results\")","v":0}]
[null,"Preservation",{"$f":"FindPercent(B$22,B25, \"DecisionMatrix\", \"Results\")","v":0}]
[]
[null,"Bank and Floodplain Restoration",null,null,null,null,null,"https://www.iowadnr.gov/Portals/idnr/uploads/RiverRestoration/toolbox/bank-floodplain/Practice 4_Floodplain Restoration_Full_Chapter.pdf"]
[null,"Bank Sloping (5:1, 4:1, 3:1, 2:1)",{"$f":"FindPercent(B$27,B28, \"DecisionMatrix\", \"Results\")","v":0},null,null,null,null,"https://www.iowadnr.gov/Portals/idnr/uploads/RiverRestoration/toolbox/bank-floodplain/4_2_1_Bank_Shaping.pdf"]
[null,"Bankfull Bench",0,null,null,null,null,"https://www.iowadnr.gov/Portals/idnr/uploads/RiverRestoration/toolbox/bank-floodplain/4_2_2_Bankfull_Bench.pdf"]
[null,"Floodplain Assemblages",0,null,null,null,null,"https://www.iowadnr.gov/Portals/idnr/uploads/RiverRestoration/toolbox/bank-floodplain/4_2_3_Floodplain_Assemblages.pdf"]
[null,"Levee Setback or Removal",0,null,null,null,null,"https://www.iowadnr.gov/Portals/idnr/uploads/RiverRestoration/toolbox/bank-floodplain/4_2_4_Levee_Setback_or_Removal.pdf"]
[null,"Multi-Stage Channel",0,null,null,null,null,"https://www.iowadnr.gov/Portals/idnr/uploads/RiverRestoration/toolbox/bank-floodplain/4_2_5_Multi_Stage_Channel.pdf"]
[null,"Oxbow",0,null,null,null,null,"https://www.iowadnr.gov/Portals/idnr/uploads/RiverRestoration/toolbox/bank-floodplain/4_2_6_Oxbow.pdf"]
[]
[null,"Geomorphic Channel Design (GCD)"," - Will Require Reference Reach to Implement",null,null,null,null,"https://www.iowadnr.gov/Portals/idnr/uploads/RiverRestoration/toolbox/geomorphic-channel-design/Practice 5_Geomorphic Channel Design_Full_Chapter.pdf"]
[null,"Also requires additional survey and analysis"]
[null,"Geomorphic Channel Design (GCD) ",{"$f":" \"Practice - \" & TEXT(MAX(C38:C48), \"0%\")","v":"Practice - 0%"},null,null,null,"Situations Appropriate for GCD Assessment / Design Process"]
[null,"A",{"$f":"FindPercent(B$35,B38, \"DecisionMatrix\", \"Results\")","v":0}]
[null,"Aa+",0,null,null,null,"Primary project goal is restorative (i.e., aquatic species recovery, etc.)"]
[null,"Ab",0,null,null,null,"Significant number of non-functional conditions (red) on Design sheet and/or Channel Evolution is Stage III or IV"]
[null,"B",0,null,null,null,"Suspected construction budget savings exceeds cost of additional assessment (i.e., quarry rock budget savings)"]
[null,"Ba",0,null,null,null,"Significant length of stream requires restoration"]
[null,"Bc",0,null,null,null,"Goal involves realigning or creating (such as re-meandering) significant length of channel (20 or greater bankfull widths or more than 1 meander wavelength)"]
[null,"C",0,null,null,null,"Process drivers of instability are unclear"]
[null,"Cb",0]
[null,"D",0]
[null,"DA",0]
[null,"E",0]
[null,"Eb",{"$f":"FindPercent(B$35,B49, \"DecisionMatrix\", \"Results\")","v":0}]
[]
[null,"Aquatic Habitat/Cover Feature",null,null,null,null,null,"https://www.iowadnr.gov/Portals/idnr/uploads/RiverRestoration/toolbox/aquatic-habitat/Practice 6_Aquatic_Habitat_Cover_Full_Chapter.pdf"]
[null,"Lunkers",{"$f":"FindPercent(B$51,B52, \"DecisionMatrix\", \"Results\")","v":0},null,null,null,null,"https://www.iowadnr.gov/Portals/idnr/uploads/RiverRestoration/toolbox/aquatic-habitat/6_2_1_Lunkers_Bankhides.pdf"]
[null,"Boulder/Rock Clusters",0,null,null,null,null,"https://www.iowadnr.gov/Portals/idnr/uploads/RiverRestoration/toolbox/aquatic-habitat/6_2_2_Boulder_Rock_Clusters.pdf"]
[null,"Locked Logs",0,null,null,null,null,"https://www.iowadnr.gov/Portals/idnr/uploads/RiverRestoration/toolbox/aquatic-habitat/6_2_3_Locked_Logs.pdf"]
[null,"Large Woody Debris",0,null,null,null,null,"https://www.iowadnr.gov/Portals/idnr/uploads/RiverRestoration/toolbox/aquatic-habitat/6_2_4_Large_Woody_Habitat.pdf"]
[null,"Root Wads",0,null,null,null,null,"https://www.iowadnr.gov/Portals/idnr/uploads/RiverRestoration/toolbox/aquatic-habitat/6_2_5_Root_Wads.pdf"]
[null,"Submerged Crib Wall",0,null,null,null,null,"https://www.iowadnr.gov/Portals/idnr/uploads/RiverRestoration/toolbox/aquatic-habitat/6_2_6_Submerged_Crib_Wall.pdf"]
[]
[null,"Toe Protection/Stabilization",null,null,null,null,null,"https://www.iowadnr.gov/Portals/idnr/uploads/RiverRestoration/toolbox/stream-bank-toe-protection/Practice 7_Streambank_Toe_Potection_Full_Chapter.pdf"]
[null,"Toe Wood",{"$f":"FindPercent(B$59,B60, \"DecisionMatrix\", \"Results\")","v":0},null,null,null,null,"https://www.iowadnr.gov/Portals/idnr/uploads/RiverRestoration/toolbox/stream-bank-toe-protection/7_2_1_Toe_Wood_Protection.pdf"]
[null,"Stone Toe Protection",0,null,null,null,null,"https://www.iowadnr.gov/Portals/idnr/uploads/RiverRestoration/toolbox/stream-bank-toe-protection/7_2_2_Stone_Toe_Protection.pdf"]
[null,"Fabric Encapsulated Soil Lifts",0,null,null,null,null,"https://www.iowadnr.gov/Portals/idnr/uploads/RiverRestoration/toolbox/stream-bank-toe-protection/7_2_3_Fabric_Encapsulated_Soil_Lifts.pdf"]
[null,"Log Vane with Boulder Hook",0,null,null,null,null,"https://www.iowadnr.gov/Portals/idnr/uploads/RiverRestoration/toolbox/stream-bank-toe-protection/7_2_4_Log_Vane_With_Boulder_Hook.pdf"]
[null,"Single & Double Wing Deflector",0,null,null,null,null,"https://www.iowadnr.gov/Portals/idnr/uploads/RiverRestoration/toolbox/stream-bank-toe-protection/7_2_5_Single_and_Double_Wing_Deflectors.pdf"]
[null,"Vegetated Banks",{"$f":"FindPercent(B$59,B65, \"DecisionMatrix\", \"Results\")","v":0}]
[]
[null,"Channel Definition Structure",null,null,null,null,null,"https://www.iowadnr.gov/Portals/idnr/uploads/RiverRestoration/toolbox/channel-definition/Practice 8_Channel_Definition_Strucures_Full_Chapter.pdf"]
[null,"Cut-Off Sills",{"$f":"FindPercent(B$67,B68, \"DecisionMatrix\", \"Results\")","v":0},null,null,null,null,"https://www.iowadnr.gov/Portals/idnr/uploads/RiverRestoration/toolbox/channel-definition/8_2_1_Cut_Off_Sills.pdf"]
[null,"Engineered Log Jams",0,null,null,null,null,"https://www.iowadnr.gov/Portals/idnr/uploads/RiverRestoration/toolbox/channel-definition/8_2_2_Engineered_Log_Jams.pdf"]
[null,"Longitudinal Peaked Stone Toe",0,null,null,null,null,"https://www.iowadnr.gov/Portals/idnr/uploads/RiverRestoration/toolbox/channel-definition/8_2_3_Longitudinal_Peaked_Stone_Toe.pdf"]
[null,"Bendway Weirs",0,null,null,null,null,"https://www.iowadnr.gov/Portals/idnr/uploads/RiverRestoration/toolbox/channel-definition/8_2_4_Bendway_Weirs.pdf"]
[null,"Stream Barbs",0,null,null,null,null,"https://www.iowadnr.gov/Portals/idnr/uploads/RiverRestoration/toolbox/channel-definition/8_2_5_Stream_Barbs.pdf"]
[null,"J-Hook Vane/Straight Vane",0,null,null,null,null,"https://www.iowadnr.gov/Portals/idnr/uploads/RiverRestoration/toolbox/channel-definition/8_2_6_J-Hook_Vane_Straight_Vane.pdf"]

{"sheet":"Review","index":13,"n_rows":30,"n_cols":2,"rows_kept":30,"cut":false,"hidden":false,"merged":[[1,1,1,2],[0,1,0,2],[29,1,29,2]]}
[]
[null,"Review"]
[]
[]
[]
[{"$f":"1+MAX(Infrastructure!A4:A35)","v":73},"List of minimum design documents for review. "]
[null,"a.  Plan view drawing"]
[null,"b.  Profile view drawing (existing and proposed)"]
[null,{"$f":"LineArtText(5)","v":"Click button to See Line Art Drawing 5 (View 5) Longitudinal Profile"}]
[null,"c.  Channel alignment geometry"]
[null,"d. Typical cross sections"]
[null,"e.  Minimum of 3 site photos, including vegetation (more for larger project areas)"]
[null,"f.  This spreadsheet is part of the submittal"]
[null,"g.  Bankfull stage and discharge determination report"]
[null,"h.  Floodplain risk gradient map"]
[]
[]
[{"$f":"1+MAX($A$5:A17)","v":74},"List of minimum data to be provided"]
[null,"a.  Profile (*.csv)"]
[null,"b.  Cross section at a riffle (*.csv)"]
[null,{"$f":"LineArtText(3)","v":"Click button to See Line Art Drawing 3 (View 3) Survey Figure"}]
[null,"c.  Cross section at a representative pool (*.csv)"]
[null,"d.  Cross section at most erosive bank (if a goal is reducing streambank erosion) (*.csv)"]
[null,"e.  Velocity/Discharge calculations"]
[null,"f.  Riffle/Reach pebble count"]
[null,{"$f":"LineArtText(11)","v":"Click button to See Line Art Drawing 11 (View 11) Pebble Counts"}]
[null,"g.  Gradation of bar sample (if applicable)"]
[]
[]
["*","When using Geomorphic Channel design practice, see Practice Guide 5, sections 2.8 and 2.9 for checklists of minimum report and plan requirements."]

{"sheet":"Reference A","index":14,"n_rows":94,"n_cols":20,"rows_kept":94,"cut":false,"hidden":false,"merged":[[90,0,90,20],[91,0,91,20],[92,0,92,20],[93,0,93,20],[0,1,0,2],[1,0,1,20],[46,0,57,0],[56,10,56,16],[58,0,58,20],[59,0,76,0],[77,0,77,20],[78,0,89,0],[79,1,79,5],[88,10,88,16],[7,18,7,20],[6,0,6,1],[7,22,12,26],[8,0,25,0],[26,0,26,20],[27,0,44,0],[45,0,45,20],[6,2,6,8],[6,9,6,11],[6,12,6,20],[7,0,7,1],[7,2,7,6],[7,8,7,11],[7,12,7,13],[7,14,7,15],[7,16,7,17]]}
[]
["Reference Reach Form A"]
[]
[]
[]
[]
["Stream:",null,null,null,null,null,null,null,null,"Location:"]
["Observers:",null,null,null,null,null,null,"Date:",null,null,null,null,"Valley Type:",null,null,null,"Stream Type:"]
[]
[null,"Riffle Dimensions*, **, ***",null,null,null,null,"Mean","Min","Max","Riffle Dimensions & Dimensionless Ratios****",null,null,null,null,null,null,null,"Mean","Min","Max"]
[null,"Riffle Width (Wbkf)",null,null,null,null,null,null,null,"ft","Riffle Cross-Sectional Area (Abkf) (ft2)"]
[]
[null,"Mean Riffle Depth (dbkf)",null,null,null,null,null,null,null,"ft","Riffle Width/Depth Ratio (Wbkf / dbkf)"]
[]
[null,"Maximum Riffle Depth (dmax)",null,null,null,null,null,null,null,"ft","Max Riffle Depth to Mean Riffle Depth (dmax / dbkf)"]
[]
[null,"Width of Flood-Prone Area (Wfpa)",null,null,null,null,null,null,null,"ft","Entrenchment Ratio (Wfpa / Wbkf)"]
[]
[null,"Riffle Inner Berm Width (Wib)",null,null,null,null,null,null,null,"ft","Riffle Inner Berm Width to Riffle Width (Wib / Wbkf)"]
[]
[null,"Riffle Inner Berm Depth (dib)",null,null,null,null,null,null,null,"ft","Riffle Inner Berm Depth to Mean Depth (dib / dbkf)"]
[]
[null,"Riffle Inner Berm Area (Aib)",null,null,null,null,null,null,null,"ft2","Riffle Inner Berm Area to Riffle Area (Aib / Abkf)"]
[]
[null,"Riffle Inner Berm W/D Ratio (Wib / dib)"]
[]
[]
[]
[null,"Pool Dimensions*, **, ***",null,null,null,null,"Mean","Min","Max","Pool Dimensions & Dimensionless Ratios****",null,null,null,null,null,null,null,"Mean","Min","Max"]
[null,"Pool Width (Wbkfp)",null,null,null,null,null,null,null,"ft","Pool Width to Riffle Width (Wbkfp / Wbkf)",null,null,null,null,null,null,null,"",""]
[]
[null,"Mean Pool Depth (dbkfp)",null,null,null,null,null,null,null,"ft","Mean Pool Depth to Mean Riffle Depth (dbkfp / dbkf)",null,null,null,null,null,null,null,"",""]
[]
[null,"Pool Cross-Sectional Area (Abkfp)",null,null,null,null,null,null,null,"ft","Pool Area to Riffle Area (Abkfp / Abkf)",null,null,null,null,null,null,null,"",""]
[]
[null,"Maximum Pool Depth (dmaxp)",null,null,null,null,null,null,null,"ft","Max Pool Depth to Mean Riffle Depth (dmaxp / dbkf)",null,null,null,null,null,null,null,"",""]
[]
[null,"Pool Inner Berm Width (Wibp)",null,null,null,null,null,null,null,"ft","Pool Inner Berm Width to Pool Width (Wibp / Wbkfp)"]
[]
[null,"Pool Inner Berm Depth (dibp)",null,null,null,null,null,null,null,"ft","Pool Inner Berm Depth to Pool Depth (dibp / dbkfp)"]
[]
[null,"Pool Inner Berm Area (Aibp)",null,null,null,null,null,null,null,"ft2","Pool Inner Berm Area to Pool Area (Aibp / Abkfp)"]
[]
[null,"Point Bar Slope (Spb)",null,null,null,null,null,null,null,"ft/ft","Pool Inner Berm Width/Depth Ratio (Wibp / dibp)"]
[]
[]
[]
[null,"Run Dimensions*",null,null,null,null,"Mean","Min","Max","Run Dimensionless Ratios****",null,null,null,null,null,null,null,"Mean","Min","Max"]
[null,"Run Width (Wbkfr)",null,null,null,null,null,null,null,"ft","Run Width to Riffle Width (Wbkfr / Wbkf)",null,null,null,null,null,null,null,"",""]
[]
[null,"Mean Run Depth (dbkfr)",null,null,null,null,null,null,null,"ft","Mean Run Depth to Mean Riffle Depth (dbkfr / dbkf)",null,null,null,null,null,null,null,"",""]
[]
[null,"Run Cross-Sectional Area (Abkfr)",null,null,null,null,null,null,null,"ft","Run Area to Riffle Area (Abkfr / Abkf)",null,null,null,null,null,null,null,"",""]
[]
[null,"Maximum Run Depth (dmaxr)",null,null,null,null,null,null,null,"ft","Max Run Depth to Mean Riffle Depth (dmaxr / dbkf)",null,null,null,null,null,null,null,"",""]
[]
[null,"Run Width/Depth Ratio (Wbkfr / dbkfr)",null,null,null,null,null,null,null,"ft"]
[]
[]
[]
[null,"Glide Dimensions*",null,null,null,null,"Mean","Min","Max","Glide Dimensions & Dimensionless Ratios****",null,null,null,null,null,null,null,"Mean","Min","Max"]
[null,"Glide Width (Wbkfg)",null,null,null,null,null,null,null,"ft","Glide Width to Riffle Width (Wbkfg / Wbkf)",null,null,null,null,null,null,null,null,""]
[]
[null,"Mean Glide Depth (dbkfg)",null,null,null,null,null,null,null,"ft","Mean Glide Depth to Mean Riffle Depth (dbkfg / dbkf)",null,null,null,null,null,null,null,null,""]
[]
[null,"Glide Cross-Sectional Area (Abkfg)",null,null,null,null,null,null,null,"ft","Glide Area to Riffle Area (Abkfg / Abkf)",null,null,null,null,null,null,null,null,""]
[]
[null,"Maximum Glide Depth (dmaxg)",null,null,null,null,null,null,null,"ft","Max Glide Depth to Mean Riffle Depth (dmaxg / dbkf)",null,null,null,null,null,null,null,null,""]
[]
[null,"Glide Width/Depth Ratio (Wbkfg / dbkfg)",null,null,null,null,null,null,null,"ft/ft","Glide Inner Berm Width/Depth Ratio (Wibg / dibg)"]
[]
[null,"Glide Inner Berm Width (Wibg)",null,null,null,null,null,null,null,"ft","Glide Inner Berm Width to Glide Width (Wibg/Wbkfg)"]
[]
[null,"Glide Inner Berm Depth (dibg)",null,null,null,null,null,null,null,"ft","Glide Inner Berm Depth to Glide Depth (dibg / dbkfg)"]
[]
[null,"Glide Inner Berm Area (Aibg)",null,null,null,null,null,null,null,"ft2","Glide Inner Berm Area to Glide Area (Aibg / Abkfg)"]
[]
[]
[]
[null,"Step Dimensions**",null,null,null,null,"Mean","Min","Max","Step Dimensionless Ratios****",null,null,null,null,null,null,null,"Mean","Min","Max"]
[null,"Step Width (Wbkfs)",null,null,null,null,null,null,null,"ft","Step Width to Riffle Width (Wbkfs / Wbkf)",null,null,null,null,null,null,"","",""]
[]
[null,"Mean Step Depth (dbkfs)",null,null,null,null,null,null,null,"ft","Mean Step Depth to Riffle Depth (dbkfs / dbkf)",null,null,null,null,null,null,"","",""]
[]
[null,"Step Cross-Sectional Area (Abkfs)",null,null,null,null,null,null,null,"ft","Step Area to Riffle Area (Abkfs / Abkf)",null,null,null,null,null,null,"","",""]
[]
[null,"Maximum Step Depth (dmaxs)",null,null,null,null,null,null,null,"ft","Max Step Depth to Mean Riffle Depth (dmaxs / dbkf)",null,null,null,null,null,null,"","",""]
[]
[null,"Step Width/Depth Ratio (Wbkfs / dbkfs)"]
[]
["*Riffle–Pool system (i.e., C, E, F stream types) bed features include riffles, runs, pools and glides."]
["**Step–Pool system (i.e., A, B, G stream types) bed features include riffles, rapids, chutes, pools and steps (note: include rapids and chutes in riffle category)."]
["***Convergence-Divergence system (i.e., D stream types) bed features include riffles and pools; cross-sections taken at riffles for classification purposes."]
["****Mean values are used as the normalization parameter for all dimensionless ratios; e.g., minimum pool width to riffle width ratio uses the mean riffle width value."]

{"sheet":"Reference B","index":15,"n_rows":82,"n_cols":20,"rows_kept":82,"cut":false,"hidden":false,"merged":[[78,17,78,18],[82,0,82,20],[0,1,0,2],[1,0,1,20],[78,1,78,3],[78,4,78,5],[78,6,78,7],[78,8,78,9],[78,12,78,13],[78,14,78,15],[74,17,74,18],[76,1,76,3],[76,4,76,5],[76,6,76,7],[76,8,76,9],[76,12,76,13],[76,14,76,15],[76,17,76,18],[74,14,74,15],[74,1,74,3],[74,4,74,5],[74,6,74,7],[74,8,74,9],[74,12,74,13],[63,9,63,16],[65,0,65,20],[68,8,68,9],[68,12,68,13],[68,14,68,15],[68,17,68,18],[67,0,79,0],[67,17,67,19],[68,1,68,3],[68,4,68,5],[68,6,68,7],[70,1,70,3],[70,4,70,5],[70,6,70,7],[70,8,70,9],[70,12,70,13],[70,14,70,15],[70,17,70,18],[72,1,72,3],[72,4,72,5],[72,6,72,7],[72,8,72,9],[72,12,72,13],[72,14,72,15],[72,17,72,18],[34,0,34,20],[35,0,62,0],[36,4,36,5],[36,13,36,14],[38,4,38,5],[38,7,38,12],[38,13,38,14],[40,7,40,10],[41,7,41,10],[55,9,55,16],[57,9,57,16],[59,9,59,16],[61,9,61,16],[15,0,15,20],[16,0,33,0],[24,1,24,4],[24,9,24,16],[26,9,26,16],[28,9,28,16],[30,9,30,16],[32,1,32,4],[32,9,32,16],[7,22,14,26],[9,0,14,0],[11,11,11,12],[11,17,11,19],[13,11,13,12],[13,17,13,18],[6,0,6,1],[6,2,6,8],[6,9,6,11],[6,12,6,20],[7,0,7,1],[7,2,7,6],[7,8,7,11],[7,12,7,13],[7,14,7,15],[7,16,7,17],[7,18,7,20]]}
[]
["Reference Reach Form B"]
[]
[]
[]
[]
["Stream:",null,null,null,null,null,null,null,null,"Location:"]
["Observers:",null,null,null,null,null,null,"Date:",null,null,null,null,"Valley Type:",null,null,null,"Stream Type:"]
[]
[]
[]
[null,"Streamflow: Estimated Mean Velocity at Bankfull Stage (ubkf)",null,null,null,null,null,null,null,null,null,null,null,"ft/sec","Estimation Method"]
[]
[null,"Streamflow: Estimated Discharge at Bankfull Stage (Qbkf)",null,null,null,null,null,null,null,null,null,null,null,"cfs","Drainage Area",null,null,null,null,"mi2"]
[]
[]
[]
[null,"Geometry",null,null,null,"Mean","Min","Max",null,"Dimensionless Geometry Ratios",null,null,null,null,null,null,null,"Mean","Min","Max"]
[null,"Linear Wavelength (l)",null,null,null,null,null,null,"ft","Linear Wavelength to Riffle Width (l / Wbkf)"]
[]
[null,"Stream Meander Length (Lm)",null,null,null,null,null,null,"ft","Stream Meander Length Ratio (Lm / Wbkf)"]
[]
[null,"Radius of Curvature (Rc)",null,null,null,null,null,null,"ft","Radius of Curvature to Riffle Width (Rc / Wbkf)"]
[]
[null,"Belt Width (Wblt)",null,null,null,null,null,null,"ft","Meander Width Ratio (Wblt / Wbkf)"]
[]
[null,"Arc Length (La)",null,null,null,null,null,null,"ft","Arc Length to Riffle Width (La / Wbkf)"]
[]
[null,"Riffle Length (Lr)",null,null,null,null,null,null,"ft","Riffle Length to Riffle Width (Lr / Wbkf)"]
[]
[null,"Individual Pool Length (Lp)",null,null,null,null,null,null,"ft","Individual Pool Length to Riffle Width (Lp / Wbkf)"]
[]
[null,"Pool to Pool Spacing (Ps)",null,null,null,null,null,null,"ft","Pool to Pool Spacing to Riffle Width (Ps / Wbkf)"]
[]
[]
[]
[null,"Valley Slope (Sval)",null,null,null,null,"ft/ft","Average Water Surface Slope (S)",null,null,null,null,null,null,null,"ft/ft","Sinuosity (Sval / S)"]
[]
[null,"Stream Length (SL)",null,null,null,null,"ft","Valley Length (VL)",null,null,null,null,null,null,null,"ft","Sinuosity (SL / VL)"]
[]
[null,"Low Bank Height",null,null,"start",null,"ft"," Max Bankfull Depth",null,null,null,"start",null,"ft","Bank-Height Ratio (BHR)",null,null,null,"start"]
[null,"(LBH)",null,null,"end",null,"ft","(dmax)",null,null,null,"end",null,"ft","(LBH / dmax)",null,null,null,"end"]
[]
[null,"Facet Slopes",null,null,null,"Mean","Min","Max","Dimensionless Facet Slope Ratios",null,null,null,null,null,null,null,null,"Mean","Min","Max"]
[null,"Riffle Slope (Srif)",null,null,null,null,null,null,"ft/ft","Riffle Slope to Average Water Surface Slope (Srif / S)"]
[]
[null,"Run Slope (Srun)",null,null,null,null,null,null,"ft/ft","Run Slope to Average Water Surface Slope (Srun / S)"]
[]
[null,"Pool Slope (Sp)",null,null,null,null,null,null,"ft/ft","Pool Slope to Average Water Surface Slope (Sp / S)"]
[]
[null,"Glide Slope (Sg)",null,null,null,null,null,null,"ft/ft","Glide Slope to Average Water Surface Slope (Sg / S)"]
[]
[null,"Step Slope (Ss)",null,null,null,null,null,null,"ft/ft","Step Slope to Average Water Surface Slope (Ss / S)",null,null,null,null,null,null,null,"","",""]
[]
[null,"Max Depthsa",null,null,null,"Mean","Min","Max","Dimensionless Depth Ratios",null,null,null,null,null,null,null,null,"Mean","Min","Max"]
[null,"Max Riffle Depth (dmax)",null,null,null,null,null,null,"ft","Max Riffle Depth to Mean Riffle Depth (dmax / dbkf)"]
[]
[null,"Max Run Depth (dmaxr)",null,null,null,null,null,null,"ft","Max Run Depth to Mean Riffle Depth (dmaxr / dbkf)"]
[]
[null,"Max Pool Depth (dmaxp)",null,null,null,null,null,null,"ft","Max Pool Depth to Mean Riffle Depth (dmaxp / dbkf)"]
[]
[null,"Max Glide Depth (dmaxg)",null,null,null,null,null,null,"ft","Max Glide Depth to Mean Riffle Depth (dmaxg / dbkf)"]
[]
[null,"Max Step Depth (dmaxs)",null,null,null,null,null,null,"ft","Max Step Depth to Mean Riffle Depth (dmaxs / dbkf)",null,null,null,null,null,null,null,"","",""]
[]
[]
[]
[null,null,null,null,"Reachb",null,"Rifflec",null,"Bar",null,null,null,"Reachb",null,"Rifflec",null,"Bar","Protrusion Heightd"]
[null,"% Silt/Clay",null,null,null,null,null,null,null,null,null,"D16",null,null,null,null,null,null,null,"mm"]
[]
[null,"% Sand",null,null,null,null,null,null,null,null,null,"D35",null,null,null,null,null,null,null,"mm"]
[]
[null,"% Gravel",null,null,null,null,null,null,null,null,null,"D50",null,null,null,null,null,null,null,"mm"]
[]
[null,"% Cobble",null,null,null,null,null,null,null,null,null,"D84",null,null,null,null,null,null,null,"mm"]
[]
[null,"% Boulder",null,null,null,null,null,null,null,null,null,"D95",null,null,null,null,null,null,null,"mm"]
[]
[null,"% Bedrock",null,null,null,null,null,null,null,null,null,"D100",null,null,null,null,null,null,null,"mm"]
[]
["a Min, max & mean depths are measured from Thalweg to bankfull at mid-point of feature for riffles and runs, the deepest part of pools, & at the tail-out of glides."]
["b Composite sample of riffles and pools within the designated reach.",null,null,null,null,null,null,null,null,null,null,"c Active bed of a riffle.",null,null,null,"d Height of roughness feature above bed."]

{"sheet":"Lookup","index":16,"n_rows":1718,"n_cols":53,"rows_kept":1718,"cut":false,"hidden":true,"merged":[]}
["Stream","Section","Township","Township name","Range","County Name","HUC8","HUC12","GeomorphicRegion","Over-Bank Flood Recurrence Interval","Landuse Change","Landuse Percent Change","Dominant Bank / Bed Materials","Yes/No","Pool-Riffle Spacing","Schumm and Rosgen succession sequences","Streambank Erosion","Veg Bars/islands","Percent Ranges - 20% ","Manmade vs Natural","Obstruction Types","Trib Location","Adjacent Riparian Landuse","Percent Ranges - 24% ","Problems","Project Outcomes","Affected Infrastructure","Confidence Assessment","Vertical Datum","Flow Regime","Valley Type","BEHI Rating","Bankfull Discharge Method","Channel Path Potential Issues","Wood Debris Significant to Cause debris jams","Species Concerns","Infrastructure Position","Meander Pattern","Dominant Depositional Pattern","Thread","Number","Name","Control","Link",null,"Bar Types",null,"Curve",null,"Perennial Vegetation",null,null,"Stream Types"]
["Stream1","s1","T100N","Name1","R10E","Adair","07060005 - Apple-Plum","070600060605 - 070600060605","Southern Iowa Drift Plain",1,"cropland to urban",0,"silt/clay (<0.062 mm)","Yes","1-3","Stage I","both streambanks eroding at their base",null,"0-20%","manmade","constrictions","upstream","cropland",0,"downcutting","bank stabilization","roads","no","NGVD29","ephemeral","confined","very low","Bankfull width verified less than Iowa Flood Information System 50 percent innundation","lateral migration","Yes","known","upstream","regular meanders","point bars","single thread",0,"Iowa Flood Zones Map","Image2",null,null,"None",null,"Eastern Minnesota",null,"Perennial Vegetation throughout Belt Width",null,null,{"$f":"\"\"","v":""}]
["Stream2","s2","T10N","Name2","R10W","Adams","07110001 - Bear-Wyaconda","101702031906 - 101702031906","Des Moines Lobe",2,"forest to urban",0.1,"sand (0.062 mm - <2 mm)","No","3-5","Stage II","bank overhangs",null,"20-40%","natural","obstructions","downstream","pasture","1-25%","excess deposition","grade control","bridges","review (within 1 month)","NAVD88","intermittent","unconfined","low","Chezy","avulsion","No","likely","downstream","tortuous meanders","point bars with few mid-channel bars","multi-thread (D)",1,"Flow Regime","imgDrawing19",{"$f":"\"https://www.iowadnr.gov/Portals/idnr/uploads/RiverRestoration/toolbox/LineArt/View_\" & TableLineArt[[#This Row],[Number]] & \"_\" & SUBSTITUTE(TableLineArt[[#This Row],[Name]],\" \",\"_\") & \".pdf\"","v":"https://www.iowadnr.gov/Portals/idnr/uploads/RiverRestoration/toolbox/LineArt/View_1_Flow_Regime.pdf"},null,"Point Bars",null,"Western Minnesota",null,"Perennial Vegetation 0 to 50 feet beyond Belt Width",null,null,"A1a+"]
["Stream3","s3","T11N","Name3","R11E","Allamakee","10230006 - Big Papillion-Mosquito","101702040702 - 101702040702","Iowan Surface",5,"pasture to urban",0.2,"gravel (2 mm - 64 mm)",null,"5-7","Stage III","leaning trees",null,"40-60%",null,"flow deflectors","both upstream and downstream","thin grass or tree buffer","26-50%","lateral bank erosion","channel training","utility lines","review and site visit (within 6 months)",null,"perennial",null,"moderate","Darcy-Weisbach","over-widening","debris jams present","unknown","along segment","irregular meanders","numerous mid-channel bars","multi-thread (DA)",2,"Riparian Diagram","imgDrawing2",{"$f":"\"https://www.iowadnr.gov/Portals/idnr/uploads/RiverRestoration/toolbox/LineArt/View_\" & TableLineArt[[#This Row],[Number]] & \"_\" & SUBSTITUTE(TableLineArt[[#This Row],[Name]],\" \",\"_\") & \".pdf\"","v":"https://www.iowadnr.gov/Portals/idnr/uploads/RiverRestoration/toolbox/LineArt/View_2_Riparian_Diagram.pdf"},null,"Point Bars with Mid-Channel Bars",null,"Watershed < 10% Impervious Cover Provisional Iowa Regional Curve",null,"Perennial Vegetation >50 feet beyond Belt Width",null,null,"A2a+"]
["Stream4","s4","T12N","Name4","R11W","Appanoose","10230001 - Blackbird-Soldier","102300010503 - 102300010503","Paleozoic Plateau",10,"forest to cropland",0.3,"cobble (64 mm - 256 mm)",null,">7","Stage IV","recently exposed tree roots ",null,"60-80%",null,null,"within project extent","wide grass or tree buffer","51-75%","changes in channel path","fish passage modification","public lands",null,null,null,null,"high","Estimated from a flood model","chute cutoff",null,null,null,"truncated meanders","side bars",null,3,"Survey Figure","imgDrawing9",{"$f":"\"https://www.iowadnr.gov/Portals/idnr/uploads/RiverRestoration/toolbox/LineArt/View_\" & TableLineArt[[#This Row],[Number]] & \"_\" & SUBSTITUTE(TableLineArt[[#This Row],[Name]],\" \",\"_\") & \".pdf\"","v":"https://www.iowadnr.gov/Portals/idnr/uploads/RiverRestoration/toolbox/LineArt/View_3_Survey_Figure.pdf"},null,"Side Bars",null,"Watershed > 10% Impervious Cover Provisional Iowa Regional Curve",null,null,null,null,"A3a+"]
["Stream5","s5","T13N","Name5","R12E","Audubon","07020009 - Blue Earth","102300020401 - 102300020401","Northwest Iowa Plains",25,"forest to pasture",0.4,"boulder (256 mm - bedrock)",null,null,"Stage V","leaning trees and recently exposed tree roots",null,"80-100% ",null,null,null,"forest","76-100%","fish obstruction","habitat creation","wellheads",null,null,null,null,"very high","Manning","mid-channel bars",null,null,null,"unconfined meander scrolls","diagonal bars",null,4,"Sinuosity","imgDrawing7",{"$f":"\"https://www.iowadnr.gov/Portals/idnr/uploads/RiverRestoration/toolbox/LineArt/View_\" & TableLineArt[[#This Row],[Number]] & \"_\" & SUBSTITUTE(TableLineArt[[#This Row],[Name]],\" \",\"_\") & \".pdf\"","v":"https://www.iowadnr.gov/Portals/idnr/uploads/RiverRestoration/toolbox/LineArt/View_4_Sinuosity.pdf"},null,"Diagonal Bars",null,"User Defined",null,null,null,null,"A4a+"]
["Stream6","s6","T14N",null,"R12W","Benton","07100005 - Boone","102300020403 - 102300020403","Loess Hills (or Western Iowa Deep Loess Region)",50,"cropland to forest",0.5,"bedrock",null,null,"Stage VI",null,null,null,null,null,null,"backyard",null,"poor habitat options","dam removal","buildings",null,null,null,null,"extreme","Nearby gauge, statistical analysis of peakflows between 1-2 year range associated with field determined bankfull",null,null,null,null,"confined meander scrolls","main channel branching with numerous mid-channel bars and islands",null,5,"Longitudinal Profile","imgDrawing10",{"$f":"\"https://www.iowadnr.gov/Portals/idnr/uploads/RiverRestoration/toolbox/LineArt/View_\" & TableLineArt[[#This Row],[Number]] & \"_\" & SUBSTITUTE(TableLineArt[[#This Row],[Name]],\" \",\"_\") & \".pdf\"","v":"https://www.iowadnr.gov/Portals/idnr/uploads/RiverRestoration/toolbox/LineArt/View_5_Longitudinal_Profile.pdf"},null,"Numerous Vegetated Bars",null,null,null,null,null,null,"A5a+"]
["Stream7","s7","T15N",null,"R13E","Black Hawk","10230007 - Boyer","102300031104 - 102300031104","Missouri Alluvial Plains",100,"cropland to pasture",0.6,null,null,null,null,null,null,null,null,null,null,"fence",null,"existing dam",null,"other",null,null,null,null,null,"StreamStats Peak-Flow report",null,null,null,null,"distorted meander loops","side bars and mid-channel bars with length exceeding 2 to 3 channel widths",null,6,"Incision Ratio","imgDrawing13",{"$f":"\"https://www.iowadnr.gov/Portals/idnr/uploads/RiverRestoration/toolbox/LineArt/View_\" & TableLineArt[[#This Row],[Number]] & \"_\" & SUBSTITUTE(TableLineArt[[#This Row],[Name]],\" \",\"_\") & \".pdf\"","v":"https://www.iowadnr.gov/Portals/idnr/uploads/RiverRestoration/toolbox/LineArt/View_6_Incision_Ratio.pdf"},null,"Split Flow",null,null,null,null,null,null,"A6a+"]
["Stream8","s8","T16N",null,"R13W","Boone","07060001 - Coon-Yellow","070802060202 - Abbe Creek","Mississippi Alluvial Plains",500,"pasture to cropland",0.7,null,null,null,null,null,null,null,null,null,null,"building",null,null,null,"none",null,null,null,null,null,"U/U*",null,null,null,null,"irregular meanders (with oxbows and oxbow cutoffs)","delta bars",null,7,"Facet Terminology","imgDrawing1",{"$f":"\"https://www.iowadnr.gov/Portals/idnr/uploads/RiverRestoration/toolbox/LineArt/View_\" & TableLineArt[[#This Row],[Number]] & \"_\" & SUBSTITUTE(TableLineArt[[#This Row],[Name]],\" \",\"_\") & \".pdf\"","v":"https://www.iowadnr.gov/Portals/idnr/uploads/RiverRestoration/toolbox/LineArt/View_7_Facet_Terminology.pdf"},null,null,null,null,null,null,null,null,"A1"]
[null,"s9","T17N",null,"R14E","Bremer","07080101 - Copperas-Duck","070802020603 - Ackley Creek",null,null,"pasture to forest",0.8,null,null,null,null,null,null,null,null,null,null,"road",null,null,null,"all",null,null,null,null,null,"other",null,null,null,null,null,null,null,8,"Cross Section Geometry","imgDrawing3",{"$f":"\"https://www.iowadnr.gov/Portals/idnr/uploads/RiverRestoration/toolbox/LineArt/View_\" & TableLineArt[[#This Row],[Number]] & \"_\" & SUBSTITUTE(TableLineArt[[#This Row],[Name]],\" \",\"_\") & \".pdf\"","v":"https://www.iowadnr.gov/Portals/idnr/uploads/RiverRestoration/toolbox/LineArt/View_8_Cross_Section_Geometry.pdf"},null,null,null,null,null,null,null,null,"A2"]
[null,"s10","T18N",null,"R14W","Buchanan","07100003 - East Fork Des Moines","102300050304 - Aldrich Creek-Maple River",null,null,"no change",0.9,null,null,null,null,null,null,null,null,null,null,"levee",null,null,null,null,null,null,null,null,null,null,null,null,null,null,null,null,null,9,"Entrenchment Ratio","imgDrawing6",{"$f":"\"https://www.iowadnr.gov/Portals/idnr/uploads/RiverRestoration/toolbox/LineArt/View_\" & TableLineArt[[#This Row],[Number]] & \"_\" & SUBSTITUTE(TableLineArt[[#This Row],[Name]],\" \",\"_\") & \".pdf\"","v":"https://www.iowadnr.gov/Portals/idnr/uploads/RiverRestoration/toolbox/LineArt/View_9_Entrenchment_Ratio.pdf"},null,null,null,null,null,null,null,null,"A3"]
[null,"s11","T19N",null,"R15W","Buena Vista","10240003 - East Nishnabotna","071000040702 - Allen Creek-Des Moines River",null,null,null,1,null,null,null,null,null,null,null,null,null,null,"commercial development",null,null,null,null,null,null,null,null,null,null,null,null,null,null,null,null,null,10,"Meander Terminology","imgDrawing20",{"$f":"\"https://www.iowadnr.gov/Portals/idnr/uploads/RiverRestoration/toolbox/LineArt/View_\" & TableLineArt[[#This Row],[Number]] & \"_\" & SUBSTITUTE(TableLineArt[[#This Row],[Name]],\" \",\"_\") & \".pdf\"","v":"https://www.iowadnr.gov/Portals/idnr/uploads/RiverRestoration/toolbox/LineArt/View_10_Meander_Terminology.pdf"},null,null,null,null,null,null,null,null,"A4"]
[null,"s12","T1N",null,"R16W","Butler","07080104 - Flint-Henderson","070600060210 - Allison Creek-Maquoketa River",null,null,null,null,null,null,null,null,null,null,null,null,null,null,"native prairie or sedge meadow",null,null,null,null,null,null,null,null,null,null,null,null,null,null,null,null,null,11,"Pebble Counts","imgDrawing5",{"$f":"\"https://www.iowadnr.gov/Portals/idnr/uploads/RiverRestoration/toolbox/LineArt/View_\" & TableLineArt[[#This Row],[Number]] & \"_\" & SUBSTITUTE(TableLineArt[[#This Row],[Name]],\" \",\"_\") & \".pdf\"","v":"https://www.iowadnr.gov/Portals/idnr/uploads/RiverRestoration/toolbox/LineArt/View_11_Pebble_Counts.pdf"},null,null,null,null,null,null,null,null,"A5"]
[null,"s13","T20N",null,"R17W","Calhoun","10230002 - Floyd","070801060103 - Alloway Creek-North Skunk River",null,null,null,null,null,null,null,null,null,null,null,null,null,null,"other",null,null,null,null,null,null,null,null,null,null,null,null,null,null,null,null,null,12,"Rosgen Stream Types","imgDrawing21",{"$f":"\"https://www.iowadnr.gov/Portals/idnr/uploads/RiverRestoration/toolbox/LineArt/View_\" & TableLineArt[[#This Row],[Number]] & \"_\" & SUBSTITUTE(TableLineArt[[#This Row],[Name]],\" \",\"_\") & \".pdf\"","v":"https://www.iowadnr.gov/Portals/idnr/uploads/RiverRestoration/toolbox/LineArt/View_12_Rosgen_Stream_Types.pdf"},null,null,null,null,null,null,null,null,"A6"]
[null,"s14","T21N",null,"R18W","Carroll","07060003 - Grant-Little Maquoketa","070801030604 - Ames Creek",null,null,null,null,null,null,null,null,null,null,null,null,null,null,null,null,null,null,null,null,null,null,null,null,null,null,null,null,null,null,null,null,13,"Bed vs Bank","imgDrawing4",{"$f":"\"https://www.iowadnr.gov/Portals/idnr/uploads/RiverRestoration/toolbox/LineArt/View_\" & TableLineArt[[#This Row],[Number]] & \"_\" & SUBSTITUTE(TableLineArt[[#This Row],[Name]],\" \",\"_\") & \".pdf\"","v":"https://www.iowadnr.gov/Portals/idnr/uploads/RiverRestoration/toolbox/LineArt/View_13_Bed_vs_Bank.pdf"},null,null,null,null,null,null,null,null,"G1"]
[null,"s15","T22N",null,"R19W","Cass","10240001 - Keg-Weeping Water","102300031508 - Arcola Creek-Little Sioux River",null,null,null,null,null,null,null,null,null,null,null,null,null,null,null,null,null,null,null,null,null,null,null,null,null,null,null,null,null,null,null,null,14,"Meander Patterns","imgDrawing22",{"$f":"\"https://www.iowadnr.gov/Portals/idnr/uploads/RiverRestoration/toolbox/LineArt/View_\" & TableLineArt[[#This Row],[Number]] & \"_\" & SUBSTITUTE(TableLineArt[[#This Row],[Name]],\" \",\"_\") & \".pdf\"","v":"https://www.iowadnr.gov/Portals/idnr/uploads/RiverRestoration/toolbox/LineArt/View_14_Meander_Patterns.pdf"},null,null,null,null,null,null,null,null,"G2"]
[null,"s16","T23N",null,"R1E","Cedar","07100008 - Lake Red Rock","101702040306 - Ash Creek-Rock River",null,null,null,null,null,null,null,null,null,null,null,null,null,null,null,null,null,null,null,null,null,null,null,null,null,null,null,null,null,null,null,null,15,"Concerns","imgDrawing16",{"$f":"\"https://www.iowadnr.gov/Portals/idnr/uploads/RiverRestoration/toolbox/LineArt/View_\" & TableLineArt[[#This Row],[Number]] & \"_\" & SUBSTITUTE(TableLineArt[[#This Row],[Name]],\" \",\"_\") & \".pdf\"","v":"https://www.iowadnr.gov/Portals/idnr/uploads/RiverRestoration/toolbox/LineArt/View_15_Concerns.pdf"},null,null,null,null,null,null,null,null,"G3"]
[null,"s17","T25N",null,"R1W","Cerro Gordo","10230003 - Little Sioux","070802080401 - Asher Creek",null,null,null,null,null,null,null,null,null,null,null,null,null,null,null,null,null,null,null,null,null,null,null,null,null,null,null,null,null,"Bankfull Cross Section Eastern a",5.3095999999999997,null,16,"Bar Types","imgDrawing8",{"$f":"\"https://www.iowadnr.gov/Portals/idnr/uploads/RiverRestoration/toolbox/LineArt/View_\" & TableLineArt[[#This Row],[Number]] & \"_\" & SUBSTITUTE(TableLineArt[[#This Row],[Name]],\" \",\"_\") & \".pdf\"","v":"https://www.iowadnr.gov/Portals/idnr/uploads/RiverRestoration/toolbox/LineArt/View_16_Bar_Types.pdf"},null,null,null,null,null,null,null,null,"G4"]
[null,"s18","T26N",null,"R20W","Cherokee","10170203 - Lower Big Sioux","102300031407 - Ashton Creek",null,null,null,null,null,null,null,null,null,null,null,null,null,null,null,null,null,null,null,null,null,null,null,null,null,null,null,null,null,"Bankfull Cross Section Eastern exp",0.70540000000000003,null,17,"Headcut","imgDrawing18",{"$f":"\"https://www.iowadnr.gov/Portals/idnr/uploads/RiverRestoration/toolbox/LineArt/View_\" & TableLineArt[[#This Row],[Number]] & \"_\" & SUBSTITUTE(TableLineArt[[#This Row],[Name]],\" \",\"_\") & \".pdf\"","v":"https://www.iowadnr.gov/Portals/idnr/uploads/RiverRestoration/toolbox/LineArt/View_17_Headcut.pdf"},null,null,null,null,null,null,null,null,"G5"]
[null,"s19","T27N",null,"R21W","Chickasaw","07080206 - Lower Cedar","071000091203 - Austin County Park-Des Moines River",null,null,null,null,null,null,null,null,null,null,null,null,null,null,null,null,null,null,null,null,null,null,null,null,null,null,null,null,null,"Bankfull Discharge Eastern a",8.1832999999999991,null,18,"Channel Evolution Model","imgDrawing14",{"$f":"\"https://www.iowadnr.gov/Portals/idnr/uploads/RiverRestoration/toolbox/LineArt/View_\" & TableLineArt[[#This Row],[Number]] & \"_\" & SUBSTITUTE(TableLineArt[[#This Row],[Name]],\" \",\"_\") & \".pdf\"","v":"https://www.iowadnr.gov/Portals/idnr/uploads/RiverRestoration/toolbox/LineArt/View_18_Channel_Evolution_Model.pdf"},null,null,null,null,null,null,null,null,"G6"]
[null,"s20","T28N",null,"R22W","Clarke","07100009 - Lower Des Moines","102300031410 - Bacon Creek",null,null,null,null,null,null,null,null,null,null,null,null,null,null,null,null,null,null,null,null,null,null,null,null,null,null,null,null,null,"Bankfull Discharge Eastern exp",0.87039999999999995,null,19,"Habitat Features","imgDrawing12",{"$f":"\"https://www.iowadnr.gov/Portals/idnr/uploads/RiverRestoration/toolbox/LineArt/View_\" & TableLineArt[[#This Row],[Number]] & \"_\" & SUBSTITUTE(TableLineArt[[#This Row],[Name]],\" \",\"_\") & \".pdf\"","v":"https://www.iowadnr.gov/Portals/idnr/uploads/RiverRestoration/toolbox/LineArt/View_19_Habitat_Features.pdf"},null,null,null,null,null,null,null,null,"G1c"]
[null,"s21","T29N",null,"R23W","Clay","10280103 - Lower Grand","102300010305 - Bacon Creek-Missouri River",null,null,null,null,null,null,null,null,null,null,null,null,null,null,null,null,null,null,null,null,null,null,null,null,null,null,null,null,null,"Bankfull Cross Section Western a",4.7455999999999996,null,21,"Lateral Erosion","imgDrawing11",{"$f":"\"https://www.iowadnr.gov/Portals/idnr/uploads/RiverRestoration/toolbox/LineArt/View_\" & TableLineArt[[#This Row],[Number]] & \"_\" & SUBSTITUTE(TableLineArt[[#This Row],[Name]],\" \",\"_\") & \".pdf\"","v":"https://www.iowadnr.gov/Portals/idnr/uploads/RiverRestoration/toolbox/LineArt/View_21_Lateral_Erosion.pdf"},null,null,null,null,null,null,null,null,"G2c"]
[null,"s22","T3N",null,"R24W","Clayton","07080209 - Lower Iowa","071000040403 - Badger Creek",null,null,null,null,null,null,null,null,null,null,null,null,null,null,null,null,null,null,null,null,null,null,null,null,null,null,null,null,null,"Bankfull Cross Section Western exp",0.61019999999999996,null,20,"BEHI Variables","imgDrawing15",{"$f":"\"https://www.iowadnr.gov/Portals/idnr/uploads/RiverRestoration/toolbox/LineArt/View_\" & TableLineArt[[#This Row],[Number]] & \"_\" & SUBSTITUTE(TableLineArt[[#This Row],[Name]],\" \",\"_\") & \".pdf\"","v":"https://www.iowadnr.gov/Portals/idnr/uploads/RiverRestoration/toolbox/LineArt/View_20_BEHI_Variables.pdf"},null,null,null,null,null,null,null,null,"G3c"]
[null,"s23","T5N",null,"R25W","Clinton","07080103 - Lower Wapsipinicon","071000080402 - Badger Creek",null,null,null,null,null,null,null,null,null,null,null,null,null,null,null,null,null,null,null,null,null,null,null,null,null,null,null,null,null,"Bankfull Discharge Western a",4.3234000000000004,null,22,"Quantification of Riparian Vegetation","imgDrawing17",{"$f":"\"https://www.iowadnr.gov/Portals/idnr/uploads/RiverRestoration/toolbox/LineArt/View_\" & TableLineArt[[#This Row],[Number]] & \"_\" & SUBSTITUTE(TableLineArt[[#This Row],[Name]],\" \",\"_\") & \".pdf\"","v":"https://www.iowadnr.gov/Portals/idnr/uploads/RiverRestoration/toolbox/LineArt/View_22_Quantification_of_Riparian_Vegetation.pdf"},null,null,null,null,null,null,null,null,"G4c"]
[null,"s24","T64N",null,"R26W","Crawford","10230005 - Maple","102300050302 - Badger Creek-Maple River",null,null,null,null,null,null,null,null,null,null,null,null,null,null,null,null,null,null,null,null,null,null,null,null,null,null,null,null,null,"Bankfull Discharge Western exp",0.87150000000000005,null,null,null,null,null,null,null,null,null,null,null,null,null,"G5c"]
[null,"s25","T65N",null,"R27W","Dallas","07060006 - Maquoketa","070802040102 - Bailey Creek",null,null,null,null,null,null,null,null,null,null,null,null,null,null,null,null,null,null,null,null,null,null,null,null,null,null,null,null,null,"Bankfull Cross Section Watershed <10% Imp Cover Provisional Iowa Regional Curve a",7.7275269,null,null,null,null,null,null,null,null,null,null,"Make this a Drop Down Box with the following: Perennial Vegetation throughout Belt Width; Perennial Vegetation 0 to 50 feet beyond Belt Width; Perennial Vegetation >50 feet beyond Belt Width.  Note I changed the wording of the question to the left.  ",null,null,"G6c"]
[null,"s26","T66N",null,"R28W","Davis","07080205 - Middle Cedar","102400050606 - Baker Cemetery-Tarkio River",null,null,null,null,null,null,null,null,null,null,null,null,null,null,null,null,null,null,null,null,null,null,null,null,null,null,null,null,null,"Bankfull Cross Section Watershed <10% Imp Cover Provisional Iowa Regional Curve exp",0.74969260000000004,null,null,null,null,null,null,null,null,null,null,null,null,null,"F1b"]
[null,"s27","T67N",null,"R29W","Decatur","07100004 - Middle Des Moines","102400020105 - Ballard Creek",null,null,null,null,null,null,null,null,null,null,null,null,null,null,null,null,null,null,null,null,null,null,null,null,null,null,null,null,null,"Bankfull Discharge Watershed <10% Imp Cover Provisional Iowa Regional Curve a",19.607807300000001,null,null,null,null,null,null,null,null,null,null,null,null,null,"F2b"]
[null,"s28","T68N",null,"R2E","Delaware","07080208 - Middle Iowa","070801050902 - Ballard Creek",null,null,null,null,null,null,null,null,null,null,null,null,null,null,null,null,null,null,null,null,null,null,null,null,null,null,null,null,null,"Bankfull Discharge Watershed <10% Imp Cover Provisional Iowa Regional Curve exp",0.84380920000000004,null,null,null,null,null,null,null,null,null,null,null,null,null,"F3b"]
[null,"s29","T69N",null,"R2W","Des Moines","10230004 - Monona-Harrison Ditch","070801051202 - Ballinger Creek-South Skunk River",null,null,null,null,null,null,null,null,null,null,null,null,null,null,null,null,null,null,null,null,null,null,null,null,null,null,null,null,null,"Bankfull Cross Section Watershed >10% Imp Cover Provisional Iowa Regional Curve a",27.071719300000002,null,null,null,null,null,null,null,null,null,null,null,null,null,"F4b"]
[null,"s30","T6N",null,"R30W","Dickinson","10240004 - Nishnabotna","102300031507 - Barber Creek-Little Sioux River",null,null,null,null,null,null,null,null,null,null,null,null,null,null,null,null,null,null,null,null,null,null,null,null,null,null,null,null,null,"Bankfull Cross Section Watershed >10% Imp Cover Provisional Iowa Regional Curve exp",0.5486434,null,null,null,null,null,null,null,null,null,null,null,null,null,"F5b"]
[null,"s31","T70N",null,"R31W","Dubuque","10240010 - Nodaway","070801030603 - Barber Creek-Wapsipinicon River",null,null,null,null,null,null,null,null,null,null,null,null,null,null,null,null,null,null,null,null,null,null,null,null,null,null,null,null,null,"Bankfull Discharge Watershed >10% Imp Cover Provisional Iowa Regional Curve a",90.588883199999998,null,null,null,null,null,null,null,null,null,null,null,null,null,"F6b"]
[null,"s32","T71N",null,"R32W","Emmet","07110002 - North Fabius","102300031003 - Barry Creek",null,null,null,null,null,null,null,null,null,null,null,null,null,null,null,null,null,null,null,null,null,null,null,null,null,null,null,null,null,"Bankfull Discharge Watershed >10% Imp Cover Provisional Iowa Regional Curve exp",0.62988520000000003,null,null,null,null,null,null,null,null,null,null,null,null,null,"F1"]
[null,"s33","T72N",null,"R33W","Fayette","07100006 - North Raccoon","070802011102 - Baskins Run",null,null,null,null,null,null,null,null,null,null,null,null,null,null,null,null,null,null,null,null,null,null,null,null,null,null,null,null,null,"Bankfull Cross Section Iowa Provisional, Flood Region 3 a",7.0351999999999997,null,null,null,null,null,null,null,null,null,null,null,null,null,"F2"]
[null,"s34","T73N",null,"R34W","Floyd","07080106 - North Skunk","071000040402 - Bass Creek-Des Moines River",null,null,null,null,null,null,null,null,null,null,null,null,null,null,null,null,null,null,null,null,null,null,null,null,null,null,null,null,null,"Bankfull Cross Section Iowa Provisional, Flood Region 3 exp",0.78469999999999995,null,null,null,null,null,null,null,null,null,null,null,null,null,"F3"]
[null,"s35","T74N",null,"R35W","Franklin","10240013 - One Hundred and Two","102300050301 - Battle Creek",null,null,null,null,null,null,null,null,null,null,null,null,null,null,null,null,null,null,null,null,null,null,null,null,null,null,null,null,null,"Bankfull Discharge Iowa Provisional, Flood Region 3 a",13.273999999999999,null,null,null,null,null,null,null,null,null,null,null,null,null,"F4"]
[null,"s36","T75N",null,"R36W","Fremont","10240012 - Platte","102400030601 - Baughmans Creek",null,null,null,null,null,null,null,null,null,null,null,null,null,null,null,null,null,null,null,null,null,null,null,null,null,null,null,null,null,"Bankfull Discharge Iowa Provisional, Flood Region 3 exp",0.99319999999999997,null,null,null,null,null,null,null,null,null,null,null,null,null,"F5"]
[null,null,"T76N",null,"R37W","Greene","10170204 - Rock","071000070602 - Bays Branch",null,null,null,null,null,null,null,null,null,null,null,null,null,null,null,null,null,null,null,null,null,null,null,null,null,null,null,null,null,null,null,null,null,null,null,null,null,null,null,null,null,null,null,null,"F6"]
[null,null,"T77N",null,"R38W","Grundy","07040008 - Root","102801010403 - Bealls Creek-East Fork Grand River",null,null,null,null,null,null,null,null,null,null,null,null,null,null,null,null,null,null,null,null,null,null,null,null,null,null,null,null,null,null,null,null,null,null,null,null,null,null,null,null,null,null,null,null,"B1a"]
[null,null,"T78N",null,"R39W","Guthrie","07080202 - Shell Rock","102300070207 - Beamon Creek-Boyer River",null,null,null,null,null,null,null,null,null,null,null,null,null,null,null,null,null,null,null,null,null,null,null,null,null,null,null,null,null,null,null,null,null,null,null,null,null,null,null,null,null,null,null,null,"B2a"]
[null,null,"T79N",null,"R3E","Hamilton","07080107 - Skunk","070802051204 - Bear Creek",null,null,null,null,null,null,null,null,null,null,null,null,null,null,null,null,null,null,null,null,null,null,null,null,null,null,null,null,null,null,null,null,null,null,null,null,null,null,null,null,null,null,null,null,"B3a"]
[null,null,"T7N",null,"R3W","Hancock","07100007 - South Raccoon","070600040607 - Bear Creek",null,null,null,null,null,null,null,null,null,null,null,null,null,null,null,null,null,null,null,null,null,null,null,null,null,null,null,null,null,null,null,null,null,null,null,null,null,null,null,null,null,null,null,null,"B4a"]
[null,null,"T80N",null,"R40W","Hardin","07080105 - South Skunk","070801050403 - Bear Creek",null,null,null,null,null,null,null,null,null,null,null,null,null,null,null,null,null,null,null,null,null,null,null,null,null,null,null,null,null,null,null,null,null,null,null,null,null,null,null,null,null,null,null,null,"B5a"]
[null,null,"T81N",null,"R41W","Harrison","10240005 - Tarkio-Wolf","070802070903 - Bear Creek",null,null,null,null,null,null,null,null,null,null,null,null,null,null,null,null,null,null,null,null,null,null,null,null,null,null,null,null,null,null,null,null,null,null,null,null,null,null,null,null,null,null,null,null,"B6a"]
[null,null,"T82N",null,"R42W","Henry","10280102 - Thompson","070600020503 - Bear Creek",null,null,null,null,null,null,null,null,null,null,null,null,null,null,null,null,null,null,null,null,null,null,null,null,null,null,null,null,null,null,null,null,null,null,null,null,null,null,null,null,null,null,null,null,"B1"]
[null,null,"T83N",null,"R43W","Howard","07060004 - Turkey","071000040705 - Bear Creek",null,null,null,null,null,null,null,null,null,null,null,null,null,null,null,null,null,null,null,null,null,null,null,null,null,null,null,null,null,null,null,null,null,null,null,null,null,null,null,null,null,null,null,null,"B2"]
[null,null,"T84N",null,"R44W","Humboldt","07080201 - Upper Cedar","071000070901 - Bear Creek",null,null,null,null,null,null,null,null,null,null,null,null,null,null,null,null,null,null,null,null,null,null,null,null,null,null,null,null,null,null,null,null,null,null,null,null,null,null,null,null,null,null,null,null,"B3"]
[null,null,"T85N",null,"R45W","Ida","10280201 - Upper Chariton","070600060602 - Bear Creek",null,null,null,null,null,null,null,null,null,null,null,null,null,null,null,null,null,null,null,null,null,null,null,null,null,null,null,null,null,null,null,null,null,null,null,null,null,null,null,null,null,null,null,null,"B4"]
[null,null,"T86N",null,"R46W","Iowa","07100002 - Upper Des Moines","102300031208 - Bear Creek",null,null,null,null,null,null,null,null,null,null,null,null,null,null,null,null,null,null,null,null,null,null,null,null,null,null,null,null,null,null,null,null,null,null,null,null,null,null,null,null,null,null,null,null,"B5"]
[null,null,"T87N",null,"R47W","Jackson","10280101 - Upper Grand","070802051004 - Bear Creek-Cedar River",null,null,null,null,null,null,null,null,null,null,null,null,null,null,null,null,null,null,null,null,null,null,null,null,null,null,null,null,null,null,null,null,null,null,null,null,null,null,null,null,null,null,null,null,"B6"]
[null,null,"T88N",null,"R48W","Jasper","07060002 - Upper Iowa","071000091204 - Bear Creek-Des Moines River",null,null,null,null,null,null,null,null,null,null,null,null,null,null,null,null,null,null,null,null,null,null,null,null,null,null,null,null,null,null,null,null,null,null,null,null,null,null,null,null,null,null,null,null,"B1c"]
[null,null,"T89N",null,"R49W","Jefferson","07080207 - Upper Iowa","071000090603 - Bear Creek-Soap Creek",null,null,null,null,null,null,null,null,null,null,null,null,null,null,null,null,null,null,null,null,null,null,null,null,null,null,null,null,null,null,null,null,null,null,null,null,null,null,null,null,null,null,null,null,"B2c"]
[null,null,"T8N",null,"R4E","Johnson","07080102 - Upper Wapsipinicon","070802030106 - Bear Creek-Winnebago River",null,null,null,null,null,null,null,null,null,null,null,null,null,null,null,null,null,null,null,null,null,null,null,null,null,null,null,null,null,null,null,null,null,null,null,null,null,null,null,null,null,null,null,null,"B3c"]
[null,null,"T90N",null,"R4W","Jones","07080204 - West Fork Cedar","071000090706 - Bear Creek School-Bear Creek",null,null,null,null,null,null,null,null,null,null,null,null,null,null,null,null,null,null,null,null,null,null,null,null,null,null,null,null,null,null,null,null,null,null,null,null,null,null,null,null,null,null,null,null,"B4c"]
[null,null,"T91N",null,"R5E","Keokuk","10240002 - West Nishnabotna","102400130302 - Beard Branch-One Hundred and Two River",null,null,null,null,null,null,null,null,null,null,null,null,null,null,null,null,null,null,null,null,null,null,null,null,null,null,null,null,null,null,null,null,null,null,null,null,null,null,null,null,null,null,null,null,"B5c"]
[null,null,"T92N",null,"R5W","Kossuth","10240009 - West Nodaway","071000040906 - Beaver Branch-Beaver Creek",null,null,null,null,null,null,null,null,null,null,null,null,null,null,null,null,null,null,null,null,null,null,null,null,null,null,null,null,null,null,null,null,null,null,null,null,null,null,null,null,null,null,null,null,"B6c"]
[null,null,"T93N",null,"R6E","Lee","07080203 - Winnebago","102300031509 - Beaver Creek",null,null,null,null,null,null,null,null,null,null,null,null,null,null,null,null,null,null,null,null,null,null,null,null,null,null,null,null,null,null,null,null,null,null,null,null,null,null,null,null,null,null,null,null,"E3b"]
[null,null,"T94N",null,"R6W","Linn",null,"102300010501 - Beaver Creek",null,null,null,null,null,null,null,null,null,null,null,null,null,null,null,null,null,null,null,null,null,null,null,null,null,null,null,null,null,null,null,null,null,null,null,null,null,null,null,null,null,null,null,null,"E4b"]
[null,null,"T95N",null,"R7E","Louisa",null,"071000020803 - Beaver Creek",null,null,null,null,null,null,null,null,null,null,null,null,null,null,null,null,null,null,null,null,null,null,null,null,null,null,null,null,null,null,null,null,null,null,null,null,null,null,null,null,null,null,null,null,"E5b"]
[null,null,"T96N",null,"R7W","Lucas",null,"070802020601 - Beaver Creek",null,null,null,null,null,null,null,null,null,null,null,null,null,null,null,null,null,null,null,null,null,null,null,null,null,null,null,null,null,null,null,null,null,null,null,null,null,null,null,null,null,null,null,null,"E6b"]
[null,null,"T97N",null,"R8W","Lyon",null,"071000070701 - Beaver Creek",null,null,null,null,null,null,null,null,null,null,null,null,null,null,null,null,null,null,null,null,null,null,null,null,null,null,null,null,null,null,null,null,null,null,null,null,null,null,null,null,null,null,null,null,"E3"]
[null,null,"T98N",null,"R9E","Madison",null,"070802020301 - Beaver Creek",null,null,null,null,null,null,null,null,null,null,null,null,null,null,null,null,null,null,null,null,null,null,null,null,null,null,null,null,null,null,null,null,null,null,null,null,null,null,null,null,null,null,null,null,"E4"]
[null,null,"T99N",null,"R9W","Mahaska",null,"070802020702 - Beaver Creek",null,null,null,null,null,null,null,null,null,null,null,null,null,null,null,null,null,null,null,null,null,null,null,null,null,null,null,null,null,null,null,null,null,null,null,null,null,null,null,null,null,null,null,null,"E5"]
[null,null,"T9N",null,null,"Marion",null,"070802010901 - Beaver Creek",null,null,null,null,null,null,null,null,null,null,null,null,null,null,null,null,null,null,null,null,null,null,null,null,null,null,null,null,null,null,null,null,null,null,null,null,null,null,null,null,null,null,null,null,"E6"]
[null,null,null,null,null,"Marshall",null,"070802030108 - Beaver Creek",null,null,null,null,null,null,null,null,null,null,null,null,null,null,null,null,null,null,null,null,null,null,null,null,null,null,null,null,null,null,null,null,null,null,null,null,null,null,null,null,null,null,null,null,"C1b"]
[null,null,null,null,null,"Mills",null,"071000040911 - Beaver Creek",null,null,null,null,null,null,null,null,null,null,null,null,null,null,null,null,null,null,null,null,null,null,null,null,null,null,null,null,null,null,null,null,null,null,null,null,null,null,null,null,null,null,null,null,"C2b"]
[null,null,null,null,null,"Mitchell",null,"070802070502 - Beaver Creek",null,null,null,null,null,null,null,null,null,null,null,null,null,null,null,null,null,null,null,null,null,null,null,null,null,null,null,null,null,null,null,null,null,null,null,null,null,null,null,null,null,null,null,null,"C3b"]
[null,null,null,null,null,"Monona",null,"070802020502 - Beaver Creek",null,null,null,null,null,null,null,null,null,null,null,null,null,null,null,null,null,null,null,null,null,null,null,null,null,null,null,null,null,null,null,null,null,null,null,null,null,null,null,null,null,null,null,null,"C4b"]
[null,null,null,null,null,"Monroe",null,"101702032502 - Beaver Creek-Big Sioux River",null,null,null,null,null,null,null,null,null,null,null,null,null,null,null,null,null,null,null,null,null,null,null,null,null,null,null,null,null,null,null,null,null,null,null,null,null,null,null,null,null,null,null,null,"C5b"]
[null,null,null,null,null,"Montgomery",null,"070802010802 - Beaver Creek-Little Cedar River",null,null,null,null,null,null,null,null,null,null,null,null,null,null,null,null,null,null,null,null,null,null,null,null,null,null,null,null,null,null,null,null,null,null,null,null,null,null,null,null,null,null,null,null,"C6b"]
[null,null,null,null,null,"Muscatine",null,"070600051201 - Beaver Creek-Mississippi River",null,null,null,null,null,null,null,null,null,null,null,null,null,null,null,null,null,null,null,null,null,null,null,null,null,null,null,null,null,null,null,null,null,null,null,null,null,null,null,null,null,null,null,null,"C1"]
[null,null,null,null,null,"O'Brien",null,"070600040708 - Beaver Creek-Turkey River",null,null,null,null,null,null,null,null,null,null,null,null,null,null,null,null,null,null,null,null,null,null,null,null,null,null,null,null,null,null,null,null,null,null,null,null,null,null,null,null,null,null,null,null,"C2"]
[null,null,null,null,null,"Osceola",null,"070802040204 - Beaverdam Creek",null,null,null,null,null,null,null,null,null,null,null,null,null,null,null,null,null,null,null,null,null,null,null,null,null,null,null,null,null,null,null,null,null,null,null,null,null,null,null,null,null,null,null,null,"C3"]
[null,null,null,null,null,"Page",null,"071000090307 - Bee Branch-Cedar Creek",null,null,null,null,null,null,null,null,null,null,null,null,null,null,null,null,null,null,null,null,null,null,null,null,null,null,null,null,null,null,null,null,null,null,null,null,null,null,null,null,null,null,null,null,"C4"]
[null,null,null,null,null,"Palo Alto",null,"102801020302 - Bee Creek",null,null,null,null,null,null,null,null,null,null,null,null,null,null,null,null,null,null,null,null,null,null,null,null,null,null,null,null,null,null,null,null,null,null,null,null,null,null,null,null,null,null,null,null,"C5"]
[null,null,null,null,null,"Plymouth",null,"070802020602 - Beemis Creek",null,null,null,null,null,null,null,null,null,null,null,null,null,null,null,null,null,null,null,null,null,null,null,null,null,null,null,null,null,null,null,null,null,null,null,null,null,null,null,null,null,null,null,null,"C6"]
[null,null,null,null,null,"Pocahontas",null,"070600060302 - Beers Creek",null,null,null,null,null,null,null,null,null,null,null,null,null,null,null,null,null,null,null,null,null,null,null,null,null,null,null,null,null,null,null,null,null,null,null,null,null,null,null,null,null,null,null,null,"C1c-"]
[null,null,null,null,null,"Polk",null,"070600040707 - Bell Creek-Turkey River",null,null,null,null,null,null,null,null,null,null,null,null,null,null,null,null,null,null,null,null,null,null,null,null,null,null,null,null,null,null,null,null,null,null,null,null,null,null,null,null,null,null,null,null,"C2c-"]
[null,null,null,null,null,"Pottawattamie",null,"070802060602 - Bennet Creek-Sugar Creek",null,null,null,null,null,null,null,null,null,null,null,null,null,null,null,null,null,null,null,null,null,null,null,null,null,null,null,null,null,null,null,null,null,null,null,null,null,null,null,null,null,null,null,null,"C3c-"]
[null,null,null,null,null,"Poweshiek",null,"070802060601 - Bennett Creek",null,null,null,null,null,null,null,null,null,null,null,null,null,null,null,null,null,null,null,null,null,null,null,null,null,null,null,null,null,null,null,null,null,null,null,null,null,null,null,null,null,null,null,null,"C4c-"]
[null,null,null,null,null,"Ringgold",null,"070802080407 - Bennett Creek-Iowa River",null,null,null,null,null,null,null,null,null,null,null,null,null,null,null,null,null,null,null,null,null,null,null,null,null,null,null,null,null,null,null,null,null,null,null,null,null,null,null,null,null,null,null,null,"C5c-"]
[null,null,null,null,null,"Sac",null,"070801041103 - Berton Bay-Mississippi River",null,null,null,null,null,null,null,null,null,null,null,null,null,null,null,null,null,null,null,null,null,null,null,null,null,null,null,null,null,null,null,null,null,null,null,null,null,null,null,null,null,null,null,null,"C6c-"]
[null,null,null,null,null,"Scott",null,"070802080806 - Big Bear Creek",null,null,null,null,null,null,null,null,null,null,null,null,null,null,null,null,null,null,null,null,null,null,null,null,null,null,null,null,null,null,null,null,null,null,null,null,null,null,null,null,null,null,null,null,"D3b"]
[null,null,null,null,null,"Shelby",null,"070801070704 - Big Branch-Cedar Creek",null,null,null,null,null,null,null,null,null,null,null,null,null,null,null,null,null,null,null,null,null,null,null,null,null,null,null,null,null,null,null,null,null,null,null,null,null,null,null,null,null,null,null,null,"D4b"]
[null,null,null,null,null,"Sioux",null,"102300031502 - Big Creek",null,null,null,null,null,null,null,null,null,null,null,null,null,null,null,null,null,null,null,null,null,null,null,null,null,null,null,null,null,null,null,null,null,null,null,null,null,null,null,null,null,null,null,null,"D5b"]
[null,null,null,null,null,"Story",null,"071000040803 - Big Creek",null,null,null,null,null,null,null,null,null,null,null,null,null,null,null,null,null,null,null,null,null,null,null,null,null,null,null,null,null,null,null,null,null,null,null,null,null,null,null,null,null,null,null,null,"D6b"]
[null,null,null,null,null,"Tama",null,"070802060203 - Big Creek",null,null,null,null,null,null,null,null,null,null,null,null,null,null,null,null,null,null,null,null,null,null,null,null,null,null,null,null,null,null,null,null,null,null,null,null,null,null,null,null,null,null,null,null,"D3"]
[null,null,null,null,null,"Taylor",null,"070801041203 - Big Hollow-Flint Creek",null,null,null,null,null,null,null,null,null,null,null,null,null,null,null,null,null,null,null,null,null,null,null,null,null,null,null,null,null,null,null,null,null,null,null,null,null,null,null,null,null,null,null,null,"D4"]
[null,null,null,null,null,"Union",null,"071000091002 - Big Indian Creek",null,null,null,null,null,null,null,null,null,null,null,null,null,null,null,null,null,null,null,null,null,null,null,null,null,null,null,null,null,null,null,null,null,null,null,null,null,null,null,null,null,null,null,null,"D5"]
[null,null,null,null,null,"Van Buren",null,"070802040605 - Big Marsh State Wildlife Area-West Fork Cedar River",null,null,null,null,null,null,null,null,null,null,null,null,null,null,null,null,null,null,null,null,null,null,null,null,null,null,null,null,null,null,null,null,null,null,null,null,null,null,null,null,null,null,null,null,"D6"]
[null,null,null,null,null,"Wapello",null,"102300030603 - Big Muddy Creek",null,null,null,null,null,null,null,null,null,null,null,null,null,null,null,null,null,null,null,null,null,null,null,null,null,null,null,null,null,null,null,null,null,null,null,null,null,null,null,null,null,null,null,null,"D4c-"]
[null,null,null,null,null,"Warren",null,"101702032507 - Big Sioux River",null,null,null,null,null,null,null,null,null,null,null,null,null,null,null,null,null,null,null,null,null,null,null,null,null,null,null,null,null,null,null,null,null,null,null,null,null,null,null,null,null,null,null,null,"D5c-"]
[null,null,null,null,null,"Washington",null,"070802060703 - Big Slough",null,null,null,null,null,null,null,null,null,null,null,null,null,null,null,null,null,null,null,null,null,null,null,null,null,null,null,null,null,null,null,null,null,null,null,null,null,null,null,null,null,null,null,null,"D6c-"]
[null,null,null,null,null,"Wayne",null,"070802090903 - Big Slough Creek",null,null,null,null,null,null,null,null,null,null,null,null,null,null,null,null,null,null,null,null,null,null,null,null,null,null,null,null,null,null,null,null,null,null,null,null,null,null,null,null,null,null,null,null,"DA4"]
[null,null,null,null,null,"Webster",null,"102300040403 - Big Whisky Creek",null,null,null,null,null,null,null,null,null,null,null,null,null,null,null,null,null,null,null,null,null,null,null,null,null,null,null,null,null,null,null,null,null,null,null,null,null,null,null,null,null,null,null,null,"DA5"]
[null,null,null,null,null,"Winnebago",null,"070600020201 - Bigalks Creek",null,null,null,null,null,null,null,null,null,null,null,null,null,null,null,null,null,null,null,null,null,null,null,null,null,null,null,null,null,null,null,null,null,null,null,null,null,null,null,null,null,null,null,null,"DA6"]
[null,null,null,null,null,"Winneshiek",null,"070802090602 - Birch Creek-English River"]
[null,null,null,null,null,"Woodbury",null,"071000091102 - Birch Creek-Sugar Creek"]
[null,null,null,null,null,"Worth",null,"102300031411 - Bitter Creek-Little Sioux River"]
[null,null,null,null,null,"Wright",null,"071000030504 - Black Cat Creek"]
[null,null,null,null,null,null,null,"070802050703 - Black Hawk Park-Cedar River"]
[null,null,null,null,null,null,null,"071000090302 - Bleubaugh Branch"]
[null,null,null,null,null,null,null,"101702031702 - Blood Run"]
[null,null,null,null,null,null,null,"070600011002 - Bloody Run"]
[null,null,null,null,null,null,null,"071000030901 - Bloody Run"]
[null,null,null,null,null,null,null,"070802011005 - Bloody Run-Cedar River"]
[null,null,null,null,null,null,null,"070802051502 - Blue Creek"]
[null,null,null,null,null,null,null,"070600040904 - Bluebell Creek-Turkey River"]
[null,null,null,null,null,null,null,"102400030203 - Bluegrass Creek"]
[null,null,null,null,null,null,null,"071000040703 - Bluff Creek"]
[null,null,null,null,null,null,null,"071000090503 - Bluff Creek"]
[null,null,null,null,null,null,null,"070600040304 - Bohemian Creek"]
[null,null,null,null,null,null,null,"070801010705 - Boston Bay-Mississippi River"]
[null,null,null,null,null,null,null,"071000080904 - Box Elder Creek-South River"]
[null,null,null,null,null,null,null,"070802040602 - Boylan Creek"]
[null,null,null,null,null,null,null,"071000040404 - Bradys Creek-Des Moines River"]
[null,null,null,null,null,null,null,"070801070902 - Brandywine Creek"]
[null,null,null,null,null,null,null,"071000050702 - Brewers Creek"]
[null,null,null,null,null,null,null,"070801060602 - Bridge Creek"]
[null,null,null,null,null,null,null,"070802070305 - Bringham Park-Iowa River"]
[null,null,null,null,null,null,null,"102801020701 - Britton Branch-Little River"]
[null,null,null,null,null,null,null,"071000080902 - Broadhorn Creek-South River"]
[null,null,null,null,null,null,null,"070600040309 - Brockamp Creek-Turkey River"]
[null,null,null,null,null,null,null,"101702032403 - Broken Kettle Creek"]
[null,null,null,null,null,null,null,"102300031108 - Brooke Creek"]
[null,null,null,null,null,null,null,"070801030502 - Brophy Creek"]
[null,null,null,null,null,null,null,"102400100105 - Brown Branch-East Nodaway River"]
[null,null,null,null,null,null,null,"071000020105 - Brown Creek"]
[null,null,null,null,null,null,null,"071000090704 - Brown Creek-Des Moines River"]
[null,null,null,null,null,null,null,"071000080607 - Bruce Branch-Middle River"]
[null,null,null,null,null,null,null,"070600060201 - Bruce Creek-Maquoketa River"]
[null,null,null,null,null,null,null,"102300030508 - Bruegmann Park-Ocheyedan River"]
[null,null,null,null,null,null,null,"070801020603 - Bruggeman County Park-Wapsipinicon River"]
[null,null,null,null,null,null,null,"070802080202 - Brush Creek"]
[null,null,null,null,null,null,null,"070801070803 - Brush Creek"]
[null,null,null,null,null,null,null,"070600040601 - Brush Creek"]
[null,null,null,null,null,null,null,"071000081303 - Brush Creek"]
[null,null,null,null,null,null,null,"070200090504 - Brush Creek"]
[null,null,null,null,null,null,null,"070600061004 - Brush Creek"]
[null,null,null,null,null,null,null,"071000090604 - Brush Creek"]
[null,null,null,null,null,null,null,"070801070904 - Brush Creek-Big Creek"]
[null,null,null,null,null,null,null,"102802010202 - Brush Creek-Chariton River"]
[null,null,null,null,null,null,null,"102801020704 - Brush Creek-Little River"]
[null,null,null,null,null,null,null,"102801020503 - Brush Creek-Thompson River"]
[null,null,null,null,null,null,null,"102801020804 - Brush Creek-Weldon River"]
[null,null,null,null,null,null,null,"071000040504 - Brushy Creek"]
[null,null,null,null,null,null,null,"102400120204 - Brushy Creek-Platte River"]
[null,null,null,null,null,null,null,"071000030304 - Buaer Landing Strip-East Fork Des Moines River"]
[null,null,null,null,null,null,null,"102400100201 - Buchanan Creek"]
[null,null,null,null,null,null,null,"070600030703 - Buck Creek"]
[null,null,null,null,null,null,null,"102300070302 - Buck Creek"]
[null,null,null,null,null,null,null,"070801060401 - Buck Creek"]
[null,null,null,null,null,null,null,"070801020504 - Buck Creek"]
[null,null,null,null,null,null,null,"071000050502 - Buck Creek"]
[null,null,null,null,null,null,null,"102400030501 - Buck Creek"]
[null,null,null,null,null,null,null,"070802090704 - Buck Creek"]
[null,null,null,null,null,null,null,"070600060401 - Buck Creek-Maquoketa River"]
[null,null,null,null,null,null,null,"070600010705 - Buck Creek-Mississippi River"]
[null,null,null,null,null,null,null,"070600060803 - Buck Creek-North Fork Maquoketa River"]
[null,null,null,null,null,null,null,"102400050607 - Buck Creek-Tarkio River"]
[null,null,null,null,null,null,null,"071000060309 - Buck Run"]
[null,null,null,null,null,null,null,"070801070603 - Buckeye Creek"]
[null,null,null,null,null,null,null,"070802080901 - Buckeye Creek"]
[null,null,null,null,null,null,null,"070801051201 - Buckley Creek"]
[null,null,null,null,null,null,null,"102801030204 - Buckworth Creek-Medicine Creek"]
[null,null,null,null,null,null,null,"102300070210 - Buffalo Creek"]
[null,null,null,null,null,null,null,"071000030404 - Buffalo Creek"]
[null,null,null,null,null,null,null,"070802040301 - Buffalo Creek"]
[null,null,null,null,null,null,null,"070802030105 - Buffalo Creek"]
[null,null,null,null,null,null,null,"102300050207 - Buffalo Creek-Maple River"]
[null,null,null,null,null,null,null,"070802090904 - Buffington Creek"]
[null,null,null,null,null,null,null,"071000070903 - Bulger Creek"]
[null,null,null,null,null,null,null,"101702032401 - Bull Run"]
[null,null,null,null,null,null,null,"070600060703 - Buncombe Creek"]
[null,null,null,null,null,null,null,"102300010607 - Burcham Ditch-Old Soldier River"]
[null,null,null,null,null,null,null,"070802080402 - Burnett Creek"]
[null,null,null,null,null,null,null,"071100010206 - Burnt Shirt Branch-Fox River"]
[null,null,null,null,null,null,null,"101702040801 - Burr Oak Creek"]
[null,null,null,null,null,null,null,"070802010801 - Burr Oak Creek"]
[null,null,null,null,null,null,null,"070801070403 - Burr Oak Creek"]
[null,null,null,null,null,null,null,"102300031301 - Burr Oak Creek-Little Sioux River"]
[null,null,null,null,null,null,null,"070801060105 - Burr Oak Creek-North Skunk River"]
[null,null,null,null,null,null,null,"070600040308 - Burr Oak Creek-Turkey River"]
[null,null,null,null,null,null,null,"071000080606 - Bush Branch"]
[null,null,null,null,null,null,null,"102300070306 - Buss Creek-Boyer River"]
[null,null,null,null,null,null,null,"071000080702 - Butcher Creek"]
[null,null,null,null,null,null,null,"071000061204 - Buttrick Creek"]
[null,null,null,null,null,null,null,"070801050804 - Byers Branch-Indian Creek"]
[null,null,null,null,null,null,null,"101702031705 - Cactus Hills-Big Sioux River"]
[null,null,null,null,null,null,null,"071000030502 - Calamus Creek"]
[null,null,null,null,null,null,null,"070801030404 - Calamus Creek"]
[null,null,null,null,null,null,null,"102801020805 - Caleb Creek"]
[null,null,null,null,null,null,null,"071000081506 - Calhoun Creek"]
[null,null,null,null,null,null,null,"070802030305 - Calmus Creek"]
[null,null,null,null,null,null,null,"070802090604 - Camp Creek"]
[null,null,null,null,null,null,null,"102400030404 - Camp Creek"]
[null,null,null,null,null,null,null,"071000060505 - Camp Creek"]
[null,null,null,null,null,null,null,"071000081504 - Camp Creek"]
[null,null,null,null,null,null,null,"070801020604 - Camp Creek-Wapsipinicon River"]
[null,null,null,null,null,null,null,"102400020805 - Camp Creek-West Nishnabotna River"]
[null,null,null,null,null,null,null,"070600020302 - Canoe Creek"]
[null,null,null,null,null,null,null,"070600040902 - Carlan Creek-Turkey River"]
[null,null,null,null,null,null,null,"071000090203 - Carruthers Creek"]
[null,null,null,null,null,null,null,"070801051104 - Carson Creek-South Skunk River"]
[null,null,null,null,null,null,null,"102300020503 - Carter Creek-Floyd River"]
[null,null,null,null,null,null,null,"071100020103 - Carter Creek-North Fork North Fabius River"]
[null,null,null,null,null,null,null,"070801041501 - Cartlage Lake"]
[null,null,null,null,null,null,null,"070600050102 - Catfish Creek"]
[null,null,null,null,null,null,null,"070801010204 - Cattail Slough-Mississippi River"]
[null,null,null,null,null,null,null,"070802011204 - Cedar Bend County Park-Cedar River"]
[null,null,null,null,null,null,null,"070801070710 - Cedar Creek"]
[null,null,null,null,null,null,null,"071000080401 - Cedar Creek"]
[null,null,null,null,null,null,null,"071000090310 - Cedar Creek"]
[null,null,null,null,null,null,null,"071000060904 - Cedar Creek"]
[null,null,null,null,null,null,null,"070801060503 - Cedar Creek"]
[null,null,null,null,null,null,null,"070801071004 - Cedar Creek"]
[null,null,null,null,null,null,null,"070600060804 - Cedar Creek-North Fork Maquoketa River"]
[null,null,null,null,null,null,null,"070801041201 - Cedar Fork Creek"]
[null,null,null,null,null,null,null,"070801041806 - Cedar Glen Creek-Mississippi River"]
[null,null,null,null,null,null,null,"070802060807 - Cedar River"]
[null,null,null,null,null,null,null,"102802010201 - Chariton Creek"]
[null,null,null,null,null,null,null,"070801030501 - Cherry Creek"]
[null,null,null,null,null,null,null,"070801051102 - Cherry Creek"]
[null,null,null,null,null,null,null,"070600040903 - Cherry Valley-Little Turkey River"]
[null,null,null,null,null,null,null,"070802030203 - Cheslea Creek-Willow Creek"]
[null,null,null,null,null,null,null,"070801050905 - Chichaqua Wildlife Habitat-South Skunk River"]
[null,null,null,null,null,null,null,"070802060804 - Chicken Creek-Cedar River"]
[null,null,null,null,null,null,null,"070600040303 - Chihaks Creek-Turkey River"]
[null,null,null,null,null,null,null,"071000090710 - Chippewa Creek-Des Moines River"]
[null,null,null,null,null,null,null,"070801070702 - Church Creek-Cedar Creek"]
[null,null,null,null,null,null,null,"102400100104 - Cipra Branch-East Nodaway River"]
[null,null,null,null,null,null,null,"070801050406 - City of Ames-South Skunk River"]
[null,null,null,null,null,null,null,"102300050105 - City of Aurelia-Maple River"]
[null,null,null,null,null,null,null,"102801010106 - City of Benton-Grand River"]
[null,null,null,null,null,null,null,"102400120110 - City of Blockton-Platte River"]
[null,null,null,null,null,null,null,"071000040909 - City of Bouton-Beaver Creek"]
[null,null,null,null,null,null,null,"071000070203 - City of Carroll-Middle Raccoon River"]
[null,null,null,null,null,null,null,"102400020503 - City of Carson-West Nishnabotna River"]
[null,null,null,null,null,null,null,"070600020404 - City of Decorah-Upper Iowa River"]
[null,null,null,null,null,null,null,"070801030302 - City of Donahue"]
[null,null,null,null,null,null,null,"071000020404 - City of Emmetsburg-Des Moines River"]
[null,null,null,null,null,null,null,"102400030704 - City of Essex-East Nishnabotna River"]
[null,null,null,null,null,null,null,"071000070404 - City of Guthrie Center-South Raccon River"]
[null,null,null,null,null,null,null,"102400020209 - City of Harlan-West Nishnabotna River"]
[null,null,null,null,null,null,null,"070600020106 - City of Le Roy-Upper Iowa River"]
[null,null,null,null,null,null,null,"070801030402 - City of Lost Nation"]
[null,null,null,null,null,null,null,"102801020204 - City of Macksburg-Thompson River"]
[null,null,null,null,null,null,null,"102400120108 - City of Maloy-Platte River"]
[null,null,null,null,null,null,null,"102400020203 - City of Manning-West Nishnabotna River"]
[null,null,null,null,null,null,null,"070802030306 - City of Mason City-Winnebago River"]
[null,null,null,null,null,null,null,"102400010310 - City of Minorsville-Missouri River"]
[null,null,null,null,null,null,null,"071000070603 - City of Panora-Middle Raccoon River"]
[null,null,null,null,null,null,null,"071000080610 - City of Patterson-Middle River"]
[null,null,null,null,null,null,null,"070600011003 - City of Prairie du Chien-Mississippi River"]
[null,null,null,null,null,null,null,"102300031105 - City of Sioux Rapids-Little Sioux River"]
[null,null,null,null,null,null,null,"102300030804 - City of Spencer-Little Sioux River"]
[null,null,null,null,null,null,null,"070802010703 - City of Stacyville-Little Cedar River"]
[null,null,null,null,null,null,null,"070801030403 - City of Toronto-Wapsipinicon River"]
[null,null,null,null,null,null,null,"102400020604 - City of Treynor-Middle Silver Creek"]
[null,null,null,null,null,null,null,"102400090503 - City of Villisca-Middle Nodaway River"]
[null,null,null,null,null,null,null,"071000040503 - City of Vincent-Brushy Creek"]
[null,null,null,null,null,null,null,"070802090202 - City of Williamsburg-Old Mans Creek"]
[null,null,null,null,null,null,null,"071000080505 - Clanton Creek"]
[null,null,null,null,null,null,null,"102400030602 - Clarks Branch-East Nishnabotna River"]
[null,null,null,null,null,null,null,"102400100203 - Clear Creek"]
[null,null,null,null,null,null,null,"070802060402 - Clear Creek"]
[null,null,null,null,null,null,null,"070802030201 - Clear Creek"]
[null,null,null,null,null,null,null,"070801070301 - Clear Creek"]
[null,null,null,null,null,null,null,"070600010702 - Clear Creek-Mississippi River"]
[null,null,null,null,null,null,null,"070600020605 - Clear Creek-Upper Iowa River"]
[null,null,null,null,null,null,null,"070600060801 - Cline Branch-North Fork Maquoketa River"]
[null,null,null,null,null,null,null,"070600060406 - Cline Creek-Maquoketa River"]
[null,null,null,null,null,null,null,"101702040501 - Cloverdale Creek"]
[null,null,null,null,null,null,null,"071000081103 - Coal Creek"]
[null,null,null,null,null,null,null,"070801060501 - Coal Creek"]
[null,null,null,null,null,null,null,"071000090304 - Coal Creek-Cedar Creek"]
[null,null,null,null,null,null,null,"071000090502 - Coal Creek-Des Moines River"]
[null,null,null,null,null,null,null,"070801010603 - Coal Creek-Mississippi River"]
[null,null,null,null,null,null,null,"071000070902 - Coal Creek-South Raccoon River"]
[null,null,null,null,null,null,null,"102801020604 - Coal Creek-Thompson River"]
[null,null,null,null,null,null,null,"102300010605 - Cobb Creek-Soldier River"]
[null,null,null,null,null,null,null,"102400030603 - Coe Creek-East Nishnabotna River"]
[null,null,null,null,null,null,null,"070600060603 - Coffee Creek-North Fork Maquoketa River"]
[null,null,null,null,null,null,null,"070600060207 - Coffins Creek"]
[null,null,null,null,null,null,null,"070600020204 - Cold Water Creek"]
[null,null,null,null,null,null,null,"070802020403 - Coldwater Creek"]
[null,null,null,null,null,null,null,"070802010902 - Colwell County Park-Little Cedar River"]
[null,null,null,null,null,null,null,"070802060407 - Community of Buchanan-Cedar River"]
[null,null,null,null,null,null,null,"070600020408 - Community of Freeport-Upper Iowa River"]
[null,null,null,null,null,null,null,"102801020502 - Community of Grand River-Thompson River"]
[null,null,null,null,null,null,null,"070600020402 - Community of Nordness"]
[null,null,null,null,null,null,null,"070801070502 - Competine Creek"]
[null,null,null,null,null,null,null,"071000090707 - Comstock Creek-Des Moines River"]
[null,null,null,null,null,null,null,"070802090203 - Convey Creek-Old Mans Creek"]
[null,null,null,null,null,null,null,"102300031501 - Coon Creek"]
[null,null,null,null,null,null,null,"071000081101 - Coon Creek"]
[null,null,null,null,null,null,null,"070802050805 - Coon Creek"]
[null,null,null,null,null,null,null,"070801070501 - Coon Creek"]
[null,null,null,null,null,null,null,"102300070301 - Coon Creek"]
[null,null,null,null,null,null,null,"070802080904 - Coon Creek-Iowa River"]
[null,null,null,null,null,null,null,"071100010701 - Coon Creek-North Wyaconda River"]
[null,null,null,null,null,null,null,"070801050904 - Coon Creek-South Skunk River"]
[null,null,null,null,null,null,null,"070600020407 - Coon Creek-Upper Iowa River"]
[null,null,null,null,null,null,null,"102802010403 - Cooper Creek"]
[null,null,null,null,null,null,null,"070600060903 - Copper Creek"]
[null,null,null,null,null,null,null,"071000091206 - Coppers Creek-Des Moines River"]
[null,null,null,null,null,null,null,"070802081009 - Coralville Lake-Iowa River"]
[null,null,null,null,null,null,null,"070801010402 - Cordova Slough-Mississippi River"]
[null,null,null,null,null,null,null,"070801041101 - Cottonwood Drain"]
[null,null,null,null,null,null,null,"070600040504 - Coulee Creek-Volga River"]
[null,null,null,null,null,null,null,"102300060601 - Council Bluffs-Missouri River"]
[null,null,null,null,null,null,null,"070200090404 - County Ditch No 31-Coon Creek"]
[null,null,null,null,null,null,null,"070802020106 - County Ditch No 55"]
[null,null,null,null,null,null,null,"102300010611 - County Line Ditch-Missouri River"]
[null,null,null,null,null,null,null,"070600040605 - Cox Creek"]
[null,null,null,null,null,null,null,"102400030205 - Crabapple Creek-East Nishnabotna River"]
[null,null,null,null,null,null,null,"070802030202 - Crane Creek"]
[null,null,null,null,null,null,null,"070802060806 - Crane Creek-Cedar River"]
[null,null,null,null,null,null,null,"071000020702 - Crooked Creek"]
[null,null,null,null,null,null,null,"070801050301 - Crooked Creek"]
[null,null,null,null,null,null,null,"102400030102 - Crooked Creek"]
[null,null,null,null,null,null,null,"102801010104 - Crooked Creek"]
[null,null,null,null,null,null,null,"071000040605 - Crooked Creek"]
[null,null,null,null,null,null,null,"070801070206 - Crooked Creek"]
[null,null,null,null,null,null,null,"070802060801 - Crooked Creek"]
[null,null,null,null,null,null,null,"070802090705 - Crooked Creek-Iowa River"]
[null,null,null,null,null,null,null,"070801050304 - Crooked Creek-Squaw Creek"]
[null,null,null,null,null,null,null,"071000030303 - Crooked Run-East Fork Des Moines River"]
[null,null,null,null,null,null,null,"070600050406 - Crooked Slough-Mississippi River"]
[null,null,null,null,null,null,null,"070801010405 - Crow Creek"]
[null,null,null,null,null,null,null,"070801070703 - Crow Creek"]
[null,null,null,null,null,null,null,"070801021003 - Crows Creek-Wapsipinicon River"]
[null,null,null,null,null,null,null,"070600060501 - Curran Creek-Whitewater Creek"]
[null,null,null,null,null,null,null,"070802020703 - Curry Creek"]
[null,null,null,null,null,null,null,"071000020503 - Cylinder Creek"]
[null,null,null,null,null,null,null,"070600020203 - Daisy Valley-Upper Iowa River"]
[null,null,null,null,null,null,null,"102400030204 - Davids Creek"]
[null,null,null,null,null,null,null,"070802090801 - Davis Creek"]
[null,null,null,null,null,null,null,"070802080405 - Davisons Creek-Iowa River"]
[null,null,null,null,null,null,null,"071000040606 - Deception Hollow Public Fishing Site-Des Moines River"]
[null,null,null,null,null,null,null,"070600060904 - Deep Creek"]
[null,null,null,null,null,null,null,"102300020102 - Deep Creek"]
[null,null,null,null,null,null,null,"070802090403 - Deep River"]
[null,null,null,null,null,null,null,"070802010403 - Deer Creek"]
[null,null,null,null,null,null,null,"071000040401 - Deer Creek"]
[null,null,null,null,null,null,null,"070802080302 - Deer Creek"]
[null,null,null,null,null,null,null,"102400020802 - Deer Creek"]
[null,null,null,null,null,null,null,"070802090603 - Deer Creek"]
[null,null,null,null,null,null,null,"070600060403 - Deer Creek"]
[null,null,null,null,null,null,null,"070600051203 - Deer Creek-Mississippi River"]
[null,null,null,null,null,null,null,"102300060504 - Deer Creek-Missouri River"]
[null,null,null,null,null,null,null,"071000070703 - Deer Creek-South Raccoon River"]
[null,null,null,null,null,null,null,"102300040105 - Deer Creek-West Fork Little Sioux River"]
[null,null,null,null,null,null,null,"071000091212 - Des Moines River"]
[null,null,null,null,null,null,null,"070801041605 - Devils Creek"]
[null,null,null,null,null,null,null,"102801010602 - Devils Horn-Grand River"]
[null,null,null,null,null,null,null,"070802090405 - Devils Run"]
[null,null,null,null,null,null,null,"070802050808 - Devils Run-Wolf Creek"]
[null,null,null,null,null,null,null,"102300030304 - Diamond Lake-Little Sioux River"]
[null,null,null,null,null,null,null,"070600040704 - Dibble Creek"]
[null,null,null,null,null,null,null,"102801020601 - Dickerson Branch-Thompson River"]
[null,null,null,null,null,null,null,"070802090206 - Dirty Face Creek"]
[null,null,null,null,null,null,null,"071000040502 - Ditch No 11"]
[null,null,null,null,null,null,null,"070802091102 - Ditch No 25-Iowa River"]
[null,null,null,null,null,null,null,"071000040501 - Ditch No 4"]
[null,null,null,null,null,null,null,"071000030106 - Ditch No 40"]
[null,null,null,null,null,null,null,"070200090201 - Ditch No 60"]
[null,null,null,null,null,null,null,"071000020102 - Ditch Number 23"]
[null,null,null,null,null,null,null,"102300030703 - Ditch Number 60"]
[null,null,null,null,null,null,null,"102300030701 - Ditch Number 61"]
[null,null,null,null,null,null,null,"071000061402 - Doe Brook-North Raccoon River"]
[null,null,null,null,null,null,null,"070600040608 - Doe Creek-Volga River"]
[null,null,null,null,null,null,null,"070801040602 - Dolbee-Hawkeye Channel"]
[null,null,null,null,null,null,null,"102801010406 - Douglas Cemetary-East Fork Grand River"]
[null,null,null,null,null,null,null,"070802070904 - Dowd Creek"]
[null,null,null,null,null,null,null,"071000060501 - Drainage Ditch 1"]
[null,null,null,null,null,null,null,"071000050205 - Drainage Ditch 1-Boone River"]
[null,null,null,null,null,null,null,"071000060604 - Drainage Ditch 10-Lake Creek"]
[null,null,null,null,null,null,null,"071000060308 - Drainage Ditch 101-North Raccoon River"]
[null,null,null,null,null,null,null,"070802010401 - Drainage Ditch 11"]
[null,null,null,null,null,null,null,"071000050103 - Drainage Ditch 116-Prairie Creek"]
[null,null,null,null,null,null,null,"071000050101 - Drainage Ditch 117"]
[null,null,null,null,null,null,null,"071000060603 - Drainage Ditch 13-Lake Creek"]
[null,null,null,null,null,null,null,"070801050903 - Drainage Ditch 13-South Skunk River"]
[null,null,null,null,null,null,null,"071000020403 - Drainage Ditch 132"]
[null,null,null,null,null,null,null,"070802050203 - Drainage Ditch 148-Beaver Creek"]
[null,null,null,null,null,null,null,"071000020401 - Drainage Ditch 151-Des Moines River"]
[null,null,null,null,null,null,null,"071000020804 - Drainage Ditch 17-Des Moines River"]
[null,null,null,null,null,null,null,"071000061405 - Drainage Ditch 171-North Raccoon River"]
[null,null,null,null,null,null,null,"071000050104 - Drainage Ditch 18-Prairie Creek"]
[null,null,null,null,null,null,null,"071000030805 - Drainage Ditch 182"]
[null,null,null,null,null,null,null,"102300030305 - Drainage Ditch 19-Little Sioux River"]
[null,null,null,null,null,null,null,"070801050302 - Drainage Ditch 192-Squaw Creek"]
[null,null,null,null,null,null,null,"070802020201 - Drainage Ditch 2"]
[null,null,null,null,null,null,null,"071000060208 - Drainage Ditch 20-Cedar Creek"]
[null,null,null,null,null,null,null,"070802020604 - Drainage Ditch 20-Shell Rock River"]
[null,null,null,null,null,null,null,"071000050703 - Drainage Ditch 206"]
[null,null,null,null,null,null,null,"071000020203 - Drainage Ditch 21"]
[null,null,null,null,null,null,null,"071000060201 - Drainage Ditch 21-Cedar Creek"]
[null,null,null,null,null,null,null,"071000060802 - Drainage Ditch 25-North Raccoon River"]
[null,null,null,null,null,null,null,"071000060203 - Drainage Ditch 29"]
[null,null,null,null,null,null,null,"071000050603 - Drainage Ditch 3"]
[null,null,null,null,null,null,null,"070802011002 - Drainage Ditch 3"]
[null,null,null,null,null,null,null,"071000050704 - Drainage Ditch 32-Boone River"]
[null,null,null,null,null,null,null,"071000020903 - Drainage Ditch 35-Des Moines River"]
[null,null,null,null,null,null,null,"071000030301 - Drainage Ditch 35-East Fork Des Moines River"]
[null,null,null,null,null,null,null,"070802040503 - Drainage Ditch 35-Maynes Creek"]
[null,null,null,null,null,null,null,"071000060206 - Drainage Ditch 37-Cedar Creek"]
[null,null,null,null,null,null,null,"071000050604 - Drainage Ditch 4-Boone River"]
[null,null,null,null,null,null,null,"071000020801 - Drainage Ditch 41-Des Moines River"]
[null,null,null,null,null,null,null,"071000050204 - Drainage Ditch 44-Boone River"]
[null,null,null,null,null,null,null,"071000050605 - Drainage Ditch 46-Boone River"]
[null,null,null,null,null,null,null,"102300030801 - Drainage Ditch 46-Little Sioux River"]
[null,null,null,null,null,null,null,"071000020802 - Drainage Ditch 48"]
[null,null,null,null,null,null,null,"071000020402 - Drainage Ditch 49-Des Moines River"]
[null,null,null,null,null,null,null,"070801050501 - Drainage Ditch 5"]
[null,null,null,null,null,null,null,"071000030802 - Drainage Ditch 51-East Fork Des Moines River"]
[null,null,null,null,null,null,null,"071000060402 - Drainage Ditch 57"]
[null,null,null,null,null,null,null,"070802040501 - Drainage Ditch 6"]
[null,null,null,null,null,null,null,"071000020301 - Drainage Ditch 62-Silver Creek"]
[null,null,null,null,null,null,null,"071000030601 - Drainage Ditch 63-East Fork Des Moines River"]
[null,null,null,null,null,null,null,"071000060101 - Drainage Ditch 67"]
[null,null,null,null,null,null,null,"071000050606 - Drainage Ditch 68-Boone River"]
[null,null,null,null,null,null,null,"071000020201 - Drainage Ditch 7"]
[null,null,null,null,null,null,null,"071000020901 - Drainage Ditch 7-Des Moines River"]
[null,null,null,null,null,null,null,"070801050102 - Drainage Ditch 71"]
[null,null,null,null,null,null,null,"071000060801 - Drainage Ditch 73-North Raccoon River"]
[null,null,null,null,null,null,null,"071000060204 - Drainage Ditch 74-Cedar Creek"]
[null,null,null,null,null,null,null,"071000030703 - Drainage Ditch 79-Lotts Creek"]
[null,null,null,null,null,null,null,"071000020501 - Drainage Ditch 80"]
[null,null,null,null,null,null,null,"071000060207 - Drainage Ditch 81"]
[null,null,null,null,null,null,null,"070801050602 - Drainage Ditch 81-East Indian Creek"]
[null,null,null,null,null,null,null,"071000050602 - Drainage Ditch 9"]
[null,null,null,null,null,null,null,"071000030806 - Drainage Ditch 94-East Fork Des Moines River"]
[null,null,null,null,null,null,null,"070802070102 - Drainage Ditch No 1"]
[null,null,null,null,null,null,null,"070802070309 - Drainage Ditch No 2-Iowa River"]
[null,null,null,null,null,null,null,"070200090401 - Drainage Ditch No 21"]
[null,null,null,null,null,null,null,"070802070306 - Drainage Ditch No 32"]
[null,null,null,null,null,null,null,"070200090301 - Drainage Ditch No 7"]
[null,null,null,null,null,null,null,"070802070308 - Drainage Ditch No 7-Iowa River"]
[null,null,null,null,null,null,null,"070200090101 - Drainage Ditch No 80"]
[null,null,null,null,null,null,null,"070802070201 - Drainage Ditch No 81"]
[null,null,null,null,null,null,null,"071000070102 - Drainage Ditch No 9-13"]
[null,null,null,null,null,null,null,"070802070204 - Drainage Ditch No 9-East Branch Iowa River"]
[null,null,null,null,null,null,null,"070200090103 - Drainage Ditch No 90"]
[null,null,null,null,null,null,null,"070600040701 - Dry Branch"]
[null,null,null,null,null,null,null,"102300040202 - Dry Branch"]
[null,null,null,null,null,null,null,"070802080403 - Dry Branch-Iowa River"]
[null,null,null,null,null,null,null,"070801041502 - Dry Branch-Mississippi River"]
[null,null,null,null,null,null,null,"070802060101 - Dry Creek"]
[null,null,null,null,null,null,null,"101702032101 - Dry Creek"]
[null,null,null,null,null,null,null,"070802051505 - Dry Creek"]
[null,null,null,null,null,null,null,"070802020701 - Dry Creek"]
[null,null,null,null,null,null,null,"070801020806 - Dry Creek-Wapsipinicon River"]
[null,null,null,null,null,null,null,"071000020502 - Dry Ditch"]
[null,null,null,null,null,null,null,"070600040404 - Dry Mill Creek"]
[null,null,null,null,null,null,null,"102300030504 - Dry Run"]
[null,null,null,null,null,null,null,"070802011201 - Dry Run"]
[null,null,null,null,null,null,null,"070600020401 - Dry Run"]
[null,null,null,null,null,null,null,"070802050701 - Dry Run"]
[null,null,null,null,null,null,null,"070600040105 - Dry Run-Crane Creek"]
[null,null,null,null,null,null,null,"101702040803 - Dry Run Creek"]
[null,null,null,null,null,null,null,"101702032202 - Dubois Creek-Indian Creek"]
[null,null,null,null,null,null,null,"070802051105 - Dudgeon Lake State Wildlife Management Area-Cedar River"]
[null,null,null,null,null,null,null,"102300030106 - Dugout Creek-West Fork Little Sioux River"]
[null,null,null,null,null,null,null,"071000091210 - Dumas Creek-Des Moines River"]
[null,null,null,null,null,null,null,"102400090603 - Dunns Creek-West Nodaway River"]
[null,null,null,null,null,null,null,"070600060604 - Durion Creek-North Fork Maquoketa River"]
[null,null,null,null,null,null,null,"070801070302 - Dutch Creek"]
[null,null,null,null,null,null,null,"102300050307 - Dutch Creek-Simmons Creek"]
[null,null,null,null,null,null,null,"070801030201 - Dutch Creek-Wapsipinicon River"]
[null,null,null,null,null,null,null,"102300050309 - Dutch Hollow-Maple River"]
[null,null,null,null,null,null,null,"070801050603 - Dye Creek"]
[null,null,null,null,null,null,null,"071000050403 - Eagle Creek"]
[null,null,null,null,null,null,null,"070802070103 - Eagle Lake State Game Management Area-West Branch Iowa River"]
[null,null,null,null,null,null,null,"071000040904 - East Beaver Creek"]
[null,null,null,null,null,null,null,"070802040203 - East Branch Beaverdam Creek"]
[null,null,null,null,null,null,null,"070802051501 - East Branch Blue Creek"]
[null,null,null,null,null,null,null,"071000050203 - East Branch Boone River"]
[null,null,null,null,null,null,null,"070801020902 - East Branch Buffalo Creek"]
[null,null,null,null,null,null,null,"070802070205 - East Branch Iowa River"]
[null,null,null,null,null,null,null,"102400120103 - East Branch Middle Platte River"]
[null,null,null,null,null,null,null,"071000070802 - East Branch Panther Creek"]
[null,null,null,null,null,null,null,"070802080505 - East Branch Salt Creek"]
[null,null,null,null,null,null,null,"070802060704 - East Branch Wapsinonoc Creek-Wapsinonoc Creek"]
[null,null,null,null,null,null,null,"071000061102 - East Buttrick Creek"]
[null,null,null,null,null,null,null,"071000060903 - East Cedar Creek"]
[null,null,null,null,null,null,null,"070801070204 - East Fork Crooked Creek"]
[null,null,null,null,null,null,null,"071000030903 - East Fork Des Moines River"]
[null,null,null,null,null,null,null,"102400100103 - East Fork East Nodaway River"]
[null,null,null,null,null,null,null,"071000061003 - East Fork Hardin Creek"]
[null,null,null,null,null,null,null,"102801030701 - East Fork Locust Creek"]
[null,null,null,null,null,null,null,"102300040301 - East Fork Wolf Creek"]
[null,null,null,null,null,null,null,"070801050604 - East Indian Creek"]
[null,null,null,null,null,null,null,"070802060102 - East Indian Creek-Indian Creek"]
[null,null,null,null,null,null,null,"102400100110 - East Nodaway River"]
[null,null,null,null,null,null,null,"102300030203 - East Okoboji Lake"]
[null,null,null,null,null,null,null,"102300070208 - East Otter Creek"]
[null,null,null,null,null,null,null,"070802051302 - East Otter Creek-Otter Creek"]
[null,null,null,null,null,null,null,"102400120104 - East Platte River"]
[null,null,null,null,null,null,null,"102300010506 - East Soldier River"]
[null,null,null,null,null,null,null,"071000020204 - East Swan Lake State Game Management Area-Jack Creek"]
[null,null,null,null,null,null,null,"102400050605 - East Tarkio Creek"]
[null,null,null,null,null,null,null,"102400010106 - Eaton Ditch-Keg Creek-Missouri River"]
[null,null,null,null,null,null,null,"102801020402 - Elk Creek"]
[null,null,null,null,null,null,null,"070801020101 - Elk Creek"]
[null,null,null,null,null,null,null,"070801051002 - Elk Creek"]
[null,null,null,null,null,null,null,"102300031101 - Elk Creek"]
[null,null,null,null,null,null,null,"102300050205 - Elk Creek"]
[null,null,null,null,null,null,null,"102400020202 - Elk Creek"]
[null,null,null,null,null,null,null,"070802020202 - Elk Creek"]
[null,null,null,null,null,null,null,"070600040802 - Elk Creek"]
[null,null,null,null,null,null,null,"102300010602 - Elk Creek"]
[null,null,null,null,null,null,null,"070600051102 - Elk River"]
[null,null,null,null,null,null,null,"070802070310 - Elk Run"]
[null,null,null,null,null,null,null,"070802050901 - Elk Run"]
[null,null,null,null,null,null,null,"071000060804 - Elk Run-North Raccoon River"]
[null,null,null,null,null,null,null,"102400030402 - Elkhorn Creek"]
[null,null,null,null,null,null,null,"071000040704 - Elkhorn Creek-Des Moines River"]
[null,null,null,null,null,null,null,"102300040401 - Elliott Creek"]
[null,null,null,null,null,null,null,"102400090402 - Elm Creek-West Nodaway River"]
[null,null,null,null,null,null,null,"070802070302 - Elm Lake State Game Management Area-Iowa River"]
[null,null,null,null,null,null,null,"070600061002 - Elwood Creek"]
[null,null,null,null,null,null,null,"101702040605 - Emery Creek"]
[null,null,null,null,null,null,null,"102300020303 - Engels Creek-Floyd River"]
[null,null,null,null,null,null,null,"071000090102 - English Creek"]
[null,null,null,null,null,null,null,"070801060205 - English Creek"]
[null,null,null,null,null,null,null,"070802090606 - English River"]
[null,null,null,null,null,null,null,"102400010305 - Ervine Creek-Missouri River"]
[null,null,null,null,null,null,null,"070801020601 - Etter Creek-Wapsipinicon River"]
[null,null,null,null,null,null,null,"102300030802 - Evergreen Cemetery-Little Sioux River"]
[null,null,null,null,null,null,null,"070600020208 - Falcon Springs State Wildlife Area-Upper Iowa River"]
[null,null,null,null,null,null,null,"071000061501 - Fannys Branch-North Raccoon River"]
[null,null,null,null,null,null,null,"070600060407 - Farm Creek"]
[null,null,null,null,null,null,null,"102400020303 - Farm Creek"]
[null,null,null,null,null,null,null,"070600060802 - Farmers Creek"]
[null,null,null,null,null,null,null,"102300040406 - Farmers Ditch"]
[null,null,null,null,null,null,null,"070802040604 - Feddeke Creek"]
[null,null,null,null,null,null,null,"071000080701 - Felters Branch-Middle River"]
[null,null,null,null,null,null,null,"070600060203 - Fenchel Creek-Maquoketa River"]
[null,null,null,null,null,null,null,"102300031505 - Fern Creek-Little Sioux River"]
[null,null,null,null,null,null,null,"102300040101 - Fiddle Creek"]
[null,null,null,null,null,null,null,"070801071001 - Fish Creek"]
[null,null,null,null,null,null,null,"102300070502 - Fish Lake-Allen Creek"]
[null,null,null,null,null,null,null,"070801041505 - Fish Lake-Mississippi River"]
[null,null,null,null,null,null,null,"102400030705 - Fisher Creek"]
[null,null,null,null,null,null,null,"070600040705 - Fitzgerald Creek-Turkey River"]
[null,null,null,null,null,null,null,"102801010302 - Fletchall Creek-Middle Fork Grand River"]
[null,null,null,null,null,null,null,"070801041204 - Flint Creek"]
[null,null,null,null,null,null,null,"070802020504 - Flood Creek"]
[null,null,null,null,null,null,null,"102300020504 - Floyd River"]
[null,null,null,null,null,null,null,"102300060603 - Folsom Lake-Missouri River"]
[null,null,null,null,null,null,null,"102801020207 - Fourmile Creek"]
[null,null,null,null,null,null,null,"070802050804 - Fourmile Creek"]
[null,null,null,null,null,null,null,"071000030803 - Fourmile Creek"]
[null,null,null,null,null,null,null,"102400030706 - Fourmile Creek-East Nishnabotna River"]
[null,null,null,null,null,null,null,"102300031406 - Fourmile Creek-Little Sioux River"]
[null,null,null,null,null,null,null,"070801010605 - Fourth Slough-Mississippi River"]
[null,null,null,null,null,null,null,"071000080601 - Fox Creek-Middle River"]
[null,null,null,null,null,null,null,"071100010306 - Fox River"]
[null,null,null,null,null,null,null,"102300031106 - Fox Run"]
[null,null,null,null,null,null,null,"070600020604 - French Creek"]
[null,null,null,null,null,null,null,"070600040709 - French Hollow-Turkey River"]
[null,null,null,null,null,null,null,"070600050202 - Frentress Lake-Mississippi River"]
[null,null,null,null,null,null,null,"071000061503 - Frog Creek-North Raccoon River"]
[null,null,null,null,null,null,null,"070600040505 - Frog Hollow"]
[null,null,null,null,null,null,null,"071000070402 - Frost Creek-South Raccoon River"]
[null,null,null,null,null,null,null,"070802070202 - Galls Creek"]
[null,null,null,null,null,null,null,"102300040402 - Garretson Ditch"]
[null,null,null,null,null,null,null,"102300031211 - Gere Creek-Mill Creek"]
[null,null,null,null,null,null,null,"070801060603 - German Creek"]
[null,null,null,null,null,null,null,"102300031203 - Ginger Creek-Dry Run"]
[null,null,null,null,null,null,null,"070802011004 - Gizzard Creek"]
[null,null,null,null,null,null,null,"070802090803 - Goose Creek"]
[null,null,null,null,null,null,null,"070802020107 - Goose Creek-Shell Rock River"]
[null,null,null,null,null,null,null,"102801010402 - Gooseberry Creek-East Fork Grand River"]
[null,null,null,null,null,null,null,"070802050204 - Gran Creek-Beaver Creek"]
[null,null,null,null,null,null,null,"102801010101 - Grand Creek-Grand River"]
[null,null,null,null,null,null,null,"070600040506 - Grannis Creek-Volga River"]
[null,null,null,null,null,null,null,"102300020201 - Granville Creek-Willow Creek"]
[null,null,null,null,null,null,null,"102300031210 - Gray Creek"]
[null,null,null,null,null,null,null,"102400020302 - Graybill Creek"]
[null,null,null,null,null,null,null,"071000090504 - Grays Creek"]
[null,null,null,null,null,null,null,"101702032102 - Green Creek-Big Sioux River"]
[null,null,null,null,null,null,null,"071000061302 - Greenbrier Creek"]
[null,null,null,null,null,null,null,"071100010601 - Greys Island-Mississippi River"]
[null,null,null,null,null,null,null,"070802090301 - Gritter Creek"]
[null,null,null,null,null,null,null,"071000040604 - Gypsum Creek-Des Moines River"]
[null,null,null,null,null,null,null,"102801010401 - Hackberry Creek-East Fork Grand River"]
[null,null,null,null,null,null,null,"070600061005 - Hainer Creek-Maquoketa River"]
[null,null,null,null,null,null,null,"102300050202 - Halfway Creek"]
[null,null,null,null,null,null,null,"102802010203 - Hamilton Creek-Chariton River"]
[null,null,null,null,null,null,null,"070802050304 - Hammers Creek-Beaver Creek"]
[null,null,null,null,null,null,null,"071000061002 - Happy Run-Hardin Creek"]
[null,null,null,null,null,null,null,"071000061005 - Hardin Creek"]
[null,null,null,null,null,null,null,"070802070801 - Hardin Story Drainage Ditch No 1"]
[null,null,null,null,null,null,null,"102300070604 - Harris Grove Creek-Boyer River"]
[null,null,null,null,null,null,null,"070802040306 - Hartgrave Creek"]
[null,null,null,null,null,null,null,"071000081404 - Hawk Run-White Breast Creek"]
[null,null,null,null,null,null,null,"070802081006 - Hawkeye State Wildlife Area Coralville Lake-Iowa River"]
[null,null,null,null,null,null,null,"102400100109 - Hawleyville Cemetary-East Nodaway River"]
[null,null,null,null,null,null,null,"071000080504 - Hay Branch-Clanton Creek"]
[null,null,null,null,null,null,null,"070600020105 - Hayden Prairie State Wildlife Area-Beaver Creek"]
[null,null,null,null,null,null,null,"070801020702 - Hazleton Creek-Otter Creek"]
[null,null,null,null,null,null,null,"070801050201 - Headwaters-South Skunk River"]
[null,null,null,null,null,null,null,"070802040101 - Headwaters Bailey Creek"]
[null,null,null,null,null,null,null,"070802030107 - Headwaters Beaver Creek"]
[null,null,null,null,null,null,null,"070802050201 - Headwaters Beaver Creek"]
[null,null,null,null,null,null,null,"071000040905 - Headwaters Beaver Creek"]
[null,null,null,null,null,null,null,"070802070501 - Headwaters Beaver Creek"]
[null,null,null,null,null,null,null,"070802040202 - Headwaters Beaverdam Creek"]
[null,null,null,null,null,null,null,"070802080801 - Headwaters Big Bear Creek"]
[null,null,null,null,null,null,null,"070802060201 - Headwaters Big Creek"]
[null,null,null,null,null,null,null,"070801070901 - Headwaters Big Creek"]
[null,null,null,null,null,null,null,"071000040801 - Headwaters Big Creek"]
[null,null,null,null,null,null,null,"102300030601 - Headwaters Big Muddy Creek"]
[null,null,null,null,null,null,null,"071000030501 - Headwaters Black Cat Creek"]
[null,null,null,null,null,null,null,"070802050502 - Headwaters Black Hawk Creek"]
[null,null,null,null,null,null,null,"071000050201 - Headwaters Boone River"]
[null,null,null,null,null,null,null,"102300070201 - Headwaters Boyer River"]
[null,null,null,null,null,null,null,"101702032402 - Headwaters Broken Creek"]
[null,null,null,null,null,null,null,"071000030402 - Headwaters Buffalo Creek"]
[null,null,null,null,null,null,null,"071000060504 - Headwaters Camp Creek"]
[null,null,null,null,null,null,null,"071000060202 - Headwaters Cedar Creek"]
[null,null,null,null,null,null,null,"070801070601 - Headwaters Cedar Creek"]
[null,null,null,null,null,null,null,"070801050701 - Headwaters Clear Creek"]
[null,null,null,null,null,null,null,"071000081102 - Headwaters Coal Creek"]
[null,null,null,null,null,null,null,"070802020401 - Headwaters Coldwater Creek"]
[null,null,null,null,null,null,null,"070600040101 - Headwaters Crane Creek"]
[null,null,null,null,null,null,null,"102300020101 - Headwaters Deep Creek"]
[null,null,null,null,null,null,null,"070600060901 - Headwaters Deep Creek"]
[null,null,null,null,null,null,null,"070802080301 - Headwaters Deer Creek"]
[null,null,null,null,null,null,null,"070802010402 - Headwaters Deer Creek"]
[null,null,null,null,null,null,null,"070801050101 - Headwaters Drainage Ditch 71"]
[null,null,null,null,null,null,null,"071000050402 - Headwaters Eagle Creek"]
[null,null,null,null,null,null,null,"070802070203 - Headwaters East Branch Iowa River"]
[null,null,null,null,null,null,null,"102400020101 - Headwaters East Branch West Nishnabotna River"]
[null,null,null,null,null,null,null,"071000061101 - Headwaters East Buttrick Creek"]
[null,null,null,null,null,null,null,"102801010903 - Headwaters East Fork Big Creek"]
[null,null,null,null,null,null,null,"070801070201 - Headwaters East Fork Crooked Creek"]
[null,null,null,null,null,null,null,"070801050601 - Headwaters East Indian Creek"]
[null,null,null,null,null,null,null,"102400030201 - Headwaters East Nishnabotna River"]
[null,null,null,null,null,null,null,"102400100102 - Headwaters East Nodaway River"]
[null,null,null,null,null,null,null,"102300010504 - Headwaters East Soldier River"]
[null,null,null,null,null,null,null,"070600040801 - Headwaters Elk Creek"]
[null,null,null,null,null,null,null,"070801051001 - Headwaters Elk Creek"]
[null,null,null,null,null,null,null,"070600051101 - Headwaters Elk River"]
[null,null,null,null,null,null,null,"071000090101 - Headwaters English Creek"]
[null,null,null,null,null,null,null,"102300040404 - Headwaters Farmers Ditch"]
[null,null,null,null,null,null,null,"070801041202 - Headwaters Flint Creek"]
[null,null,null,null,null,null,null,"070802020501 - Headwaters Flood Creek"]
[null,null,null,null,null,null,null,"071000061301 - Headwaters Greenbrier Creek"]
[null,null,null,null,null,null,null,"071000061001 - Headwaters Hardin Creek"]
[null,null,null,null,null,null,null,"070802070701 - Headwaters Honey Creek"]
[null,null,null,null,null,null,null,"101702032201 - Headwaters Indian Creek"]
[null,null,null,null,null,null,null,"071000020202 - Headwaters Jack Creek"]
[null,null,null,null,null,null,null,"102400010101 - Headwaters Keg Creek"]
[null,null,null,null,null,null,null,"070801050404 - Headwaters Keigley Branch"]
[null,null,null,null,null,null,null,"070802080101 - Headwaters Linn Creek"]
[null,null,null,null,null,null,null,"071000030401 - Headwaters Little Buffalo Creek"]
[null,null,null,null,null,null,null,"071000060102 - Headwaters Little Cedar Creek"]
[null,null,null,null,null,null,null,"070600040201 - Headwaters Little Turkey River"]
[null,null,null,null,null,null,null,"102801030702 - Headwaters Locust Creek"]
[null,null,null,null,null,null,null,"071000030701 - Headwaters Lotts Creek"]
[null,null,null,null,null,null,null,"070600060702 - Headwaters Lytle Creek"]
[null,null,null,null,null,null,null,"102300050102 - Headwaters Maple River"]
[null,null,null,null,null,null,null,"070802040502 - Headwaters Maynes Creek"]
[null,null,null,null,null,null,null,"102801030202 - Headwaters Medicine Creek"]
[null,null,null,null,null,null,null,"071000090702 - Headwaters Middle Avery Creek"]
[null,null,null,null,null,null,null,"070200090302 - Headwaters Middle Branch Blue Earth River"]
[null,null,null,null,null,null,null,"070801060301 - Headwaters Middle Creek"]
[null,null,null,null,null,null,null,"102801010301 - Headwaters Middle Fork Grand River"]
[null,null,null,null,null,null,null,"102400130103 - Headwaters Middle Fork One Hundred and Two River"]
[null,null,null,null,null,null,null,"071000070201 - Headwaters Middle Raccoon River"]
[null,null,null,null,null,null,null,"102400100205 - Headwaters Mill Creek"]
[null,null,null,null,null,null,null,"070802050904 - Headwaters Miller Creek"]
[null,null,null,null,null,null,null,"070802070804 - Headwaters Minerva Creek"]
[null,null,null,null,null,null,null,"071000090401 - Headwaters Muchakinock Creek"]
[null,null,null,null,null,null,null,"071000030201 - Headwaters Mud Creek"]
[null,null,null,null,null,null,null,"102300040203 - Headwaters Mud Creek"]
[null,null,null,null,null,null,null,"071000040101 - Headwaters North Branch Lizard Creek"]
[null,null,null,null,null,null,null,"071000090201 - Headwaters North Cedar Creek"]
[null,null,null,null,null,null,null,"070802090401 - Headwaters North English River"]
[null,null,null,null,null,null,null,"071100020102 - Headwaters North Fabius River"]
[null,null,null,null,null,null,null,"070802050402 - Headwaters North Fork Black Hawk Creek"]
[null,null,null,null,null,null,null,"071000060301 - Headwaters North Raccoon River"]
[null,null,null,null,null,null,null,"071000080302 - Headwaters North River"]
[null,null,null,null,null,null,null,"070801060102 - Headwaters North Skunk River"]
[null,null,null,null,null,null,null,"070802080204 - Headwaters North Timber Creek"]
[null,null,null,null,null,null,null,"070802090201 - Headwaters Old Mans Creek"]
[null,null,null,null,null,null,null,"070801020701 - Headwaters Otter Creek"]
[null,null,null,null,null,null,null,"071000050302 - Headwaters Otter Creek"]
[null,null,null,null,null,null,null,"070802040302 - Headwaters Otter Creek"]
[null,null,null,null,null,null,null,"070600010801 - Headwaters Paint Creek"]
[null,null,null,null,null,null,null,"071000020701 - Headwaters Pilot Creek"]
[null,null,null,null,null,null,null,"070600060102 - Headwaters Plum Creek"]
[null,null,null,null,null,null,null,"071000020601 - Headwaters Prairie Creek"]
[null,null,null,null,null,null,null,"071000050102 - Headwaters Prairie Creek"]
[null,null,null,null,null,null,null,"070802051401 - Headwaters Prairie Creek "]
[null,null,null,null,null,null,null,"071000060701 - Headwaters Purgatory Creek"]
[null,null,null,null,null,null,null,"070802011101 - Headwaters Quarter Section Run"]
[null,null,null,null,null,null,null,"070600040402 - Headwaters Roberts Creek"]
[null,null,null,null,null,null,null,"070802010603 - Headwaters Rock Creek"]
[null,null,null,null,null,null,null,"070802080502 - Headwaters Salt Creek"]
[null,null,null,null,null,null,null,"102400020601 - Headwaters Silver Creek"]
[null,null,null,null,null,null,null,"102300010502 - Headwaters Soldier River"]
[null,null,null,null,null,null,null,"070802050102 - Headwaters South Beaver Creek"]
[null,null,null,null,null,null,null,"070802070601 - Headwaters South Fork Iowa River"]
[null,null,null,null,null,null,null,"071000080901 - Headwaters South River"]
[null,null,null,null,null,null,null,"071100010801 - Headwaters South Wyaconda River"]
[null,null,null,null,null,null,null,"102300030401 - Headwaters Stony Creek"]
[null,null,null,null,null,null,null,"102400050602 - Headwaters Tarkio River"]
[null,null,null,null,null,null,null,"070802070401 - Headwaters Tipton Creek"]
[null,null,null,null,null,null,null,"102801020101 - Headwaters Twelvemile Creek"]
[null,null,null,null,null,null,null,"070600010601 - Headwaters Village Creek"]
[null,null,null,null,null,null,null,"070600040502 - Headwaters Volga River"]
[null,null,null,null,null,null,null,"102400020701 - Headwaters Walnut Creek"]
[null,null,null,null,null,null,null,"070802080602 - Headwaters Walnut Creek"]
[null,null,null,null,null,null,null,"070801020201 - Headwaters Wapsipinicon River"]
[null,null,null,null,null,null,null,"102300031002 - Headwaters Waterman Creek"]
[null,null,null,null,null,null,null,"102300020402 - Headwaters West Branch Floyd River"]
[null,null,null,null,null,null,null,"070802070101 - Headwaters West Branch Iowa River"]
[null,null,null,null,null,null,null,"102400130202 - Headwaters West Branch One Hundred Two River"]
[null,null,null,null,null,null,null,"071000061202 - Headwaters West Buttrick Creek"]
[null,null,null,null,null,null,null,"071000060502 - Headwaters West Fork Camp Creek"]
[null,null,null,null,null,null,null,"102300040102 - Headwaters West Fork Little Sioux River"]
[null,null,null,null,null,null,null,"102400130204 - Headwaters West Fork One Hundred Two River"]
[null,null,null,null,null,null,null,"102400020201 - Headwaters West Nishnabotna River"]
[null,null,null,null,null,null,null,"102400090401 - Headwaters West Nodaway River"]
[null,null,null,null,null,null,null,"102400050501 - Headwaters West Tarkio Creek"]
[null,null,null,null,null,null,null,"071000081302 - Headwaters White Breast Creek"]
[null,null,null,null,null,null,null,"071000050501 - Headwaters White Fox Creek"]
[null,null,null,null,null,null,null,"102300030901 - Headwaters Willow Creek"]
[null,null,null,null,null,null,null,"070802050801 - Headwaters Wolf Creek"]
[null,null,null,null,null,null,null,"102300040302 - Headwaters Wolf Creek"]
[null,null,null,null,null,null,null,"102802010204 - Headwaters Wolf Creek"]
[null,null,null,null,null,null,null,"070600010901 - Headwaters Yellow River"]
[null,null,null,null,null,null,null,"070801021002 - Heatons Creek-Wapsipinicon River"]
[null,null,null,null,null,null,null,"070802020704 - Heery Woods State Park-Shell Rock River"]
[null,null,null,null,null,null,null,"102300050308 - Heisler Creek-Maple River"]
[null,null,null,null,null,null,null,"070801020906 - Helmer Creek-Buffalo Creek"]
[null,null,null,null,null,null,null,"102300060405 - Henchal Creek-Mosquito Creek"]
[null,null,null,null,null,null,null,"102300031109 - Henry Creek-Little Sioux River"]
[null,null,null,null,null,null,null,"070600040603 - Hewett Creek"]
[null,null,null,null,null,null,null,"070600060601 - Hewitt Creek"]
[null,null,null,null,null,null,null,"070600010904 - Hickory Creek"]
[null,null,null,null,null,null,null,"071000090202 - Hickory Creek"]
[null,null,null,null,null,null,null,"070801030301 - Hickory Creek"]
[null,null,null,null,null,null,null,"102802010405 - Hickory Creek-Chariton River"]
[null,null,null,null,null,null,null,"071100010204 - Hickory Creek-Fox River"]
[null,null,null,null,null,null,null,"071000061505 - Hickory Creek-North Raccoon River"]
[null,null,null,null,null,null,null,"102802010301 - Hickory Creek-Shoal Creek"]
[null,null,null,null,null,null,null,"102400040101 - High Creek"]
[null,null,null,null,null,null,null,"070802081001 - Hilton Creek"]
[null,null,null,null,null,null,null,"071000030702 - Hine Creek"]
[null,null,null,null,null,null,null,"070802051102 - Hinkle Creek"]
[null,null,null,null,null,null,null,"102300050204 - Hog Run-Maple River"]
[null,null,null,null,null,null,null,"071000091202 - Holcomb Creek-Des Moines River"]
[null,null,null,null,null,null,null,"070802050501 - Holland Creek"]
[null,null,null,null,null,null,null,"071000040602 - Holliday Creek"]
[null,null,null,null,null,null,null,"102300060503 - Honey Creek"]
[null,null,null,null,null,null,null,"070802070702 - Honey Creek"]
[null,null,null,null,null,null,null,"070801070304 - Honey Creek"]
[null,null,null,null,null,null,null,"102400020804 - Honey Creek"]
[null,null,null,null,null,null,null,"070802080902 - Honey Creek"]
[null,null,null,null,null,null,null,"071000091205 - Honey Creek"]
[null,null,null,null,null,null,null,"070600060205 - Honey Creek"]
[null,null,null,null,null,null,null,"102802010208 - Honey Creek-Chariton River"]
[null,null,null,null,null,null,null,"071000040706 - Honey Creek-Des Moines River"]
[null,null,null,null,null,null,null,"070802090804 - Honey Creek-Iowa River"]
[null,null,null,null,null,null,null,"070802091001 - Honey Creek-Otter Creek"]
[null,null,null,null,null,null,null,"070600040606 - Honey Creek-Volga River"]
[null,null,null,null,null,null,null,"102400010303 - Honey Slough-Missouri River"]
[null,null,null,null,null,null,null,"070802081007 - Hoosier Creek"]
[null,null,null,null,null,null,null,"102400010306 - Horse Creek Ditch-Possum Creek"]
[null,null,null,null,null,null,null,"102300010306 - Horsehead Creek-Missouri River"]
[null,null,null,null,null,null,null,"070802011202 - Horton Creek"]
[null,null,null,null,null,null,null,"070600040403 - Howard Creek"]
[null,null,null,null,null,null,null,"071000080303 - Howerdon Creek"]
[null,null,null,null,null,null,null,"102400020705 - Hunter Branch"]
[null,null,null,null,null,null,null,"070801020703 - Hunter Creek"]
[null,null,null,null,null,null,null,"070801040603 - Huron Chute-Mississippi River"]
[null,null,null,null,null,null,null,"102300070202 - Immanuel Church-Boyer River"]
[null,null,null,null,null,null,null,"071000020902 - Indian Creek"]
[null,null,null,null,null,null,null,"070802050903 - Indian Creek"]
[null,null,null,null,null,null,null,"070802091101 - Indian Creek"]
[null,null,null,null,null,null,null,"070802060103 - Indian Creek"]
[null,null,null,null,null,null,null,"102801020602 - Indian Creek"]
[null,null,null,null,null,null,null,"071000060403 - Indian Creek-North Raccoon River"]
[null,null,null,null,null,null,null,"070801070307 - Indian Creek-Skunk River"]
[null,null,null,null,null,null,null,"071000081306 - Indian Creek-White Breast Creek"]
[null,null,null,null,null,null,null,"071000090303 - Inghram Branch"]
[null,null,null,null,null,null,null,"070200090601 - Iowa Lake"]
[null,null,null,null,null,null,null,"070801040601 - Iowa Slough"]
[null,null,null,null,null,null,null,"071000020205 - Jack Creek"]
[null,null,null,null,null,null,null,"070801041802 - Jack Creek-Mississippi River"]
[null,null,null,null,null,null,null,"102802010104 - Jackson Creek"]
[null,null,null,null,null,null,null,"102801020603 - Jefferies Creek-Thompson River"]
[null,null,null,null,null,null,null,"071000080605 - Jefferson Cemetary-Middle River"]
[null,null,null,null,null,null,null,"102400020501 - Jim Creek-West Nishnabotna River"]
[null,null,null,null,null,null,null,"070802090905 - Johnny Creek-Long Creek"]
[null,null,null,null,null,null,null,"102300040104 - Johns Creek"]
[null,null,null,null,null,null,null,"070600060502 - Johns Creek"]
[null,null,null,null,null,null,null,"070802050301 - Johnson Creek"]
[null,null,null,null,null,null,null,"102300031205 - Johnson Creek-Mill Creek"]
[null,null,null,null,null,null,null,"071000061702 - Johnson Creek-Raccoon River"]
[null,null,null,null,null,null,null,"071000050601 - Joint Drainage Ditch 3-Boone River"]
[null,null,null,null,null,null,null,"070802070303 - Joint Drainage Ditch No 146"]
[null,null,null,null,null,null,null,"102801020801 - Jonathon Creek"]
[null,null,null,null,null,null,null,"071000080503 - Jones Creek"]
[null,null,null,null,null,null,null,"102802010106 - Jordan Creek"]
[null,null,null,null,null,null,null,"102300010603 - Jordan Creek"]
[null,null,null,null,null,null,null,"102400020301 - Jordan Creek"]
[null,null,null,null,null,null,null,"070802090404 - Jordan Creek-North English River"]
[null,null,null,null,null,null,null,"071000061703 - Jordan Creek-Raccoon River"]
[null,null,null,null,null,null,null,"070200090403 - Judicial Ditch No 13"]
[null,null,null,null,null,null,null,"070200090402 - Judicial Ditch No 13 (Branch A)"]
[null,null,null,null,null,null,null,"102300030102 - Judicial Ditch No 24"]
[null,null,null,null,null,null,null,"070200090202 - Judicial Ditch No 7"]
[null,null,null,null,null,null,null,"070600060408 - Jurdan Creek-Maquoketa River"]
[null,null,null,null,null,null,null,"101702040205 - Kanaranzi Creek"]
[null,null,null,null,null,null,null,"101702040504 - Kappes Creek-Otter Creek"]
[null,null,null,null,null,null,null,"102400010105 - Keg Creek Ditch"]
[null,null,null,null,null,null,null,"070801050405 - Keigley Branch"]
[null,null,null,null,null,null,null,"102400100106 - Kemp Creek"]
[null,null,null,null,null,null,null,"071000090709 - Kettle Creek-Des Moines River"]
[null,null,null,null,null,null,null,"070801010601 - Kickapoo Slu-Mississippi River"]
[null,null,null,null,null,null,null,"102801020702 - Kilgore Creek"]
[null,null,null,null,null,null,null,"070802040603 - Kilson Creek"]
[null,null,null,null,null,null,null,"071000081403 - Kirk Branch-White Breast Creek"]
[null,null,null,null,null,null,null,"070600060405 - Kitty Creek"]
[null,null,null,null,null,null,null,"101702031901 - Klondike Creek"]
[null,null,null,null,null,null,null,"070802081004 - Knapp Creek"]
[null,null,null,null,null,null,null,"102300050306 - Koker Creek-Maple River"]
[null,null,null,null,null,null,null,"102400100107 - Lake Binder-East Nodaway River"]
[null,null,null,null,null,null,null,"071000060605 - Lake Creek"]
[null,null,null,null,null,null,null,"102300031202 - Lake Creek-Dry Run"]
[null,null,null,null,null,null,null,"071100010203 - Lake Fisher-Fox River"]
[null,null,null,null,null,null,null,"070802081008 - Lake MacBride-Mill Creek"]
[null,null,null,null,null,null,null,"102300060602 - Lake Manawa-Missouri River"]
[null,null,null,null,null,null,null,"071000070601 - Lake Panorama-Middle Raccoon River"]
[null,null,null,null,null,null,null,"102300010407 - Lake Quinnebaugh-Missouri River"]
[null,null,null,null,null,null,null,"102802010209 - Lake Rathbun-Chariton River"]
[null,null,null,null,null,null,null,"102802010501 - Lake Thunderhead-North Blackbird Creek"]
[null,null,null,null,null,null,null,"102300031209 - Lange Creek-Mill Creek"]
[null,null,null,null,null,null,null,"071000060304 - Lateral 2"]
[null,null,null,null,null,null,null,"071000060306 - Lateral 3-North Raccoon River"]
[null,null,null,null,null,null,null,"071000060302 - Lateral 4"]
[null,null,null,null,null,null,null,"071000060303 - Lateral 6-North Raccoon River"]
[null,null,null,null,null,null,null,"102400030708 - Ledgewood Creek-East Nishnabotna River"]
[null,null,null,null,null,null,null,"070600010707 - Leitner Creek-Mississippi River"]
[null,null,null,null,null,null,null,"102300031102 - Lexington Creek-Little Sioux River"]
[null,null,null,null,null,null,null,"102801020806 - Lick Branch-Weldon River"]
[null,null,null,null,null,null,null,"071000091208 - Lick Creek"]
[null,null,null,null,null,null,null,"102300070204 - Lime Creek"]
[null,null,null,null,null,null,null,"070802051003 - Lime Creek"]
[null,null,null,null,null,null,null,"070802030104 - Lime Creek"]
[null,null,null,null,null,null,null,"070802090601 - Lime Creek"]
[null,null,null,null,null,null,null,"071000030602 - Lindsey Creek"]
[null,null,null,null,null,null,null,"070600060204 - Lindsey Creek"]
[null,null,null,null,null,null,null,"070802080102 - Linn Creek"]
[null,null,null,null,null,null,null,"102300070205 - Linton Cemetery-Boyer River"]
[null,null,null,null,null,null,null,"070802080805 - Little Bear Creek"]
[null,null,null,null,null,null,null,"070802051203 - Little Bear Creek"]
[null,null,null,null,null,null,null,"070600060301 - Little Bear Creek-Bear Creek"]
[null,null,null,null,null,null,null,"071000040908 - Little Beaver Creek-Beaver Creek"]
[null,null,null,null,null,null,null,"101702031908 - Little Beaver Creek-Big Sioux River"]
[null,null,null,null,null,null,null,"071000040901 - Little Beaver Creek-West Beaver Creek"]
[null,null,null,null,null,null,null,"071000030403 - Little Buffalo Creek"]
[null,null,null,null,null,null,null,"071000060103 - Little Cedar Creek"]
[null,null,null,null,null,null,null,"070801070707 - Little Cedar Creek"]
[null,null,null,null,null,null,null,"070802010903 - Little Cedar River"]
[null,null,null,null,null,null,null,"071000040802 - Little Creek"]
[null,null,null,null,null,null,null,"071000090802 - Little Creek-Lick Creek"]
[null,null,null,null,null,null,null,"071000050401 - Little Eagle Creek"]
[null,null,null,null,null,null,null,"102300020302 - Little Floyd River"]
[null,null,null,null,null,null,null,"102400010103 - Little Keg Creek-Keg Creek"]
[null,null,null,null,null,null,null,"071000090801 - Little Lick Creek"]
[null,null,null,null,null,null,null,"102300050104 - Little Maple Creek"]
[null,null,null,null,null,null,null,"070600050205 - Little Menominee River-Mississippi River"]
[null,null,null,null,null,null,null,"070802060802 - Little Mosquito Creek"]
[null,null,null,null,null,null,null,"102300060407 - Little Mosquito Creek-Mosquito Creek"]
[null,null,null,null,null,null,null,"102300030602 - Little Muddy Creek"]
[null,null,null,null,null,null,null,"102300030505 - Little Ocheyedan River"]
[null,null,null,null,null,null,null,"102300060301 - Little Pigeon Creek-Pigeon Creek"]
[null,null,null,null,null,null,null,"102802010302 - Little Shoal Creek"]
[null,null,null,null,null,null,null,"102400020603 - Little Silver Creek"]
[null,null,null,null,null,null,null,"102300031510 - Little Sioux River"]
[null,null,null,null,null,null,null,"071000090606 - Little Soap Creek"]
[null,null,null,null,null,null,null,"071000091101 - Little Sugar Creek-Sugar Creek"]
[null,null,null,null,null,null,null,"102400050601 - Little Tarkio Creek"]
[null,null,null,null,null,null,null,"070600040503 - Little Volga River"]
[null,null,null,null,null,null,null,"102802010401 - Little Walnut Creek"]
[null,null,null,null,null,null,null,"071000061601 - Little Walnut Creek-Walnut Creek"]
[null,null,null,null,null,null,null,"102300031001 - Little Waterman Creek"]
[null,null,null,null,null,null,null,"071000081305 - Little White Breast Creek"]
[null,null,null,null,null,null,null,"070802050802 - Little Wolf Creek"]
[null,null,null,null,null,null,null,"070600030704 - Lock and Dam No 10-Mississippi River"]
[null,null,null,null,null,null,null,"102400030303 - Lone Tree Branch"]
[null,null,null,null,null,null,null,"102400020102 - Long Branch"]
[null,null,null,null,null,null,null,"102400100108 - Long Branch-East Nodaway River"]
[null,null,null,null,null,null,null,"071000070704 - Long Branch-South Raccoon River"]
[null,null,null,null,null,null,null,"102400050608 - Long Branch-Tarkio River"]
[null,null,null,null,null,null,null,"070801071005 - Long Creek"]
[null,null,null,null,null,null,null,"102801020304 - Long Creek"]
[null,null,null,null,null,null,null,"070802090906 - Long Creek"]
[null,null,null,null,null,null,null,"070801050401 - Long Dick Creek"]
[null,null,null,null,null,null,null,"102400090602 - Longs Branch-West Nodaway River"]
[null,null,null,null,null,null,null,"102802010207 - Lost Branch-Chariton River"]
[null,null,null,null,null,null,null,"070801030606 - Lost Creek"]
[null,null,null,null,null,null,null,"070801041703 - Lost Creek"]
[null,null,null,null,null,null,null,"102300030704 - Lost Island Outlet"]
[null,null,null,null,null,null,null,"071000030705 - Lotts Creek"]
[null,null,null,null,null,null,null,"071000070303 - Lower Brushy Creek"]
[null,null,null,null,null,null,null,"071000090904 - Lower Chequest Creek"]
[null,null,null,null,null,null,null,"070802090103 - Lower Clear Creek"]
[null,null,null,null,null,null,null,"070801020403 - Lower Crane Creek"]
[null,null,null,null,null,null,null,"071000060602 - Lower Drainage Ditch 9 & 13"]
[null,null,null,null,null,null,null,"070801010302 - Lower Duck Creek"]
[null,null,null,null,null,null,null,"102300070103 - Lower East Boyer River"]
[null,null,null,null,null,null,null,"070801020303 - Lower East Branch Wapsipinicon River"]
[null,null,null,null,null,null,null,"102400020106 - Lower East Branch West Nishnabotna River"]
[null,null,null,null,null,null,null,"102400130104 - Lower East Fork One Hundred Two River"]
[null,null,null,null,null,null,null,"071000080103 - Lower Fourmile Creek"]
[null,null,null,null,null,null,null,"102400020402 - Lower Indian Creek"]
[null,null,null,null,null,null,null,"102400030406 - Lower Indian Creek"]
[null,null,null,null,null,null,null,"070600030604 - Lower Little Maquoketa River"]
[null,null,null,null,null,null,null,"070600040204 - Lower Little Turkey River"]
[null,null,null,null,null,null,null,"071000040303 - Lower Lizard Creek"]
[null,null,null,null,null,null,null,"071000070502 - Lower Mosquito Creek"]
[null,null,null,null,null,null,null,"101702040403 - Lower Mud Creek"]
[null,null,null,null,null,null,null,"070802060503 - Lower Mud Creek"]
[null,null,null,null,null,null,null,"070801010702 - Lower Muscatine Slough"]
[null,null,null,null,null,null,null,"071000040104 - Lower North Branch Lizard Creek"]
[null,null,null,null,null,null,null,"070802090407 - Lower North English River"]
[null,null,null,null,null,null,null,"071000081004 - Lower Otter Creek"]
[null,null,null,null,null,null,null,"102400090303 - Lower Sevenmile Creek"]
[null,null,null,null,null,null,null,"102400020606 - Lower Silver Creek"]
[null,null,null,null,null,null,null,"101702032003 - Lower Sixmile Creek"]
[null,null,null,null,null,null,null,"071000090607 - Lower Soap Creek"]
[null,null,null,null,null,null,null,"071000040204 - Lower South Branch Lizard Creek"]
[null,null,null,null,null,null,null,"070802090504 - Lower South English River"]
[null,null,null,null,null,null,null,"102802010108 - Lower South Fork Chariton River"]
[null,null,null,null,null,null,null,"070802070604 - Lower South Fork Iowa River"]
[null,null,null,null,null,null,null,"071000080804 - Lower Squaw Creek"]
[null,null,null,null,null,null,null,"102400030104 - Lower Troublesome Creek"]
[null,null,null,null,null,null,null,"102400030304 - Lower Turkey Creek"]
[null,null,null,null,null,null,null,"102400020704 - Lower Walnut Creek"]
[null,null,null,null,null,null,null,"070801070103 - Lower West Fork Crooked Creek"]
[null,null,null,null,null,null,null,"102400090104 - Lower West Fork Middle Nodaway River"]
[null,null,null,null,null,null,null,"102400020207 - Lower West Fork West Nishnabotna River"]
[null,null,null,null,null,null,null,"071000070104 - Lower Willow Creek"]
[null,null,null,null,null,null,null,"102300070403 - Lower Willow Creek"]
[null,null,null,null,null,null,null,"070600010402 - Lower Winnebago Creek"]
[null,null,null,null,null,null,null,"070600010906 - Lower Yellow River"]
[null,null,null,null,null,null,null,"070802070301 - Luicks Creek"]
[null,null,null,null,null,null,null,"070801050306 - Lundys Creek-Squaw Creek"]
[null,null,null,null,null,null,null,"070802080201 - Lutes Creek"]
[null,null,null,null,null,null,null,"070801070905 - Lynn Creek-Big Creek"]
[null,null,null,null,null,null,null,"071000050701 - Lyons Creek"]
[null,null,null,null,null,null,null,"070600060706 - Lytle Creek"]
[null,null,null,null,null,null,null,"070801010604 - Mad Creek"]
[null,null,null,null,null,null,null,"102400040201 - Main Ditch No 6"]
[null,null,null,null,null,null,null,"070802030109 - Mallard Marsh-Winnebago River"]
[null,null,null,null,null,null,null,"070801020803 - Malone Creek-Wapsipinicon River"]
[null,null,null,null,null,null,null,"102300050101 - Maple Creek"]
[null,null,null,null,null,null,null,"070600061007 - Maquoketa River"]
[null,null,null,null,null,null,null,"071000060806 - Marrowbone Creek-North Raccoon River"]
[null,null,null,null,null,null,null,"070600020206 - Martha Creek-Upper Iowa River"]
[null,null,null,null,null,null,null,"102300031302 - Martin Area County Park-Little Sioux River"]
[null,null,null,null,null,null,null,"102801020201 - Marvel Creek-Thompson River"]
[null,null,null,null,null,null,null,"071000070403 - Mason Creek"]
[null,null,null,null,null,null,null,"070802030401 - Mason Creek-Winnebago River"]
[null,null,null,null,null,null,null,"070801051206 - Matrix Branch-South Skunk River"]
[null,null,null,null,null,null,null,"070802081005 - Matson Pond-Iowa River"]
[null,null,null,null,null,null,null,"070802050303 - Max Creek-Beaver Creek"]
[null,null,null,null,null,null,null,"070802040504 - Maynes Creek"]
[null,null,null,null,null,null,null,"102300010402 - McCandless Cleghorn Ditch"]
[null,null,null,null,null,null,null,"070600030707 - McCartney Branch-Mississippi River"]
[null,null,null,null,null,null,null,"070801010404 - McCarty Creek-Mississippi River"]
[null,null,null,null,null,null,null,"070802040606 - McClure Creek"]
[null,null,null,null,null,null,null,"070801030605 - McDonald Creek-Wapsipinicon River"]
[null,null,null,null,null,null,null,"102300040201 - McElhaney Creek"]
[null,null,null,null,null,null,null,"102400040102 - McElroy Creek-High Creek Ditch"]
[null,null,null,null,null,null,null,"070802051005 - McFarlane State Park-Cedar River"]
[null,null,null,null,null,null,null,"102801020703 - McGruder Creek-Little River"]
[null,null,null,null,null,null,null,"071000061404 - McMahon State Wildlife Management Area-North Raccoon River"]
[null,null,null,null,null,null,null,"102300040502 - McNeil Ditch"]
[null,null,null,null,null,null,null,"070801020102 - Mead Creek-Little Wapsipinicon River"]
[null,null,null,null,null,null,null,"071000090703 - Middle Avery Creek"]
[null,null,null,null,null,null,null,"071000040903 - Middle Beaver Creek"]
[null,null,null,null,null,null,null,"070200090303 - Middle Branch Blue Earth River"]
[null,null,null,null,null,null,null,"071000050202 - Middle Branch Boone River"]
[null,null,null,null,null,null,null,"102400130201 - Middle Branch One Hundred and Two River"]
[null,null,null,null,null,null,null,"070802060701 - Middle Branch Wapsinonoc Creek"]
[null,null,null,null,null,null,null,"071000070302 - Middle Brushy Creek"]
[null,null,null,null,null,null,null,"071000090903 - Middle Chequest Creek"]
[null,null,null,null,null,null,null,"070802090102 - Middle Clear Creek"]
[null,null,null,null,null,null,null,"070801020402 - Middle Crane Creek"]
[null,null,null,null,null,null,null,"070801060302 - Middle Creek"]
[null,null,null,null,null,null,null,"071000080404 - Middle Creek"]
[null,null,null,null,null,null,null,"102300070102 - Middle East Boyer River"]
[null,null,null,null,null,null,null,"070801020302 - Middle East Branch Wapsipinicon River"]
[null,null,null,null,null,null,null,"102400020104 - Middle East Branch West Nishnabotna River"]
[null,null,null,null,null,null,null,"102400130102 - Middle East Fork One Hundred Two River"]
[null,null,null,null,null,null,null,"070802090302 - Middle English River"]
[null,null,null,null,null,null,null,"070600030601 - Middle Fork Little Maquoketa River"]
[null,null,null,null,null,null,null,"102400130105 - Middle Fork One Hundred and Two River"]
[null,null,null,null,null,null,null,"070802050101 - Middle Fork South Beaver Creek"]
[null,null,null,null,null,null,null,"071000080102 - Middle Fourmile Creek"]
[null,null,null,null,null,null,null,"102400120202 - Middle Honey Creek"]
[null,null,null,null,null,null,null,"102400030405 - Middle Indian Creek"]
[null,null,null,null,null,null,null,"071100010102 - Middle Little Fox River"]
[null,null,null,null,null,null,null,"070600040203 - Middle Little Turkey River"]
[null,null,null,null,null,null,null,"071000040302 - Middle Lizard Creek"]
[null,null,null,null,null,null,null,"070802070803 - Middle Minerva Creek"]
[null,null,null,null,null,null,null,"101702040402 - Middle Mud Creek"]
[null,null,null,null,null,null,null,"070802060502 - Middle Mud Creek"]
[null,null,null,null,null,null,null,"071000040103 - Middle North Branch Lizard Creek"]
[null,null,null,null,null,null,null,"070802090406 - Middle North English River"]
[null,null,null,null,null,null,null,"071000081003 - Middle Otter Creek"]
[null,null,null,null,null,null,null,"102400120105 - Middle Platte River"]
[null,null,null,null,null,null,null,"071000080703 - Middle River"]
[null,null,null,null,null,null,null,"102400090302 - Middle Sevenmile Creek"]
[null,null,null,null,null,null,null,"102400020605 - Middle Silver Creek"]
[null,null,null,null,null,null,null,"101702032002 - Middle Sixmile Creek"]
[null,null,null,null,null,null,null,"071000090605 - Middle Soap Creek"]
[null,null,null,null,null,null,null,"102300010505 - Middle Soldier River"]
[null,null,null,null,null,null,null,"071000040202 - Middle South Branch Lizard Creek"]
[null,null,null,null,null,null,null,"070802090503 - Middle South English River"]
[null,null,null,null,null,null,null,"102802010105 - Middle South Fork Chariton River"]
[null,null,null,null,null,null,null,"070802070603 - Middle South Fork Iowa River"]
[null,null,null,null,null,null,null,"071000080803 - Middle Squaw Creek"]
[null,null,null,null,null,null,null,"102400050504 - Middle Tarkio Creek"]
[null,null,null,null,null,null,null,"102400030103 - Middle Troublesome Creek"]
[null,null,null,null,null,null,null,"102400030302 - Middle Turkey Creek"]
[null,null,null,null,null,null,null,"102400020703 - Middle Walnut Creek"]
[null,null,null,null,null,null,null,"070801070102 - Middle West Fork Crooked Creek"]
[null,null,null,null,null,null,null,"102400090103 - Middle West Fork Middle Nodaway River"]
[null,null,null,null,null,null,null,"102400020206 - Middle West Fork West Nishnabotna River"]
[null,null,null,null,null,null,null,"102400050503 - Middle West Tarkio Creek"]
[null,null,null,null,null,null,null,"102300070402 - Middle Willow Creek"]
[null,null,null,null,null,null,null,"071000070103 - Middle Willow Creek"]
[null,null,null,null,null,null,null,"070600010905 - Middle Yellow River"]
[null,null,null,null,null,null,null,"102300030204 - Milford Creek"]
[null,null,null,null,null,null,null,"102400030707 - Mill Creek"]
[null,null,null,null,null,null,null,"070801030202 - Mill Creek"]
[null,null,null,null,null,null,null,"102400100206 - Mill Creek"]
[null,null,null,null,null,null,null,"070801010202 - Mill Creek"]
[null,null,null,null,null,null,null,"102300070305 - Mill Creek"]
[null,null,null,null,null,null,null,"070802060405 - Mill Creek-Cedar River"]
[null,null,null,null,null,null,null,"070802081003 - Mill Race-Iowa River"]
[null,null,null,null,null,null,null,"071000090701 - Miller Creek"]
[null,null,null,null,null,null,null,"102300031504 - Miller Creek"]
[null,null,null,null,null,null,null,"070802050905 - Miller Creek"]
[null,null,null,null,null,null,null,"070801050402 - Miller Creek-South Skunk River"]
[null,null,null,null,null,null,null,"070600060409 - Mineral Creek"]
[null,null,null,null,null,null,null,"070600030705 - Miners Creek-Mississippi River"]
[null,null,null,null,null,null,null,"070802070805 - Minerva Creek"]
[null,null,null,null,null,null,null,"070600040602 - Mink Creek"]
[null,null,null,null,null,null,null,"102300020407 - Mink Creek"]
[null,null,null,null,null,null,null,"070802050504 - Minnehaha Creek-Black Hawk Creek"]
[null,null,null,null,null,null,null,"070801030405 - Mockridge County Wildlife Preserve"]
[null,null,null,null,null,null,null,"102300040503 - Monona-Harrison Ditch"]
[null,null,null,null,null,null,null,"070801050303 - Montgomery Creek"]
[null,null,null,null,null,null,null,"102300031103 - Montgomery Creek"]
[null,null,null,null,null,null,null,"070801060402 - Moon Creek"]
[null,null,null,null,null,null,null,"101702040703 - Moon Creek-Rock River"]
[null,null,null,null,null,null,null,"070802090205 - Mooney Creek-Old Mans Creek"]
[null,null,null,null,null,null,null,"102300060502 - Moores Creek-Missouri River"]
[null,null,null,null,null,null,null,"102300050303 - Moorhead Creek"]
[null,null,null,null,null,null,null,"070802051506 - Morgan Creek"]
[null,null,null,null,null,null,null,"071000090301 - Mormon Branch"]
[null,null,null,null,null,null,null,"102400030702 - Mormon Branch-East Nishnabotna River"]
[null,null,null,null,null,null,null,"102400090202 - Mormon Cemetery-Middle Nodaway River"]
[null,null,null,null,null,null,null,"070802070905 - Mormon Lake Mormon Ridge-Iowa River"]
[null,null,null,null,null,null,null,"102300060401 - Moser Creek-Mosquito Creek"]
[null,null,null,null,null,null,null,"070802050503 - Mosquito Creek"]
[null,null,null,null,null,null,null,"071000090402 - Muchakinock Creek"]
[null,null,null,null,null,null,null,"070802051104 - Mud Creek"]
[null,null,null,null,null,null,null,"102300031204 - Mud Creek"]
[null,null,null,null,null,null,null,"102400020504 - Mud Creek"]
[null,null,null,null,null,null,null,"071000030202 - Mud Creek"]
[null,null,null,null,null,null,null,"102300040204 - Mud Creek"]
[null,null,null,null,null,null,null,"070801071003 - Mud Creek"]
[null,null,null,null,null,null,null,"070801030303 - Mud Creek"]
[null,null,null,null,null,null,null,"071000081502 - Mud Creek"]
[null,null,null,null,null,null,null,"102300070603 - Mud Creek-Boyer River"]
[null,null,null,null,null,null,null,"070801070804 - Mud Creek-Brush Creek"]
[null,null,null,null,null,null,null,"070802050907 - Mud Creek-Cedar River"]
[null,null,null,null,null,null,null,"070801050702 - Mud Creek-Clear Creek"]
[null,null,null,null,null,null,null,"102300060206 - Mud Creek-Papillion Creek"]
[null,null,null,null,null,null,null,"070802051403 - Mud Creek-Prairie Creek"]
[null,null,null,null,null,null,null,"071000041001 - Murphy Branch-Des Moines River"]
[null,null,null,null,null,null,null,"070600040604 - Nagle Creek-Volga River"]
[null,null,null,null,null,null,null,"102400090701 - Neele Branch"]
[null,null,null,null,null,null,null,"070801030601 - Negro Creek-Silver Creek"]
[null,null,null,null,null,null,null,"070802051504 - Nelson Creek-Cedar River"]
[null,null,null,null,null,null,null,"102300060404 - Neola Creek-Mosquito Creek"]
[null,null,null,null,null,null,null,"070802060404 - Nicholson Creek"]
[null,null,null,null,null,null,null,"102802010101 - Ninemile Creek"]
[null,null,null,null,null,null,null,"102801020202 - Ninemile Creek-Thompson River"]
[null,null,null,null,null,null,null,"102400040202 - Nishnabotna River"]
[null,null,null,null,null,null,null,"102400090703 - No Business Creek-West Nodaway River"]
[null,null,null,null,null,null,null,"102400090201 - Nodaway Lake-Middle Nodaway River"]
[null,null,null,null,null,null,null,"070600010902 - Norfolk Creek"]
[null,null,null,null,null,null,null,"070600020501 - North Bear Creek"]
[null,null,null,null,null,null,null,"070802050202 - North Beaver Creek"]
[null,null,null,null,null,null,null,"102300010203 - North Blackbird Creek"]
[null,null,null,null,null,null,null,"070801070903 - North Branch Big Creek-Big Creek"]
[null,null,null,null,null,null,null,"071000080202 - North Branch North River"]
[null,null,null,null,null,null,null,"070802090204 - North Branch Old Mans Creek"]
[null,null,null,null,null,null,null,"070600040301 - North Branch Turkey River"]
[null,null,null,null,null,null,null,"070600020101 - North Branch Upper Iowa River-Upper Iowa River"]
[null,null,null,null,null,null,null,"070600040501 - North Branch Volga River"]
[null,null,null,null,null,null,null,"070600020301 - North Canoe Creek"]
[null,null,null,null,null,null,null,"071000090204 - North Cedar Creek"]
[null,null,null,null,null,null,null,"070802050403 - North Fork Black Hawk Creek"]
[null,null,null,null,null,null,null,"071000080501 - North Fork Clanton Creek"]
[null,null,null,null,null,null,null,"102300020301 - North Fork Floyd River-Floyd River"]
[null,null,null,null,null,null,null,"070600030602 - North Fork Little Maquoketa River"]
[null,null,null,null,null,null,null,"070802090901 - North Fork Long Creek"]
[null,null,null,null,null,null,null,"071100020104 - North Fork North Fabius River"]
[null,null,null,null,null,null,null,"071100010201 - North Fox Creek"]
[null,null,null,null,null,null,null,"071000080405 - North River"]
[null,null,null,null,null,null,null,"070801060604 - North Skunk River"]
[null,null,null,null,null,null,null,"070802080205 - North Timber Creek"]
[null,null,null,null,null,null,null,"071000080604 - North Turkey Creek"]
[null,null,null,null,null,null,null,"070801070402 - North Walnut Creek"]
[null,null,null,null,null,null,null,"070802080601 - North Walnut Creek"]
[null,null,null,null,null,null,null,"102400130301 - Norvey Creek"]
[null,null,null,null,null,null,null,"102300010601 - Norway Creek"]
[null,null,null,null,null,null,null,"070801020905 - Nugents Creek-Buffalo Creek"]
[null,null,null,null,null,null,null,"070600040702 - Nutting Creek"]
[null,null,null,null,null,null,null,"071000030604 - Oak Lake-East Fork Des Moines River"]
[null,null,null,null,null,null,null,"102300030510 - Ocheyedan River"]
[null,null,null,null,null,null,null,"102300050206 - Odebolt Creek"]
[null,null,null,null,null,null,null,"071000030108 - Okamanpeedan Lake-East Fork Des Moines River"]
[null,null,null,null,null,null,null,"070802090207 - Old Womans Creek-Old Mans Creek"]
[null,null,null,null,null,null,null,"102300040501 - Oliver Lake Ditch-Monona Harrison Ditch"]
[null,null,null,null,null,null,null,"070801050305 - Onion Creek"]
[null,null,null,null,null,null,null,"102300060303 - Onion Creek-Pigeon Creek"]
[null,null,null,null,null,null,null,"070802051201 - Opossum Creek"]
[null,null,null,null,null,null,null,"102300020405 - Orange City Slough"]
[null,null,null,null,null,null,null,"071000080304 - Orman Creek-North River"]
[null,null,null,null,null,null,null,"102300030503 - Osterman Creek-Ocheyedan River"]
[null,null,null,null,null,null,null,"070801020704 - Otter Creek"]
[null,null,null,null,null,null,null,"071000050303 - Otter Creek"]
[null,null,null,null,null,null,null,"070802040304 - Otter Creek"]
[null,null,null,null,null,null,null,"070600060704 - Otter Creek"]
[null,null,null,null,null,null,null,"071000061401 - Otter Creek"]
[null,null,null,null,null,null,null,"101702040505 - Otter Creek"]
[null,null,null,null,null,null,null,"102300070209 - Otter Creek"]
[null,null,null,null,null,null,null,"070802010504 - Otter Creek"]
[null,null,null,null,null,null,null,"070600040706 - Otter Creek"]
[null,null,null,null,null,null,null,"070802080702 - Otter Creek"]
[null,null,null,null,null,null,null,"070802091002 - Otter Creek"]
[null,null,null,null,null,null,null,"070802091104 - Otter Creek-Iowa River"]
[null,null,null,null,null,null,null,"070600040305 - Otter Creek-Turkey River"]
[null,null,null,null,null,null,null,"070801020801 - Otterville Bridge State Access-Wapsipinicon River"]
[null,null,null,null,null,null,null,"101702031903 - Our Saviors Church-Big Sioux River"]
[null,null,null,null,null,null,null,"071000060307 - Outlet Creek"]
[null,null,null,null,null,null,null,"070802090408 - Outlet North English River"]
[null,null,null,null,null,null,null,"102400020607 - Outlet Silver Creek"]
[null,null,null,null,null,null,null,"071000070904 - Outlet South Raccoon River"]
[null,null,null,null,null,null,null,"102400020706 - Outlet Walnut Creek"]
[null,null,null,null,null,null,null,"102802010406 - Packard Creek-Chariton River"]
[null,null,null,null,null,null,null,"070600010802 - Paint Creek"]
[null,null,null,null,null,null,null,"070600020602 - Paint Creek-Upper Iowa River"]
[null,null,null,null,null,null,null,"070801041603 - Painter Creek"]
[null,null,null,null,null,null,null,"071000080903 - Painter Creek"]
[null,null,null,null,null,null,null,"070802020402 - Palmer Creek"]
[null,null,null,null,null,null,null,"071000080609 - Pammel State Park-Middle River"]
[null,null,null,null,null,null,null,"071000070803 - Panther Creek"]
[null,null,null,null,null,null,null,"070600040710 - Panther Creek-Turkey River"]
[null,null,null,null,null,null,null,"102300070303 - Paradise Creek"]
[null,null,null,null,null,null,null,"070802040601 - Parmentar Creek"]
[null,null,null,null,null,null,null,"102300031506 - Parnell Creek-Little Sioux River"]
[null,null,null,null,null,null,null,"070600020601 - Patterson Creek"]
[null,null,null,null,null,null,null,"070802060803 - Pee Dee Creek-Cedar River"]
[null,null,null,null,null,null,null,"070600060101 - Penn Creek"]
[null,null,null,null,null,null,null,"070801050803 - Peoria Cemetery-Indian Creek"]
[null,null,null,null,null,null,null,"102300010302 - Perry Creek"]
[null,null,null,null,null,null,null,"102300031401 - Perry Creek"]
[null,null,null,null,null,null,null,"070802020503 - Peters Creek-Flood Creek"]
[null,null,null,null,null,null,null,"101702031905 - Peterson Creek-Big Sioux River"]
[null,null,null,null,null,null,null,"070802050302 - Phelps Creek-Beaver Creek"]
[null,null,null,null,null,null,null,"070801070202 - Phillips Creek"]
[null,null,null,null,null,null,null,"070600011001 - Picatee Creek-Mississippi River"]
[null,null,null,null,null,null,null,"102300070601 - Picayune Creek"]
[null,null,null,null,null,null,null,"070801041602 - Picayune Creek-Sugar Creek"]
[null,null,null,null,null,null,null,"102300030702 - Pickerel Run"]
[null,null,null,null,null,null,null,"102300031409 - Pierson Creek"]
[null,null,null,null,null,null,null,"102300060304 - Pigeon Creek"]
[null,null,null,null,null,null,null,"102300010304 - Pigeon Creek Ditch"]
[null,null,null,null,null,null,null,"070802030103 - Pike Run"]
[null,null,null,null,null,null,null,"070802060805 - Pike Run-Cedar River"]
[null,null,null,null,null,null,null,"071000020703 - Pilot Creek"]
[null,null,null,null,null,null,null,"070600020205 - Pine Creek"]
[null,null,null,null,null,null,null,"070801010602 - Pine Creek"]
[null,null,null,null,null,null,null,"070801020802 - Pine Creek"]
[null,null,null,null,null,null,null,"070802070902 - Pine Creek-Iowa River"]
[null,null,null,null,null,null,null,"070600060410 - Pine Creek-Maquoketa River"]
[null,null,null,null,null,null,null,"070801030102 - Pioneer Creek"]
[null,null,null,null,null,null,null,"102300050103 - Pitcher Creek"]
[null,null,null,null,null,null,null,"070801041604 - Pitman Creek-Sugar Creek"]
[null,null,null,null,null,null,null,"070802080703 - Plague Creek-Iowa River"]
[null,null,null,null,null,null,null,"102400120109 - Platte Branch"]
[null,null,null,null,null,null,null,"070600050405 - Pleasant Creek"]
[null,null,null,null,null,null,null,"070801060404 - Pleasant Creek-North Skunk River"]
[null,null,null,null,null,null,null,"070802060401 - Pleasant Run-Cedar River"]
[null,null,null,null,null,null,null,"102400010304 - Plum Creek"]
[null,null,null,null,null,null,null,"071000030603 - Plum Creek"]
[null,null,null,null,null,null,null,"102801010102 - Plum Creek"]
[null,null,null,null,null,null,null,"070600060103 - Plum Creek"]
[null,null,null,null,null,null,null,"070600030706 - Plum Creek-Mississippi River"]
[null,null,null,null,null,null,null,"070801030401 - Plum Creek-Wapsipinicon River"]
[null,null,null,null,null,null,null,"071000080301 - Plunger Creek"]
[null,null,null,null,null,null,null,"102300020501 - Plymouth Creek"]
[null,null,null,null,null,null,null,"102300060505 - Ponca Creek-Missouri River"]
[null,null,null,null,null,null,null,"102300060406 - Pony Creek Ditch"]
[null,null,null,null,null,null,null,"102400010104 - Pony Creek Lake-Pony Creek Ditch"]
[null,null,null,null,null,null,null,"071000060305 - Poor Farm Creek"]
[null,null,null,null,null,null,null,"102300070206 - Porter Creek"]
[null,null,null,null,null,null,null,"102300060302 - Potato Creek"]
[null,null,null,null,null,null,null,"070802050902 - Poyner Creek"]
[null,null,null,null,null,null,null,"071000030302 - Prairie Creek"]
[null,null,null,null,null,null,null,"071000060803 - Prairie Creek"]
[null,null,null,null,null,null,null,"071000020602 - Prairie Creek"]
[null,null,null,null,null,null,null,"102300030803 - Prairie Creek"]
[null,null,null,null,null,null,null,"071000040603 - Prairie Creek"]
[null,null,null,null,null,null,null,"071000060205 - Prairie Creek"]
[null,null,null,null,null,null,null,"070801051101 - Prairie Creek"]
[null,null,null,null,null,null,null,"070802051405 - Prairie Creek"]
[null,null,null,null,null,null,null,"071000050705 - Prairie Creek-Boone River"]
[null,null,null,null,null,null,null,"070802051103 - Prairie Creek-Cedar River"]
[null,null,null,null,null,null,null,"070802090806 - Prairie Creek-Iowa River"]
[null,null,null,null,null,null,null,"070600060701 - Prairie Creek-Lytle Creek"]
[null,null,null,null,null,null,null,"070600061003 - Prairie Creek-Maquoketa River"]
[null,null,null,null,null,null,null,"070801071002 - Prairie Creek-Skunk River"]
[null,null,null,null,null,null,null,"070802051101 - Pratt Creek"]
[null,null,null,null,null,null,null,"070802050602 - Prescotts Creek-Black Hawk Creek"]
[null,null,null,null,null,null,null,"070802081002 - Price Creek"]
[null,null,null,null,null,null,null,"071000090501 - Price Creek-Des Moines River"]
[null,null,null,null,null,null,null,"070600061001 - Pumpkin Creek-Maquoketa River"]
[null,null,null,null,null,null,null,"071000030801 - Purcell Creek"]
[null,null,null,null,null,null,null,"071000060702 - Purgatory Creek"]
[null,null,null,null,null,null,null,"070802011103 - Quarter Section Run"]
[null,null,null,null,null,null,null,"102300031403 - Railroad Creek-Little Sioux River"]
[null,null,null,null,null,null,null,"071000060805 - Rainbow Bend County Park-North Raccoon River"]
[null,null,null,null,null,null,null,"070802090703 - Ralston Creek-Iowa River"]
[null,null,null,null,null,null,null,"102400030701 - Ramp Creek"]
[null,null,null,null,null,null,null,"070802090605 - Ramsey Creek-English River"]
[null,null,null,null,null,null,null,"070802090701 - Rapid Creek"]
[null,null,null,null,null,null,null,"101702040503 - Rat Creek"]
[null,null,null,null,null,null,null,"070600060303 - Rat Run-Bear Creek"]
[null,null,null,null,null,null,null,"070802080406 - Raven Creek"]
[null,null,null,null,null,null,null,"071000091207 - Reeds Creek"]
[null,null,null,null,null,null,null,"102300050305 - Reynolds Creek"]
[null,null,null,null,null,null,null,"070400080804 - Riceford Creek"]
[null,null,null,null,null,null,null,"071000040707 - Richardson Branch-Des Moines River"]
[null,null,null,null,null,null,null,"070802090802 - Richey Creek"]
[null,null,null,null,null,null,null,"070802080701 - Richland Creek"]
[null,null,null,null,null,null,null,"070801070303 - Richland Creek"]
[null,null,null,null,null,null,null,"101702032504 - Richland Creek-Big Sioux River"]
[null,null,null,null,null,null,null,"070600040405 - Roberts Creek"]
[null,null,null,null,null,null,null,"070801050801 - Rock & Calamus Creeks-Indian Creek"]
[null,null,null,null,null,null,null,"070801051207 - Rock Creek"]
[null,null,null,null,null,null,null,"102300031404 - Rock Creek"]
[null,null,null,null,null,null,null,"070801010401 - Rock Creek"]
[null,null,null,null,null,null,null,"070801070701 - Rock Creek"]
[null,null,null,null,null,null,null,"070802080804 - Rock Creek"]
[null,null,null,null,null,null,null,"070802010604 - Rock Creek"]
[null,null,null,null,null,null,null,"070802050806 - Rock Creek"]
[null,null,null,null,null,null,null,"070802060302 - Rock Creek"]
[null,null,null,null,null,null,null,"070801030407 - Rock Creek"]
[null,null,null,null,null,null,null,"101702032506 - Rock Creek-Big Sioux River"]
[null,null,null,null,null,null,null,"070801060502 - Rock Creek-Cedar Creek"]
[null,null,null,null,null,null,null,"070802051001 - Rock Creek-Cedar River"]
[null,null,null,null,null,null,null,"071000041002 - Rock Creek-Des Moines River"]
[null,null,null,null,null,null,null,"070600061006 - Rock Creek-Maquoketa River"]
[null,null,null,null,null,null,null,"070801060104 - Rock Creek-North Skunk River"]
[null,null,null,null,null,null,null,"070802020302 - Rock Falls Creek"]
[null,null,null,null,null,null,null,"101702040805 - Rock River"]
[null,null,null,null,null,null,null,"070802060406 - Rock Run Creek"]
[null,null,null,null,null,null,null,"070801070404 - Rocky Branch-Walnut Creek"]
[null,null,null,null,null,null,null,"102300020304 - Roetzel Creek-Willow Creek"]
[null,null,null,null,null,null,null,"070600040307 - Rogers Creek"]
[null,null,null,null,null,null,null,"101702040804 - Rogg Creek-Rock River"]
[null,null,null,null,null,null,null,"071000091209 - Rollins Creek-Des Moines River"]
[null,null,null,null,null,null,null,"071000040910 - Royer Creek-Beaver Creek"]
[null,null,null,null,null,null,null,"102300030105 - Rush Lake-West Fork Little Sioux River"]
[null,null,null,null,null,null,null,"102300030506 - Rush Lake Outlet-Ocheyedan River"]
[null,null,null,null,null,null,null,"102400090102 - Rutt Branch"]
[null,null,null,null,null,null,null,"071000060310 - Sac City-North Raccoon River"]
[null,null,null,null,null,null,null,"070802080507 - Salt Creek"]
[null,null,null,null,null,null,null,"102801020501 - Sand Creek"]
[null,null,null,null,null,null,null,"070600060208 - Sand Creek"]
[null,null,null,null,null,null,null,"070801020804 - Sand Creek"]
[null,null,null,null,null,null,null,"102802010303 - Sand Creek-Shoal Creek"]
[null,null,null,null,null,null,null,"070600060206 - Sand Hagen Creek-Maquoketa River"]
[null,null,null,null,null,null,null,"070801050906 - Santiago Creek-South Skunk River"]
[null,null,null,null,null,null,null,"102400120101 - Saylings Creek"]
[null,null,null,null,null,null,null,"071000041003 - Saylor Creek-Des Moines River"]
[null,null,null,null,null,null,null,"071000020106 - School Creek-Des Moines River"]
[null,null,null,null,null,null,null,"070802070901 - School Creek-Iowa River"]
[null,null,null,null,null,null,null,"101702040502 - Schutte Creek-Otter Creek"]
[null,null,null,null,null,null,null,"071000070401 - Seely Creek"]
[null,null,null,null,null,null,null,"071000030503 - Sentral High School-Black Cat Creek"]
[null,null,null,null,null,null,null,"102801020208 - Sevenmile Creek"]
[null,null,null,null,null,null,null,"070801051103 - Severs Creek-South Skunk River"]
[null,null,null,null,null,null,null,"102300030507 - Sewer Creek"]
[null,null,null,null,null,null,null,"102801010904 - Shain Creek"]
[null,null,null,null,null,null,null,"102400100101 - Shanghai Creek"]
[null,null,null,null,null,null,null,"070801070802 - Shawnee Creek-Skunk Rvier"]
[null,null,null,null,null,null,null,"070802070307 - Sheldon Creek"]
[null,null,null,null,null,null,null,"070802020705 - Shell Rock River"]
[null,null,null,null,null,null,null,"070801030409 - Sherman Park-Wapsipinicon River"]
[null,null,null,null,null,null,null,"071000061403 - Short Creek"]
[null,null,null,null,null,null,null,"102801020303 - Short Creek"]
[null,null,null,null,null,null,null,"070802090805 - Short Creek"]
[null,null,null,null,null,null,null,"071000081201 - Short Creek-South River"]
[null,null,null,null,null,null,null,"102400090502 - Show Creek-Middle Nodaway River"]
[null,null,null,null,null,null,null,"070801030103 - Sibles Creek"]
[null,null,null,null,null,null,null,"102400030206 - Sifford Creek-East Nishnabotna River"]
[null,null,null,null,null,null,null,"102300050203 - Silver Creek"]
[null,null,null,null,null,null,null,"070600020202 - Silver Creek"]
[null,null,null,null,null,null,null,"070600020603 - Silver Creek"]
[null,null,null,null,null,null,null,"071000020302 - Silver Creek"]
[null,null,null,null,null,null,null,"102300031402 - Silver Creek"]
[null,null,null,null,null,null,null,"070600040401 - Silver Creek"]
[null,null,null,null,null,null,null,"070600060402 - Silver Creek"]
[null,null,null,null,null,null,null,"070801030602 - Silver Creek"]
[null,null,null,null,null,null,null,"070801020904 - Silver Creek-Buffalo Creek"]
[null,null,null,null,null,null,null,"070802051507 - Silver Creek-Cedar River"]
[null,null,null,null,null,null,null,"070600040104 - Simpson Creek-Crane Creek"]
[null,null,null,null,null,null,null,"102400090601 - Sin Creek"]
[null,null,null,null,null,null,null,"070802050906 - Sink Creek-Cedar River"]
[null,null,null,null,null,null,null,"102400100204 - Sink Creek-Nodaway River"]
[null,null,null,null,null,null,null,"070600030708 - Sinnipee Creek-Mississippi River"]
[null,null,null,null,null,null,null,"101702040802 - SiouxCemetery-Dry Run Creek"]
[null,null,null,null,null,null,null,"102300070602 - Sixmile Creek"]
[null,null,null,null,null,null,null,"071000040701 - Skillet Creek"]
[null,null,null,null,null,null,null,"070802011001 - Skunk Creek-Cedar River"]
[null,null,null,null,null,null,null,"102300010507 - Skunk Creek/Rush Creek-Soldier River"]
[null,null,null,null,null,null,null,"070801071006 - Skunk River"]
[null,null,null,null,null,null,null,"070801041504 - Skunk Slough"]
[null,null,null,null,null,null,null,"070801060201 - Slater Creek"]
[null,null,null,null,null,null,null,"102400020502 - Slocum Creek-West Nishnabotna River"]
[null,null,null,null,null,null,null,"071000040907 - Slough Creek"]
[null,null,null,null,null,null,null,"070802091103 - Smith Creek"]
[null,null,null,null,null,null,null,"070801020805 - Smith Creek-Wapsipinicon River"]
[null,null,null,null,null,null,null,"102400050604 - Snake Creek"]
[null,null,null,null,null,null,null,"070801060101 - Snipe Creek"]
[null,null,null,null,null,null,null,"101702040603 - Snow Creek-Little Rock River"]
[null,null,null,null,null,null,null,"070600030701 - Sny Magill Creek"]
[null,null,null,null,null,null,null,"102802010404 - Snyder Branch-Chariton River"]
[null,null,null,null,null,null,null,"070802090702 - Snyder Creek"]
[null,null,null,null,null,null,null,"070801051204 - Snyder Creek-South Skunk River"]
[null,null,null,null,null,null,null,"071000030107 - Soldier Creek"]
[null,null,null,null,null,null,null,"071000040601 - Soldier Creek"]
[null,null,null,null,null,null,null,"102300031107 - Soldier Creek-Little Sioux River"]
[null,null,null,null,null,null,null,"102300010606 - Soldier River"]
[null,null,null,null,null,null,null,"071000090705 - South Avery Creek"]
[null,null,null,null,null,null,null,"070802050103 - South Beaver Creek"]
[null,null,null,null,null,null,null,"070802080501 - South Branch Salt Creek"]
[null,null,null,null,null,null,null,"070600040302 - South Branch Turkey River-Turkey River"]
[null,null,null,null,null,null,null,"070600040901 - South Cedar Creek"]
[null,null,null,null,null,null,null,"071000090902 - South Chequest Creek"]
[null,null,null,null,null,null,null,"102801010404 - South Creek-Lotts Creek"]
[null,null,null,null,null,null,null,"070802050401 - South Fork Black Hawk Creek"]
[null,null,null,null,null,null,null,"070600050101 - South Fork Catfish Creek"]
[null,null,null,null,null,null,null,"071000080502 - South Fork Clanton Creek"]
[null,null,null,null,null,null,null,"070802090902 - South Fork Long Creek"]
[null,null,null,null,null,null,null,"070600060202 - South Fork Maquoketa River"]
[null,null,null,null,null,null,null,"071000080602 - South Fork Middle River"]
[null,null,null,null,null,null,null,"071100020101 - South Fork North Fabius River"]
[null,null,null,null,null,null,null,"070801030101 - South Fork Walnut Creek"]
[null,null,null,null,null,null,null,"071100010202 - South Fox Creek-Fox River"]
[null,null,null,null,null,null,null,"070802070802 - South Minerva Creek"]
[null,null,null,null,null,null,null,"071000081001 - South Otter Creek"]
[null,null,null,null,null,null,null,"071000081202 - South River"]
[null,null,null,null,null,null,null,"070801051208 - South Skunk River"]
[null,null,null,null,null,null,null,"071000090601 - South Soap Creek"]
[null,null,null,null,null,null,null,"071000080801 - South Squaw Creek"]
[null,null,null,null,null,null,null,"070802080203 - South Timber Creek"]
[null,null,null,null,null,null,null,"071000080603 - South Turkey Creek"]
[null,null,null,null,null,null,null,"070801070401 - South Walnut Creek"]
[null,null,null,null,null,null,null,"071000081301 - South White Breast Creek"]
[null,null,null,null,null,null,null,"070801070305 - Spanish Bridge Skunk River State Wildlife Area-Skunk River"]
[null,null,null,null,null,null,null,"070801010403 - Spencer Creek"]
[null,null,null,null,null,null,null,"070801041704 - Spillman Creek-Mississippi River"]
[null,null,null,null,null,null,null,"070600060209 - Spring Branch"]
[null,null,null,null,null,null,null,"070801020103 - Spring Branch-Little Wapsipinicon River"]
[null,null,null,null,null,null,null,"071000070204 - Spring Branch-Middle Raccoon River"]
[null,null,null,null,null,null,null,"102400020806 - Spring Branch-West Nishnabotna River"]
[null,null,null,null,null,null,null,"102300030509 - Spring Creek"]
[null,null,null,null,null,null,null,"071000040203 - Spring Creek"]
[null,null,null,null,null,null,null,"070802040303 - Spring Creek"]
[null,null,null,null,null,null,null,"070802030304 - Spring Creek"]
[null,null,null,null,null,null,null,"070802010602 - Spring Creek"]
[null,null,null,null,null,null,null,"070801041503 - Spring Creek"]
[null,null,null,null,null,null,null,"071000081501 - Spring Creek"]
[null,null,null,null,null,null,null,"070802051002 - Spring Creek"]
[null,null,null,null,null,null,null,"070801070602 - Spring Creek-Cedar Creek"]
[null,null,null,null,null,null,null,"070802060403 - Spring Creek-Cedar River"]
[null,null,null,null,null,null,null,"070600040102 - Spring Creek-Crane Creek"]
[null,null,null,null,null,null,null,"102400030502 - Spring Creek-East Nishnabotna River"]
[null,null,null,null,null,null,null,"070801020501 - Spring Creek-Little Wapsipinicon River"]
[null,null,null,null,null,null,null,"102300060403 - Spring Creek-Mosquito Creek"]
[null,null,null,null,null,null,null,"070801051203 - Spring Creek-South Skunk River"]
[null,null,null,null,null,null,null,"070600051202 - Spring Lake-Mississippi River"]
[null,null,null,null,null,null,null,"102400020803 - Spring Valley Creek-West Nishnabotna River"]
[null,null,null,null,null,null,null,"070600050404 - Spruce Creek-Mississippi River"]
[null,null,null,null,null,null,null,"070801050907 - Squaw Creek"]
[null,null,null,null,null,null,null,"070802040305 - Squaw Creek"]
[null,null,null,null,null,null,null,"102801010103 - Squaw Creek-Grand River"]
[null,null,null,null,null,null,null,"071000061406 - Squirrel Hollow County Park-North Raccoon River"]
[null,null,null,null,null,null,null,"071000090505 - St Joseph Creek-Des Moines River"]
[null,null,null,null,null,null,null,"071000080403 - St Patricks Church-North River"]
[null,null,null,null,null,null,null,"070600020103 - Staff Creek"]
[null,null,null,null,null,null,null,"102801020209 - Star Branch-Thompson River"]
[null,null,null,null,null,null,null,"102801010601 - State Line-Grand River"]
[null,null,null,null,null,null,null,"070802030102 - State Line Lake-Lime Creek"]
[null,null,null,null,null,null,null,"102801020803 - Steel Creek"]
[null,null,null,null,null,null,null,"102300070501 - Steer Creek-Allen Creek"]
[null,null,null,null,null,null,null,"070802080504 - Stein Creek"]
[null,null,null,null,null,null,null,"071000081304 - Stephens State Forest-White Breast Creek"]
[null,null,null,null,null,null,null,"070801060206 - Stewart Cemetery-North Skunk River"]
[null,null,null,null,null,null,null,"070802011003 - Stewart Creek-Cedar River"]
[null,null,null,null,null,null,null,"070801020502 - Stoe Creek-Little Wapsipinicon River"]
[null,null,null,null,null,null,null,"070802080803 - Stoney Creek-Big Bear Creek"]
[null,null,null,null,null,null,null,"102300030402 - Stony Creek"]
[null,null,null,null,null,null,null,"071000081402 - Stony Creek-White Breast Creek"]
[null,null,null,null,null,null,null,"071000070202 - Storm Creek"]
[null,null,null,null,null,null,null,"071000020101 - Story Brook"]
[null,null,null,null,null,null,null,"070600050403 - Storybrook Hollow-Mill Creek"]
[null,null,null,null,null,null,null,"071000091201 - Stump Creek"]
[null,null,null,null,null,null,null,"070802060603 - Sugar Creek"]
[null,null,null,null,null,null,null,"070600060902 - Sugar Creek"]
[null,null,null,null,null,null,null,"070801051205 - Sugar Creek"]
[null,null,null,null,null,null,null,"070801070801 - Sugar Creek"]
[null,null,null,null,null,null,null,"070801060203 - Sugar Creek"]
[null,null,null,null,null,null,null,"070802080404 - Sugar Creek"]
[null,null,null,null,null,null,null,"071000061701 - Sugar Creek"]
[null,null,null,null,null,null,null,"071000091103 - Sugar Creek"]
[null,null,null,null,null,null,null,"070802010605 - Sugar Creek-Cedar River"]
[null,null,null,null,null,null,null,"070801010406 - Sugar Creek-Mississippi River"]
[null,null,null,null,null,null,null,"070801050908 - Sugar Creek-South Skunk River"]
[null,null,null,null,null,null,null,"070801070708 - Summer Creek-Cedar Creek"]
[null,null,null,null,null,null,null,"071000061502 - Swan Lake Branch"]
[null,null,null,null,null,null,null,"102300010401 - Swanson Ditch-McCandless Cleghorn Ditch"]
[null,null,null,null,null,null,null,"071000061201 - Tank Pond"]
[null,null,null,null,null,null,null,"070600020207 - Ten Mile Creek"]
[null,null,null,null,null,null,null,"071000081508 - Teter Creek-Des Moines River"]
[null,null,null,null,null,null,null,"070600050204 - Tetes Des Morts Creek"]
[null,null,null,null,null,null,null,"102400090501 - Thompson Creek-Middle Nodaway River"]
[null,null,null,null,null,null,null,"102801020205 - Threemile Creek"]
[null,null,null,null,null,null,null,"102300031503 - Threemile Creek-Little Sioux River"]
[null,null,null,null,null,null,null,"102400090404 - Threemile Creek-West Nodaway River"]
[null,null,null,null,null,null,null,"070801051105 - Thunder Creek"]
[null,null,null,null,null,null,null,"070802080206 - Timber Creek"]
[null,null,null,null,null,null,null,"102300070605 - Timber Creek-Boyer River"]
[null,null,null,null,null,null,null,"070802070402 - Tipton Creek"]
[null,null,null,null,null,null,null,"102400120106 - Todd Branch-Platte River"]
[null,null,null,null,null,null,null,"071000080201 - Tom Creek"]
[null,null,null,null,null,null,null,"101702040701 - Tom Creek"]
[null,null,null,null,null,null,null,"070802080503 - Toogood Cemetery-Stein Creek"]
[null,null,null,null,null,null,null,"102400030703 - Town of Fremont"]
[null,null,null,null,null,null,null,"070600020107 - Town of Granger-Upper Iowa River"]
[null,null,null,null,null,null,null,"102400020208 - Town of Kirkman-West Nishnabotna River"]
[null,null,null,null,null,null,null,"071000070702 - Town of Monteith-South Raccoon River"]
[null,null,null,null,null,null,null,"070600010505 - Town of New Albin-Mississippi River"]
[null,null,null,null,null,null,null,"070802010505 - Town of Otranto-Cedar River"]
[null,null,null,null,null,null,null,"102400050603 - Town of Scott-Tarkio River"]
[null,null,null,null,null,null,null,"070802090501 - Town of Tilton"]
[null,null,null,null,null,null,null,"102400030202 - Town of Viola Center-East Nishnabotna River"]
[null,null,null,null,null,null,null,"070802080506 - Troublesome Creek-Salt Creek"]
[null,null,null,null,null,null,null,"070600020403 - Trout Creek"]
[null,null,null,null,null,null,null,"070600020405 - Trout Creek-Trout River"]
[null,null,null,null,null,null,null,"070600020406 - Trout River"]
[null,null,null,null,null,null,null,"070801070705 - Troy Creek"]
[null,null,null,null,null,null,null,"071000030704 - Trulner Creek"]
[null,null,null,null,null,null,null,"102300070211 - Tucker Creek-Boyer River"]
[null,null,null,null,null,null,null,"102801010405 - Tuckers Creek-Lotts Creek"]
[null,null,null,null,null,null,null,"071000091001 - Tug Fork-Big Indian Creek"]
[null,null,null,null,null,null,null,"102802010407 - Turkey Creek-Chariton River"]
[null,null,null,null,null,null,null,"070801050805 - Turkey Creek-Indian Creek"]
[null,null,null,null,null,null,null,"102400120107 - Turkey Creek-Platte River"]
[null,null,null,null,null,null,null,"070801070805 - Turkey Creek-Skunk River"]
[null,null,null,null,null,null,null,"070801060202 - Turner Creek-North Skunk River"]
[null,null,null,null,null,null,null,"070802010601 - Turtle Creek"]
[null,null,null,null,null,null,null,"102801020102 - Twelvemile Creek"]
[null,null,null,null,null,null,null,"070802050807 - Twelvemile Creek"]
[null,null,null,null,null,null,null,"070801041705 - Tyson Creek-Mississippi River"]
[null,null,null,null,null,null,null,"070200090104 - Union Slough Ditch"]
[null,null,null,null,null,null,null,"070200090102 - Union Slough National Wildlife Refuge-Union Slough Ditch"]
[null,null,null,null,null,null,null,"102300050201 - Unnamed Creek"]
[null,null,null,null,null,null,null,"070802010803 - Uphams Slough Creek-Little Cedar River"]
[null,null,null,null,null,null,null,"071000070301 - Upper Brushy Creek"]
[null,null,null,null,null,null,null,"071000090901 - Upper Chequest Creek"]
[null,null,null,null,null,null,null,"070802090101 - Upper Clear Creek"]
[null,null,null,null,null,null,null,"070801020401 - Upper Crane Creek"]
[null,null,null,null,null,null,null,"071000060601 - Upper Drainage Ditch No 9 "]
[null,null,null,null,null,null,null,"070801010301 - Upper Duck Creek"]
[null,null,null,null,null,null,null,"102300070101 - Upper East Boyer River"]
[null,null,null,null,null,null,null,"070801020301 - Upper East Branch Wapsipinicon River"]
[null,null,null,null,null,null,null,"102400020103 - Upper East Branch West Nishnabotna River"]
[null,null,null,null,null,null,null,"102400130101 - Upper East Fork One Hundred Two River"]
[null,null,null,null,null,null,null,"071000080101 - Upper Fourmile Creek"]
[null,null,null,null,null,null,null,"102400120201 - Upper Honey Creek"]
[null,null,null,null,null,null,null,"102400030403 - Upper Indian Creek"]
[null,null,null,null,null,null,null,"102400020401 - Upper Indian Creek"]
[null,null,null,null,null,null,null,"070600020606 - Upper Iowa River"]
[null,null,null,null,null,null,null,"071100010101 - Upper Little Fox River"]
[null,null,null,null,null,null,null,"070600030603 - Upper Little Maquoketa River"]
[null,null,null,null,null,null,null,"102801030101 - Upper Little Medicine Creek"]
[null,null,null,null,null,null,null,"070600040202 - Upper Little Turkey River"]
[null,null,null,null,null,null,null,"071000040301 - Upper Lizard Creek"]
[null,null,null,null,null,null,null,"071000070206 - Upper Middle Raccoon River"]
[null,null,null,null,null,null,null,"071000070501 - Upper Mosquito Creek"]
[null,null,null,null,null,null,null,"101702040401 - Upper Mud Creek"]
[null,null,null,null,null,null,null,"070802060501 - Upper Mud Creek"]
[null,null,null,null,null,null,null,"102801021101 - Upper Muddy Creek"]
[null,null,null,null,null,null,null,"070801010701 - Upper Muscatine Slough"]
[null,null,null,null,null,null,null,"071000040102 - Upper North Branch Lizard Creek"]
[null,null,null,null,null,null,null,"070802090402 - Upper North English River"]
[null,null,null,null,null,null,null,"071000081002 - Upper Otter Creek"]
[null,null,null,null,null,null,null,"102400050301 - Upper Rock Creek"]
[null,null,null,null,null,null,null,"102400090301 - Upper Sevenmile Creek"]
[null,null,null,null,null,null,null,"102400020602 - Upper Silver Creek"]
[null,null,null,null,null,null,null,"101702032001 - Upper Sixmile Creek"]
[null,null,null,null,null,null,null,"071000090602 - Upper Soap Creek"]
[null,null,null,null,null,null,null,"071000040201 - Upper South Branch Lizard Creek"]
[null,null,null,null,null,null,null,"070200090602 - Upper South Creek"]
[null,null,null,null,null,null,null,"070802090502 - Upper South English River"]
[null,null,null,null,null,null,null,"102802010102 - Upper South Fork Chariton River"]
[null,null,null,null,null,null,null,"070802070602 - Upper South Fork Iowa River"]
[null,null,null,null,null,null,null,"071100010802 - Upper South Wyaconda River"]
[null,null,null,null,null,null,null,"071000080802 - Upper Squaw Creek"]
[null,null,null,null,null,null,null,"102400030101 - Upper Troublesome Creek"]
[null,null,null,null,null,null,null,"102400030301 - Upper Turkey Creek"]
[null,null,null,null,null,null,null,"102400020702 - Upper Walnut Creek"]
[null,null,null,null,null,null,null,"102801010902 - Upper West Fork Big Creek"]
[null,null,null,null,null,null,null,"070801070101 - Upper West Fork Crooked Creek"]
[null,null,null,null,null,null,null,"102400090101 - Upper West Fork Middle Nodaway River"]
[null,null,null,null,null,null,null,"102400020204 - Upper West Fork West Nishnabotna River"]
[null,null,null,null,null,null,null,"102400050502 - Upper West Tarkio Creek"]
[null,null,null,null,null,null,null,"102300070401 - Upper Willow Creek"]
[null,null,null,null,null,null,null,"071000070101 - Upper Willow Creek"]
[null,null,null,null,null,null,null,"070600010903 - Upper Yellow River"]
[null,null,null,null,null,null,null,"071100010205 - Valley Branch-Fox River"]
[null,null,null,null,null,null,null,"070801051106 - Van Zante Creek-South Skunk River"]
[null,null,null,null,null,null,null,"070600010602 - Village Creek"]
[null,null,null,null,null,null,null,"071000090708 - Village Creek"]
[null,null,null,null,null,null,null,"070802070311 - Village of Alden-Iowa River"]
[null,null,null,null,null,null,null,"102300020306 - Village of Alton-Floyd River"]
[null,null,null,null,null,null,null,"070802080903 - Village of Belle Plaine-Iowa River"]
[null,null,null,null,null,null,null,"070801070706 - Village of Birminghan-Cedar Creek"]
[null,null,null,null,null,null,null,"070802080802 - Village of Brooklyn-Little Bear Creek"]
[null,null,null,null,null,null,null,"070600060606 - Village of Cascade-North Fork Maquoketa River"]
[null,null,null,null,null,null,null,"070802040401 - Village of Chapin-West Fork Cedar River"]
[null,null,null,null,null,null,null,"102300040206 - Village of Climbing Hill-West Fork Little Sioux River"]
[null,null,null,null,null,null,null,"070802050803 - Village of Conrad-Wolf Creek"]
[null,null,null,null,null,null,null,"070801020203 - Village of Deerfield-Wapsipinicon River"]
[null,null,null,null,null,null,null,"070801060601 - Village of Delta-North Skunk River"]
[null,null,null,null,null,null,null,"101702040606 - Village of Doon-Little Rock River"]
[null,null,null,null,null,null,null,"102300070203 - Village of Early-Boyer River"]
[null,null,null,null,null,null,null,"070600040703 - Village of Eldorado-Turkey River"]
[null,null,null,null,null,null,null,"070801050202 - Village of Ellsworth-South Skunk River"]
[null,null,null,null,null,null,null,"070801020505 - Village of Fairbank-Little Wapsipinicon River"]
[null,null,null,null,null,null,null,"071000061004 - Village of Farlin-Harrdin Creek"]
[null,null,null,null,null,null,null,"070802020605 - Village of Greene-Shell Rock River"]
[null,null,null,null,null,null,null,"101702031904 - Village of Inwood-Big Sioux River"]
[null,null,null,null,null,null,null,"070801020204 - Village of Ionia-Wapsipinicon River"]
[null,null,null,null,null,null,null,"071000030804 - Village of Irvington-East Fork Des Moines River"]
[null,null,null,null,null,null,null,"070802011205 - Village of Janesville-Cedar River"]
[null,null,null,null,null,null,null,"102300040205 - Village of Kingsley-West Fork Little Sioux River"]
[null,null,null,null,null,null,null,"101702031902 - Village of Klondike-Big Sioux River"]
[null,null,null,null,null,null,null,"070600040103 - Village of Lawler-Crane Creek"]
[null,null,null,null,null,null,null,"071000030902 - Village of Livermore-East Fork Des Moines River"]
[null,null,null,null,null,null,null,"070801060204 - Village of Lynnville-North Skunk River"]
[null,null,null,null,null,null,null,"102300020406 - Village of Maurice-West Branch Floyd River"]
[null,null,null,null,null,null,null,"102300020502 - Village of Merrill-Floyd River"]
[null,null,null,null,null,null,null,"070802010702 - Village of Meyer-Little Cedar River"]
[null,null,null,null,null,null,null,"102300020404 - Village of Middleburg-West Branch Floyd River"]
[null,null,null,null,null,null,null,"071000061504 - Village of Minburn-North Raccoon River"]
[null,null,null,null,null,null,null,"102400010102 - Village of Minden-Keg Creek"]
[null,null,null,null,null,null,null,"070801060403 - Village of New Sharon-North Skunk River"]
[null,null,null,null,null,null,null,"102300020305 - Village of Newkirk-Floyd River"]
[null,null,null,null,null,null,null,"070802020203 - Village of Northwood-Shell Rock River"]
[null,null,null,null,null,null,null,"070801020503 - Village of Oran-Little Wapsipinicon River"]
[null,null,null,null,null,null,null,"102300031408 - Village of Pierson"]
[null,null,null,null,null,null,null,"070802011203 - Village of Plainfield-Cedar River"]
[null,null,null,null,null,null,null,"070802020303 - Village of Plymouth-Shell Rock River"]
[null,null,null,null,null,null,null,"102300060402 - Village of Portsmouth-Mosquito Creek"]
[null,null,null,null,null,null,null,"070802050505 - Village of Reinbeck-Black Hawk Creek"]
[null,null,null,null,null,null,null,"102300010604 - Village of Soldier-Soldier River"]
[null,null,null,null,null,null,null,"070801020602 - Village of Tripoli-Wapsipinicon River"]
[null,null,null,null,null,null,null,"070802051402 - Village of Van Horne-Prairie Creek"]
[null,null,null,null,null,null,null,"070801070203 - Village of Winfield East Fork Crooked Creek"]
[null,null,null,null,null,null,null,"070801020903 - Village of Winthrop-Buffalo Creek"]
[null,null,null,null,null,null,null,"070801041805 - Waggoner Creek-Mississippi River"]
[null,null,null,null,null,null,null,"102802010107 - Walker Branch"]
[null,null,null,null,null,null,null,"071000060401 - Wall Lake Inlet"]
[null,null,null,null,null,null,null,"071000081509 - Wallingslock Creek-Des Moines River"]
[null,null,null,null,null,null,null,"070801030408 - Walnut Creek"]
[null,null,null,null,null,null,null,"102802010402 - Walnut Creek"]
[null,null,null,null,null,null,null,"071000081505 - Walnut Creek"]
[null,null,null,null,null,null,null,"070802080603 - Walnut Creek"]
[null,null,null,null,null,null,null,"070801070306 - Walnut Creek"]
[null,null,null,null,null,null,null,"071000061602 - Walnut Creek"]
[null,null,null,null,null,null,null,"102801010105 - Walnut Creek"]
[null,null,null,null,null,null,null,"070801050901 - Walnut Creek"]
[null,null,null,null,null,null,null,"071000090309 - Walnut Creek"]
[null,null,null,null,null,null,null,"102400010307 - Walnut Creek-Missouri River"]
[null,null,null,null,null,null,null,"070801021001 - Walton Creek-Wapsipinicon River"]
[null,null,null,null,null,null,null,"070802060705 - Wapsinonoc Creek"]
[null,null,null,null,null,null,null,"070801030607 - Wapsipinicon River"]
[null,null,null,null,null,null,null,"070600060705 - Washington Mills-Lytle Creek"]
[null,null,null,null,null,null,null,"070600020502 - Waterloo Creek"]
[null,null,null,null,null,null,null,"070802050702 - Waterloo Municipal Airport"]
[null,null,null,null,null,null,null,"102300031004 - Waterman Creek"]
[null,null,null,null,null,null,null,"070801020202 - Watsons Creek-Wapsipinicon River"]
[null,null,null,null,null,null,null,"102400010302 - Waubonsie Creek"]
[null,null,null,null,null,null,null,"070802051404 - Weasel Creek-Prairie Creek"]
[null,null,null,null,null,null,null,"071000091211 - Weaver Branch-Des Moines River"]
[null,null,null,null,null,null,null,"102801020802 - Weldon Creek-Weldon River"]
[null,null,null,null,null,null,null,"102300070304 - Welsh Creek-Boyer River"]
[null,null,null,null,null,null,null,"071000060901 - Welshs Slough"]
[null,null,null,null,null,null,null,"071000080608 - Welty Creek-Middle River"]
[null,null,null,null,null,null,null,"071000040902 - West Beaver Creek"]
[null,null,null,null,null,null,null,"070802040201 - West Branch Beaverdam Creek"]
[null,null,null,null,null,null,null,"070200090203 - West Branch Blue Earth River"]
[null,null,null,null,null,null,null,"070801020901 - West Branch Buffalo Creek"]
[null,null,null,null,null,null,null,"102801020203 - West Branch Creek"]
[null,null,null,null,null,null,null,"102300020408 - West Branch Floyd River"]
[null,null,null,null,null,null,null,"070802070104 - West Branch Iowa River"]
[null,null,null,null,null,null,null,"102300030104 - West Branch Little Sioux River"]
[null,null,null,null,null,null,null,"102300031201 - West Branch Mill Creek-Mill Creek"]
[null,null,null,null,null,null,null,"102400130203 - West Branch One Hundred Two River"]
[null,null,null,null,null,null,null,"071000070801 - West Branch Panther Creek"]
[null,null,null,null,null,null,null,"102300010301 - West Branch Perry Creek-Perry Creek"]
[null,null,null,null,null,null,null,"070801041601 - West Branch Sugar Creek"]
[null,null,null,null,null,null,null,"070802060702 - West Branch Wapsinonoc Creek"]
[null,null,null,null,null,null,null,"071000061203 - West Buttrick Creek"]
[null,null,null,null,null,null,null,"071000060902 - West Cedar Creek"]
[null,null,null,null,null,null,null,"102801020401 - West Elk Creek"]
[null,null,null,null,null,null,null,"071000060503 - West Fork Camp Creek"]
[null,null,null,null,null,null,null,"070802040607 - West Fork Cedar River"]
[null,null,null,null,null,null,null,"070802040402 - West Fork County Park-West Fork Cedar River"]
[null,null,null,null,null,null,null,"102300040407 - West Fork Ditch"]
[null,null,null,null,null,null,null,"102801030201 - West Fork Medicine Creek"]
[null,null,null,null,null,null,null,"102400130205 - West Fork One Hundred Two River"]
[null,null,null,null,null,null,null,"070801030203 - West Goose Lake-Wapsipinicon River"]
[null,null,null,null,null,null,null,"070801050502 - West Indian Creek"]
[null,null,null,null,null,null,null,"102802010103 - West Jackson Creek"]
[null,null,null,null,null,null,null,"070600060404 - West Kitty Creek"]
[null,null,null,null,null,null,null,"102802010206 - West Lake-Chariton River"]
[null,null,null,null,null,null,null,"102300040405 - West Laterals-Farmers Ditch"]
[null,null,null,null,null,null,null,"102801030703 - West Locust Creek"]
[null,null,null,null,null,null,null,"102801020301 - West Long Creek-Long Creek"]
[null,null,null,null,null,null,null,"102300030202 - West Okoboji Lake"]
[null,null,null,null,null,null,null,"071000050301 - West Otter Creek"]
[null,null,null,null,null,null,null,"070802051301 - West Otter Creek"]
[null,null,null,null,null,null,null,"102400120102 - West Platte River-Platte River"]
[null,null,null,null,null,null,null,"070802060301 - West Rock Creek-Rock Creek"]
[null,null,null,null,null,null,null,"101702032503 - Westfield Creek"]
[null,null,null,null,null,null,null,"070600010706 - Wexford Creek"]
[null,null,null,null,null,null,null,"070802030303 - Wharam Creek"]
[null,null,null,null,null,null,null,"070802070304 - Wheeler Creek"]
[null,null,null,null,null,null,null,"071000090308 - Whippoorwill Branch-Cedar Creek"]
[null,null,null,null,null,null,null,"071000090305 - Whippoorwill Creek"]
[null,null,null,null,null,null,null,"102300031206 - Whiskey Creek"]
[null,null,null,null,null,null,null,"070802020304 - Whiskey Creek-Shell Rock River"]
[null,null,null,null,null,null,null,"102300040103 - Whisky Creek"]
[null,null,null,null,null,null,null,"071000081405 - White Breast Creek"]
[null,null,null,null,null,null,null,"102400020801 - White Cloud-West Nishnabotna River"]
[null,null,null,null,null,null,null,"071000050503 - White Fox Creek"]
[null,null,null,null,null,null,null,"070801030104 - White Oak Creek-Walnut Creek"]
[null,null,null,null,null,null,null,"071000090306 - Whites Creek"]
[null,null,null,null,null,null,null,"070600060503 - Whitewater Creek"]
[null,null,null,null,null,null,null,"101702040604 - Whitney Creek-Little Rock River"]
[null,null,null,null,null,null,null,"070802051503 - Wildcat Bluff-Cedar River"]
[null,null,null,null,null,null,null,"070802051202 - Wildcat Creek"]
[null,null,null,null,null,null,null,"071000081507 - Wildcat Creek-Des Moines River"]
[null,null,null,null,null,null,null,"071000070205 - Willey Branch-Middle Raccoon River"]
[null,null,null,null,null,null,null,"102400090403 - Williams Creek"]
[null,null,null,null,null,null,null,"070801070205 - Williams Creek"]
[null,null,null,null,null,null,null,"102400020205 - Willow Creek"]
[null,null,null,null,null,null,null,"070802030302 - Willow Creek"]
[null,null,null,null,null,null,null,"102300020202 - Willow Creek"]
[null,null,null,null,null,null,null,"102300030902 - Willow Creek"]
[null,null,null,null,null,null,null,"102300031405 - Willow Creek-Little Sioux River"]
[null,null,null,null,null,null,null,"102300031207 - Willow Creek-Mill Creek"]
[null,null,null,null,null,null,null,"102400020505 - Willow Slough-West Nishnabotna River"]
[null,null,null,null,null,null,null,"070802050601 - Wilson Creek-Black Hawk Creek"]
[null,null,null,null,null,null,null,"070802030301 - Winans Creek"]
[null,null,null,null,null,null,null,"070802030402 - Winnebago River"]
[null,null,null,null,null,null,null,"070700051804 - Wisconsin River"]
[null,null,null,null,null,null,null,"102802010205 - Wolf Creek"]
[null,null,null,null,null,null,null,"070802050809 - Wolf Creek"]
[null,null,null,null,null,null,null,"102400030401 - Wolf Creek"]
[null,null,null,null,null,null,null,"102801010901 - Wolf Creek"]
[null,null,null,null,null,null,null,"071000081401 - Wolf Creek"]
[null,null,null,null,null,null,null,"070801050802 - Wolf Creek"]
[null,null,null,null,null,null,null,"070801070709 - Wolf Creek"]
[null,null,null,null,null,null,null,"070801070604 - Wolf Creek-Cedar Creek"]
[null,null,null,null,null,null,null,"102300020307 - Wolf Creek-Floyd River"]
[null,null,null,null,null,null,null,"102300040303 - Wolf Creek-Haitz Ditch"]
[null,null,null,null,null,null,null,"102801020206 - Wolf Creek-Thompson River"]
[null,null,null,null,null,null,null,"102400090702 - Wolf Run-West Nodaway River"]
[null,null,null,null,null,null,null,"070600040306 - Wonder Creek"]
[null,null,null,null,null,null,null,"070802010503 - Woodbury Creek"]
[null,null,null,null,null,null,null,"070801050307 - Worrell Creek-Squaw Creek"]
[null,null,null,null,null,null,null,"070801030406 - Yankee Run"]
[null,null,null,null,null,null,null,"071000081503 - Yeader Creek-Des Moines River"]
[null,null,null,null,null,null,null,"070801041102 - Yellow Spring Creek"]

{"sheet":"Matrix","index":17,"n_rows":1252,"n_cols":21,"rows_kept":1252,"cut":false,"hidden":true,"merged":[]}
["Source","Practice","Technique","Match","Min","Max","Score","Additional",null,"Source","Stream Type","ExtraMatch1","ExtraMatch2","Match","Min","Max","Color",null,null,"Source","Value"]
["Slope","Grade Control","Step-Pool Structure",null,null,1,-1,null,null,"Bank Height ratio",null,null,null,null,null,1.2,-1,null,{"$f":"VLOOKUP(Results[[#This Row],[Source]],DecisionMatrix[Source], 1, FALSE)","v":"Slope"},"Slope",{"$f":"ROUND(IF(ISBLANK(Design_Slope), ChannelSlope, Design_Slope), 5)","v":0}]
["Slope","Grade Control","Step-Pool Structure",null,1,2,0,null,null,"Bank Height ratio",null,null,null,null,1.2,1.5,-2,null,{"$f":"VLOOKUP(Results[[#This Row],[Source]],DecisionMatrix[Source], 1, FALSE)","v":"Bank Height Ratio"},"Bank Height Ratio",{"$f":"ROUND(IF(ISBLANK(Design_BankHeightRatio), BankHeightRatio, Design_BankHeightRatio),3)","v":{"$error":"#VALUE!"}}]
["Slope","Grade Control","Step-Pool Structure",null,2,null,1,null,null,"Bank Height ratio",null,null,null,null,1.5,null,-3,null,{"$f":"VLOOKUP(Results[[#This Row],[Source]],DecisionMatrix[Source], 1, FALSE)","v":"Width to Depth Ratio"},"Width to Depth Ratio",{"$f":"ROUND(IF(ISBLANK(Design_WidthDepthRatio), WidthDepthRatio, Design_WidthDepthRatio),3)","v":{"$error":"#VALUE!"}}]
["Slope","Grade Control","Rock Arch Rapids",null,null,2,-1,null,null,"Entrenchment ratio","C,Cb,Cc-,E",null,null,null,null,2,-3,null,{"$f":"VLOOKUP(Results[[#This Row],[Source]],DecisionMatrix[Source], 1, FALSE)","v":"Avg bankfull channel width"},"Avg bankfull channel width",{"$f":"ROUND(IF(ISBLANK(Design_BankfullWidth), BankfullWidth,Design_BankfullWidth),3)","v":0}]
["Slope","Grade Control","Rock Arch Rapids",null,2,4,1,null,null,"Entrenchment ratio","C,Cb,Cc-,E",null,null,null,2,2.2000000000000002,-2,null,{"$f":"VLOOKUP(Results[[#This Row],[Source]],DecisionMatrix[Source], 1, FALSE)","v":"Max BKF Channel Depth"},"Max BKF Channel Depth",{"$f":"ROUND(IF(ISBLANK(Design_MaxBankfullDepth), MaxBankfullDepth, Design_MaxBankfullDepth), 3)","v":0}]
["Slope","Grade Control","Rock Arch Rapids",null,4,null,-1,null,null,"Entrenchment ratio","C,Cb,Cc-,E",null,null,null,2.2000000000000002,null,-1,null,{"$f":"VLOOKUP(Results[[#This Row],[Source]],DecisionMatrix[Source], 1, FALSE)","v":"Bankfull Discharge"},"Bankfull Discharge",{"$f":"IF(ISBLANK(Design_BankfullDischarge), BankfullDischargeDesign,Design_BankfullDischarge)","v":0}]
["Slope","Grade Control","Cross Vane",null,null,0.1,-1,null,null,"Entrenchment ratio","B,Ba,Bc",null,null,null,null,1.2,-3,null,{"$f":"VLOOKUP(Results[[#This Row],[Source]],DecisionMatrix[Source], 1, FALSE)","v":"Entrenchment Ratio"},"Entrenchment Ratio",{"$f":"ROUND(IF(ISBLANK(Design_EntrenchmentRatio), EntrenchmentRatio, Design_EntrenchmentRatio), 3)","v":{"$error":"#VALUE!"}}]
["Slope","Grade Control","Cross Vane",null,0.1,0.5,0,null,null,"Entrenchment ratio","B,Ba,Bc",null,null,null,1.2,1.4,-2,null,{"$f":"VLOOKUP(Results[[#This Row],[Source]],DecisionMatrix[Source], 1, FALSE)","v":"Channel Evolutionary Stage"},"Channel Evolutionary Stage",{"$f":"ConvertStage(IF(ISBLANK(Design_EvolutionaryStage), EvolutionaryStage,Design_EvolutionaryStage) )","v":""}]
["Slope","Grade Control","Cross Vane",null,0.5,4,1,null,null,"Entrenchment ratio","B,Ba,Bc",null,null,null,1.4,null,-1,null,{"$f":"VLOOKUP(Results[[#This Row],[Source]],DecisionMatrix[Source], 1, FALSE)","v":"Nearby Infrastructure"},"Nearby Infrastructure",{"$f":"IF(ISBLANK(Design_NearbyInfrastructure), NearbyInfrastructure, Design_NearbyInfrastructure)","v":""}]
["Slope","Grade Control","Cross Vane",null,4,null,-1,null,null,"BV","C,Cb,E,Eb,Bc",null,null,null,3,6.0000000001,-1,null,{"$f":"VLOOKUP(Results[[#This Row],[Source]],DecisionMatrix[Source], 1, FALSE)","v":"Project Location - County (SW)"},"Project Location - County (SW)",{"$f":"CountySW(County)","v":"Yes"}]
["Slope","Grade Control","Rock & Log Riffle",null,null,4,1,null,null,"BV","C,Cb,E,Eb,Bc",null,null,null,6.0000000001,7.0000000001,-2,null,{"$f":"VLOOKUP(Results[[#This Row],[Source]],DecisionMatrix[Source], 1, FALSE)","v":"Length of Centerline"},"Length of Centerline",{"$f":"ROUND(IF(ISBLANK(Design_CenterlineLength), LengthCenterline/BankfullWidth, Design_CenterlineLength / Design_BankfullWidth), 3)","v":{"$error":"#DIV/0!"}}]
["Slope","Grade Control","Rock & Log Riffle",null,4,null,-1,null,null,"BV","C,Cb,E,Eb,Bc",null,null,null,2.5,3,-2,null,{"$f":"VLOOKUP(Results[[#This Row],[Source]],DecisionMatrix[Source], 1, FALSE)","v":"BEHI"},"BEHI",{"$f":"IF(ISBLANK(Design_BEHI), BEHI, Design_BEHI)","v":0}]
["Slope","Grade Control","W-Weir",null,null,0.1,-1,null,null,"BV","C,Cb,E,Eb,Bc",null,null,null,7.0000000001,null,-3,null,{"$f":"VLOOKUP(Results[[#This Row],[Source]],DecisionMatrix[Source], 1, FALSE)","v":"Dominant Bed Material"},"Dominant Bed Material",{"$f":"CleanString(IF(ISBLANK(Design_DominantBedMaterial), DominantBedMaterial, Design_DominantBedMaterial))","v":""}]
["Slope","Grade Control","W-Weir",null,0.1,0.5,0,null,null,"BV","C,Cb,E,Eb,Bc",null,null,null,null,2.5,-3,null,{"$f":"VLOOKUP(Results[[#This Row],[Source]],DecisionMatrix[Source], 1, FALSE)","v":"Knick Points within 2-4 Miles of Site"},"Knick Points within 2-4 Miles of Site",{"$f":"SignificantVerticalChange","v":0}]
["Slope","Grade Control","W-Weir",null,0.5,2,1,null,null,"BV","Cc-",null,null,null,null,3.0000000001,-1,null,{"$f":"VLOOKUP(Results[[#This Row],[Source]],DecisionMatrix[Source], 1, FALSE)","v":"Channel Forming Chute Cut-off"},"Channel Forming Chute Cut-off","N/A"]
["Slope","Grade Control","W-Weir",null,2,null,-1,null,null,"BV","Cc-",null,null,null,3.0000000001,5.0000000001,-2,null,{"$f":"VLOOKUP(Results[[#This Row],[Source]],DecisionMatrix[Source], 1, FALSE)","v":"Has the proposed stream been mechaniclly straightened or dredged"},"Has the proposed stream been mechaniclly straightened or dredged",{"$f":"StraightDredge","v":0}]
["Slope","Grade Control","Rock Constructed Riffle",null,0,4,1,null,null,"BV","Cc-",null,null,null,5.0000000001,null,-3,null,{"$f":"VLOOKUP(Results[[#This Row],[Source]],DecisionMatrix[Source], 1, FALSE)","v":"Presence of Large Woody Debris"},"Presence of Large Woody Debris",{"$f":"WoodyDebris","v":0}]
["Slope","Grade Control","Rock Constructed Riffle",null,4,null,-1,null,null,"BV","B,Ba",null,null,null,3.5,6.0000000001,-1,null,{"$f":"VLOOKUP(Results[[#This Row],[Source]],DecisionMatrix[Source], 1, FALSE)","v":"Percentage of Stream Covered by Tree Canopy"},"Percentage of Stream Covered by Tree Canopy",{"$f":"ConvertPercentage(TreeCanopyPercent)","v":0}]
["Slope","Grade Control","Grouted Grade Control",null,null,0.5,-1,null,null,"BV","B,Ba",null,null,null,6.0000000001,7.0000000001,-2,null,{"$f":"VLOOKUP(Results[[#This Row],[Source]],DecisionMatrix[Source], 1, FALSE)","v":"Mix of Velocity and Depth Patterns"},"Mix of Velocity and Depth Patterns",{"$f":"VelocityDepthMix","v":0}]
["Slope","Grade Control","Grouted Grade Control",null,0.5,8,1,null,null,"BV","B,Ba",null,null,null,3,3.5,-2,null,{"$f":"VLOOKUP(Results[[#This Row],[Source]],DecisionMatrix[Source], 1, FALSE)","v":"Known Fish Passage Blockages"},"Known Fish Passage Blockages",{"$f":"FishBlockage","v":0}]
["Slope","Grade Control","Grouted Grade Control",null,8,null,-1,null,null,"BV","B,Ba",null,null,null,7.0000000001,null,-3,null,{"$f":"VLOOKUP(Results[[#This Row],[Source]],DecisionMatrix[Source], 1, FALSE)","v":"Species of Special Concern"},"Species of Special Concern",{"$f":"SpeciesConcern","v":0}]
["Slope","Geomorphic Channel Design (GCD)","A",null,null,4,-1,null,null,"BV","B,Ba",null,null,null,null,3,-3,null,{"$f":"VLOOKUP(Results[[#This Row],[Source]],DecisionMatrix[Source], 1, FALSE)","v":"Man-Made Levees"},"Man-Made Levees",{"$f":"IF(ISBLANK(Design_Levees), Levees,Design_Levees)","v":0}]
["Slope","Geomorphic Channel Design (GCD)","A",null,4,8,1,null,null,"CES",null,null,null,null,null,2,-1,null,{"$f":"VLOOKUP(Results[[#This Row],[Source]],DecisionMatrix[Source], 1, FALSE)","v":"Has a Significant Change Occurred in Channel Path in Last 10 years"},"Has a Significant Change Occurred in Channel Path in Last 10 years",{"$f":"ChannelPathChange","v":0}]
["Slope","Geomorphic Channel Design (GCD)","A",null,8,null,-1,null,null,"CES",null,null,null,null,2,3,-2,null,{"$f":"VLOOKUP(Results[[#This Row],[Source]],DecisionMatrix[Source], 1, FALSE)","v":"Is there a vertical drop at outlet location"},"Is there a vertical drop at outlet location",{"$f":"OutletVerticalDrop","v":0}]
["Slope","Geomorphic Channel Design (GCD)","Aa+",null,null,8,-1,null,null,"CES",null,null,null,null,3,5,-3,null,{"$f":"VLOOKUP(Results[[#This Row],[Source]],DecisionMatrix[Source], 1, FALSE)","v":"What Percentage of Stream Banks Have Native Veg"},"What Percentage of Stream Banks Have Native Veg",{"$f":"ConvertPercentage(BankVegetationCoverage)","v":0}]
["Slope","Geomorphic Channel Design (GCD)","Aa+",null,8,null,1,null,null,"CES",null,null,null,null,5,6,-2,null,{"$f":"VLOOKUP(Results[[#This Row],[Source]],DecisionMatrix[Source], 1, FALSE)","v":"Drop in Elev from 0.5 mi Upstream to 0.5 mi Downstream"},"Drop in Elev from 0.5 mi Upstream to 0.5 mi Downstream",{"$f":"VerticalChange","v":0}]
["Slope","Geomorphic Channel Design (GCD)","Ab",null,null,2,-1,null,null,"CES",null,null,null,null,6,null,-1,null,{"$f":"VLOOKUP(Results[[#This Row],[Source]],DecisionMatrix[Source], 1, FALSE)","v":"Stream Type"},"Stream Type",{"$f":"RemoveMaterial(IF(ISBLANK(Design_StreamType), StreamType, Design_StreamType))","v":""}]
["Slope","Geomorphic Channel Design (GCD)","Ab",null,2,4,1,null,null,"RBEHI",null,null,null,"very low,low",null,null,-1,null,{"$f":"VLOOKUP(Results[[#This Row],[Source]],DecisionMatrix[Source], 1, FALSE)","v":"Number of Channels"},"Number of Channels",{"$f":"ChannelThreads(ChannelType)","v":"multiple"}]
["Slope","Geomorphic Channel Design (GCD)","Ab",null,4,null,-1,null,null,"RBEHI",null,null,null,"moderate,high",null,null,-2]
["Slope","Geomorphic Channel Design (GCD)","B",null,null,2,-1,null,null,"RBEHI",null,null,null,"*",null,null,-3]
["Slope","Geomorphic Channel Design (GCD)","B",null,2,4,1,null,null,"Meander Width Ratio","A,Aa+,Ab",null,null,null,1.5,null,-1]
["Slope","Geomorphic Channel Design (GCD)","B",null,4,null,-1,null,null,"Meander Width Ratio","A,Aa+,Ab",null,null,null,1,1.5,-2]
["Slope","Geomorphic Channel Design (GCD)","Ba",null,null,4,-1,null,null,"Meander Width Ratio","A,Aa+,Ab",null,null,null,-9999,null,-3]
["Slope","Geomorphic Channel Design (GCD)","Ba",null,4,8,1,null,null,"Meander Width Ratio","D",null,null,null,1.1000000000000001,null,-1]
["Slope","Geomorphic Channel Design (GCD)","Ba",null,8,null,-1,null,null,"Meander Width Ratio","D",null,null,null,1,1.1000000000000001,-2]
["Slope","Geomorphic Channel Design (GCD)","Bc",null,null,0.5,-1,null,null,"Meander Width Ratio","D",null,null,null,-9999,null,-3]
["Slope","Geomorphic Channel Design (GCD)","Bc",null,0.5,2,1,null,null,"Meander Width Ratio","B,Ba,Bc,G",null,null,null,3.7,null,-1]
["Slope","Geomorphic Channel Design (GCD)","Bc",null,2,null,-1,null,null,"Meander Width Ratio","B,Ba,Bc,G",null,null,null,2,3.7,-2]
["Slope","Geomorphic Channel Design (GCD)","C",null,null,2,1,null,null,"Meander Width Ratio","B,Ba,Bc,G",null,null,null,null,2,-3]
["Slope","Geomorphic Channel Design (GCD)","C",null,2,null,-1,null,null,"Meander Width Ratio","F",null,null,null,5.3,null,-1]
["Slope","Geomorphic Channel Design (GCD)","Cb",null,null,2,-1,null,null,"Meander Width Ratio","F",null,null,null,2,5.3,-2]
["Slope","Geomorphic Channel Design (GCD)","Cb",null,2,4,1,null,null,"Meander Width Ratio","F",null,null,null,2,null,-3]
["Slope","Geomorphic Channel Design (GCD)","Cb",null,4,null,-1,null,null,"Meander Width Ratio","C,Cc-,Cb,E",null,null,null,6,null,-1]
["Slope","Geomorphic Channel Design (GCD)","D",null,null,2,1,null,null,"Meander Width Ratio","C,Cc-,Cb,E",null,null,null,4,6,-2]
["Slope","Geomorphic Channel Design (GCD)","D",null,2,null,-1,null,null,"Meander Width Ratio","C,Cc-,Cb,E",null,null,null,null,4,-3]
["Slope","Geomorphic Channel Design (GCD)","DA",null,null,0.5,1,null,null,"Buffer Width",null,null,null,"Perennial Vegetation throughout Belt Width",null,null,-3]
["Slope","Geomorphic Channel Design (GCD)","DA",null,0.5,null,-1,null,null,"Buffer Width",null,null,null,"Perennial Vegetation 0 to 50 feet beyond Belt Width",null,null,-2]
["Slope","Geomorphic Channel Design (GCD)","E",null,null,2,1,null,null,"Buffer Width",null,null,null,"Perennial Vegetation >50 feet beyond Belt Width",null,null,-1]
["Slope","Geomorphic Channel Design (GCD)","E",null,2,null,-1,null,null,"Pool to Pool Spacing Ratio","A,Aa+,B,Ba",null,null,null,null,5.0000000001,-1]
["Slope","Toe Protection/Stabilization","Toe Wood",null,null,4,1,null,null,"Pool to Pool Spacing Ratio","A,Aa+,B,Ba",null,null,null,5.0000000001,6.0000000001,-2]
["Slope","Toe Protection/Stabilization","Toe Wood",null,4,null,-1,null,null,"Pool to Pool Spacing Ratio","A,Aa+,B,Ba",null,null,null,6.0000000001,null,-3]
["Slope","Toe Protection/Stabilization","Stone Toe Protection","*",-9999,null,1,null,null,"Pool to Pool Spacing Ratio","Bc",null,null,null,null,6.0000000001,-1]
["Slope","Toe Protection/Stabilization","Fabric Encapsulated Soil Lifts","*",-9999,null,1,null,null,"Pool to Pool Spacing Ratio","Bc",null,null,null,6.0000000001,7.2000000000100002,-2]
["Slope","Toe Protection/Stabilization","Log Vane with Boulder Hook",null,null,0.1,0,null,null,"Pool to Pool Spacing Ratio","Bc",null,null,null,7.2000000000100002,null,-3]
["Slope","Toe Protection/Stabilization","Log Vane with Boulder Hook",null,0.1,4,1,null,null,"Pool to Pool Spacing Ratio","C,Cb,Cc-,E,Eb",null,null,null,2.75,6.9000000000100004,-1]
["Slope","Toe Protection/Stabilization","Log Vane with Boulder Hook",null,4,null,-1,null,null,"Pool to Pool Spacing Ratio","C,Cb,Cc-,E,Eb",null,null,null,6.9000000000100004,8.1000000000100005,-2]
["Slope","Toe Protection/Stabilization","Single & Double Wing Deflector",null,null,0.1,0,null,null,"Pool to Pool Spacing Ratio","C,Cb,Cc-,E,Eb",null,null,null,1.75,2.75,-2]
["Slope","Toe Protection/Stabilization","Single & Double Wing Deflector",null,0.1,4,1,null,null,"Pool to Pool Spacing Ratio","C,Cb,Cc-,E,Eb",null,null,null,8.1000000000100005,null,-3]
["Slope","Toe Protection/Stabilization","Single & Double Wing Deflector",null,4,null,-1,null,null,"Pool to Pool Spacing Ratio","C,Cb,Cc-,E,Eb",null,null,null,null,1.75,-3]
["Slope","Toe Protection/Stabilization","Vegetated Banks","*",-9999,null,1,null,null,"PMDR","C,Cc-,Cb,E,Eb","Gravel",null,null,1.5,null,-1]
["Slope","Aquatic Habitat/Cover Feature","Lunkers",null,null,4,1,null,null,"PMDR","C,Cc-,Cb,E,Eb","Gravel",null,null,1.2,1.5,-2]
["Slope","Aquatic Habitat/Cover Feature","Lunkers",null,4,null,-1,null,null,"PMDR","C,Cc-,Cb,E,Eb","Gravel",null,null,null,1.2,-3]
["Slope","Aquatic Habitat/Cover Feature","Boulder/Rock Clusters",null,null,0.1,0,null,null,"PMDR","C,Cc-,Cb,E,Eb","Sand",null,null,1.2,null,-1]
["Slope","Aquatic Habitat/Cover Feature","Boulder/Rock Clusters",null,0.1,4,1,null,null,"PMDR","C,Cc-,Cb,E,Eb","Sand",null,null,1.1000000000000001,1.2,-2]
["Slope","Aquatic Habitat/Cover Feature","Boulder/Rock Clusters",null,4,null,0,null,null,"PMDR","C,Cc-,Cb,E,Eb","Sand",null,null,null,1.1000000000000001,-3]
["Slope","Aquatic Habitat/Cover Feature","Locked Logs",null,null,0.1,0,null,null,"PMDR","B,Ba,Bc",null,null,null,1.5,null,-1]
["Slope","Aquatic Habitat/Cover Feature","Locked Logs",null,0.1,4,1,null,null,"PMDR","B,Ba,Bc",null,null,null,1.2,1.5,-2]
["Slope","Aquatic Habitat/Cover Feature","Locked Logs",null,4,8,0,null,null,"PMDR","B,Ba,Bc",null,null,null,null,1.2,-3]
["Slope","Aquatic Habitat/Cover Feature","Locked Logs",null,8,null,-1,null,null,"Stream Type",null,null,null,"A,B,Bc,C,DA,E",null,null,-1]
["Slope","Aquatic Habitat/Cover Feature","Large Woody Debris",null,null,4,1,null,null,"Stream Type",null,null,null,"Aa+,Ba",null,null,-2]
["Slope","Aquatic Habitat/Cover Feature","Large Woody Debris",null,4,null,-1,null,null,"Stream Type",null,null,null,"F,Fb,G,Gc",null,null,-3]
["Slope","Aquatic Habitat/Cover Feature","Root Wads",null,null,4,1,null,null,"Ratio of Rc/WBKF",null,null,null,null,null,2,-3]
["Slope","Aquatic Habitat/Cover Feature","Root Wads",null,4,null,-1,null,null,"Ratio of Rc/WBKF",null,null,null,null,2,3,-2]
["Slope","Aquatic Habitat/Cover Feature","Submerged Crib Wall",null,null,4,1,null,null,"Ratio of Rc/WBKF",null,null,null,null,3,null,-1]
["Slope","Aquatic Habitat/Cover Feature","Submerged Crib Wall",null,4,null,-1,null,null,"Regional Curve % Error",null,null,null,null,30,null,-3]
["Slope","Channel Definition Structure","Cut-Off Sills",null,null,2,1,null,null,"Regional Curve % Error",null,null,null,null,15,30,-2]
["Slope","Channel Definition Structure","Cut-Off Sills",null,2,4,0,null,null,"Regional Curve % Error",null,null,null,null,null,15,-1]
["Slope","Channel Definition Structure","Cut-Off Sills",null,4,null,-1,null,null,"Width to Depth Ratio","A,Ab",null,null,null,10,12.01,-1]
["Slope","Channel Definition Structure","Engineered Log Jams",null,null,2,1,null,null,"Width to Depth Ratio","A,Ab",null,null,null,8,10,-2]
["Slope","Channel Definition Structure","Engineered Log Jams",null,2,4,0,null,null,"Width to Depth Ratio","A,Ab",null,null,null,12.01,14.01,-2]
["Slope","Channel Definition Structure","Engineered Log Jams",null,4,null,-1,null,null,"Width to Depth Ratio","A,Ab",null,null,null,0,8,-3]
["Slope","Channel Definition Structure","Longitudinal Peaked Stone Toe",null,null,2,1,null,null,"Width to Depth Ratio","A,Ab",null,null,null,14.01,null,-3]
["Slope","Channel Definition Structure","Longitudinal Peaked Stone Toe",null,2,4,0,null,null,"Width to Depth Ratio","B",null,null,null,12,16.010000000000002,-1]
["Slope","Channel Definition Structure","Longitudinal Peaked Stone Toe",null,4,null,-1,null,null,"Width to Depth Ratio","B",null,null,null,10,12,-2]
["Slope","Channel Definition Structure","Bendway Weirs",null,null,2,1,null,null,"Width to Depth Ratio","B",null,null,null,16.010000000000002,20.010000000000002,-2]
["Slope","Channel Definition Structure","Bendway Weirs",null,2,4,0,null,null,"Width to Depth Ratio","B",null,null,null,0,10,-3]
["Slope","Channel Definition Structure","Bendway Weirs",null,4,null,-1,null,null,"Width to Depth Ratio","B",null,null,null,20.010000000000002,null,-3]
["Slope","Channel Definition Structure","Stream Barbs",null,null,2,1,null,null,"Width to Depth Ratio","Bc",null,null,null,12,20.010000000000002,-1]
["Slope","Channel Definition Structure","Stream Barbs",null,2,4,0,null,null,"Width to Depth Ratio","Bc",null,null,null,10,12,-2]
["Slope","Channel Definition Structure","Stream Barbs",null,4,null,-1,null,null,"Width to Depth Ratio","Bc",null,null,null,20.010000000000002,26.01,-2]
["Slope","Channel Definition Structure","J-Hook Vane/Straight Vane",null,null,2,1,null,null,"Width to Depth Ratio","Bc",null,null,null,0,10,-3]
["Slope","Channel Definition Structure","J-Hook Vane/Straight Vane",null,2,4,0,null,null,"Width to Depth Ratio","Bc",null,null,null,26.01,null,-3]
["Slope","Channel Definition Structure","J-Hook Vane/Straight Vane",null,4,null,-1,null,null,"Width to Depth Ratio","C,Cc-",null,null,null,16,28.01,-1]
["Slope","Bank and Floodplain Restoration","*","*",-9999,null,1,null,null,"Width to Depth Ratio","C,Cc-",null,null,null,10,16,-2]
["Slope","Vegetation Restoration","*","*",-9999,null,1,null,null,"Width to Depth Ratio","C,Cc-",null,null,null,28.01,36.01,-2]
["Slope","Riparian Buffering","*","*",-9999,null,1,null,null,"Width to Depth Ratio","C,Cc-",null,null,null,0,10,-3]
[null,null,null,null,null,null,null,null,null,"Width to Depth Ratio","C,Cc-",null,null,null,36.01,null,-3]
["Bank Height Ratio","Grade Control","Step-Pool Structure",null,null,1.5,1,null,null,"Width to Depth Ratio","D,DA"]
["Bank Height Ratio","Grade Control","Step-Pool Structure",null,1.5,null,0,-1,null,"Width to Depth Ratio","E",null,null,null,10,14.01,-1]
["Bank Height Ratio","Grade Control","Rock Arch Rapids",null,null,1.2,1,null,null,"Width to Depth Ratio","E",null,null,null,6,10,-2]
["Bank Height Ratio","Grade Control","Rock Arch Rapids",null,1.2,null,0,-1,null,"Width to Depth Ratio","E",null,null,null,0,6,-3]
["Bank Height Ratio","Grade Control","Cross Vane",null,null,1.2,1,null,null,"Width to Depth Ratio","E",null,null,null,14.01,null,-3]
["Bank Height Ratio","Grade Control","Cross Vane",null,1.2,null,0,-1,null,"Width to Depth Ratio","G,Gc",null,null,null,null,null,-3]
["Bank Height Ratio","Grade Control","Rock & Log Riffle",null,null,1.2,1,null,null,"Width to Depth Ratio","F,Fb",null,null,null,null,null,-3]
["Bank Height Ratio","Grade Control","Rock & Log Riffle",null,1.2,null,0,-1]
["Bank Height Ratio","Grade Control","W-Weir",null,null,1.2,1]
["Bank Height Ratio","Grade Control","W-Weir",null,1.2,null,0,-1]
["Bank Height Ratio","Grade Control","Rock Constructed Riffle",null,null,1.2,1]
["Bank Height Ratio","Grade Control","Rock Constructed Riffle",null,1.2,null,0,-1]
["Bank Height Ratio","Grade Control","Grouted Grade Control",null,null,1,0,-1]
["Bank Height Ratio","Grade Control","Grouted Grade Control",null,1,1.2,1]
["Bank Height Ratio","Grade Control","Grouted Grade Control",null,1.2,null,0,-1]
["Bank Height Ratio","Toe Protection/Stabilization","Toe Wood",null,null,1.5,1]
["Bank Height Ratio","Toe Protection/Stabilization","Toe Wood",null,1.5,null,0,-1]
["Bank Height Ratio","Toe Protection/Stabilization","Stone Toe Protection",null,null,1.5,1]
["Bank Height Ratio","Toe Protection/Stabilization","Stone Toe Protection",null,1.5,null,0,-1]
["Bank Height Ratio","Toe Protection/Stabilization","Fabric Encapsulated Soil Lifts",null,null,1.5,1]
["Bank Height Ratio","Toe Protection/Stabilization","Fabric Encapsulated Soil Lifts",null,1.5,null,0,-1]
["Bank Height Ratio","Toe Protection/Stabilization","Log Vane with Boulder Hook",null,null,1.2,1]
["Bank Height Ratio","Toe Protection/Stabilization","Log Vane with Boulder Hook",null,1.2,null,0,-1]
["Bank Height Ratio","Toe Protection/Stabilization","Single & Double Wing Deflector",null,null,1.2,1]
["Bank Height Ratio","Toe Protection/Stabilization","Single & Double Wing Deflector",null,1.2,null,0,-1]
["Bank Height Ratio","Toe Protection/Stabilization","Vegetated Banks","*",-9999,null,1]
["Bank Height Ratio","Bank and Floodplain Restoration","Bank Sloping (5:1, 4:1, 3:1, 2:1)","*",-9999,null,1]
["Bank Height Ratio","Bank and Floodplain Restoration","Bankfull Bench",null,null,1,-1]
["Bank Height Ratio","Bank and Floodplain Restoration","Bankfull Bench",null,1,null,1]
["Bank Height Ratio","Bank and Floodplain Restoration","Levee Setback or Removal","*",-9999,null,1]
["Bank Height Ratio","Bank and Floodplain Restoration","Multi-Stage Channel","*",-9999,null,1]
["Bank Height Ratio","Bank and Floodplain Restoration","Oxbow",null,null,1.2,1]
["Bank Height Ratio","Bank and Floodplain Restoration","Oxbow",null,1.2,null,0,-1]
["Bank Height Ratio","Bank and Floodplain Restoration","Floodplain Assemblages",null,null,1.2,1]
["Bank Height Ratio","Bank and Floodplain Restoration","Floodplain Assemblages",null,1.2,null,0,-1]
["Bank Height Ratio","Channel Definition Structure","Cut-Off Sills",null,null,1.2,1]
["Bank Height Ratio","Channel Definition Structure","Cut-Off Sills",null,1.2,1.5,0,-1]
["Bank Height Ratio","Channel Definition Structure","Cut-Off Sills",null,1.5,null,-1]
["Bank Height Ratio","Channel Definition Structure","Engineered Log Jams",null,null,1.2,1]
["Bank Height Ratio","Channel Definition Structure","Engineered Log Jams",null,1.2,1.5,0,-1]
["Bank Height Ratio","Channel Definition Structure","Engineered Log Jams",null,1.5,null,-1]
["Bank Height Ratio","Channel Definition Structure","Longitudinal Peaked Stone Toe",null,null,1,-1]
["Bank Height Ratio","Channel Definition Structure","Longitudinal Peaked Stone Toe",null,1,1.5,1]
["Bank Height Ratio","Channel Definition Structure","Longitudinal Peaked Stone Toe",null,1.2,null,0,-1]
["Bank Height Ratio","Channel Definition Structure","Bendway Weirs",null,null,1.5,1]
["Bank Height Ratio","Channel Definition Structure","Bendway Weirs",null,1.5,null,-1]
["Bank Height Ratio","Channel Definition Structure","Stream Barbs",null,null,1.5,1]
["Bank Height Ratio","Channel Definition Structure","Stream Barbs",null,1.5,null,-1]
["Bank Height Ratio","Channel Definition Structure","J-Hook Vane/Straight Vane",null,null,1.2,1]
["Bank Height Ratio","Channel Definition Structure","J-Hook Vane/Straight Vane",null,1.2,1.5,0,-1]
["Bank Height Ratio","Channel Definition Structure","J-Hook Vane/Straight Vane",null,1.5,null,-1]
["Bank Height Ratio","Aquatic Habitat/Cover Feature","Lunkers",null,null,1.2,1]
["Bank Height Ratio","Aquatic Habitat/Cover Feature","Lunkers",null,1.2,1.5,0,-1]
["Bank Height Ratio","Aquatic Habitat/Cover Feature","Lunkers",null,1.5,null,-1]
["Bank Height Ratio","Aquatic Habitat/Cover Feature","Boulder/Rock Clusters",null,null,1.2,1]
["Bank Height Ratio","Aquatic Habitat/Cover Feature","Boulder/Rock Clusters",null,1.2,1.5,0,-1]
["Bank Height Ratio","Aquatic Habitat/Cover Feature","Boulder/Rock Clusters",null,1.5,null,-1]
["Bank Height Ratio","Aquatic Habitat/Cover Feature","Locked Logs",null,null,1.2,1]
["Bank Height Ratio","Aquatic Habitat/Cover Feature","Locked Logs",null,1.2,1.5,0,-1]
["Bank Height Ratio","Aquatic Habitat/Cover Feature","Locked Logs",null,1.5,null,-1]
["Bank Height Ratio","Aquatic Habitat/Cover Feature","Large Woody Debris",null,null,1.2,1]
["Bank Height Ratio","Aquatic Habitat/Cover Feature","Large Woody Debris",null,1.2,1.5,0,-1]
["Bank Height Ratio","Aquatic Habitat/Cover Feature","Large Woody Debris",null,1.5,null,-1]
["Bank Height Ratio","Aquatic Habitat/Cover Feature","Root Wads",null,null,1.2,1]
["Bank Height Ratio","Aquatic Habitat/Cover Feature","Root Wads",null,1.2,1.5,0,-1]
["Bank Height Ratio","Aquatic Habitat/Cover Feature","Root Wads",null,1.5,null,-1]
["Bank Height Ratio","Aquatic Habitat/Cover Feature","Submerged Crib Wall",null,null,1.2,1]
["Bank Height Ratio","Aquatic Habitat/Cover Feature","Submerged Crib Wall",null,1.2,1.5,0,-1]
["Bank Height Ratio","Aquatic Habitat/Cover Feature","Submerged Crib Wall",null,1.5,null,-1]
["Bank Height Ratio","Geomorphic Channel Design (GCD)","*","*",-9999,null,1]
["Bank Height Ratio","Vegetation Restoration","*","*",-9999,null,1]
["Bank Height Ratio","Riparian Buffering","*","*",-9999,null,1]
[]
["Width to Depth Ratio","Grade Control","Step-Pool Structure",null,null,40,1]
["Width to Depth Ratio","Grade Control","Step-Pool Structure",null,40,null,0]
["Width to Depth Ratio","Grade Control","Rock Arch Rapids",null,null,12,0]
["Width to Depth Ratio","Grade Control","Rock Arch Rapids",null,12,null,1]
["Width to Depth Ratio","Grade Control","Cross Vane",null,null,12,0]
["Width to Depth Ratio","Grade Control","Cross Vane",null,12,40,1]
["Width to Depth Ratio","Grade Control","Cross Vane",null,40,null,0]
["Width to Depth Ratio","Grade Control","Rock & Log Riffle","*",-9999,null,1]
["Width to Depth Ratio","Grade Control","W-Weir",null,null,12,0]
["Width to Depth Ratio","Grade Control","W-Weir",null,12,40,1]
["Width to Depth Ratio","Grade Control","W-Weir",null,40,null,0]
["Width to Depth Ratio","Grade Control","Rock Constructed Riffle","*",-9999,null,1]
["Width to Depth Ratio","Grade Control","Grouted Grade Control",null,null,12,0]
["Width to Depth Ratio","Grade Control","Grouted Grade Control",null,12,40,1]
["Width to Depth Ratio","Grade Control","Grouted Grade Control",null,40,null,0]
["Width to Depth Ratio","Aquatic Habitat/Cover Feature","Lunkers","*",-9999,null,1]
["Width to Depth Ratio","Aquatic Habitat/Cover Feature","Boulder/Rock Clusters",null,null,12,0]
["Width to Depth Ratio","Aquatic Habitat/Cover Feature","Boulder/Rock Clusters",null,12,null,1]
["Width to Depth Ratio","Aquatic Habitat/Cover Feature","Locked Logs",null,null,12,0]
["Width to Depth Ratio","Aquatic Habitat/Cover Feature","Locked Logs",null,12,null,1]
["Width to Depth Ratio","Aquatic Habitat/Cover Feature","Large Woody Debris","*",-9999,null,1]
["Width to Depth Ratio","Aquatic Habitat/Cover Feature","Root Wads","*",-9999,null,1]
["Width to Depth Ratio","Aquatic Habitat/Cover Feature","Submerged Crib Wall","*",-9999,null,1]
["Width to Depth Ratio","Toe Protection/Stabilization","Toe wood","*",-9999,null,1]
["Width to Depth Ratio","Toe Protection/Stabilization","Stone Toe Protection","*",-9999,null,1]
["Width to Depth Ratio","Toe Protection/Stabilization","Fabric Encapsulated Soil Lifts","*",-9999,null,1]
["Width to Depth Ratio","Toe Protection/Stabilization","Log Vane with Boulder Hook","*",-9999,null,1]
["Width to Depth Ratio","Toe Protection/Stabilization","Single & Double Wing Deflector",null,null,12,0]
["Width to Depth Ratio","Toe Protection/Stabilization","Single & Double Wing Deflector",null,12,null,1]
["Width to Depth Ratio","Toe Protection/Stabilization","Vegetated Banks","*",-9999,null,1]
["Width to Depth Ratio","Channel Definition Structure","Cut-Off Sills","*",-9999,null,1]
["Width to Depth Ratio","Channel Definition Structure","Engineered Log Jams",null,null,16,0]
["Width to Depth Ratio","Channel Definition Structure","Engineered Log Jams",null,16,null,1]
["Width to Depth Ratio","Channel Definition Structure","Longitudinal Peaked Stone Toe",null,null,12,0]
["Width to Depth Ratio","Channel Definition Structure","Longitudinal Peaked Stone Toe",null,12,null,1]
["Width to Depth Ratio","Channel Definition Structure","Bendway Weirs",null,null,12,0]
["Width to Depth Ratio","Channel Definition Structure","Bendway Weirs",null,12,null,1]
["Width to Depth Ratio","Channel Definition Structure","Stream Barbs",null,null,12,0]
["Width to Depth Ratio","Channel Definition Structure","Stream Barbs",null,12,null,1]
["Width to Depth Ratio","Channel Definition Structure","J-Hook Vane/Straight Vane",null,null,12,0]
["Width to Depth Ratio","Channel Definition Structure","J-Hook Vane/Straight Vane",null,12,null,1]
["Width to Depth Ratio","Geomorphic Channel Design (GCD)","A",null,null,12,1]
["Width to Depth Ratio","Geomorphic Channel Design (GCD)","A",null,12,null,-1]
["Width to Depth Ratio","Geomorphic Channel Design (GCD)","Aa+",null,null,12,1]
["Width to Depth Ratio","Geomorphic Channel Design (GCD)","Aa+",null,12,null,-1]
["Width to Depth Ratio","Geomorphic Channel Design (GCD)","Ab",null,null,12,1]
["Width to Depth Ratio","Geomorphic Channel Design (GCD)","Ab",null,12,null,-1]
["Width to Depth Ratio","Geomorphic Channel Design (GCD)","B",null,null,12,-1]
["Width to Depth Ratio","Geomorphic Channel Design (GCD)","B",null,12,null,1]
["Width to Depth Ratio","Geomorphic Channel Design (GCD)","Ba",null,null,12,-1]
["Width to Depth Ratio","Geomorphic Channel Design (GCD)","Ba",null,12,null,1]
["Width to Depth Ratio","Geomorphic Channel Design (GCD)","Bc",null,null,12,-1]
["Width to Depth Ratio","Geomorphic Channel Design (GCD)","Bc",null,12,null,1]
["Width to Depth Ratio","Geomorphic Channel Design (GCD)","C",null,null,12,-1]
["Width to Depth Ratio","Geomorphic Channel Design (GCD)","C",null,12,null,1]
["Width to Depth Ratio","Geomorphic Channel Design (GCD)","D",null,null,40,-1]
["Width to Depth Ratio","Geomorphic Channel Design (GCD)","D",null,40,null,1]
["Width to Depth Ratio","Geomorphic Channel Design (GCD)","DA",null,null,12,-1]
["Width to Depth Ratio","Geomorphic Channel Design (GCD)","DA",null,12,null,1]
["Width to Depth Ratio","Geomorphic Channel Design (GCD)","E",null,null,12,1]
["Width to Depth Ratio","Geomorphic Channel Design (GCD)","E",null,12,null,-1]
["Width to Depth Ratio","Geomorphic Channel Design (GCD)","*","*",-9999,null,1]
["Width to Depth Ratio","Vegetation Restoration","*","*",-9999,null,1]
["Width to Depth Ratio","Riparian Buffering","*","*",-9999,null,1]
["Width to Depth Ratio","Bank and Floodplain Restoration","*","*",-9999,null,1]
[]
["Avg bankfull channel width","Grade Control","Step-Pool Structure",null,null,30,1]
["Avg bankfull channel width","Grade Control","Step-Pool Structure",null,30,50,0]
["Avg bankfull channel width","Grade Control","Step-Pool Structure",null,50,null,-1]
["Avg bankfull channel width","Grade Control","Rock Arch Rapids",null,null,15,-1]
["Avg bankfull channel width","Grade Control","Rock Arch Rapids",null,15,null,1]
["Avg bankfull channel width","Grade Control","Cross Vane",null,null,5,-1]
["Avg bankfull channel width","Grade Control","Cross Vane",null,5,50,1]
["Avg bankfull channel width","Grade Control","Cross Vane",null,50,null,-1]
["Avg bankfull channel width","Grade Control","Rock & Log Riffle","*",-9999,null,1]
["Avg bankfull channel width","Grade Control","W-Weir",null,null,15,-1]
["Avg bankfull channel width","Grade Control","W-Weir",null,15,30,0]
["Avg bankfull channel width","Grade Control","W-Weir",null,30,null,1]
["Avg bankfull channel width","Grade Control","Rock Constructed Riffle","*",-9999,null,1]
["Avg bankfull channel width","Grade Control","Grouted Grade Control",null,null,5,0]
["Avg bankfull channel width","Grade Control","Grouted Grade Control",null,5,null,1]
["Avg bankfull channel width","Aquatic Habitat/Cover Feature","Lunkers",null,null,5,-1]
["Avg bankfull channel width","Aquatic Habitat/Cover Feature","Lunkers",null,5,null,1]
["Avg bankfull channel width","Aquatic Habitat/Cover Feature","Boulder/Rock Clusters",null,null,5,-1]
["Avg bankfull channel width","Aquatic Habitat/Cover Feature","Boulder/Rock Clusters",null,5,null,1]
["Avg bankfull channel width","Aquatic Habitat/Cover Feature","Locked Logs",null,null,15,0]
["Avg bankfull channel width","Aquatic Habitat/Cover Feature","Locked Logs",null,15,null,1]
["Avg bankfull channel width","Aquatic Habitat/Cover Feature","Large Woody Debris","*",-9999,null,1]
["Avg bankfull channel width","Aquatic Habitat/Cover Feature","Root Wads","*",-9999,null,1]
["Avg bankfull channel width","Aquatic Habitat/Cover Feature","Submerged Crib Wall",null,null,5,-1]
["Avg bankfull channel width","Aquatic Habitat/Cover Feature","Submerged Crib Wall",null,5,null,1]
["Avg bankfull channel width","Toe Protection/Stabilization","Toe wood","*",-9999,null,1]
["Avg bankfull channel width","Toe Protection/Stabilization","Stone Toe Protection","*",-9999,null,1]
["Avg bankfull channel width","Toe Protection/Stabilization","Fabric Encapsulated Soil Lifts","*",-9999,null,1]
["Avg bankfull channel width","Toe Protection/Stabilization","Log Vane with Boulder Hook",null,null,5,-1]
["Avg bankfull channel width","Toe Protection/Stabilization","Log Vane with Boulder Hook",null,5,null,1]
["Avg bankfull channel width","Toe Protection/Stabilization","Single & Double Wing Deflector",null,null,5,-1]
["Avg bankfull channel width","Toe Protection/Stabilization","Single & Double Wing Deflector",null,5,15,0]
["Avg bankfull channel width","Toe Protection/Stabilization","Single & Double Wing Deflector",null,15,null,1]
["Avg bankfull channel width","Toe Protection/Stabilization","Vegetated Banks","*",-9999,null,1]
["Avg bankfull channel width","Channel Definition Structure","Cut-Off Sills",null,null,5,-1]
["Avg bankfull channel width","Channel Definition Structure","Cut-Off Sills",null,5,15,0]
["Avg bankfull channel width","Channel Definition Structure","Cut-Off Sills",null,15,null,1]
["Avg bankfull channel width","Channel Definition Structure","Engineered Log Jams",null,null,15,0]
["Avg bankfull channel width","Channel Definition Structure","Engineered Log Jams",null,15,null,1]
["Avg bankfull channel width","Channel Definition Structure","Longitudinal Peaked Stone Toe",null,null,15,-1]
["Avg bankfull channel width","Channel Definition Structure","Longitudinal Peaked Stone Toe",null,15,null,1]
["Avg bankfull channel width","Channel Definition Structure","Bendway Weirs",null,null,15,-1]
["Avg bankfull channel width","Channel Definition Structure","Bendway Weirs",null,15,null,1]
["Avg bankfull channel width","Channel Definition Structure","Stream Barbs",null,null,15,-1]
["Avg bankfull channel width","Channel Definition Structure","Stream Barbs",null,15,null,1]
["Avg bankfull channel width","Channel Definition Structure","J-Hook Vane/Straight Vane",null,null,5,-1]
["Avg bankfull channel width","Channel Definition Structure","J-Hook Vane/Straight Vane",null,5,null,1]
["Avg bankfull channel width","Geomorphic Channel Design (GCD)","*","*",-9999,null,1]
["Avg bankfull channel width","Vegetation Restoration","*","*",-9999,null,1]
["Avg bankfull channel width","Riparian Buffering","*","*",-9999,null,1]
["Avg bankfull channel width","Bank and Floodplain Restoration","*","*",-9999,null,1]
[]
[]
["Max BKF Channel Depth","Grade Control","Step-Pool Structure",null,null,5,1]
["Max BKF Channel Depth","Grade Control","Step-Pool Structure",null,5,null,-1]
["Max BKF Channel Depth","Grade Control","Rock Arch Rapids",null,null,2,-1]
["Max BKF Channel Depth","Grade Control","Rock Arch Rapids",null,2,null,1]
["Max BKF Channel Depth","Grade Control","Cross Vane",null,null,1,-1]
["Max BKF Channel Depth","Grade Control","Cross Vane",null,1,null,1]
["Max BKF Channel Depth","Grade Control","Rock & Log Riffle",null,-9999,null,1]
["Max BKF Channel Depth","Grade Control","W-Weir",null,null,2,-1]
["Max BKF Channel Depth","Grade Control","W-Weir",null,2,null,1]
["Max BKF Channel Depth","Grade Control","Rock Constructed Riffle",null,0,null,1]
["Max BKF Channel Depth","Grade Control","Grouted Grade Control",null,null,1,-1]
["Max BKF Channel Depth","Grade Control","Grouted Grade Control",null,1,10,1]
["Max BKF Channel Depth","Grade Control","Grouted Grade Control",null,10,null,0]
["Max BKF Channel Depth","Aquatic Habitat/Cover Feature","Lunkers",null,null,2,-1]
["Max BKF Channel Depth","Aquatic Habitat/Cover Feature","Lunkers",null,2,null,1]
["Max BKF Channel Depth","Aquatic Habitat/Cover Feature","Boulder/Rock Clusters",null,null,1,-1]
["Max BKF Channel Depth","Aquatic Habitat/Cover Feature","Boulder/Rock Clusters",null,1,null,1]
["Max BKF Channel Depth","Aquatic Habitat/Cover Feature","Locked Logs",null,null,1,0]
["Max BKF Channel Depth","Aquatic Habitat/Cover Feature","Locked Logs",null,1,null,1]
["Max BKF Channel Depth","Aquatic Habitat/Cover Feature","Large Woody Debris",null,null,1,0]
["Max BKF Channel Depth","Aquatic Habitat/Cover Feature","Large Woody Debris",null,1,null,1]
["Max BKF Channel Depth","Aquatic Habitat/Cover Feature","Root Wads",null,null,1,0]
["Max BKF Channel Depth","Aquatic Habitat/Cover Feature","Root Wads",null,1,null,1]
["Max BKF Channel Depth","Aquatic Habitat/Cover Feature","Submerged Crib Wall",null,null,2,-1]
["Max BKF Channel Depth","Aquatic Habitat/Cover Feature","Submerged Crib Wall",null,2,null,1]
["Max BKF Channel Depth","Toe Protection/Stabilization","Toe wood",null,null,1,0]
["Max BKF Channel Depth","Toe Protection/Stabilization","Toe wood",null,1,null,1]
["Max BKF Channel Depth","Toe Protection/Stabilization","Stone Toe Protection",null,null,1,0]
["Max BKF Channel Depth","Toe Protection/Stabilization","Stone Toe Protection",null,1,null,1]
["Max BKF Channel Depth","Toe Protection/Stabilization","Fabric Encapsulated Soil Lifts",null,null,1,0]
["Max BKF Channel Depth","Toe Protection/Stabilization","Fabric Encapsulated Soil Lifts",null,1,null,1]
["Max BKF Channel Depth","Toe Protection/Stabilization","Log Vane with Boulder Hook","*",-9999,null,1]
["Max BKF Channel Depth","Toe Protection/Stabilization","Single & Double Wing Deflector","*",-9999,null,1]
["Max BKF Channel Depth","Toe Protection/Stabilization","Vegetated Banks","*",-9999,null,1]
["Max BKF Channel Depth","Channel Definition Structure","Cut-Off Sills","*",-9999,null,1]
["Max BKF Channel Depth","Channel Definition Structure","Engineered Log Jams",null,null,1,-1]
["Max BKF Channel Depth","Channel Definition Structure","Engineered Log Jams",null,1,2,0]
["Max BKF Channel Depth","Channel Definition Structure","Engineered Log Jams",null,2,10,1]
["Max BKF Channel Depth","Channel Definition Structure","Engineered Log Jams",null,10,null,0]
["Max BKF Channel Depth","Channel Definition Structure","Longitudinal Peaked Stone Toe",null,null,2,-1]
["Max BKF Channel Depth","Channel Definition Structure","Longitudinal Peaked Stone Toe",null,2,null,1]
["Max BKF Channel Depth","Channel Definition Structure","Bendway Weirs",null,null,1,-1]
["Max BKF Channel Depth","Channel Definition Structure","Bendway Weirs",null,1,2,0]
["Max BKF Channel Depth","Channel Definition Structure","Bendway Weirs",null,2,null,1]
["Max BKF Channel Depth","Channel Definition Structure","Stream Barbs",null,null,1,-1]
["Max BKF Channel Depth","Channel Definition Structure","Stream Barbs",null,1,2,0]
["Max BKF Channel Depth","Channel Definition Structure","Stream Barbs",null,2,null,1]
["Max BKF Channel Depth","Channel Definition Structure","J-Hook Vane/Straight Vane","*",-9999,null,1]
["Max BKF Channel Depth","Geomorphic Channel Design (GCD)","*","*",-9999,null,1]
["Max BKF Channel Depth","Vegetation Restoration","*","*",-9999,null,1]
["Max BKF Channel Depth","Riparian Buffering","*","*",-9999,null,1]
["Max BKF Channel Depth","Bank and Floodplain Restoration","*","*",-9999,null,1]
[]
["Bankfull Discharge","Grade Control","Step-Pool Structure","*",-9999,null,1]
["Bankfull Discharge","Grade Control","Rock Arch Rapids",null,null,25,-1]
["Bankfull Discharge","Grade Control","Rock Arch Rapids",null,25,null,1]
["Bankfull Discharge","Grade Control","Cross Vane",null,null,5,-1]
["Bankfull Discharge","Grade Control","Cross Vane",null,5,null,1]
["Bankfull Discharge","Grade Control","Rock & Log Riffle","*",-9999,null,1]
["Bankfull Discharge","Grade Control","W-Weir",null,null,25,-1]
["Bankfull Discharge","Grade Control","W-Weir",null,25,null,1]
["Bankfull Discharge","Grade Control","Rock Constructed Riffle",null,0,null,1]
["Bankfull Discharge","Grade Control","Grouted Grade Control",null,null,5,0]
["Bankfull Discharge","Grade Control","Grouted Grade Control",null,5,200,1]
["Bankfull Discharge","Grade Control","Grouted Grade Control",null,200,null,0]
["Bankfull Discharge","Aquatic Habitat/Cover Feature","Lunkers",null,null,25,-1]
["Bankfull Discharge","Aquatic Habitat/Cover Feature","Lunkers",null,25,null,1]
["Bankfull Discharge","Aquatic Habitat/Cover Feature","Boulder/Rock Clusters",null,null,5,-1]
["Bankfull Discharge","Aquatic Habitat/Cover Feature","Boulder/Rock Clusters",null,5,null,1]
["Bankfull Discharge","Aquatic Habitat/Cover Feature","Locked Logs",null,null,5,0]
["Bankfull Discharge","Aquatic Habitat/Cover Feature","Locked Logs",null,5,null,1]
["Bankfull Discharge","Aquatic Habitat/Cover Feature","Large Woody Debris",null,null,5,0]
["Bankfull Discharge","Aquatic Habitat/Cover Feature","Large Woody Debris",null,5,null,1]
["Bankfull Discharge","Aquatic Habitat/Cover Feature","Root Wads",null,null,5,0]
["Bankfull Discharge","Aquatic Habitat/Cover Feature","Root Wads",null,5,null,1]
["Bankfull Discharge","Aquatic Habitat/Cover Feature","Submerged Crib Wall",null,null,5,-1]
["Bankfull Discharge","Aquatic Habitat/Cover Feature","Submerged Crib Wall",null,5,25,0]
["Bankfull Discharge","Aquatic Habitat/Cover Feature","Submerged Crib Wall",null,25,null,1]
["Bankfull Discharge","Toe Protection/Stabilization","Toe wood",null,null,5,0]
["Bankfull Discharge","Toe Protection/Stabilization","Toe wood",null,5,null,1]
["Bankfull Discharge","Toe Protection/Stabilization","Stone Toe Protection","*",-9999,null,1]
["Bankfull Discharge","Toe Protection/Stabilization","Fabric Encapsulated Soil Lifts","*",-9999,null,1]
["Bankfull Discharge","Toe Protection/Stabilization","Log Vane with Boulder Hook","*",-9999,null,1]
["Bankfull Discharge","Toe Protection/Stabilization","Single & Double Wing Deflector","*",-9999,null,1]
["Bankfull Discharge","Toe Protection/Stabilization","Vegetated Banks","*",-9999,null,1]
["Bankfull Discharge","Channel Definition Structure","Cut-Off Sills",null,null,5,-1]
["Bankfull Discharge","Channel Definition Structure","Cut-Off Sills",null,5,null,1]
["Bankfull Discharge","Channel Definition Structure","Engineered Log Jams",null,null,5,-1]
["Bankfull Discharge","Channel Definition Structure","Engineered Log Jams",null,5,25,0]
["Bankfull Discharge","Channel Definition Structure","Engineered Log Jams",null,25,200,1]
["Bankfull Discharge","Channel Definition Structure","Engineered Log Jams",null,200,null,0]
["Bankfull Discharge","Channel Definition Structure","Longitudinal Peaked Stone Toe",null,null,25,-1]
["Bankfull Discharge","Channel Definition Structure","Longitudinal Peaked Stone Toe",null,25,null,1]
["Bankfull Discharge","Channel Definition Structure","Bendway Weirs",null,null,5,-1]
["Bankfull Discharge","Channel Definition Structure","Bendway Weirs",null,5,25,0]
["Bankfull Discharge","Channel Definition Structure","Bendway Weirs",null,25,null,1]
["Bankfull Discharge","Channel Definition Structure","Stream Barbs",null,null,5,-1]
["Bankfull Discharge","Channel Definition Structure","Stream Barbs",null,5,25,0]
["Bankfull Discharge","Channel Definition Structure","Stream Barbs",null,25,null,1]
["Bankfull Discharge","Channel Definition Structure","J-Hook Vane/Straight Vane","*",-9999,null,1]
["Bankfull Discharge","Geomorphic Channel Design (GCD)","*","*",-9999,null,1]
["Bankfull Discharge","Vegetation Restoration","*","*",-9999,null,1]
["Bankfull Discharge","Riparian Buffering","*","*",-9999,null,1]
["Bankfull Discharge","Bank and Floodplain Restoration","*","*",-9999,null,1]
[]
["Entrenchment Ratio","Grade Control","Step-Pool Structure","*",-9999,null,1]
["Entrenchment Ratio","Grade Control","Rock Arch Rapids","*",-9999,null,1]
["Entrenchment Ratio","Grade Control","Cross Vane",null,null,1.2,-1]
["Entrenchment Ratio","Grade Control","Cross Vane",null,1.2,1.4,0,-1]
["Entrenchment Ratio","Grade Control","Cross Vane",null,1.4,null,1]
["Entrenchment Ratio","Grade Control","Rock & Log Riffle","*",-9999,null,1]
["Entrenchment Ratio","Grade Control","W-Weir",null,null,1.2,-1]
["Entrenchment Ratio","Grade Control","W-Weir",null,1.2,1.4,0,-1]
["Entrenchment Ratio","Grade Control","W-Weir",null,1.4,null,1]
["Entrenchment Ratio","Grade Control","Rock Constructed Riffle",null,0,null,1]
["Entrenchment Ratio","Grade Control","Grouted Grade Control","*",-9999,null,1]
["Entrenchment Ratio","Toe Protection/Stabilization","Toe wood",null,null,1.2,0,-1]
["Entrenchment Ratio","Toe Protection/Stabilization","Toe wood",null,1.2,null,1]
["Entrenchment Ratio","Toe Protection/Stabilization","Stone Toe Protection","*",-9999,null,1]
["Entrenchment Ratio","Toe Protection/Stabilization","Fabric Encapsulated Soil Lifts","*",-9999,null,1]
["Entrenchment Ratio","Toe Protection/Stabilization","Log Vane with Boulder Hook",null,null,1.2,-1]
["Entrenchment Ratio","Toe Protection/Stabilization","Log Vane with Boulder Hook",null,1.2,null,1]
["Entrenchment Ratio","Toe Protection/Stabilization","Single & Double Wing Deflector",null,null,1.2,-1]
["Entrenchment Ratio","Toe Protection/Stabilization","Single & Double Wing Deflector",null,1.2,null,1]
["Entrenchment Ratio","Toe Protection/Stabilization","Vegetated Banks","*",-9999,null,1]
["Entrenchment Ratio","Aquatic Habitat/Cover Feature","Lunkers",null,null,1.4,0,-1]
["Entrenchment Ratio","Aquatic Habitat/Cover Feature","Lunkers",null,1.4,null,1]
["Entrenchment Ratio","Aquatic Habitat/Cover Feature","Boulder/Rock Clusters",null,null,1.2,0,-1]
["Entrenchment Ratio","Aquatic Habitat/Cover Feature","Boulder/Rock Clusters",null,1.2,null,1]
["Entrenchment Ratio","Aquatic Habitat/Cover Feature","Locked Logs",null,null,1.2,0,-1]
["Entrenchment Ratio","Aquatic Habitat/Cover Feature","Locked Logs",null,1.2,null,1]
["Entrenchment Ratio","Aquatic Habitat/Cover Feature","Large Woody Debris",null,null,1.2,0,-1]
["Entrenchment Ratio","Aquatic Habitat/Cover Feature","Large Woody Debris",null,1.2,null,1]
["Entrenchment Ratio","Aquatic Habitat/Cover Feature","Root Wads",null,null,1.2,0,-1]
["Entrenchment Ratio","Aquatic Habitat/Cover Feature","Root Wads",null,1.2,null,1]
["Entrenchment Ratio","Aquatic Habitat/Cover Feature","Submerged Crib Wall",null,null,1.2,0,-1]
["Entrenchment Ratio","Aquatic Habitat/Cover Feature","Submerged Crib Wall",null,1.2,null,1]
["Entrenchment Ratio","Channel Definition Structure","Cut-Off Sills",null,null,1.4,0,-1]
["Entrenchment Ratio","Channel Definition Structure","Cut-Off Sills",null,1.4,null,1]
["Entrenchment Ratio","Channel Definition Structure","Engineered Log Jams",null,null,1.4,0,-1]
["Entrenchment Ratio","Channel Definition Structure","Engineered Log Jams",null,1.4,null,1]
["Entrenchment Ratio","Channel Definition Structure","Longitudinal Peaked Stone Toe",null,null,1.2,0,-1]
["Entrenchment Ratio","Channel Definition Structure","Longitudinal Peaked Stone Toe",null,1.2,null,1]
["Entrenchment Ratio","Channel Definition Structure","Bendway Weirs",null,null,1.2,0,-1]
["Entrenchment Ratio","Channel Definition Structure","Bendway Weirs",null,1.2,null,1]
["Entrenchment Ratio","Channel Definition Structure","Stream Barbs",null,null,1.2,0,-1]
["Entrenchment Ratio","Channel Definition Structure","Stream Barbs",null,1.2,null,1]
["Entrenchment Ratio","Channel Definition Structure","J-Hook Vane/Straight Vane",null,null,1.2,0,-1]
["Entrenchment Ratio","Channel Definition Structure","J-Hook Vane/Straight Vane",null,1.2,null,1]
["Entrenchment Ratio","Geomorphic Channel Design (GCD)","A",null,null,1.4,1]
["Entrenchment Ratio","Geomorphic Channel Design (GCD)","A",null,1.4,null,-1]
["Entrenchment Ratio","Geomorphic Channel Design (GCD)","Aa+",null,null,1.4,1]
["Entrenchment Ratio","Geomorphic Channel Design (GCD)","Aa+",null,1.4,null,-1]
["Entrenchment Ratio","Geomorphic Channel Design (GCD)","Ab",null,null,1.4,1]
["Entrenchment Ratio","Geomorphic Channel Design (GCD)","Ab",null,1.4,null,-1]
["Entrenchment Ratio","Geomorphic Channel Design (GCD)","B",null,null,1.4,-1]
["Entrenchment Ratio","Geomorphic Channel Design (GCD)","B",null,1.4,2.2000000000000002,1]
["Entrenchment Ratio","Geomorphic Channel Design (GCD)","B",null,2.2000000000000002,null,-1]
["Entrenchment Ratio","Geomorphic Channel Design (GCD)","Ba",null,null,1.4,-1]
["Entrenchment Ratio","Geomorphic Channel Design (GCD)","Ba",null,1.4,2.2000000000000002,1]
["Entrenchment Ratio","Geomorphic Channel Design (GCD)","Ba",null,2.2000000000000002,null,-1]
["Entrenchment Ratio","Geomorphic Channel Design (GCD)","Bc",null,null,1.4,-1]
["Entrenchment Ratio","Geomorphic Channel Design (GCD)","Bc",null,1.4,2.2000000000000002,1]
["Entrenchment Ratio","Geomorphic Channel Design (GCD)","Bc",null,2.2000000000000002,null,-1]
["Entrenchment Ratio","Geomorphic Channel Design (GCD)","C",null,null,2.2000000000000002,-1]
["Entrenchment Ratio","Geomorphic Channel Design (GCD)","C",null,2.2000000000000002,null,1]
["Entrenchment Ratio","Geomorphic Channel Design (GCD)","D",null,null,1.2,-1]
["Entrenchment Ratio","Geomorphic Channel Design (GCD)","D",null,1.2,2.2000000000000002,0,-1]
["Entrenchment Ratio","Geomorphic Channel Design (GCD)","D",null,2.2000000000000002,null,1]
["Entrenchment Ratio","Geomorphic Channel Design (GCD)","DA",null,null,1.2,-1]
["Entrenchment Ratio","Geomorphic Channel Design (GCD)","DA",null,1.2,2.2000000000000002,0,-1]
["Entrenchment Ratio","Geomorphic Channel Design (GCD)","DA",null,2.2000000000000002,null,1]
["Entrenchment Ratio","Geomorphic Channel Design (GCD)","E",null,null,2.2000000000000002,-1]
["Entrenchment Ratio","Geomorphic Channel Design (GCD)","E",null,2.2000000000000002,null,1]
["Entrenchment Ratio","Geomorphic Channel Design (GCD)","*","*",-9999,null,1]
["Entrenchment Ratio","Vegetation Restoration","*","*",-9999,null,1]
["Entrenchment Ratio","Riparian Buffering","*","*",-9999,null,1]
["Entrenchment Ratio","Bank and Floodplain Restoration","*","*",-9999,null,1]
[]
["Channel Evolutionary Stage","Grade Control","Step-Pool Structure",null,null,4,1]
["Channel Evolutionary Stage","Grade Control","Step-Pool Structure",null,4,6,0]
["Channel Evolutionary Stage","Grade Control","Step-Pool Structure",null,6,null,1]
["Channel Evolutionary Stage","Grade Control","Rock Arch Rapids",null,null,4,1]
["Channel Evolutionary Stage","Grade Control","Rock Arch Rapids",null,4,6,0]
["Channel Evolutionary Stage","Grade Control","Rock Arch Rapids",null,6,null,1]
["Channel Evolutionary Stage","Grade Control","Cross Vane",null,null,3,1]
["Channel Evolutionary Stage","Grade Control","Cross Vane",null,3,6,0]
["Channel Evolutionary Stage","Grade Control","Cross Vane",null,6,null,1]
["Channel Evolutionary Stage","Grade Control","Rock & Log Riffle",null,null,3,1]
["Channel Evolutionary Stage","Grade Control","Rock & Log Riffle",null,3,6,0]
["Channel Evolutionary Stage","Grade Control","Rock & Log Riffle",null,6,null,1]
["Channel Evolutionary Stage","Grade Control","W-Weir",null,null,3,1]
["Channel Evolutionary Stage","Grade Control","W-Weir",null,3,6,0]
["Channel Evolutionary Stage","Grade Control","W-Weir",null,6,null,1]
["Channel Evolutionary Stage","Grade Control","Rock Constructed Riffle",null,null,3,1]
["Channel Evolutionary Stage","Grade Control","Rock Constructed Riffle",null,3,6,0]
["Channel Evolutionary Stage","Grade Control","Rock Constructed Riffle",null,6,null,1]
["Channel Evolutionary Stage","Grade Control","Grouted Grade Control",null,null,4,1]
["Channel Evolutionary Stage","Grade Control","Grouted Grade Control",null,4,6,0]
["Channel Evolutionary Stage","Grade Control","Grouted Grade Control",null,6,null,1]
["Channel Evolutionary Stage","Aquatic Habitat/Cover Feature","Lunkers",null,null,2,1]
["Channel Evolutionary Stage","Aquatic Habitat/Cover Feature","Lunkers",null,2,3,0]
["Channel Evolutionary Stage","Aquatic Habitat/Cover Feature","Lunkers",null,3,5,-1]
["Channel Evolutionary Stage","Aquatic Habitat/Cover Feature","Lunkers",null,5,6,0]
["Channel Evolutionary Stage","Aquatic Habitat/Cover Feature","Lunkers",null,6,null,1]
["Channel Evolutionary Stage","Aquatic Habitat/Cover Feature","Boulder/Rock Clusters",null,null,3,1]
["Channel Evolutionary Stage","Aquatic Habitat/Cover Feature","Boulder/Rock Clusters",null,3,5,-1]
["Channel Evolutionary Stage","Aquatic Habitat/Cover Feature","Boulder/Rock Clusters",null,5,null,1]
["Channel Evolutionary Stage","Aquatic Habitat/Cover Feature","Locked Logs",null,null,2,1]
["Channel Evolutionary Stage","Aquatic Habitat/Cover Feature","Locked Logs",null,2,3,0]
["Channel Evolutionary Stage","Aquatic Habitat/Cover Feature","Locked Logs",null,3,5,-1]
["Channel Evolutionary Stage","Aquatic Habitat/Cover Feature","Locked Logs",null,5,6,0]
["Channel Evolutionary Stage","Aquatic Habitat/Cover Feature","Locked Logs",null,6,null,1]
["Channel Evolutionary Stage","Aquatic Habitat/Cover Feature","Large Woody Debris",null,null,2,1]
["Channel Evolutionary Stage","Aquatic Habitat/Cover Feature","Large Woody Debris",null,2,3,0]
["Channel Evolutionary Stage","Aquatic Habitat/Cover Feature","Large Woody Debris",null,3,5,-1]
["Channel Evolutionary Stage","Aquatic Habitat/Cover Feature","Large Woody Debris",null,5,6,0]
["Channel Evolutionary Stage","Aquatic Habitat/Cover Feature","Large Woody Debris",null,6,null,1]
["Channel Evolutionary Stage","Aquatic Habitat/Cover Feature","Root Wads",null,null,2,1]
["Channel Evolutionary Stage","Aquatic Habitat/Cover Feature","Root Wads",null,2,3,0]
["Channel Evolutionary Stage","Aquatic Habitat/Cover Feature","Root Wads",null,3,5,-1]
["Channel Evolutionary Stage","Aquatic Habitat/Cover Feature","Root Wads",null,5,6,0]
["Channel Evolutionary Stage","Aquatic Habitat/Cover Feature","Root Wads",null,6,null,1]
["Channel Evolutionary Stage","Aquatic Habitat/Cover Feature","Submerged Crib Wall",null,null,2,1]
["Channel Evolutionary Stage","Aquatic Habitat/Cover Feature","Submerged Crib Wall",null,2,3,0]
["Channel Evolutionary Stage","Aquatic Habitat/Cover Feature","Submerged Crib Wall",null,3,5,-1]
["Channel Evolutionary Stage","Aquatic Habitat/Cover Feature","Submerged Crib Wall",null,5,6,0]
["Channel Evolutionary Stage","Aquatic Habitat/Cover Feature","Submerged Crib Wall",null,6,null,1]
["Channel Evolutionary Stage","Bank and Floodplain Restoration","Bank Sloping (5:1, 4:1, 3:1, 2:1)",null,null,2,1]
["Channel Evolutionary Stage","Bank and Floodplain Restoration","Bank Sloping (5:1, 4:1, 3:1, 2:1)",null,2,5,0]
["Channel Evolutionary Stage","Bank and Floodplain Restoration","Bank Sloping (5:1, 4:1, 3:1, 2:1)",null,5,null,1]
["Channel Evolutionary Stage","Bank and Floodplain Restoration","Bankfull Bench",null,null,2,0]
["Channel Evolutionary Stage","Bank and Floodplain Restoration","Bankfull Bench",null,2,null,1]
["Channel Evolutionary Stage","Bank and Floodplain Restoration","Levee Setback or Removal","*",-9999,null,1]
["Channel Evolutionary Stage","Bank and Floodplain Restoration","Multi-Stage Channel","*",-9999,null,1]
["Channel Evolutionary Stage","Bank and Floodplain Restoration","Oxbow","*",-9999,null,1]
["Channel Evolutionary Stage","Bank and Floodplain Restoration","Floodplain Assemblages","*",-9999,null,1]
["Channel Evolutionary Stage","Toe Protection/Stabilization","Toe wood",null,null,2,1]
["Channel Evolutionary Stage","Toe Protection/Stabilization","Toe wood",null,2,3,0]
["Channel Evolutionary Stage","Toe Protection/Stabilization","Toe wood",null,3,5,-1]
["Channel Evolutionary Stage","Toe Protection/Stabilization","Toe wood",null,5,6,0]
["Channel Evolutionary Stage","Toe Protection/Stabilization","Toe wood",null,6,null,1]
["Channel Evolutionary Stage","Toe Protection/Stabilization","Stone Toe Protection",null,null,3,1]
["Channel Evolutionary Stage","Toe Protection/Stabilization","Stone Toe Protection",null,3,5,-1]
["Channel Evolutionary Stage","Toe Protection/Stabilization","Stone Toe Protection",null,5,null,1]
["Channel Evolutionary Stage","Toe Protection/Stabilization","Fabric Encapsulated Soil Lifts",null,null,3,1]
["Channel Evolutionary Stage","Toe Protection/Stabilization","Fabric Encapsulated Soil Lifts",null,3,5,-1]
["Channel Evolutionary Stage","Toe Protection/Stabilization","Fabric Encapsulated Soil Lifts",null,5,null,1]
["Channel Evolutionary Stage","Toe Protection/Stabilization","Log Vane with Boulder Hook",null,null,3,1]
["Channel Evolutionary Stage","Toe Protection/Stabilization","Log Vane with Boulder Hook",null,3,5,-1]
["Channel Evolutionary Stage","Toe Protection/Stabilization","Log Vane with Boulder Hook",null,5,null,1]
["Channel Evolutionary Stage","Toe Protection/Stabilization","Single & Double Wing Deflector",null,null,3,1]
["Channel Evolutionary Stage","Toe Protection/Stabilization","Single & Double Wing Deflector",null,3,5,-1]
["Channel Evolutionary Stage","Toe Protection/Stabilization","Single & Double Wing Deflector",null,5,null,1]
["Channel Evolutionary Stage","Toe Protection/Stabilization","Vegetated Banks","*",-9999,null,1]
["Channel Evolutionary Stage","Channel Definition Structure","Cut-Off Sills",null,null,2,1]
["Channel Evolutionary Stage","Channel Definition Structure","Cut-Off Sills",null,2,3,0]
["Channel Evolutionary Stage","Channel Definition Structure","Cut-Off Sills",null,3,5,-1]
["Channel Evolutionary Stage","Channel Definition Structure","Cut-Off Sills",null,5,6,0]
["Channel Evolutionary Stage","Channel Definition Structure","Cut-Off Sills",null,6,null,1]
["Channel Evolutionary Stage","Channel Definition Structure","Engineered Log Jams",null,null,2,1]
["Channel Evolutionary Stage","Channel Definition Structure","Engineered Log Jams",null,2,3,0]
["Channel Evolutionary Stage","Channel Definition Structure","Engineered Log Jams",null,3,5,-1]
["Channel Evolutionary Stage","Channel Definition Structure","Engineered Log Jams",null,5,6,0]
["Channel Evolutionary Stage","Channel Definition Structure","Engineered Log Jams",null,6,null,1]
["Channel Evolutionary Stage","Channel Definition Structure","Longitudinal Peaked Stone Toe",null,null,3,1]
["Channel Evolutionary Stage","Channel Definition Structure","Longitudinal Peaked Stone Toe",null,3,5,-1]
["Channel Evolutionary Stage","Channel Definition Structure","Longitudinal Peaked Stone Toe",null,5,null,1]
["Channel Evolutionary Stage","Channel Definition Structure","Bendway Weirs",null,null,3,1]
["Channel Evolutionary Stage","Channel Definition Structure","Bendway Weirs",null,3,5,-1]
["Channel Evolutionary Stage","Channel Definition Structure","Bendway Weirs",null,5,null,1]
["Channel Evolutionary Stage","Channel Definition Structure","Stream Barbs",null,null,2,1]
["Channel Evolutionary Stage","Channel Definition Structure","Stream Barbs",null,2,3,0]
["Channel Evolutionary Stage","Channel Definition Structure","Stream Barbs",null,3,5,-1]
["Channel Evolutionary Stage","Channel Definition Structure","Stream Barbs",null,5,6,0]
["Channel Evolutionary Stage","Channel Definition Structure","Stream Barbs",null,6,null,1]
["Channel Evolutionary Stage","Channel Definition Structure","J-Hook Vane/Straight Vane",null,null,3,1]
["Channel Evolutionary Stage","Channel Definition Structure","J-Hook Vane/Straight Vane",null,3,5,-1]
["Channel Evolutionary Stage","Channel Definition Structure","J-Hook Vane/Straight Vane",null,5,null,1]
["Channel Evolutionary Stage","Geomorphic Channel Design (GCD)","*","*",-9999,null,1]
["Channel Evolutionary Stage","Vegetation Restoration","*",null,null,2,1]
["Channel Evolutionary Stage","Vegetation Restoration","*",null,2,4,0]
["Channel Evolutionary Stage","Vegetation Restoration","*",null,4,5,-1]
["Channel Evolutionary Stage","Vegetation Restoration","*",null,5,null,1]
["Channel Evolutionary Stage","Riparian Buffering","*",null,null,4,1]
["Channel Evolutionary Stage","Riparian Buffering","*",null,4,5,0]
["Channel Evolutionary Stage","Riparian Buffering","*",null,5,null,1]
[]
["Nearby Infrastructure","Grade Control","Step-Pool Structure","*",-9999,0,1]
["Nearby Infrastructure","Grade Control","Step-Pool Structure",null,0,1,0]
["Nearby Infrastructure","Grade Control","Step-Pool Structure",null,1,null,1]
["Nearby Infrastructure","Grade Control","Rock Arch Rapids","*",-9999,0,1]
["Nearby Infrastructure","Grade Control","Rock Arch Rapids",null,0,1,0]
["Nearby Infrastructure","Grade Control","Rock Arch Rapids",null,1,null,1]
["Nearby Infrastructure","Grade Control","Cross Vane","*",-9999,0,1]
["Nearby Infrastructure","Grade Control","Cross Vane",null,0,1,0]
["Nearby Infrastructure","Grade Control","Cross Vane",null,1,null,1]
["Nearby Infrastructure","Grade Control","Rock & Log Riffle","*",-9999,0,1]
["Nearby Infrastructure","Grade Control","Rock & Log Riffle",null,0,1,0]
["Nearby Infrastructure","Grade Control","Rock & Log Riffle",null,1,null,1]
["Nearby Infrastructure","Grade Control","W-Weir","*",-9999,0,1]
["Nearby Infrastructure","Grade Control","W-Weir",null,0,1,0]
["Nearby Infrastructure","Grade Control","W-Weir",null,1,null,1]
["Nearby Infrastructure","Grade Control","Rock Constructed Riffle","*",-9999,null,1]
["Nearby Infrastructure","Grade Control","Grouted Grade Control","*",-9999,0,1]
["Nearby Infrastructure","Grade Control","Grouted Grade Control",null,0,1,0]
["Nearby Infrastructure","Grade Control","Grouted Grade Control",null,1,null,1]
["Nearby Infrastructure","Aquatic Habitat/Cover Feature","Lunkers","*",-9999,0,1]
["Nearby Infrastructure","Aquatic Habitat/Cover Feature","Lunkers",null,0,3,0]
["Nearby Infrastructure","Aquatic Habitat/Cover Feature","Lunkers",null,3,null,1]
["Nearby Infrastructure","Aquatic Habitat/Cover Feature","Boulder/Rock Clusters","*",-9999,0,1]
["Nearby Infrastructure","Aquatic Habitat/Cover Feature","Boulder/Rock Clusters",null,0,1,0]
["Nearby Infrastructure","Aquatic Habitat/Cover Feature","Boulder/Rock Clusters",null,1,null,1]
["Nearby Infrastructure","Aquatic Habitat/Cover Feature","Locked Logs","*",-9999,0,1]
["Nearby Infrastructure","Aquatic Habitat/Cover Feature","Locked Logs",null,0,1,0]
["Nearby Infrastructure","Aquatic Habitat/Cover Feature","Locked Logs",null,1,null,1]
["Nearby Infrastructure","Aquatic Habitat/Cover Feature","Large Woody Debris","*",-9999,0,1]
["Nearby Infrastructure","Aquatic Habitat/Cover Feature","Large Woody Debris",null,0,3,0]
["Nearby Infrastructure","Aquatic Habitat/Cover Feature","Large Woody Debris",null,3,null,1]
["Nearby Infrastructure","Aquatic Habitat/Cover Feature","Root Wads","*",-9999,0,1]
["Nearby Infrastructure","Aquatic Habitat/Cover Feature","Root Wads",null,0,3,0]
["Nearby Infrastructure","Aquatic Habitat/Cover Feature","Root Wads",null,3,null,1]
["Nearby Infrastructure","Aquatic Habitat/Cover Feature","Submerged Crib Wall","*",-9999,0,1]
["Nearby Infrastructure","Aquatic Habitat/Cover Feature","Submerged Crib Wall",null,0,3,0]
["Nearby Infrastructure","Aquatic Habitat/Cover Feature","Submerged Crib Wall",null,3,null,1]
["Nearby Infrastructure","Toe Protection/Stabilization","Toe wood","*",-9999,0,1]
["Nearby Infrastructure","Toe Protection/Stabilization","Toe wood",null,0,3,0]
["Nearby Infrastructure","Toe Protection/Stabilization","Toe wood",null,3,null,1]
["Nearby Infrastructure","Toe Protection/Stabilization","Stone Toe Protection","*",-9999,0,1]
["Nearby Infrastructure","Toe Protection/Stabilization","Stone Toe Protection",null,0,1,0]
["Nearby Infrastructure","Toe Protection/Stabilization","Stone Toe Protection",null,1,null,1]
["Nearby Infrastructure","Toe Protection/Stabilization","Fabric Encapsulated Soil Lifts","*",-9999,0,1]
["Nearby Infrastructure","Toe Protection/Stabilization","Fabric Encapsulated Soil Lifts",null,0,1,0]
["Nearby Infrastructure","Toe Protection/Stabilization","Fabric Encapsulated Soil Lifts",null,1,null,1]
["Nearby Infrastructure","Toe Protection/Stabilization","Log Vane with Boulder Hook","*",-9999,0,1]
["Nearby Infrastructure","Toe Protection/Stabilization","Log Vane with Boulder Hook",null,0,3,0]
["Nearby Infrastructure","Toe Protection/Stabilization","Log Vane with Boulder Hook",null,3,null,1]
["Nearby Infrastructure","Toe Protection/Stabilization","Single & Double Wing Deflector","*",-9999,0,1]
["Nearby Infrastructure","Toe Protection/Stabilization","Single & Double Wing Deflector",null,0,1,0]
["Nearby Infrastructure","Toe Protection/Stabilization","Single & Double Wing Deflector",null,1,null,1]
["Nearby Infrastructure","Toe Protection/Stabilization","Vegetated Banks","*",-9999,null,1]
["Nearby Infrastructure","Channel Definition Structure","Cut-Off Sills","*",-9999,0,1]
["Nearby Infrastructure","Channel Definition Structure","Cut-Off Sills",null,0,3,0]
["Nearby Infrastructure","Channel Definition Structure","Cut-Off Sills",null,3,null,1]
["Nearby Infrastructure","Channel Definition Structure","Engineered Log Jams","*",-9999,0,1]
["Nearby Infrastructure","Channel Definition Structure","Engineered Log Jams",null,0,3,0]
["Nearby Infrastructure","Channel Definition Structure","Engineered Log Jams",null,3,null,1]
["Nearby Infrastructure","Channel Definition Structure","Longitudinal Peaked Stone Toe","*",-9999,0,1]
["Nearby Infrastructure","Channel Definition Structure","Longitudinal Peaked Stone Toe",null,0,3,0]
["Nearby Infrastructure","Channel Definition Structure","Longitudinal Peaked Stone Toe",null,3,null,1]
["Nearby Infrastructure","Channel Definition Structure","Bendway Weirs","*",-9999,0,1]
["Nearby Infrastructure","Channel Definition Structure","Bendway Weirs",null,0,1,0]
["Nearby Infrastructure","Channel Definition Structure","Bendway Weirs",null,1,null,1]
["Nearby Infrastructure","Channel Definition Structure","Stream Barbs","*",-9999,0,1]
["Nearby Infrastructure","Channel Definition Structure","Stream Barbs",null,0,1,0]
["Nearby Infrastructure","Channel Definition Structure","Stream Barbs",null,1,null,1]
["Nearby Infrastructure","Channel Definition Structure","J-Hook Vane/Straight Vane","*",-9999,0,1]
["Nearby Infrastructure","Channel Definition Structure","J-Hook Vane/Straight Vane",null,0,3,0]
["Nearby Infrastructure","Channel Definition Structure","J-Hook Vane/Straight Vane",null,3,null,1]
["Nearby Infrastructure","Geomorphic Channel Design (GCD)","*","*",-9999,0,1]
["Nearby Infrastructure","Geomorphic Channel Design (GCD)","*",null,0,1,0]
["Nearby Infrastructure","Geomorphic Channel Design (GCD)","*",null,1,null,1]
["Nearby Infrastructure","Vegetation Restoration","*","*",-9999,0,1]
["Nearby Infrastructure","Vegetation Restoration","*",null,0,3,0]
["Nearby Infrastructure","Vegetation Restoration","*",null,3,null,1]
["Nearby Infrastructure","Bank and Floodplain Restoration","*","*",-9999,0,1]
["Nearby Infrastructure","Bank and Floodplain Restoration","*",null,0,3,0]
["Nearby Infrastructure","Bank and Floodplain Restoration","*",null,3,null,1]
["Nearby Infrastructure","Riparian Buffering","*","*",-9999,0,1]
["Nearby Infrastructure","Riparian Buffering","*",null,0,3,0]
["Nearby Infrastructure","Riparian Buffering","*",null,3,null,1]
[]
["Project Location - County (SW)","Grade Control","Step-Pool Structure","No",null,0,1]
["Project Location - County (SW)","Grade Control","Step-Pool Structure","Yes",0,null,0]
["Project Location - County (SW)","Grade Control","Rock Arch Rapids","No",null,0,1]
["Project Location - County (SW)","Grade Control","Rock Arch Rapids","Yes",0,null,0]
["Project Location - County (SW)","Grade Control","Cross Vane","No",null,0,1]
["Project Location - County (SW)","Grade Control","Cross Vane","Yes",0,null,0]
["Project Location - County (SW)","Grade Control","Rock & Log Riffle","No",null,0,1]
["Project Location - County (SW)","Grade Control","Rock & Log Riffle","Yes",0,null,0]
["Project Location - County (SW)","Grade Control","W-Weir","No",null,0,1]
["Project Location - County (SW)","Grade Control","W-Weir","Yes",0,null,0]
["Project Location - County (SW)","Grade Control","Grouted Grade Control","*",-9999,null,1]
["Project Location - County (SW)","Grade Control","Rock Constructed Riffle","No",null,0,1]
["Project Location - County (SW)","Grade Control","Rock Constructed Riffle","Yes",0,null,0]
["Project Location - County (SW)","Aquatic Habitat/Cover Feature","*","*",-9999,null,1]
["Project Location - County (SW)","Toe Protection/Stabilization","*","*",-9999,null,1]
["Project Location - County (SW)","Channel Definition Structure","*","*",-9999,null,1]
["Project Location - County (SW)","Geomorphic Channel Design (GCD)","*","*",-9999,null,1]
["Project Location - County (SW)","Vegetation Restoration","*","*",-9999,null,1]
["Project Location - County (SW)","Bank and Floodplain Restoration","*","*",-9999,null,1]
["Project Location - County (SW)","Riparian Buffering","*","*",-9999,null,1]
[]
["Length of Centerline","Grade Control","Step-Pool Structure","*",-9999,null,1]
["Length of Centerline","Grade Control","Rock Arch Rapids","*",-9999,null,1]
["Length of Centerline","Grade Control","Cross Vane","*",-9999,null,1]
["Length of Centerline","Grade Control","Rock & Log Riffle","*",-9999,null,1]
["Length of Centerline","Grade Control","W-Weir","*",-9999,null,1]
["Length of Centerline","Grade Control","Grouted Grade Control",null,null,4,0]
["Length of Centerline","Grade Control","Grouted Grade Control",null,4,null,1]
["Length of Centerline","Grade Control","Rock Constructed Riffle","*",-9999,null,1]
["Length of Centerline","Aquatic Habitat/Cover Feature","*","*",-9999,null,1]
["Length of Centerline","Toe Protection/Stabilization","*","*",-9999,null,1]
["Length of Centerline","Channel Definition Structure","*","*",-9999,null,1]
["Length of Centerline","Geomorphic Channel Design (GCD)","*",null,null,4,0]
["Length of Centerline","Geomorphic Channel Design (GCD)","*",null,4,null,1]
["Length of Centerline","Vegetation Restoration","*","*",-9999,null,1]
["Length of Centerline","Bank and Floodplain Restoration","*","*",-9999,null,1]
["Length of Centerline","Riparian Buffering","*","*",-9999,null,1]
[]
["BEHI","Grade Control","Step-Pool Structure","*",null,null,1]
["BEHI","Grade Control","Rock Arch Rapids","*",null,null,1]
["BEHI","Grade Control","Cross Vane","*",null,null,1]
["BEHI","Grade Control","Rock & Log Riffle","*",null,null,1]
["BEHI","Grade Control","W-Weir","*",null,null,1]
["BEHI","Grade Control","Grouted Grade Control","*",null,null,1]
["BEHI","Grade Control","Rock Constructed Riffle","*",null,null,1]
["BEHI","Aquatic Habitat/Cover Feature","*","very low,low,moderate,high",null,null,1]
["BEHI","Aquatic Habitat/Cover Feature","*","*",null,null,0]
["BEHI","Toe Protection/Stabilization","*","*",null,null,1]
["BEHI","Channel Definition Structure","*","very low,low,moderate,high",null,null,1]
["BEHI","Channel Definition Structure","*","*",null,null,0]
["BEHI","Geomorphic Channel Design (GCD)","*","low",null,null,0]
["BEHI","Geomorphic Channel Design (GCD)","*","*",null,null,1]
["BEHI","Vegetation Restoration","*","*",null,null,1]
["BEHI","Bank and Floodplain Restoration","*","*",null,null,1]
["BEHI","Riparian Buffering","*","*",null,null,1]
[]
["Dominant Bed Material","Grade Control","Step-Pool Structure","Bedrock",null,null,0]
["Dominant Bed Material","Grade Control","Step-Pool Structure","*",null,null,1]
["Dominant Bed Material","Grade Control","Rock Arch Rapids","Bedrock",null,null,0]
["Dominant Bed Material","Grade Control","Rock Arch Rapids","*",null,null,1]
["Dominant Bed Material","Grade Control","Cross Vane","Bedrock",null,null,0]
["Dominant Bed Material","Grade Control","Cross Vane","*",null,null,1]
["Dominant Bed Material","Grade Control","Rock & Log Riffle","Bedrock,Boulder",null,null,0]
["Dominant Bed Material","Grade Control","Rock & Log Riffle","*",null,null,1]
["Dominant Bed Material","Grade Control","W-Weir","Bedrock,Boulder",null,null,-1]
["Dominant Bed Material","Grade Control","W-Weir","*",null,null,1]
["Dominant Bed Material","Grade Control","Grouted Grade Control","Bedrock,Boulder,Cobble",null,null,-1]
["Dominant Bed Material","Grade Control","Grouted Grade Control","Gravel",null,null,0]
["Dominant Bed Material","Grade Control","Grouted Grade Control","*",null,null,1]
["Dominant Bed Material","Grade Control","Rock Constructed Riffle","Bedrock,Boulder",null,null,0]
["Dominant Bed Material","Grade Control","Rock Constructed Riffle","*",null,null,1]
["Dominant Bed Material","Toe Protection/Stabilization","Toe wood","Bedrock",null,null,-1]
["Dominant Bed Material","Toe Protection/Stabilization","Toe wood","Boulder",null,null,0]
["Dominant Bed Material","Toe Protection/Stabilization","Toe wood","*",null,null,1]
["Dominant Bed Material","Toe Protection/Stabilization","Stone Toe Protection","Bedrock",null,null,0]
["Dominant Bed Material","Toe Protection/Stabilization","Stone Toe Protection","*",null,null,1]
["Dominant Bed Material","Toe Protection/Stabilization","Fabric Encapsulated Soil Lifts","*",null,null,1]
["Dominant Bed Material","Toe Protection/Stabilization","Log Vane with Boulder Hook","Bedrock",null,null,0]
["Dominant Bed Material","Toe Protection/Stabilization","Log Vane with Boulder Hook","*",null,null,1]
["Dominant Bed Material","Toe Protection/Stabilization","Single & Double Wing Deflector","Bedrock",null,null,0]
["Dominant Bed Material","Toe Protection/Stabilization","Single & Double Wing Deflector","*",null,null,1]
["Dominant Bed Material","Toe Protection/Stabilization","Vegetated Banks","*",null,null,1]
["Dominant Bed Material","Aquatic Habitat/Cover Feature","Lunkers","Bedrock",null,null,-1]
["Dominant Bed Material","Aquatic Habitat/Cover Feature","Lunkers","Boulder",null,null,0]
["Dominant Bed Material","Aquatic Habitat/Cover Feature","Lunkers","*",null,null,1]
["Dominant Bed Material","Aquatic Habitat/Cover Feature","Boulder/Rock Clusters","Bedrock",null,null,0]
["Dominant Bed Material","Aquatic Habitat/Cover Feature","Boulder/Rock Clusters","*",null,null,1]
["Dominant Bed Material","Aquatic Habitat/Cover Feature","Locked Logs","Bedrock",null,null,0]
["Dominant Bed Material","Aquatic Habitat/Cover Feature","Locked Logs","*",null,null,1]
["Dominant Bed Material","Aquatic Habitat/Cover Feature","Large Woody Debris","Bedrock",null,null,0]
["Dominant Bed Material","Aquatic Habitat/Cover Feature","Large Woody Debris","*",null,null,1]
["Dominant Bed Material","Aquatic Habitat/Cover Feature","Root Wads","Bedrock",null,null,0]
["Dominant Bed Material","Aquatic Habitat/Cover Feature","Root Wads","*",null,null,1]
["Dominant Bed Material","Aquatic Habitat/Cover Feature","Submerged Crib Wall","Bedrock",null,null,-1]
["Dominant Bed Material","Aquatic Habitat/Cover Feature","Submerged Crib Wall","*",null,null,1]
["Dominant Bed Material","Channel Definition Structure","Cut-Off Sills","Bedrock",null,null,0]
["Dominant Bed Material","Channel Definition Structure","Cut-Off Sills","*",null,null,1]
["Dominant Bed Material","Channel Definition Structure","Engineered Log Jams","Bedrock",null,null,-1]
["Dominant Bed Material","Channel Definition Structure","Engineered Log Jams","Boulder",null,null,0]
["Dominant Bed Material","Channel Definition Structure","Engineered Log Jams","*",null,null,1]
["Dominant Bed Material","Channel Definition Structure","Longitudinal Peaked Stone Toe","Bedrock",null,null,0]
["Dominant Bed Material","Channel Definition Structure","Longitudinal Peaked Stone Toe","*",null,null,1]
["Dominant Bed Material","Channel Definition Structure","Bendway Weirs","Bedrock",null,null,0]
["Dominant Bed Material","Channel Definition Structure","Bendway Weirs","*",null,null,1]
["Dominant Bed Material","Channel Definition Structure","Stream Barbs","Bedrock",null,null,0]
["Dominant Bed Material","Channel Definition Structure","Stream Barbs","*",null,null,1]
["Dominant Bed Material","Channel Definition Structure","J-Hook Vane/Straight Vane","Bedrock",null,null,-1]
["Dominant Bed Material","Channel Definition Structure","J-Hook Vane/Straight Vane","*",null,null,1]
["Dominant Bed Material","Bank and Floodplain Restoration","Bank Sloping (5:1, 4:1, 3:1, 2:1)","*",null,null,1]
["Dominant Bed Material","Bank and Floodplain Restoration","Bankfull Bench","*",null,null,1]
["Dominant Bed Material","Bank and Floodplain Restoration","Levee Setback or Removal","*",null,null,1]
["Dominant Bed Material","Bank and Floodplain Restoration","Multi-Stage Channel","Bedrock",null,null,0]
["Dominant Bed Material","Bank and Floodplain Restoration","Multi-Stage Channel","*",null,null,1]
["Dominant Bed Material","Bank and Floodplain Restoration","Oxbow","*",null,null,1]
["Dominant Bed Material","Bank and Floodplain Restoration","Floodplain Assemblages","*",null,null,1]
["Dominant Bed Material","Geomorphic Channel Design (GCD)","*","Bedrock",null,null,0]
["Dominant Bed Material","Geomorphic Channel Design (GCD)","*","*",null,null,1]
["Dominant Bed Material","Vegetation Restoration","*","*",null,null,1]
["Dominant Bed Material","Riparian Buffering","*","*",null,null,1]
[]
["Knick Points within 2-4 Miles of Site","Grade Control","Step-Pool Structure","*",null,null,1]
["Knick Points within 2-4 Miles of Site","Grade Control","Rock Arch Rapids","*",null,null,1]
["Knick Points within 2-4 Miles of Site","Grade Control","Cross Vane","*",null,null,1]
["Knick Points within 2-4 Miles of Site","Grade Control","Rock & Log Riffle","*",null,null,1]
["Knick Points within 2-4 Miles of Site","Grade Control","W-Weir","*",null,null,1]
["Knick Points within 2-4 Miles of Site","Grade Control","Grouted Grade Control","*",null,null,1]
["Knick Points within 2-4 Miles of Site","Grade Control","Rock Constructed Riffle","*",null,null,1]
["Knick Points within 2-4 Miles of Site","Aquatic Habitat/Cover Feature","*","*",null,null,1]
["Knick Points within 2-4 Miles of Site","Toe Protection/Stabilization","*","*",null,null,1]
["Knick Points within 2-4 Miles of Site","Channel Definition Structure","*","*",null,null,1]
["Knick Points within 2-4 Miles of Site","Geomorphic Channel Design (GCD)","*","*",null,null,1]
["Knick Points within 2-4 Miles of Site","Vegetation Restoration","*","*",null,null,1]
["Knick Points within 2-4 Miles of Site","Bank and Floodplain Restoration","*","*",null,null,1]
["Knick Points within 2-4 Miles of Site","Riparian Buffering","*","*",null,null,1]
[]
["Channel Forming Chute Cut-off","Grade Control","Step-Pool Structure","*",null,null,1]
["Channel Forming Chute Cut-off","Grade Control","Rock Arch Rapids","*",null,null,1]
["Channel Forming Chute Cut-off","Grade Control","Cross Vane","*",null,null,1]
["Channel Forming Chute Cut-off","Grade Control","Rock & Log Riffle","*",null,null,1]
["Channel Forming Chute Cut-off","Grade Control","W-Weir","*",null,null,1]
["Channel Forming Chute Cut-off","Grade Control","Grouted Grade Control","*",null,null,1]
["Channel Forming Chute Cut-off","Grade Control","Rock Constructed Riffle","*",null,null,1]
["Channel Forming Chute Cut-off","Aquatic Habitat/Cover Feature","*","*",null,null,1]
["Channel Forming Chute Cut-off","Toe Protection/Stabilization","*","*",null,null,1]
["Channel Forming Chute Cut-off","Channel Definition Structure","*","*",null,null,1]
["Channel Forming Chute Cut-off","Geomorphic Channel Design (GCD)","*","*",null,null,1]
["Channel Forming Chute Cut-off","Vegetation Restoration","*","*",null,null,1]
["Channel Forming Chute Cut-off","Bank and Floodplain Restoration","*","*",null,null,1]
["Channel Forming Chute Cut-off","Riparian Buffering","*","*",null,null,1]
[]
["Has the proposed stream been mechaniclly straightened or dredged","Grade Control","Rock Arch Rapids","*",null,null,1]
["Has the proposed stream been mechaniclly straightened or dredged","Grade Control","Cross Vane","*",null,null,1]
["Has the proposed stream been mechaniclly straightened or dredged","Grade Control","Rock & Log Riffle","*",null,null,1]
["Has the proposed stream been mechaniclly straightened or dredged","Grade Control","W-Weir","*",null,null,1]
["Has the proposed stream been mechaniclly straightened or dredged","Grade Control","Grouted Grade Control","*",null,null,1]
["Has the proposed stream been mechaniclly straightened or dredged","Grade Control","Rock Constructed Riffle","*",null,null,1]
["Has the proposed stream been mechaniclly straightened or dredged","Aquatic Habitat/Cover Feature","*","*",null,null,1]
["Has the proposed stream been mechaniclly straightened or dredged","Toe Protection/Stabilization","*","*",null,null,1]
["Has the proposed stream been mechaniclly straightened or dredged","Channel Definition Structure","*","*",null,null,1]
["Has the proposed stream been mechaniclly straightened or dredged","Geomorphic Channel Design (GCD)","*","*",null,null,1]
["Has the proposed stream been mechaniclly straightened or dredged","Vegetation Restoration","*","*",null,null,1]
["Has the proposed stream been mechaniclly straightened or dredged","Bank and Floodplain Restoration","*","*",null,null,1]
["Has the proposed stream been mechaniclly straightened or dredged","Riparian Buffering","*","*",null,null,1]
[]
["Presence of Large Woody Debris","Grade Control","Step-Pool Structure","Yes",null,null,0]
["Presence of Large Woody Debris","Grade Control","Step-Pool Structure","No",null,null,1]
["Presence of Large Woody Debris","Grade Control","Rock Arch Rapids","Yes",null,null,0]
["Presence of Large Woody Debris","Grade Control","Rock Arch Rapids","No",null,null,1]
["Presence of Large Woody Debris","Grade Control","Cross Vane","Yes",null,null,0]
["Presence of Large Woody Debris","Grade Control","Cross Vane","No",null,null,1]
["Presence of Large Woody Debris","Grade Control","Rock & Log Riffle","Yes",null,null,0]
["Presence of Large Woody Debris","Grade Control","Rock & Log Riffle","No",null,null,1]
["Presence of Large Woody Debris","Grade Control","W-Weir","Yes",null,null,0]
["Presence of Large Woody Debris","Grade Control","W-Weir","No",null,null,1]
["Presence of Large Woody Debris","Grade Control","Grouted Grade Control","Yes",null,null,0]
["Presence of Large Woody Debris","Grade Control","Grouted Grade Control","No",null,null,1]
["Presence of Large Woody Debris","Grade Control","Rock Constructed Riffle","Yes",null,null,0]
["Presence of Large Woody Debris","Grade Control","Rock Constructed Riffle","No",null,null,1]
["Presence of Large Woody Debris","Aquatic Habitat/Cover Feature","Lunkers","Yes",null,null,0]
["Presence of Large Woody Debris","Aquatic Habitat/Cover Feature","Lunkers","No",null,null,1]
["Presence of Large Woody Debris","Aquatic Habitat/Cover Feature","Boulder/Rock Clusters","*",null,null,1]
["Presence of Large Woody Debris","Aquatic Habitat/Cover Feature","Locked Logs","*",null,null,1]
["Presence of Large Woody Debris","Aquatic Habitat/Cover Feature","Large Woody Debris","Yes",null,null,0]
["Presence of Large Woody Debris","Aquatic Habitat/Cover Feature","Large Woody Debris","No",null,null,1]
["Presence of Large Woody Debris","Aquatic Habitat/Cover Feature","Root Wads","Yes",null,null,0]
["Presence of Large Woody Debris","Aquatic Habitat/Cover Feature","Root Wads","No",null,null,1]
["Presence of Large Woody Debris","Aquatic Habitat/Cover Feature","Submerged Crib Wall","Yes",null,null,0]
["Presence of Large Woody Debris","Aquatic Habitat/Cover Feature","Submerged Crib Wall","No",null,null,1]
["Presence of Large Woody Debris","Toe Protection/Stabilization","Toe wood","Yes",null,null,0]
["Presence of Large Woody Debris","Toe Protection/Stabilization","Toe wood","No",null,null,1]
["Presence of Large Woody Debris","Toe Protection/Stabilization","Stone Toe Protection","*",null,null,1]
["Presence of Large Woody Debris","Toe Protection/Stabilization","Fabric Encapsulated Soil Lifts","*",null,null,1]
["Presence of Large Woody Debris","Toe Protection/Stabilization","Log Vane with Boulder Hook","Yes",null,null,0]
["Presence of Large Woody Debris","Toe Protection/Stabilization","Log Vane with Boulder Hook","No",null,null,1]
["Presence of Large Woody Debris","Toe Protection/Stabilization","Single & Double Wing Deflector","Yes",null,null,0]
["Presence of Large Woody Debris","Toe Protection/Stabilization","Single & Double Wing Deflector","No",null,null,1]
["Presence of Large Woody Debris","Toe Protection/Stabilization","Vegetated Banks","*",null,null,1]
["Presence of Large Woody Debris","Channel Definition Structure","*","Yes",null,null,0]
["Presence of Large Woody Debris","Channel Definition Structure","*","No",null,null,1]
["Presence of Large Woody Debris","Geomorphic Channel Design (GCD)","*","*",null,null,1]
["Presence of Large Woody Debris","Vegetation Restoration","*","*",null,null,1]
["Presence of Large Woody Debris","Bank and Floodplain Restoration","*","*",null,null,1]
["Presence of Large Woody Debris","Riparian Buffering","*","*",null,null,1]
[]
["Percentage of Stream Covered by Tree Canopy","Grade Control","Step-Pool Structure","*",-9999,null,1]
["Percentage of Stream Covered by Tree Canopy","Grade Control","Rock Arch Rapids","*",-9999,null,1]
["Percentage of Stream Covered by Tree Canopy","Grade Control","Cross Vane","*",-9999,null,1]
["Percentage of Stream Covered by Tree Canopy","Grade Control","Rock & Log Riffle","*",-9999,null,1]
["Percentage of Stream Covered by Tree Canopy","Grade Control","W-Weir","*",-9999,null,1]
["Percentage of Stream Covered by Tree Canopy","Grade Control","Grouted Grade Control",null,null,50,0]
["Percentage of Stream Covered by Tree Canopy","Grade Control","Grouted Grade Control",null,50,null,1]
["Percentage of Stream Covered by Tree Canopy","Grade Control","Rock Constructed Riffle","*",-9999,null,1]
["Percentage of Stream Covered by Tree Canopy","Aquatic Habitat/Cover Feature","*","*",-9999,null,1]
["Percentage of Stream Covered by Tree Canopy","Toe Protection/Stabilization","*","*",-9999,null,1]
["Percentage of Stream Covered by Tree Canopy","Channel Definition Structure","*","*",-9999,null,1]
["Percentage of Stream Covered by Tree Canopy","Geomorphic Channel Design (GCD)","*","*",-9999,null,1]
["Percentage of Stream Covered by Tree Canopy","Vegetation Restoration","*","*",-9999,null,1]
["Percentage of Stream Covered by Tree Canopy","Bank and Floodplain Restoration","Bank Sloping (5:1, 4:1, 3:1, 2:1)","*",-9999,null,1]
["Percentage of Stream Covered by Tree Canopy","Bank and Floodplain Restoration","Bankfull Bench","*",-9999,null,1]
["Percentage of Stream Covered by Tree Canopy","Bank and Floodplain Restoration","Levee Setback or Removal","*",-9999,null,1]
["Percentage of Stream Covered by Tree Canopy","Bank and Floodplain Restoration","Multi-Stage Channel","*",-9999,null,1]
["Percentage of Stream Covered by Tree Canopy","Bank and Floodplain Restoration","Oxbow",null,null,90,1]
["Percentage of Stream Covered by Tree Canopy","Bank and Floodplain Restoration","Oxbow",null,90,null,0]
["Percentage of Stream Covered by Tree Canopy","Bank and Floodplain Restoration","Floodplain Assemblages","*",-9999,null,1]
["Percentage of Stream Covered by Tree Canopy","Riparian Buffering","Restoration / Establishment",null,null,90,1]
["Percentage of Stream Covered by Tree Canopy","Riparian Buffering","Restoration / Establishment",null,90,null,0]
["Percentage of Stream Covered by Tree Canopy","Riparian Buffering","Enhancement","*",-9999,null,1]
["Percentage of Stream Covered by Tree Canopy","Riparian Buffering","Preservation","*",-9999,null,1]
[]
["Mix of Velocity and Depth Patterns","Grade Control","Step-Pool Structure","Yes",null,null,0]
["Mix of Velocity and Depth Patterns","Grade Control","Step-Pool Structure","No",null,null,1]
["Mix of Velocity and Depth Patterns","Grade Control","Rock Arch Rapids","Yes",null,null,0]
["Mix of Velocity and Depth Patterns","Grade Control","Rock Arch Rapids","No",null,null,1]
["Mix of Velocity and Depth Patterns","Grade Control","Cross Vane","Yes",null,null,0]
["Mix of Velocity and Depth Patterns","Grade Control","Cross Vane","No",null,null,1]
["Mix of Velocity and Depth Patterns","Grade Control","Rock & Log Riffle","Yes",null,null,0]
["Mix of Velocity and Depth Patterns","Grade Control","Rock & Log Riffle","No",null,null,1]
["Mix of Velocity and Depth Patterns","Grade Control","W-Weir","Yes",null,null,0]
["Mix of Velocity and Depth Patterns","Grade Control","W-Weir","No",null,null,1]
["Mix of Velocity and Depth Patterns","Grade Control","Grouted Grade Control","Yes",null,null,0]
["Mix of Velocity and Depth Patterns","Grade Control","Grouted Grade Control","No",null,null,1]
["Mix of Velocity and Depth Patterns","Grade Control","Rock Constructed Riffle","Yes",null,null,0]
["Mix of Velocity and Depth Patterns","Grade Control","Rock Constructed Riffle","No",null,null,1]
["Mix of Velocity and Depth Patterns","Aquatic Habitat/Cover Feature","Lunkers","Yes",null,null,0]
["Mix of Velocity and Depth Patterns","Aquatic Habitat/Cover Feature","Lunkers","No",null,null,1]
["Mix of Velocity and Depth Patterns","Aquatic Habitat/Cover Feature","Boulder/Rock Clusters","*",null,null,1]
["Mix of Velocity and Depth Patterns","Aquatic Habitat/Cover Feature","Locked Logs","*",null,null,1]
["Mix of Velocity and Depth Patterns","Aquatic Habitat/Cover Feature","Large Woody Debris","Yes",null,null,0]
["Mix of Velocity and Depth Patterns","Aquatic Habitat/Cover Feature","Large Woody Debris","No",null,null,1]
["Mix of Velocity and Depth Patterns","Aquatic Habitat/Cover Feature","Root Wads","Yes",null,null,0]
["Mix of Velocity and Depth Patterns","Aquatic Habitat/Cover Feature","Root Wads","No",null,null,1]
["Mix of Velocity and Depth Patterns","Aquatic Habitat/Cover Feature","Submerged Crib Wall","Yes",null,null,0]
["Mix of Velocity and Depth Patterns","Aquatic Habitat/Cover Feature","Submerged Crib Wall","No",null,null,1]
["Mix of Velocity and Depth Patterns","Toe Protection/Stabilization","Toe wood","Yes",null,null,0]
["Mix of Velocity and Depth Patterns","Toe Protection/Stabilization","Toe wood","No",null,null,1]
["Mix of Velocity and Depth Patterns","Toe Protection/Stabilization","Stone Toe Protection","*",null,null,1]
["Mix of Velocity and Depth Patterns","Toe Protection/Stabilization","Fabric Encapsulated Soil Lifts","*",null,null,1]
["Mix of Velocity and Depth Patterns","Toe Protection/Stabilization","Log Vane with Boulder Hook","Yes",null,null,0]
["Mix of Velocity and Depth Patterns","Toe Protection/Stabilization","Log Vane with Boulder Hook","No",null,null,1]
["Mix of Velocity and Depth Patterns","Toe Protection/Stabilization","Single & Double Wing Deflector","Yes",null,null,0]
["Mix of Velocity and Depth Patterns","Toe Protection/Stabilization","Single & Double Wing Deflector","No",null,null,1]
["Mix of Velocity and Depth Patterns","Toe Protection/Stabilization","Vegetated Banks","*",null,null,1]
["Mix of Velocity and Depth Patterns","Channel Definition Structure","*","Yes",null,null,0]
["Mix of Velocity and Depth Patterns","Channel Definition Structure","*","No",null,null,1]
["Mix of Velocity and Depth Patterns","Geomorphic Channel Design (GCD)","*","*",null,null,1]
["Mix of Velocity and Depth Patterns","Vegetation Restoration","*","*",null,null,1]
["Mix of Velocity and Depth Patterns","Bank and Floodplain Restoration","*","*",null,null,1]
["Mix of Velocity and Depth Patterns","Riparian Buffering","*","*",null,null,1]
[]
["Known Fish Passage Blockages","Grade Control","Step-Pool Structure","*",null,null,1]
["Known Fish Passage Blockages","Grade Control","Rock Arch Rapids","*",null,null,1]
["Known Fish Passage Blockages","Grade Control","Cross Vane","*",null,null,1]
["Known Fish Passage Blockages","Grade Control","Rock & Log Riffle","*",null,null,1]
["Known Fish Passage Blockages","Grade Control","W-Weir","*",null,null,1]
["Known Fish Passage Blockages","Grade Control","Grouted Grade Control","Yes",null,null,0]
["Known Fish Passage Blockages","Grade Control","Grouted Grade Control","No",null,null,1]
["Known Fish Passage Blockages","Grade Control","Rock Constructed Riffle","*",null,null,1]
["Known Fish Passage Blockages","Aquatic Habitat/Cover Feature","*","*",null,null,1]
["Known Fish Passage Blockages","Toe Protection/Stabilization","*","*",null,null,1]
["Known Fish Passage Blockages","Channel Definition Structure","*","*",null,null,1]
["Known Fish Passage Blockages","Geomorphic Channel Design (GCD)","*","*",null,null,1]
["Known Fish Passage Blockages","Vegetation Restoration","*","*",null,null,1]
["Known Fish Passage Blockages","Bank and Floodplain Restoration","*","*",null,null,1]
["Known Fish Passage Blockages","Riparian Buffering","*","*",null,null,1]
["Known Fish Passage Blockages","Culvert Adjustment","*","*",null,null,1]
["Known Fish Passage Blockages","Dam Mitigation","*","*",null,null,1]
[]
["Species of Special Concern","Grade Control","Step-Pool Structure","*",null,null,1]
["Species of Special Concern","Grade Control","Rock Arch Rapids","*",null,null,1]
["Species of Special Concern","Grade Control","Cross Vane","*",null,null,1]
["Species of Special Concern","Grade Control","Rock & Log Riffle","*",null,null,1]
["Species of Special Concern","Grade Control","W-Weir","*",null,null,1]
["Species of Special Concern","Grade Control","Grouted Grade Control","Yes",null,null,0]
["Species of Special Concern","Grade Control","Grouted Grade Control","No",null,null,1]
["Species of Special Concern","Grade Control","Rock Constructed Riffle","*",null,null,1]
["Species of Special Concern","Aquatic Habitat/Cover Feature","*","*",null,null,1]
["Species of Special Concern","Toe Protection/Stabilization","*","*",null,null,1]
["Species of Special Concern","Channel Definition Structure","*","*",null,null,1]
["Species of Special Concern","Geomorphic Channel Design (GCD)","*","*",null,null,1]
["Species of Special Concern","Vegetation Restoration","*","*",null,null,1]
["Species of Special Concern","Bank and Floodplain Restoration","*","*",null,null,1]
["Species of Special Concern","Riparian Buffering","*","*",null,null,1]
["Species of Special Concern","Culvert Adjustment","*","*",null,null,1]
["Species of Special Concern","Dam Mitigation","*","*",null,null,1]
[]
["Man-Made Levees","Grade Control","Cross Vane","Yes",null,null,0]
["Man-Made Levees","Grade Control","Cross Vane","No",null,null,1]
["Man-Made Levees","Grade Control","W-Weir","Yes",null,null,0]
["Man-Made Levees","Grade Control","W-Weir","No",null,null,1]
["Man-Made Levees","Grade Control","Step-Pool Structure","*",null,null,1]
["Man-Made Levees","Grade Control","Rock Arch Rapids","*",null,null,1]
["Man-Made Levees","Grade Control","Rock & Log Riffle","*",null,null,1]
["Man-Made Levees","Grade Control","Rock Constructed Riffle","*",null,null,1]
["Man-Made Levees","Toe Protection/Stabilization"," Toe wood","Yes",null,null,0]
["Man-Made Levees","Toe Protection/Stabilization"," Toe wood","No",null,null,1]
["Man-Made Levees","Toe Protection/Stabilization","Stone Toe Protection","*",null,null,1]
["Man-Made Levees","Toe Protection/Stabilization","Fabric Encapsulated Soil Lifts","*",null,null,1]
["Man-Made Levees","Toe Protection/Stabilization","Log Vane with Boulder Hook","Yes",null,null,0]
["Man-Made Levees","Toe Protection/Stabilization","Log Vane with Boulder Hook","No",null,null,1]
["Man-Made Levees","Toe Protection/Stabilization","Single & Double Wing Deflector","*",null,null,1]
["Man-Made Levees","Toe Protection/Stabilization","Vegetated Banks","*",null,null,1]
["Man-Made Levees","Bank and Floodplain Restoration","Bank Sloping (5:1, 4:1, 3:1, 2:1)","Yes",null,null,0]
["Man-Made Levees","Bank and Floodplain Restoration","Bank Sloping (5:1, 4:1, 3:1, 2:1)","No",null,null,1]
["Man-Made Levees","Bank and Floodplain Restoration","Bankfull Bench","Yes",null,null,-1]
["Man-Made Levees","Bank and Floodplain Restoration","Bankfull Bench","No",null,null,1]
["Man-Made Levees","Bank and Floodplain Restoration","Levee Setback or Removal","*",null,null,1]
["Man-Made Levees","Bank and Floodplain Restoration","Multi-Stage Channel","*",null,null,1]
["Man-Made Levees","Bank and Floodplain Restoration","Oxbow","*",null,null,1]
["Man-Made Levees","Bank and Floodplain Restoration","Floodplain Assemblages","Yes",null,null,-1]
["Man-Made Levees","Bank and Floodplain Restoration","Floodplain Assemblages","No",null,null,1]
["Man-Made Levees","Aquatic Habitat/Cover Feature","Lunkers","Yes",null,null,0]
["Man-Made Levees","Aquatic Habitat/Cover Feature","Lunkers","No",null,null,1]
["Man-Made Levees","Aquatic Habitat/Cover Feature","Boulder/Rock Clusters","*",null,null,1]
["Man-Made Levees","Aquatic Habitat/Cover Feature","Locked Logs","Yes",null,null,0]
["Man-Made Levees","Aquatic Habitat/Cover Feature","Locked Logs","No",null,null,1]
["Man-Made Levees","Aquatic Habitat/Cover Feature","Large Woody Debris","Yes",null,null,0]
["Man-Made Levees","Aquatic Habitat/Cover Feature","Large Woody Debris","No",null,null,1]
["Man-Made Levees","Aquatic Habitat/Cover Feature","Root Wads","Yes",null,null,0]
["Man-Made Levees","Aquatic Habitat/Cover Feature","Root Wads","No",null,null,1]
["Man-Made Levees","Aquatic Habitat/Cover Feature","Submerged Crib Wall","Yes",null,null,0]
["Man-Made Levees","Aquatic Habitat/Cover Feature","Submerged Crib Wall","No",null,null,1]
["Man-Made Levees","Channel Definition Structure","Cut-Off Sills","Yes",null,null,0]
["Man-Made Levees","Channel Definition Structure","Cut-Off Sills","No",null,null,1]
["Man-Made Levees","Channel Definition Structure","Engineered Log Jams","Yes",null,null,0]
["Man-Made Levees","Channel Definition Structure","Engineered Log Jams","No",null,null,1]
["Man-Made Levees","Channel Definition Structure","Longitudinal Peaked Stone Toe","Yes",null,null,0]
["Man-Made Levees","Channel Definition Structure","Longitudinal Peaked Stone Toe","No",null,null,1]
["Man-Made Levees","Channel Definition Structure","Bendway Weirs","Yes",null,null,0]
["Man-Made Levees","Channel Definition Structure","Bendway Weirs","No",null,null,1]
["Man-Made Levees","Channel Definition Structure","Stream Barbs","Yes",null,null,0]
["Man-Made Levees","Channel Definition Structure","Stream Barbs","No",null,null,1]
["Man-Made Levees","Channel Definition Structure","J-Hook Vane/Straight Vane","Yes",null,null,0]
["Man-Made Levees","Channel Definition Structure","J-Hook Vane/Straight Vane","No",null,null,1]
["Man-Made Levees","Geomorphic Channel Design (GCD)","*","Yes",null,null,0]
["Man-Made Levees","Geomorphic Channel Design (GCD)","*","No",null,null,1]
["Man-Made Levees","Vegetation Restoration","*","*",null,null,1]
["Man-Made Levees","Riparian Buffering","*","*",null,null,1]
[]
["Has a Significant Change Occurred in Channel Width in Last 10 years","Grade Control","Step-Pool Structure","Yes",null,null,0]
["Has a Significant Change Occurred in Channel Width in Last 10 years","Grade Control","Step-Pool Structure","No",null,null,1]
["Has a Significant Change Occurred in Channel Width in Last 10 years","Grade Control","Rock Arch Rapids","Yes",null,null,0]
["Has a Significant Change Occurred in Channel Width in Last 10 years","Grade Control","Rock Arch Rapids","No",null,null,1]
["Has a Significant Change Occurred in Channel Width in Last 10 years","Grade Control","Cross Vane","Yes",null,null,0]
["Has a Significant Change Occurred in Channel Width in Last 10 years","Grade Control","Cross Vane","No",null,null,1]
["Has a Significant Change Occurred in Channel Width in Last 10 years","Grade Control","Rock & Log Riffle","Yes",null,null,0]
["Has a Significant Change Occurred in Channel Width in Last 10 years","Grade Control","Rock & Log Riffle","No",null,null,1]
["Has a Significant Change Occurred in Channel Width in Last 10 years","Grade Control","W-Weir","Yes",null,null,0]
["Has a Significant Change Occurred in Channel Width in Last 10 years","Grade Control","W-Weir","No",null,null,1]
["Has a Significant Change Occurred in Channel Width in Last 10 years","Grade Control","Grouted Grade Control","Yes",null,null,0]
["Has a Significant Change Occurred in Channel Width in Last 10 years","Grade Control","Grouted Grade Control","No",null,null,1]
["Has a Significant Change Occurred in Channel Width in Last 10 years","Grade Control","Rock Constructed Riffle","Yes",null,null,0]
["Has a Significant Change Occurred in Channel Width in Last 10 years","Grade Control","Rock Constructed Riffle","No",null,null,1]
["Has a Significant Change Occurred in Channel Width in Last 10 years","Aquatic Habitat/Cover Feature","Lunkers","Yes",null,null,-1]
["Has a Significant Change Occurred in Channel Width in Last 10 years","Aquatic Habitat/Cover Feature","Lunkers","No",null,null,1]
["Has a Significant Change Occurred in Channel Width in Last 10 years","Aquatic Habitat/Cover Feature","Boulder/Rock Clusters","Yes",null,null,-1]
["Has a Significant Change Occurred in Channel Width in Last 10 years","Aquatic Habitat/Cover Feature","Boulder/Rock Clusters","No",null,null,1]
["Has a Significant Change Occurred in Channel Width in Last 10 years","Aquatic Habitat/Cover Feature","Locked Logs","Yes",null,null,-1]
["Has a Significant Change Occurred in Channel Width in Last 10 years","Aquatic Habitat/Cover Feature","Locked Logs","No",null,null,1]
["Has a Significant Change Occurred in Channel Width in Last 10 years","Aquatic Habitat/Cover Feature","Large Woody Debris","Yes",null,null,-1]
["Has a Significant Change Occurred in Channel Width in Last 10 years","Aquatic Habitat/Cover Feature","Large Woody Debris","No",null,null,1]
["Has a Significant Change Occurred in Channel Width in Last 10 years","Aquatic Habitat/Cover Feature","Root Wads","Yes",null,null,-1]
["Has a Significant Change Occurred in Channel Width in Last 10 years","Aquatic Habitat/Cover Feature","Root Wads","No",null,null,1]
["Has a Significant Change Occurred in Channel Width in Last 10 years","Aquatic Habitat/Cover Feature","Submerged Crib Wall","Yes",null,null,-1]
["Has a Significant Change Occurred in Channel Width in Last 10 years","Aquatic Habitat/Cover Feature","Submerged Crib Wall","No",null,null,1]
["Has a Significant Change Occurred in Channel Width in Last 10 years","Toe Protection/Stabilization","Toe wood","Yes",null,null,-1]
["Has a Significant Change Occurred in Channel Width in Last 10 years","Toe Protection/Stabilization","Toe wood","No",null,null,1]
["Has a Significant Change Occurred in Channel Width in Last 10 years","Toe Protection/Stabilization","Stone Toe Protection","Yes",null,null,-1]
["Has a Significant Change Occurred in Channel Width in Last 10 years","Toe Protection/Stabilization","Stone Toe Protection","No",null,null,1]
["Has a Significant Change Occurred in Channel Width in Last 10 years","Toe Protection/Stabilization","Fabric Encapsulated Soil Lifts","Yes",null,null,-1]
["Has a Significant Change Occurred in Channel Width in Last 10 years","Toe Protection/Stabilization","Fabric Encapsulated Soil Lifts","No",null,null,1]
["Has a Significant Change Occurred in Channel Width in Last 10 years","Toe Protection/Stabilization","Log Vane with Boulder Hook","Yes",null,null,-1]
["Has a Significant Change Occurred in Channel Width in Last 10 years","Toe Protection/Stabilization","Log Vane with Boulder Hook","No",null,null,1]
["Has a Significant Change Occurred in Channel Width in Last 10 years","Toe Protection/Stabilization","Single & Double Wing Deflector","Yes",null,null,-1]
["Has a Significant Change Occurred in Channel Width in Last 10 years","Toe Protection/Stabilization","Single & Double Wing Deflector","No",null,null,1]
["Has a Significant Change Occurred in Channel Width in Last 10 years","Toe Protection/Stabilization","Vegetated Banks","*",null,null,1]
["Has a Significant Change Occurred in Channel Width in Last 10 years","Channel Definition Structure","Cut-Off Sills","Yes",null,null,-1]
["Has a Significant Change Occurred in Channel Width in Last 10 years","Channel Definition Structure","Cut-Off Sills","No",null,null,1]
["Has a Significant Change Occurred in Channel Width in Last 10 years","Channel Definition Structure","Engineered Log Jams","Yes",null,null,-1]
["Has a Significant Change Occurred in Channel Width in Last 10 years","Channel Definition Structure","Engineered Log Jams","No",null,null,1]
["Has a Significant Change Occurred in Channel Width in Last 10 years","Channel Definition Structure","Longitudinal Peaked Stone Toe","Yes",null,null,-1]
["Has a Significant Change Occurred in Channel Width in Last 10 years","Channel Definition Structure","Longitudinal Peaked Stone Toe","No",null,null,1]
["Has a Significant Change Occurred in Channel Width in Last 10 years","Channel Definition Structure","Bendway Weirs","Yes",null,null,-1]
["Has a Significant Change Occurred in Channel Width in Last 10 years","Channel Definition Structure","Bendway Weirs","No",null,null,1]
["Has a Significant Change Occurred in Channel Width in Last 10 years","Channel Definition Structure","Stream Barbs","Yes",null,null,-1]
["Has a Significant Change Occurred in Channel Width in Last 10 years","Channel Definition Structure","Stream Barbs","No",null,null,1]
["Has a Significant Change Occurred in Channel Width in Last 10 years","Channel Definition Structure","J-Hook Vane/Straight Vane","Yes",null,null,-1]
["Has a Significant Change Occurred in Channel Width in Last 10 years","Channel Definition Structure","J-Hook Vane/Straight Vane","No",null,null,1]
["Has a Significant Change Occurred in Channel Width in Last 10 years","Geomorphic Channel Design (GCD)","*","*",null,null,1]
["Has a Significant Change Occurred in Channel Width in Last 10 years","Vegetation Restoration","*","Yes",null,null,-1]
["Has a Significant Change Occurred in Channel Width in Last 10 years","Vegetation Restoration","*","No",null,null,1]
["Has a Significant Change Occurred in Channel Width in Last 10 years","Bank and Floodplain Restoration","Bank Sloping (5:1, 4:1, 3:1, 2:1)","*",null,null,1]
["Has a Significant Change Occurred in Channel Width in Last 10 years","Bank and Floodplain Restoration","Bankfull Bench","*",null,null,1]
["Has a Significant Change Occurred in Channel Width in Last 10 years","Bank and Floodplain Restoration","Levee Setback or Removal","*",null,null,1]
["Has a Significant Change Occurred in Channel Width in Last 10 years","Bank and Floodplain Restoration","Multi-Stage Channel","*",null,null,1]
["Has a Significant Change Occurred in Channel Width in Last 10 years","Bank and Floodplain Restoration","Oxbow","*",null,null,1]
["Has a Significant Change Occurred in Channel Width in Last 10 years","Bank and Floodplain Restoration","Floodplain Assemblages","*",null,null,1]
["Has a Significant Change Occurred in Channel Width in Last 10 years","Riparian Buffering","*","Yes",null,null,0]
["Has a Significant Change Occurred in Channel Width in Last 10 years","Riparian Buffering","*","No",null,null,1]
[]
["Has a Significant Change Occurred in Channel Path in Last 10 years","Grade Control","Grouted Grade Control","Yes",null,null,0]
["Has a Significant Change Occurred in Channel Path in Last 10 years","Grade Control","Grouted Grade Control","No",null,null,1]
["Has a Significant Change Occurred in Channel Path in Last 10 years","Grade Control","*","*",null,null,1]
["Has a Significant Change Occurred in Channel Path in Last 10 years","Aquatic Habitat/Cover Feature","Lunkers","Yes",null,null,0]
["Has a Significant Change Occurred in Channel Path in Last 10 years","Aquatic Habitat/Cover Feature","Lunkers","No",null,null,1]
["Has a Significant Change Occurred in Channel Path in Last 10 years","Aquatic Habitat/Cover Feature","Boulder/Rock Clusters","*",null,null,1]
["Has a Significant Change Occurred in Channel Path in Last 10 years","Aquatic Habitat/Cover Feature","Locked Logs","Yes",null,null,0]
["Has a Significant Change Occurred in Channel Path in Last 10 years","Aquatic Habitat/Cover Feature","Locked Logs","No",null,null,1]
["Has a Significant Change Occurred in Channel Path in Last 10 years","Aquatic Habitat/Cover Feature","Large Woody Debris","Yes",null,null,0]
["Has a Significant Change Occurred in Channel Path in Last 10 years","Aquatic Habitat/Cover Feature","Large Woody Debris","No",null,null,1]
["Has a Significant Change Occurred in Channel Path in Last 10 years","Aquatic Habitat/Cover Feature","Root Wads","Yes",null,null,0]
["Has a Significant Change Occurred in Channel Path in Last 10 years","Aquatic Habitat/Cover Feature","Root Wads","No",null,null,1]
["Has a Significant Change Occurred in Channel Path in Last 10 years","Aquatic Habitat/Cover Feature","Submerged Crib Wall","Yes",null,null,0]
["Has a Significant Change Occurred in Channel Path in Last 10 years","Aquatic Habitat/Cover Feature","Submerged Crib Wall","No",null,null,1]
["Has a Significant Change Occurred in Channel Path in Last 10 years","Toe Protection/Stabilization","Toe wood","Yes",null,null,0]
["Has a Significant Change Occurred in Channel Path in Last 10 years","Toe Protection/Stabilization","Toe wood","No",null,null,1]
["Has a Significant Change Occurred in Channel Path in Last 10 years","Toe Protection/Stabilization","Stone Toe Protection","*",null,null,1]
["Has a Significant Change Occurred in Channel Path in Last 10 years","Toe Protection/Stabilization","Fabric Encapsulated Soil Lifts","*",null,null,1]
["Has a Significant Change Occurred in Channel Path in Last 10 years","Toe Protection/Stabilization","Log Vane with Boulder Hook","*",null,null,1]
["Has a Significant Change Occurred in Channel Path in Last 10 years","Toe Protection/Stabilization","Single & Double Wing Deflector","*",null,null,1]
["Has a Significant Change Occurred in Channel Path in Last 10 years","Toe Protection/Stabilization","Vegetated Banks","*",null,null,1]
["Has a Significant Change Occurred in Channel Path in Last 10 years","Channel Definition Structure","Cut-Off Sills","Yes",null,null,0]
["Has a Significant Change Occurred in Channel Path in Last 10 years","Channel Definition Structure","Cut-Off Sills","No",null,null,1]
["Has a Significant Change Occurred in Channel Path in Last 10 years","Channel Definition Structure","Engineered Log Jams","Yes",null,null,0]
["Has a Significant Change Occurred in Channel Path in Last 10 years","Channel Definition Structure","Engineered Log Jams","No",null,null,1]
["Has a Significant Change Occurred in Channel Path in Last 10 years","Channel Definition Structure","Longitudinal Peaked Stone Toe","*",null,null,1]
["Has a Significant Change Occurred in Channel Path in Last 10 years","Channel Definition Structure","Bendway Weirs","*",null,null,1]
["Has a Significant Change Occurred in Channel Path in Last 10 years","Channel Definition Structure","Stream Barbs","Yes",null,null,0]
["Has a Significant Change Occurred in Channel Path in Last 10 years","Channel Definition Structure","Stream Barbs","No",null,null,1]
["Has a Significant Change Occurred in Channel Path in Last 10 years","Channel Definition Structure","J-Hook Vane/Straight Vane","*",null,null,1]
["Has a Significant Change Occurred in Channel Path in Last 10 years","Geomorphic Channel Design (GCD)","*","*",null,null,1]
["Has a Significant Change Occurred in Channel Path in Last 10 years","Vegetation Restoration","*","Yes",null,null,0]
["Has a Significant Change Occurred in Channel Path in Last 10 years","Vegetation Restoration","*","No",null,null,1]
["Has a Significant Change Occurred in Channel Path in Last 10 years","Bank and Floodplain Restoration","Bank Sloping (5:1, 4:1, 3:1, 2:1)","*",null,null,1]
["Has a Significant Change Occurred in Channel Path in Last 10 years","Bank and Floodplain Restoration","Bankfull Bench","*",null,null,1]
["Has a Significant Change Occurred in Channel Path in Last 10 years","Bank and Floodplain Restoration","Levee Setback or Removal","*",null,null,1]
["Has a Significant Change Occurred in Channel Path in Last 10 years","Bank and Floodplain Restoration","Multi-Stage Channel","*",null,null,1]
["Has a Significant Change Occurred in Channel Path in Last 10 years","Bank and Floodplain Restoration","Oxbow","*",null,null,1]
["Has a Significant Change Occurred in Channel Path in Last 10 years","Bank and Floodplain Restoration","Floodplain Assemblages","*",null,null,1]
["Has a Significant Change Occurred in Channel Path in Last 10 years","Riparian Buffering","*","*",null,null,1]
[]
["Does Channel Have Unvegetated Mid-Channel, Side or Diagonal Bars or Islands Present","Grade Control","*","Yes",null,null,0]
["Does Channel Have Unvegetated Mid-Channel, Side or Diagonal Bars or Islands Present","Grade Control","*","No",null,null,1]
["Does Channel Have Unvegetated Mid-Channel, Side or Diagonal Bars or Islands Present","Aquatic Habitat/Cover Feature","Lunkers","Yes",null,null,0]
["Does Channel Have Unvegetated Mid-Channel, Side or Diagonal Bars or Islands Present","Aquatic Habitat/Cover Feature","Lunkers","No",null,null,1]
["Does Channel Have Unvegetated Mid-Channel, Side or Diagonal Bars or Islands Present","Aquatic Habitat/Cover Feature","Boulder/Rock Clusters","*",null,null,1]
["Does Channel Have Unvegetated Mid-Channel, Side or Diagonal Bars or Islands Present","Aquatic Habitat/Cover Feature","Locked Logs","Yes",null,null,0]
["Does Channel Have Unvegetated Mid-Channel, Side or Diagonal Bars or Islands Present","Aquatic Habitat/Cover Feature","Locked Logs","No",null,null,1]
["Does Channel Have Unvegetated Mid-Channel, Side or Diagonal Bars or Islands Present","Aquatic Habitat/Cover Feature","Large Woody Debris","Yes",null,null,0]
["Does Channel Have Unvegetated Mid-Channel, Side or Diagonal Bars or Islands Present","Aquatic Habitat/Cover Feature","Large Woody Debris","No",null,null,1]
["Does Channel Have Unvegetated Mid-Channel, Side or Diagonal Bars or Islands Present","Aquatic Habitat/Cover Feature","Root Wads","Yes",null,null,0]
["Does Channel Have Unvegetated Mid-Channel, Side or Diagonal Bars or Islands Present","Aquatic Habitat/Cover Feature","Root Wads","No",null,null,1]
["Does Channel Have Unvegetated Mid-Channel, Side or Diagonal Bars or Islands Present","Aquatic Habitat/Cover Feature","Submerged Crib Wall","Yes",null,null,0]
["Does Channel Have Unvegetated Mid-Channel, Side or Diagonal Bars or Islands Present","Aquatic Habitat/Cover Feature","Submerged Crib Wall","No",null,null,1]
["Does Channel Have Unvegetated Mid-Channel, Side or Diagonal Bars or Islands Present","Toe Protection/Stabilization","Toe wood","Yes",null,null,0]
["Does Channel Have Unvegetated Mid-Channel, Side or Diagonal Bars or Islands Present","Toe Protection/Stabilization","Toe wood","No",null,null,1]
["Does Channel Have Unvegetated Mid-Channel, Side or Diagonal Bars or Islands Present","Toe Protection/Stabilization","Stone Toe Protection","*",null,null,1]
["Does Channel Have Unvegetated Mid-Channel, Side or Diagonal Bars or Islands Present","Toe Protection/Stabilization","Fabric Encapsulated Soil Lifts","*",null,null,1]
["Does Channel Have Unvegetated Mid-Channel, Side or Diagonal Bars or Islands Present","Toe Protection/Stabilization","Log Vane with Boulder Hook","*",null,null,1]
["Does Channel Have Unvegetated Mid-Channel, Side or Diagonal Bars or Islands Present","Toe Protection/Stabilization","Single & Double Wing Deflector","*",null,null,1]
["Does Channel Have Unvegetated Mid-Channel, Side or Diagonal Bars or Islands Present","Toe Protection/Stabilization","Vegetated Banks","*",null,null,1]
["Does Channel Have Unvegetated Mid-Channel, Side or Diagonal Bars or Islands Present","Channel Definition Structure","Cut-Off Sills","Yes",null,null,0]
["Does Channel Have Unvegetated Mid-Channel, Side or Diagonal Bars or Islands Present","Channel Definition Structure","Cut-Off Sills","No",null,null,1]
["Does Channel Have Unvegetated Mid-Channel, Side or Diagonal Bars or Islands Present","Channel Definition Structure","Engineered Log Jams","Yes",null,null,0]
["Does Channel Have Unvegetated Mid-Channel, Side or Diagonal Bars or Islands Present","Channel Definition Structure","Engineered Log Jams","No",null,null,1]
["Does Channel Have Unvegetated Mid-Channel, Side or Diagonal Bars or Islands Present","Channel Definition Structure","Longitudinal Peaked Stone Toe","*",null,null,1]
["Does Channel Have Unvegetated Mid-Channel, Side or Diagonal Bars or Islands Present","Channel Definition Structure","Bendway Weirs","*",null,null,1]
["Does Channel Have Unvegetated Mid-Channel, Side or Diagonal Bars or Islands Present","Channel Definition Structure","Stream Barbs","Yes",null,null,0]
["Does Channel Have Unvegetated Mid-Channel, Side or Diagonal Bars or Islands Present","Channel Definition Structure","Stream Barbs","No",null,null,1]
["Does Channel Have Unvegetated Mid-Channel, Side or Diagonal Bars or Islands Present","Channel Definition Structure","J-Hook Vane/Straight Vane","*",null,null,1]
["Does Channel Have Unvegetated Mid-Channel, Side or Diagonal Bars or Islands Present","Geomorphic Channel Design (GCD)","*","*",null,null,1]
["Does Channel Have Unvegetated Mid-Channel, Side or Diagonal Bars or Islands Present","Vegetation Restoration","*","*",null,null,1]
["Does Channel Have Unvegetated Mid-Channel, Side or Diagonal Bars or Islands Present","Bank and Floodplain Restoration","*","*",null,null,1]
["Does Channel Have Unvegetated Mid-Channel, Side or Diagonal Bars or Islands Present","Riparian Buffering","*","*",null,null,1]
[]
["Is there a vertical drop at outlet location","Grade Control","Step-Pool Structure","*",null,null,1]
["Is there a vertical drop at outlet location","Grade Control","Rock Arch Rapids","*",null,null,1]
["Is there a vertical drop at outlet location","Grade Control","Cross Vane","*",null,null,1]
["Is there a vertical drop at outlet location","Grade Control","Rock & Log Riffle","*",null,null,1]
["Is there a vertical drop at outlet location","Grade Control","W-Weir","*",null,null,1]
["Is there a vertical drop at outlet location","Grade Control","Grouted Grade Control","Yes",null,null,0]
["Is there a vertical drop at outlet location","Grade Control","Grouted Grade Control","No",null,null,1]
["Is there a vertical drop at outlet location","Grade Control","Rock Constructed Riffle","*",null,null,1]
["Is there a vertical drop at outlet location","Aquatic Habitat/Cover Feature","*","*",null,null,1]
["Is there a vertical drop at outlet location","Toe Protection/Stabilization","*","*",null,null,1]
["Is there a vertical drop at outlet location","Channel Definition Structure","*","*",null,null,1]
["Is there a vertical drop at outlet location","Geomorphic Channel Design (GCD)","*","*",null,null,1]
["Is there a vertical drop at outlet location","Vegetation Restoration","*","*",null,null,1]
["Is there a vertical drop at outlet location","Bank and Floodplain Restoration","*","*",null,null,1]
["Is there a vertical drop at outlet location","Riparian Buffering","*","*",null,null,1]
[]
["What Percentage of Stream Banks Have Native Veg","Grade Control","Step-Pool Structure","*",-9999,null,1]
["What Percentage of Stream Banks Have Native Veg","Grade Control","Rock Arch Rapids","*",-9999,null,1]
["What Percentage of Stream Banks Have Native Veg","Grade Control","Cross Vane","*",-9999,null,1]
["What Percentage of Stream Banks Have Native Veg","Grade Control","Rock & Log Riffle","*",-9999,null,1]
["What Percentage of Stream Banks Have Native Veg","Grade Control","W-Weir","*",-9999,null,1]
["What Percentage of Stream Banks Have Native Veg","Grade Control","Grouted Grade Control","*",-9999,null,1]
["What Percentage of Stream Banks Have Native Veg","Grade Control","Rock Constructed Riffle","*",-9999,null,1]
["What Percentage of Stream Banks Have Native Veg","Aquatic Habitat/Cover Feature","*","*",-9999,null,1]
["What Percentage of Stream Banks Have Native Veg","Toe Protection/Stabilization","*","*",-9999,null,1]
["What Percentage of Stream Banks Have Native Veg","Channel Definition Structure","*","*",-9999,null,1]
["What Percentage of Stream Banks Have Native Veg","Geomorphic Channel Design (GCD)","*","*",-9999,null,1]
["What Percentage of Stream Banks Have Native Veg","Vegetation Restoration","*",null,null,60,1]
["What Percentage of Stream Banks Have Native Veg","Vegetation Restoration","*",null,60,null,0]
["What Percentage of Stream Banks Have Native Veg","Bank and Floodplain Restoration","*","*",-9999,null,1]
["What Percentage of Stream Banks Have Native Veg","Riparian Buffering","*","*",-9999,null,1]
[]
["Drop in Elev from 0.5 mi Upstream to 0.5 mi Downstream","Grade Control","Step-Pool Structure","*",null,null,1]
["Drop in Elev from 0.5 mi Upstream to 0.5 mi Downstream","Grade Control","Rock Arch Rapids","*",null,null,1]
["Drop in Elev from 0.5 mi Upstream to 0.5 mi Downstream","Grade Control","Cross Vane","*",null,null,1]
["Drop in Elev from 0.5 mi Upstream to 0.5 mi Downstream","Grade Control","Rock & Log Riffle","*",null,null,1]
["Drop in Elev from 0.5 mi Upstream to 0.5 mi Downstream","Grade Control","W-Weir","*",null,null,1]
["Drop in Elev from 0.5 mi Upstream to 0.5 mi Downstream","Grade Control","Grouted Grade Control","*",null,null,1]
["Drop in Elev from 0.5 mi Upstream to 0.5 mi Downstream","Grade Control","Rock Constructed Riffle","*",null,null,1]
["Drop in Elev from 0.5 mi Upstream to 0.5 mi Downstream","Aquatic Habitat/Cover Feature","*","*",null,null,1]
["Drop in Elev from 0.5 mi Upstream to 0.5 mi Downstream","Toe Protection/Stabilization","*","*",null,null,1]
["Drop in Elev from 0.5 mi Upstream to 0.5 mi Downstream","Channel Definition Structure","*","*",null,null,1]
["Drop in Elev from 0.5 mi Upstream to 0.5 mi Downstream","Geomorphic Channel Design (GCD)","*","*",null,null,1]
["Drop in Elev from 0.5 mi Upstream to 0.5 mi Downstream","Vegetation Restoration","*","*",null,null,1]
["Drop in Elev from 0.5 mi Upstream to 0.5 mi Downstream","Bank and Floodplain Restoration","*","*",null,null,1]
["Drop in Elev from 0.5 mi Upstream to 0.5 mi Downstream","Riparian Buffering","*","*",null,null,1]
[]
["Qualifications - LANDOWNER OR DESIGN PROFESSIONAL","Grade Control","*","Yes",null,null,1]
["Qualifications - LANDOWNER OR DESIGN PROFESSIONAL","Grade Control","*","No",null,null,-1]
["Qualifications - LANDOWNER OR DESIGN PROFESSIONAL","Vegetation Restoration","Brush Layering","Yes",null,null,1]
["Qualifications - LANDOWNER OR DESIGN PROFESSIONAL","Vegetation Restoration","Brush Layering","No",null,null,-1]
["Qualifications - LANDOWNER OR DESIGN PROFESSIONAL","Vegetation Restoration","Live Staking / Joint Planting","*",null,null,1]
["Qualifications - LANDOWNER OR DESIGN PROFESSIONAL","Vegetation Restoration","Seeding","*",null,null,1]
["Qualifications - LANDOWNER OR DESIGN PROFESSIONAL","Vegetation Restoration","Erosion Control Matting","*",null,null,1]
["Qualifications - LANDOWNER OR DESIGN PROFESSIONAL","Vegetation Restoration","Sod Matting","*",null,null,1]
["Qualifications - LANDOWNER OR DESIGN PROFESSIONAL","Vegetation Restoration","Live Fascines","*",null,null,1]
["Qualifications - LANDOWNER OR DESIGN PROFESSIONAL","Vegetation Restoration","Tree/Shrub Plantings","*",null,null,1]
["Qualifications - LANDOWNER OR DESIGN PROFESSIONAL","Geomorphic Channel Design (GCD)","*","Yes",null,null,1]
["Qualifications - LANDOWNER OR DESIGN PROFESSIONAL","Geomorphic Channel Design (GCD)","*","No",null,null,-1]
["Qualifications - LANDOWNER OR DESIGN PROFESSIONAL","Toe Protection/Stabilization","*","Yes",null,null,1]
["Qualifications - LANDOWNER OR DESIGN PROFESSIONAL","Toe Protection/Stabilization","*","No",null,null,-1]
["Qualifications - LANDOWNER OR DESIGN PROFESSIONAL","Aquatic Habitat/Cover Feature","*","Yes",null,null,1]
["Qualifications - LANDOWNER OR DESIGN PROFESSIONAL","Aquatic Habitat/Cover Feature","*","No",null,null,-1]
["Qualifications - LANDOWNER OR DESIGN PROFESSIONAL","Channel Definition Structure","*","Yes",null,null,1]
["Qualifications - LANDOWNER OR DESIGN PROFESSIONAL","Channel Definition Structure","*","No",null,null,-1]
["Qualifications - LANDOWNER OR DESIGN PROFESSIONAL","Bank and Floodplain Restoration","*","Yes",null,null,1]
["Qualifications - LANDOWNER OR DESIGN PROFESSIONAL","Bank and Floodplain Restoration","*","No",null,null,-1]
["Qualifications - LANDOWNER OR DESIGN PROFESSIONAL","Riparian Buffering","*","Yes",null,null,1]
["Qualifications - LANDOWNER OR DESIGN PROFESSIONAL","Riparian Buffering","*","No",null,null,-1]
["Qualifications - LANDOWNER OR DESIGN PROFESSIONAL","Culvert Adjustment","*","Yes",null,null,1]
["Qualifications - LANDOWNER OR DESIGN PROFESSIONAL","Dam Mitigation","*","No",null,null,-1]
["Stream Type","Geomorphic Channel Design (GCD)","D","*",null,null,-1]
["Stream Type","Geomorphic Channel Design (GCD)","F","*",null,null,-1]
["Stream Type","Geomorphic Channel Design (GCD)","*","*",null,null,1]
[]
["Number of Channels","Geomorphic Channel Design (GCD)","A","single",null,null,1]
["Number of Channels","Geomorphic Channel Design (GCD)","A","multiple",null,null,-1]
["Number of Channels","Geomorphic Channel Design (GCD)","Aa+","single",null,null,1]
["Number of Channels","Geomorphic Channel Design (GCD)","Aa+","multiple",null,null,-1]
["Number of Channels","Geomorphic Channel Design (GCD)","Ab","single",null,null,1]
["Number of Channels","Geomorphic Channel Design (GCD)","Ab","multiple",null,null,-1]
["Number of Channels","Geomorphic Channel Design (GCD)","B","single",null,null,1]
["Number of Channels","Geomorphic Channel Design (GCD)","B","multiple",null,null,-1]
["Number of Channels","Geomorphic Channel Design (GCD)","Ba","single",null,null,1]
["Number of Channels","Geomorphic Channel Design (GCD)","Ba","multiple",null,null,-1]
["Number of Channels","Geomorphic Channel Design (GCD)","Bc","single",null,null,1]
["Number of Channels","Geomorphic Channel Design (GCD)","Bc","multiple",null,null,-1]
["Number of Channels","Geomorphic Channel Design (GCD)","C","single",null,null,1]
["Number of Channels","Geomorphic Channel Design (GCD)","C","multiple",null,null,-1]
["Number of Channels","Geomorphic Channel Design (GCD)","D","single",null,null,-1]
["Number of Channels","Geomorphic Channel Design (GCD)","D","multiple",null,null,1]
["Number of Channels","Geomorphic Channel Design (GCD)","DA","single",null,null,-1]
["Number of Channels","Geomorphic Channel Design (GCD)","DA","multiple",null,null,1]
["Number of Channels","Geomorphic Channel Design (GCD)","E","single",null,null,1]
["Number of Channels","Geomorphic Channel Design (GCD)","E","multiple",null,null,-1]
["Number of Channels","Geomorphic Channel Design (GCD)","*","*",null,null,1]

{"sheet":"ESRI_MAPINFO_SHEET","index":18,"n_rows":0,"n_cols":0,"rows_kept":0,"cut":false,"hidden":true,"merged":[]}